Workbook

Sheet MacroDisabled
B6: Summary measures of health inequality
B7: Automated calculation workbook
B10: The workbook has detected that your version of Excel has macros disabled. Macros are required for the workbook to work properly. Please follow instructions below to enable macros. - If there is a bar near the top of the screen reading 'Security Warning macros have been disabled', select 'Enable content'. - If this bar does not appear, click 'File', then 'Options', then 'Trust Center' then 'Trust Center Settings'. Select 'Macro Settings' and select the option 'Disable all macros with notification' and select OK. Close down Excel and reopen the workbook. A bar near the top of the screen should appear reading 'Security Warning: macros have been disabed', select 'Enable content'.

Sheet cover (hidden)
B6: Summary measures of health inequality
B7: Automated calculation workbook
B10: This workbook calculates up to 21 summary measures of health inequality based on user-inputted disaggregated data. Disaggregated data are health indicator data that are broken down by subgroups of a population, which are defined according to dimensions of inequality such as demographic, socioeconomic or geographic characteristics (e.g., age, sex, economic status, place of residence, subnational region). Summary measures of inequality summarise the amount of health inequality across population subgroups in a single number - which facilitates the comparison of inequalities over time and across different settings and indicators. | M10: About
M12: How to
M14: Technical notes
M16: Glossary
M18: Data input
M20: Results

Sheet about (hidden)
B4: Summary measures of health inequality
B5: Automated calculation workbook
B8: This workbook calculates up to 21 summary measures of health inequality based on user-inputted disaggregated data. Disaggregated data are health indicator data that are broken down by subgroups of a population, which are defined according to dimensions of inequality such as demographic, socioeconomic or geographic characteristics (e.g., age, sex, economic status, place of residence, subnational region). Summary measures of inequality summarise the amount of health inequality across population subgroups in a single number - which facilitates the comparison of inequalities over time and across different settings and indicators.
B10: Please note: the purpose of this workbook is to calculate summary measures of health inequality and it cannot check the quality or accuracy of the underlying disaggregated data.
B12: About summary measures of health inequality
B14: Information about calculation methods and interpretation for the summary measures is available in the technical notes tab.
B16: Summary measures of inequality can be categorised as simple measures or complex measures:
B17: - | C17: Simple measures (difference and ratio) compare the situation in two population subgroups. They can be calculated for all dimensions of inequality (with two subgroups or more). They are easier to interpret and communicate.
B18: - | C18: Complex measures are calculated for inequality dimensions with more than two population subgroups and consider the situation in all subgroups. They can only be calculated for dimensions with more than two subgroups.
B20: Considerations when selecting and calculating summary measures of inequality
B22: First, there are considerations relating to the characteristics of the underlying data, which determines the types of measures that can be calculated and how they are calculated:
B23: - | C23: Whether there are only two subgroups or more than two subgroups within the dimension of inequality. If there are only two subgroups (i.e., binary), use simple measures. If there are more than two subgroups, both simple and complex measures can be used.
B24: - | C24: If there are more than two subgroups, whether the dimension of inequality is ordered (i.e., has subgroups with an inherent ordering) or non-ordered (i.e., has subgroups without an inherent ordering).
B25: - | C25: The optimum level that is to be achieved for the health indicator. For favourable indicators, the goal is to attain a maximum level; for adverse indicators, the goal is to attain a minimum level. Note that for some indicators there is no optimum level.
B27: Second, there are considerations relating to the properties of the different measures and the desired purpose of the analysis:
B28: - | C28: Whether inequality is measured in absolute or relative terms.
B29: - | C29: Whether subgroups should be weighted according to their population size or not.
B30: - | C30: The selection of a reference point for non-ordered measures (e.g., the mean, the best-performing subgroup or a reference value).
B32: Additional resources
B33: Schlotheuber A, Hosseinpoor AR. Summary Measures of Health Inequality: A Review of Existing Measures and Their Application. Int J Environ Res Public Health. 2022 Mar 20;19(6):3697. https://doi.org/10.3390/ijerph19063697
B34: World Health Organization. Handbook on health inequality monitoring: with a special focus on low- and middle-income countries. Geneva: World Health Organization; 2013. https://www.who.int/publications/i/item/9789241548632
B36: Decision tree for selecting summary measures of health inequality:
F38: Ordering of subgroups within the dimension of inequality?
D41: Ordered dimensions | L41: Non-ordered or binary dimensions
D43: Number of subgroups? | L43: Number of subgroups?
B46: 2 subgroups or more | G46: More than 2 subgroups | K46: 2 subgroups or more | Q46: More than 2 subgroups
B48: Simple measures | G48: Complex measures | K48: Simple measures | Q48: Complex measures
O50: Unweighted or weighted by subgroup population size?
B53: Unweighted measures | G53: Weighted measures | K53: Unweighted measures | O53: Unweighted measures | T53: Weighted measures
B55: Absolute or relative inequality? | G55: Absolute or relative inequality? | K55: Absolute or relative inequality? | O55: Absolute or relative inequality? | T55: Absolute or relative inequality?
B57: Absolute inequality | G57: Absolute inequality | K57: Absolute inequality | O57: Absolute inequality | T57: Absolute inequality
B59: Difference (D) | G59: Absolute concentration index (ACI) | K59: Difference (D) | O59: Mean difference from mean (unweighted) (MDMU) | T59: Mean difference from mean (weighted) (MDMW)
G61: Slope index of inequality (SII) | O61: Mean difference from best-performing subgroup (unweighted) (MDBU) | T61: Mean difference from best-performing subgroup (weighted) (MDBW)
G63: Population attributable risk (PAR) | O63: Mean difference from reference subgroup (unweighted) (MDRU) | T63: Mean difference from reference subgroup (weighted) (MDRW)
T65: Between-group variance (BGV)
T67: Between-group standard deviation (BGSD)
T69: Population attributable risk (PAR)
B71: Relative inequality | G71: Relative inequality | K71: Relative inequality | O71: Relative inequality | T71: Relative inequality
B73: Ratio (R) | G73: Relative concentration index (RCI) | K73: Ratio (R) | O73: Index of disparity (unweighted) (IDISU) | T73: Index of disparity (weighted) (IDISW)
G75: Relative index of inequality (RII) | T75: Coefficient of variation (COV)
G77: Population attributable fraction (PAF) | T77: Theil Index (TI)
T79: Mean log deviation (MLD)
T81: Population attributable fraction (PAF)

Sheet how to (hidden)
B3: How to use this workbook
B6: To calculate summary measures using your own data:
B8: 1. | C8: Paste your data into the DATA INPUT tab.
C9: - | D9: The data can relate to more than one set of subgroup estimates at a time (i.e., disaggregated data for subgroups within multiple settings, dates, indicators and inequality dimension combinations).
C10: - | D10: A maximum of 200 rows of data can be pasted into the DATA INPUT tab (due to computational speed).
C11: - | D11: Ensure that the data contain the same variables as the sample data, that they are organised in the same order.
C12: - | D12: Ensure that variables are defined according to the information in the glossary tab. If there are any issues, error messages will appear in Column O, "checks", of the DATA INPUT tab.
B14: 2. | C14: Go to the RESULTS tab and click the "Refresh" button.
C15: - | D15: If a yellow warning message bar appears at the top of the screen, select "Enable Content" to enable the macros in this workbook to run.
C16: - | D16: Wait for the summary measure calculations to complete and the table in the RESULTS tab to be updated.
C17: - | D17: Summary measures will be calculated based on the disaggregated data. If data are missing, this may cause summary measures not to be calculated (e.g., if population estimates are missing for one subgroup or more, complex summary measures cannot be calculated. If standard errors are missing for one subgroup or more, 95% confidence intervals for some summary measures cannot be calculated).
C18: See the technical notes tab for details about calculation methods, including formulas and step-by-step explanations.
C20: For step-by-step calculations of summary measures of health inequality in Excel, see the Summary measures of health inequality: Step-by-step workbook.
C22: For the calculation of summary measures for large datasets of disaggregated data, see the Health Equity Assessment Toolkit (HEAT) (www.who.int/data/inequality-monitor/assessment_toolkit).

Sheet technical notes (hidden)
A1: Tab | B1: Summary measure name | C1: Ordered / Non-ordered dimension | D1: Absolute / Relative measure | E1: Simple / Complex measure | F1: Weighted / Unweighted measure | G1: Unit of measure | H1: Value of no inequality | I1: Interpretation | J1: Notation | K1: Summary measure formula | L1: Variance formula | M1: Step-by-step summary measure calculation | N1: Notes
A2: d-1 | B2: Difference | C2: Ordered | D2: Absolute | E2: Simple | F2: Unweighted | G2: Unit of indicator | H2: Zero | I2: For subgroups within an ordered dimension of inequality, D measures the difference between the most- and least-advantaged subgroup estimates. The larger the absolute value of D, the higher the level of inequality. | J2: y1 = estimate for subgroup 1 y2 = estimate for subgroup 2 σ1 = standard error for subgroup 1 σ2 = standard error for subgroup 2 | K2: D = y1 – y2 | L2: var(D) = σ12 + σ22 | M2: 1. Identify the two subgroups, y1 and y2 (see notes). 2. Subtract the y1 estimate from the y2 estimate. | N2: So that the result of D tends to be positive (making interpretation easier), the calculation depends on the indicator type: Favourable indicator: Most-advantaged subgroup – Least-advantaged subgroup Adverse indicator: Least-advantaged subgroup – Most-advantaged subgroup The variable favourable_indicator identifies whether the indicator is favourable (1) or adverse (0). See the glossary for the definition of favourable and adverse indicators.
A3: r-1 | B3: Ratio | C3: Ordered | D3: Absolute | E3: Simple | F3: Unweighted | G3: No unit | H3: One | I3: For subgroups within an ordered dimension of inequality, R measures the ratio between the most- and least-advantaged subgroup estimates. R assumes only positive values. The further the value of R from 1, the higher the level of inequality. Note that because ratio is a multiplicative measure, it should be reported on a logarithmic scale (for example, a ratio of 2 is equivalent to a ratio of 0.5). | J3: y1 = estimate for subgroup 1 y2 = estimate for subgroup 2 σ1 = standard error for subgroup 1 σ2 = standard error for subgroup 2 | K3: R = y1 / y2 | L3: var(R) = (1/y22)*(σ12 + (y1/y2)2σ22) | M3: 1. Identify the two subgroups, y1 and y2 (see notes). 2. Divide the y1 estimate by the y2 estimate. | N3: So that the result of R tends to be greater than 1 (making interpretation easier), the calculation depends on the indicator type: Favourable indicator: Most-advantaged subgroup / Least-advantaged subgroup Adverse indicator: Least-advantaged subgroup / Most-advantaged subgroup The variable favourable_indicator identifies whether the indicator is favourable (1) or adverse (0). See the glossary for the definition of favourable and adverse indicators.
A4: aci | B4: Absolute concentration index | C4: Ordered | D4: Absolute | E4: Complex | F4: Weighted | G4: Unit of indicator | H4: Zero | I4: The larger the absolute value of ACI, the higher the level of inequality. Positive values indicate a concentration of the indicator among advantaged subgroups, and negative values indicate a concentration of the indicator among disadvantaged subgroups. | J4: pj = population share of subgroup j out of the total population Xj = relative rank of subgroup j yj = estimate for subgroup j σj = standard error for subgroup j | K4: ACI = ∑j pj(2Xj – 1)yj | L4: var(ACI) = ∑j pj2σj2(2Xj – 1)2 | M4: 1. Sort the subgroups from the least-advantaged to the most-advantaged. 2. Calculate the population share of each subgroup out of the total population. 3. Calculate the cumulative total of the population share of each subgroup. 4. Calculate the relative rank of each subgroup by calculating the midpoint of each subgroup (0.5*popshare) and subtracting this from the cumulative population share. 5. Calculate the population share of each subgroup multiplied by two times the subgroup's relative rank minus one, multiplied by the subgroup estimate. 6. Calculate ACI as the sum of results from step #5. | N4: This measure is only suitable when subgroups can be meaningfully ranked in order. The subgroups should be sorted from the least-advantaged to the most-advantaged.
A5: rci | B5: Relative concentration index | C5: Ordered | D5: Relative | E5: Complex | F5: Weighted | G5: No unit | H5: Zero | I5: RCI is the relative version of ACI, dividing ACI by the setting average and multiplying the result by 100 to make it more easily interpretable. The larger the absolute value of RCI, the higher the level of inequality. Positive values indicate a concentration of the indicator among advantaged subgroups, and negative values indicate a concentration of the indicator among disadvantaged subgroups. | J5: pj = population share of subgroup j out of the total population Xj = relative rank of subgroup j yj = estimate for subgroup j σj = standard error for subgroup j μ = weighted mean (setting average) | K5: RCI = 100 * [∑j pj(2Xj – 1)yj] / μ | L5: var(RCI) = {∑j pj2σj2[(2Xj – 1) – RCI]2} / μ2 | M5: 1. Sort the subgroups from the least-advantaged to the most-advantaged. 2. Calculate the population share of each subgroup out of the total population. 3. Calculate the cumulative total of the population share of each subgroup. 4. Calculate the relative rank of each subgroup by calculating the midpoint of each subgroup (0.5*popshare) and subtracting this from the cumulative population share. 5. Calculate the population share of each subgroup multiplied by two times the subgroup's relative rank minus one, multiplied by the subgroup estimate. 6. Calculate RCI as the sum of results from step #5 divided by the weighted mean of the subgroup estimates, times 100. | N5: This measure is only suitable when subgroups can be meaningfully ranked in order. The subgroups should be sorted from the least-advantaged to the most-advantaged.
A6: sii | B6: Slope index of inequality | C6: Ordered | D6: Absolute | E6: Complex | F6: Weighted | G6: Unit of indicator | H6: Zero | I6: SII measures the difference in predicted values of an indicator for the most-advantaged and most-disadvantaged subgroups, obtained by fitting a regression model. The larger the absolute value of SII, the higher the level of inequality. Positive values indicate that the level of the indicator is higher among advantaged subgroups, while negative values indicate that the level of the indicator is higher among disadvantaged subgroups. | J6: v1 = predicted value of indicator estimate at rank 1 v0 = predicted value of indicator estimate at rank 0 | K6: SII = v1 – v0 | L6: See notes | M6: 1. Sort the subgroups from the least-advantaged to the most-advantaged. 2. Calculate the population share of each subgroup out of the total population. 3. Calculate the cumulative total of the population share of each subgroup. 4. Calculate the relative rank of each subgroup (X) by calculating the midpoint of each subgroup (0.5*popshare) and subtracting this from the cumulative population share. 5. The health indicator estimates are converted to a 0-1 scale in preparation for the subsequent steps. The scaling factor to convert to a 0-1 scale is based on the maximum health indicator estimate. 6. The health indicator estimates are transformed to log odds (i.e., a logit transformation) (see notes). 7. The square root of the weight variable (population) is calculated (W). 8. The weighted relative rank is calculated as X*W. 9. The weighted (logit transformed) health indicator estimate is calculated as Y*W. 10. The weighted health indicator (YW) is regressed against the weight (W) and the weighted relative rank (XW), without a constant term. The predicted log odds at rank 0 (the least-advantaged) is equal to the intercept (i.e. the second beta coefficient of the regression model). The predicted log odds at rank 1 (the most-advantaged) is equal to the sum of the intercept (i.e. the second beta coefficient) and the slope (i.e. the first beta coefficient). 11. Log odds are converted back to the indicator scale using the inverse logit formula, multiplied by the indicator scaling factor. 12. Calculate SII as the difference between the indicator estimates at rank 1 (v1) and rank 0 (v0). | N6: This measure is only suitable when subgroups can be meaningfully ranked in order. The subgroups should be sorted from the least-advantaged to the most-advantaged. Simple linear regression assumes a linear relationship between the health indicator and the population ranking (which is not always the case) and can result in estimated values outside of a 0-100% interval (which is inaccurate for indicators measured as percentages). Using logistic regression can sometimes solve these problems. In this workbook, a weighted least squares (WLS) regression method is used, with a logit transformation of the health indicator. With a logit transformation, the estimated values from the regression model will be bounded between 0 and 1 (or 0-100%), which is preferable for many indicators. The weighted (logit transformed) indicator estimates are regressed against the weighted relative rank of each subgroup and the values for the least-advantaged (rank 0) and most-advantaged (rank 1) groups are estimated from the regression model, taking all other subgroups into account. The predicted values are then converted back to the original indicator scale. Note that the SII results may differ from those produced using more sophisticated modelling techniques with statistical software. If 95% confidence intervals are required, upload the dataset to the Health Equity Assesssment Toolkit Plus (HEAT Plus) software (available at www.who.int/data/inequality-monitor/assessment_toolkit) or use statistical software package such as Stata or R (codes available at www.who.int/data/inequality-monitor/tools-resources/statistical_codes).
A7: rii | B7: Relative index of inequality | C7: Ordered | D7: Relative | E7: Complex | F7: Weighted | G7: No unit | H7: One | I7: RII measures the ratio between the predicted values of an indicator for the most-advantaged and most-disadvantaged subgroups, obtained by fitting a regression model. The further the value of RII from 1, the higher the level of inequality. Values larger than 1 indicate the level of the indicator is higher among advantaged subgroups, and values lower than 1 indicate the level of the indicator is higher among disadvantaged subgroups. Note that because RII is a multiplicative measure, it should be reported on a logarithmic scale (for example, a value of 2 is equivalent to a value of 0.5). | J7: v1 = predicted value of indicator estimate at rank 1 v0 = predicted value of indicator estimate at rank 0 | K7: RII = v1 / v0 | L7: See notes | M7: 1. Sort the subgroups from the least-advantaged to the most-advantaged. 2. Calculate the population share of each subgroup out of the total population. 3. Calculate the cumulative total of the population share of each subgroup. 4. Calculate the relative rank of each subgroup (X) by calculating the midpoint of each subgroup (0.5*popshare) and subtracting this from the cumulative population share. 5. The health indicator estimates are converted to a 0-1 scale in preparation for the subsequent steps. The scaling factor to convert to a 0-1 scale is based on the maximum health indicator estimate. 6. The health indicator estimates are transformed to log odds (i.e., a logit transformation) (see notes). 7. The square root of the weight variable (population) is calculated (W). 8. The weighted relative rank is calculated as X*W. 9. The weighted (logit transformed) health indicator estimate is calculated as Y*W. 10. The weighted health indicator (YW) is regressed against the weight (W) and the weighted relative rank (XW), without a constant term. The predicted log odds at rank 0 (the least-advantaged) is equal to the intercept (i.e. the second beta coefficient of the regression model). The predicted log odds at rank 1 (the most-advantaged) is equal to the sum of the intercept (i.e. the second beta coefficient) and the slope (i.e. the first beta coefficient). 11. Log odds are converted back to the indicator scale using the inverse logit formula, multiplied by the indicator scaling factor. 12. Calculate RII as the ratio between the indicator estimates at rank 1 (v1) and rank 0 (v0). | N7: This measure is only suitable when subgroups can be meaningfully ranked in order. The subgroups should be sorted from the least-advantaged to the most-advantaged. Simple linear regression assumes a linear relationship between the health indicator and the population ranking (which is not always the case) and can result in estimated values outside of a 0-100% interval (which is inaccurate for indicators measured as percentages). Using logistic regression can sometimes solve these problems. In this workbook, a weighted least squares (WLS) regression method is used, with a logit transformation of the health indicator. With a logit transformation, the estimated values from the regression model will be bounded between 0 and 1 (or 0-100%), which is preferable for many indicators. The weighted (logit transformed) indicator estimates are regressed against the weighted relative rank of each subgroup and the values for the least-advantaged (rank 0) and most-advantaged (rank 1) groups are estimated from the regression model, taking all other subgroups into account. The predicted values are then converted back to the original indicator scale. Note that the RII results will differ from those produced using more sophisticated modelling techniques with statistical software. If 95% confidence intervals are required, upload the dataset to the Health Equity Assesssment Toolkit Plus (HEAT Plus) software (available at www.who.int/data/inequality-monitor/assessment_toolkit) or use statistical software package such as Stata or R (codes available at www.who.int/data/inequality-monitor/tools-resources/statistical_codes).
A8: par-1 | B8: Population attributable risk | C8: Ordered | D8: Absolute | E8: Complex | F8: Weighted | G8: Unit of indicator | H8: Zero | I8: For ordered dimensions of inequality, PAR shows the potential improvement in the average of an indicator, in absolute terms, that could be achieved if all population subgroups had the same level of the indicator as the most-advantaged subgroup. PAR assumes only positive values for favourable indicators and only negative values for adverse indicators. The larger the absolute value, the higher the level of inequality. | J8: yref = estimate for a reference subgroup μ = weighted mean (setting average) PAF = population attributable fraction PAFse = standard error of population attributable fraction | K8: PAR = yref – μ | L8: var(PAR) = {|μ[(PAF + 1.96 PAFse) – (PAF – 1.96 PAFse)]| / (2*1.96)}2 | M8: 1. Identify the reference subgroup, yref (see notes). 2. Calculate the population share of each subgroup out of the total population. 3. Calculate the weighted mean of the subgroup estimates. 3. Calculate PAR as the difference between the reference subgroup estimate and the weighted mean. | N8: For ordered dimensions, the reference subgroup (yref) is the most-advantaged subgroup (identified as having the largest subgroup_order value). If the indicator is favourable (favourable_indicator=1) and PAR has a negative value, PAR is equal to zero. If the indicator is adverse (favourable_indicator=0) and PAR has a positive value, PAR is equal to zero. See the glossary for the definition of favourable and adverse indicators. The variable indicator_scale is required for the calculation of 95% confidence intervals and identifies the scale of the indicator. See the glossary for the definition of indicator scale.
A9: paf-1 | B9: Population attributable fraction | C9: Ordered | D9: Relative | E9: Complex | F9: Weighted | G9: No unit | H9: Zero | I9: For ordered dimensions of inequality, PAF shows the potential improvement in the average of an indicator, in relative terms, that could be achieved if all population subgroups had the same level of the indicator as the most-advantaged subgroup. PAF assumes only positive values for favourable indicators and only negative values for adverse indicators. The larger the absolute value of PAF, the larger the level of inequality. | J9: yref = estimate for a reference subgroup μ = weighted mean (setting average) a = number of people not in the reference subgroup for whom the indicator was achieved b = number of people not in the reference subgroup for whom the indicator was not achieved c = number of people in the reference subgroup for whom the indicator was achieved d = number of people in the reference subgroup for whom the indicator was not achieved N = total number of people (a + b + c + d) | K9: PAF = 100 * (yref – μ)/μ | L9: var(PAF) = cN[ad(N – c) + bc2] / (a + c)3(c + d)3 | M9: 1. Identify the reference subgroup, yref (see notes). 2. Calculate the population share of each subgroup out of the total population. 3. Calculate the weighted mean of the subgroup estimates. 3. Calculate PAF as the difference between the reference subgroup estimate and the weighted mean, divided by the weighted mean, times 100. | N9: For ordered dimensions, the reference subgroup (yref) is the most-advantaged subgroup (identified as having the largest subgroup_order value). If the indicator is favourable (favourable_indicator=1) and PAF has a negative value, PAF is equal to zero. If the indicator is adverse (favourable_indicator=0) and PAF has a positive value, PAF is equal to zero. See the glossary for the definition of favourable and adverse indicators. The variable indicator_scale identifies the scale of the indicator. See the glossary for the definition of indicator scale.
A10: d-2 | B10: Difference | C10: Non-ordered | D10: Absolute | E10: Simple | F10: Unweighted | G10: Unit of indicator | H10: Zero | I10: For subgroups within an non-ordered dimension of inequality, D measures the difference between the two selected subgroup estimates. The larger the absolute value of D, the higher the level of inequality. | J10: y1 = estimate for subgroup 1 y2 = estimate for subgroup 2 σ1 = standard error for subgroup 1 σ2 = standard error for subgroup 2 | K10: D = y1 – y2 | L10: var(D) = σ12 + σ22 | M10: 1. Identify the two subgroups, y1 and y2 (see notes). 2. Subtract the y1 estimate from the y2 estimate. | N10: The selection of the two subgroups depends on the characteristics of the inequality dimension, the purpose of the analysis and the indicator type: No reference subgroup | favourable indicator: Highest estimate – Lowest estimate No reference subgroup | adverse indicator: Lowest estimate – Highest estimate Reference subgroup | favourable indicator: Reference group estimate – Lowest estimate Reference subgroup | adverse indicator: Highest estimate – Reference group estimate The variable favourable_indicator identifies whether the indicator is favourable (1) or adverse (0). See the glossary for the definition of favourable and adverse indicators. The variable reference_subgroup can optionally be used to identify a reference subgroup with the value 1.
A11: r-2 | B11: Ratio | C11: Non-ordered | D11: Absolute | E11: Simple | F11: Unweighted | G11: No unit | H11: One | I11: For subgroups within an ordered dimension of inequality, R measures the ratio between two selected subgroup estimates. R assumes only positive values. The further the value of R from 1, the higher the level of inequality. Note that because ratio is a multiplicative measure, it should be reported on a logarithmic scale (for example, a ratio of 2 is equivalent to a ratio of 0.5). | J11: y1 = estimate for subgroup 1 y2 = estimate for subgroup 2 σ1 = standard error for subgroup 1 σ2 = standard error for subgroup 2 | K11: R = y1 / y2 | L11: var(R) = (1/y2)2σ12 + (y1/y2)2σ22 | M11: 1. Identify the two subgroups, y1 and y2 (see notes). 2. Divide the y1 estimate by the y2 estimate. | N11: The selection of the two subgroups depends on the characteristics of the inequality dimension, the purpose of the analysis and the indicator type: No reference subgroup: Highest estimate / Lowest estimate Reference subgroup | favourable indicator: Reference group estimate / Lowest estimate Reference subgroup | adverse indicator: Highest estimate / Reference group estimate The variable favourable_indicator identifies whether the indicator is favourable (1) or adverse (0). See the glossary for the definition of favourable and adverse indicators. The variable reference_subgroup can optionally be used to identify a reference subgroup with the value 1.
A12: mdm | B12: Mean difference from mean | C12: Non-ordered | D12: Absolute | E12: Complex | F12: Weighted / unweighted | G12: Unit of indicator | H12: Zero | I12: MDM shows the mean difference between each subgroup and the setting average. It has only positive values, with larger values indicating higher levels of inequality. | J12: n = number of subgroups yj = estimate for subgroup j μ = weighted mean (setting average) pj = population share of subgroup j out of the total population | K12: MDMU = 1/n * ∑j|yj – μ| MDMW = ∑jpj|yj – μ| | L12: See notes | M12: 1. Calculate the population share of each subgroup out of the total population. 2. Calculate the weighted mean of the subgroup estimates. 3. Calculate MDMU as the absolute difference between each estimate and the weighted mean, and then sum the results and divide by the total number of subgroups. 4. Calculate MDMW as the absolute difference between each estimate and the weighted mean, mutiplied by the population share, and then sum the results. | N12: MDM can be calculated as an unweighted or weighted measure. For the unweighted version (MDMU) all subgroups are weighted equally. For the weighted version (MDMW) subgroups are weighted according to their population share. 95% confidence intervals are not calculated in this workbook, as they require a simulation methodology. If 95% confidence intervals are required, upload the dataset to the Health Equity Assesssment Toolkit Plus (HEAT Plus) software (available at www.who.int/data/inequality-monitor/assessment_toolkit) or use statistical software package such as Stata or R (codes available at www.who.int/data/inequality-monitor/tools-resources/statistical_codes).
A13: mdb | B13: Mean difference from best-performing subgroup | C13: Non-ordered | D13: Absolute | E13: Complex | F13: Weighted / unweighted | G13: Unit of indicator | H13: Zero | I13: MDB shows the mean difference between each subgroup and the best-performing subgroup. It has only positive values, with larger values indicating higher levels of inequality. | J13: n = number of subgroups yj = estimate for subgroup j yref = highest subgroup estimate for favourable indicators or lowest subgroup estimate for adverse indicators pj = population share of subgroup j out of the total population | K13: MDBU = 1/n * ∑j|yj – yref| MDBW = ∑jpj|yj – yref| | L13: See notes | M13: 1. Identify the best-performing subgroup estimate, yref. This is the highest subgroup estimate for favourable indicators or lowest subgroup estimate for adverse indicators. Use the variable favourable_indicator to identify whether an indicator is favourable (1) or adverse (0). 2. Calculate the population share of each subgroup out of the total population. 3. Calculate MDBU as the absolute difference between each estimate and the best-performing subgroup estimate, and then sum the results and divide by the total number of subgroups. 4. Calculate MDBW as the absolute difference between each estimate and the best-performing subgroup estimate, mutiplied by the population share, and then sum the results. | N13: MDB can be calculated as an unweighted or weighted measure. For the unweighted version (MDBU) all subgroups are weighted equally. For the weighted version (MDBW) subgroups are weighted according to their population share. The best-performing subgroup is the subgroup with the highest estimate for favourable indicators, or the subgroup with the lowest estimate for adverse indicators. The variable favourable_indicator identifies whether the indicator is favourable (1) or adverse (0). See the glossary for the definition of favourable and adverse indicators. 95% confidence intervals are not calculated in this workbook, as they require a simulation methodology. If 95% confidence intervals are required, upload the dataset to the Health Equity Assesssment Toolkit Plus (HEAT Plus) software (available at www.who.int/data/inequality-monitor/assessment_toolkit) or use statistical software package such as Stata or R (codes available at www.who.int/data/inequality-monitor/tools-resources/statistical_codes).
A14: mdr | B14: Mean difference from a reference subgroup | C14: Non-ordered | D14: Absolute | E14: Complex | F14: Weighted / unweighted | G14: Unit of indicator | H14: Zero | I14: MDR shows the mean difference between each subgroup and a selected reference subgroup. It has only positive values, with larger values indicating higher levels of inequality. | J14: n = number of subgroups yj = estimate for subgroup j yref = reference subgroup estimate pj = population share of subgroup j out of the total population | K14: MDRU = 1/n * ∑j|yj – yref| MDRW = ∑jpj|yj – yref| | L14: See notes | M14: 1. Identify the best-performing subgroup estimate, yref. This is the highest subgroup estimate for favourable indicators or lowest subgroup estimate for adverse indicators. Use the variable reference_subgroup to identify a reference subgroup with the value 1. 2. Calculate the population share of each subgroup out of the total population. 3. Calculate MDRU as the absolute difference between each estimate and the reference subgroup estimate, and then sum the results and divide by the total number of subgroups. 4. Calculate MDBW as the absolute difference between each estimate and the reference subgroup estimate, mutiplied by the population share, and then sum the results. | N14: MDR can be calculated as an unweighted or weighted measure. For the unweighted version (MDRU) all subgroups are weighted equally. For the weighted version (MDRW) subgroups are weighted according to their population share. The variable reference_subgroup is used to identify a reference subgroup with the value 1. 95% confidence intervals are not calculated in this workbook, as they require a simulation methodology. If 95% confidence intervals are required, upload the dataset to the Health Equity Assesssment Toolkit Plus (HEAT Plus) software (available at www.who.int/data/inequality-monitor/assessment_toolkit) or use statistical software package such as Stata or R (codes available at www.who.int/data/inequality-monitor/tools-resources/statistical_codes).
A15: idis | B15: Index of disparity | C15: Non-ordered | D15: Relative | E15: Complex | F15: Weighted / unweighted | G15: No unit | H15: Zero | I15: IDIS is the relative version of MDM, dividing MDM by the setting average and multiplying the result by 100 to make it more easily interpretable. It has only positive values, with larger values indicating higher levels of inequality. | J15: n = number of subgroups yj = estimate for subgroup j μ = weighted mean (setting average) pj = population share of subgroup j out of the total population | K15: IDISU = 100 * (1/n * ∑j|yj – μ|)/μ IDISW = 100 * (∑jpj|yj – μ|)/μ | L15: See notes | M15: 1. Calculate the population share of each subgroup out of the total population. 2. Calculate the weighted mean of the subgroup estimates. 3. Calculate IDISU as the absolute difference between each estimate and the weighted mean, and then sum the results and divide by the total number of subgroups. Multiply the result by 100. 4. Calculate IDISW as the absolute difference between each estimate and the weighted mean, mutiplied by the population share, and then sum the results. Multiply the result by 100. | N15: IDIS can be calculated as an unweighted or weighted measure. For the unweighted version (IDISU) all subgroups are weighted equally. For the weighted version (IDISW) subgroups are weighted according to their population share. 95% confidence intervals are not calculated in this workbook, as they require a simulation methodology. If 95% confidence intervals are required, upload the dataset to the Health Equity Assesssment Toolkit Plus (HEAT Plus) software (available at www.who.int/data/inequality-monitor/assessment_toolkit) or use statistical software package such as Stata or R (codes available at www.who.int/data/inequality-monitor/tools-resources/statistical_codes).
A16: bgv | B16: Between-group variance | C16: Non-ordered | D16: Absolute | E16: Complex | F16: Weighted | G16: Squared unit of indicator | H16: Zero | I16: BGV has only positive values, with larger values indicating higher levels of inequality. | J16: pj = population share of subgroup j out of the total population yj = estimate for subgroup j μ = weighted mean (setting average) σj = standard error for subgroup j | K16: BGV = ∑j pj(yj – μ)2 | L16: var(BGV) = 4∑j pj2σj2(yj – ∑jpjyj)2 + 2[(∑jpj2σj2)2 – (∑pj4σj4) + (∑pj2(1 – pj)2σj4)] | M16: 1. Calculate the population share of each subgroup out of the total population. 2. Calculate the weighted mean of the subgroup estimates. 3. Subtract the weighted mean from each subgroup estimate and square these differences. 4. Calculate BGV as the sum of the results from step #3. | N16: BGV is more sensitive to outlier estimates as it gives more weight to the estimates that are further from the setting average.
A17: bgsd | B17: Between-group standard deviation | C17: Non-ordered | D17: Absolute | E17: Complex | F17: Weighted | G17: Unit of indicator | H17: Zero | I17: BGSD is calculated as the square root of between-group variance (BGV). It has only positive values, with larger values indicating higher levels of inequality. | J17: pj = population share of subgroup j out of the total population yj = estimate for subgroup j μ = weighted mean (setting average) n = number of subgroups | K17: BGSD = √[∑j pj(yj – μ)2] | L17: See notes | M17: 1. Calculate the population share of each subgroup out of the total population. 2. Calculate the weighted mean of the subgroup estimates. 3. Subtract the weighted mean from each subgroup estimate and square these differences. 4. Calculate BGSD as the square root of the sum of the results from step #3. | N17: Since BGSD is the squared root of BGV, it is reported in the unit of the indicator, which may be more easily interpretable than BGV and will not be as sensitive to outlier estimates that are further from the setting average. 95% confidence intervals are not calculated in this workbook, as they require a simulation methodology. If 95% confidence intervals are required, upload the dataset to the Health Equity Assesssment Toolkit Plus (HEAT Plus) software (available at www.who.int/data/inequality-monitor/assessment_toolkit) or use statistical software package such as Stata or R (codes available at www.who.int/data/inequality-monitor/tools-resources/statistical_codes).
A18: cov | B18: Coefficient of variation | C18: Non-ordered | D18: Relative | E18: Complex | F18: Weighted | G18: No unit | H18: Zero | I18: COV is the relative version of BGSD, dividing BGSD by the setting average and multiplying the result by 100 to make it more easily interpretable. It only has positive values, with larger values indicating higher levels of inequality. | J18: pj = population share of subgroup j out of the total population yj = estimate for subgroup j μ = weighted mean (setting average) n = number of subgroups | K18: COV = 100 * √[∑j pj(yj – μ)2] / μ | L18: See notes | M18: 1. Calculate the population share of each subgroup out of the total population. 2. Calculate the weighted mean of the subgroup estimates. 3. Subtract the weighted mean from each subgroup estimate and square these differences. 4. Calculate COV as the square root of the sum of the results from step #3, divided by the weighted mean, times 100. | N18: COV calculates BGSD in relative terms, by dividing BGSD by the setting average. 95% confidence intervals are not calculated in this workbook, as they require a simulation methodology. If 95% confidence intervals are required, upload the dataset to the Health Equity Assesssment Toolkit Plus (HEAT Plus) software (available at www.who.int/data/inequality-monitor/assessment_toolkit) or use statistical software package such as Stata or R (codes available at www.who.int/data/inequality-monitor/tools-resources/statistical_codes).
A19: ti | B19: Theil Index | C19: Non-ordered | D19: Relative | E19: Complex | F19: Weighted | G19: No unit | H19: Zero | I19: TI expresses inequality as a function of how the subgroup's share of the health indicator compares to their share of the population. The larger the absolute value of TI, the greater the level of inequality. | J19: pj = population share of subgroup j out of the total population ij = share of the indicator in each subgroup, equal to the estimate for subgroup j divided by μ σj = standard error for subgroup j μ = weighted mean (setting average) | K19: TI = 1000 * ∑jpj(ij)ln(ij) | L19: var(TI) = {∑jpj2σj2[(1 + ln(ij)) – (∑kpkik(1 + ln(ik))]2} / μ2 | M19: 1. Replace any estimates equal to zero with a very small number (0.000001) to avoid issues in calculating the log of zero. 2. Calculate the population share of each subgroup out of the total population. 3. Calculate the weighted mean of the subgroup estimates. 4. Calculate the share of the indicator in each subgroup by dividing the estimate of each subgroup by the weighted mean. 5. Multiply the share of the indicator in each subgroup by the natural logarithm (log) of the share of the indicator in each subgroup and the population share. 6. Calculate TI as the sum of the results from step #5, multiplied by 1000 for easier interpretation. | N19: TI is more sensitive to differences further from the setting average (by the use of the logarithm).
A20: mld | B20: Mean log deviation | C20: Non-ordered | D20: Relative | E20: Complex | F20: Weighted | G20: No unit | H20: Zero | I20: The larger the absolute value of MLD, the higher the level of inequality. | J20: pj = population share of subgroup j out of the total population ij = share of the indicator in each subgroup, equal to the estimate for subgroup j divided by μ σj = standard error for subgroup j μ = weighted mean (setting average) | K20: MLD = 1000 * ∑jpj[-ln(ij)] | L20: var(MLD) = ∑j{[(pj2σj2)/μ2] * [1 – (1/(ij))]}2 | M20: 1. Replace any estimates equal to zero with a very small number (0.000001) to avoid issues in calculating the log of zero. 2. Calculate the population share of each subgroup out of the total population. 3. Calculate the weighted mean of the subgroup estimates. 4. Calculate the share of the indicator in each subgroup by dividing the estimate of each subgroup by the weighted mean. 5. Multiply the negative natural logarithm (log) of the share of the indicator in each subgroup by the population share. 6. Calculate MLD as the sum of the results from step #5, multiplied by 1000 for easier interpretation. | N20: MLD is more sensitive to differences further from the setting average (by the use of the logarithm).
A21: par-2 | B21: Population attributable risk | C21: Non-ordered | D21: Absolute | E21: Complex | F21: Weighted | G21: Unit of indicator | H21: Zero | I21: For non-ordered dimensions of inequality, PAR shows the potential improvement in the average of an indicator, in absolute terms, that could be achieved if all population subgroups had the same level of the indicator as the subgroup with the best estimate. PAR assumes only positive values for favourable indicators and only negative values for adverse indicators. The larger the absolute value, the higher the level of inequality. | J21: yref = estimate for a reference subgroup μ = weighted mean (setting average) PAF = population attributable fraction PAFse = standard error of population attributable fraction | K21: PAR = yref – μ | L21: var(PAR) = (|μ(PAF + 1.96 PAFse) – (PAF – 1.96 PAFse)| / 2*1.96)2 | M21: 1. Identify the reference subgroup, yref (see notes). 2. Calculate the population share of each subgroup out of the total population. 3. Calculate the weighted mean of the subgroup estimates. 3. Calculate PAR as the difference between the reference subgroup estimate and the weighted mean. | N21: For ordered dimensions, the reference subgroup (yref) is the subgroup with the highest estimate for favourable indicators, or the subgroup with the lowest estimate for adverse indicators. The variable favourable_indicator identifies whether the indicator is favourable (1) or adverse (0). See the glossary for the definition of favourable and adverse indicators. If the indicator is favourable (favourable_indicator=1) and PAR has a negative value, PAR is equal to zero. If the indicator is adverse (favourable_indicator=0) and PAR has a positive value, PAR is equal to zero. See the glossary for the definition of favourable and adverse indicators. The variable indicator_scale identifies the scale of the indicator. See the glossary for the definition of indicator scale.
A22: paf-2 | B22: Population attributable fraction | C22: Non-ordered | D22: Relative | E22: Complex | F22: Weighted | G22: No unit | H22: Zero | I22: For non-ordered dimensions of inequality, PAF shows the potential improvement in the average of an indicator, in relative terms, that could be achieved if all population subgroups had the same level of the indicator as the subgroup with the best estimate. PAF assumes only positive values for favourable indicators and only negative values for adverse indicators. The larger the absolute value of PAF, the larger the level of inequality. | J22: yref = estimate for a reference subgroup μ = weighted mean (setting average) a = number of people not in the reference subgroup for whom the indicator was achieved b = number of people not in the reference subgroup for whom the indicator was not achieved c = number of people in the reference subgroup for whom the indicator was achieved d = number of people in the reference subgroup for whom the indicator was not achieved N = total number of people (a + b + c + d) | K22: PAF = 100 * (yref – μ)/μ | L22: var(PAF) = cN[ad(N – c) + bc2] / (a + c)3(c + d)3 | M22: 1. Identify the reference subgroup, yref (see notes). 2. Calculate the population share of each subgroup out of the total population. 3. Calculate the weighted mean of the subgroup estimates. 3. Calculate PAF as the difference between the reference subgroup estimate and the weighted mean, divided by the weighted mean, times 100. | N22: For ordered dimensions, the reference subgroup (yref) is the subgroup with the highest estimate for favourable indicators, or the subgroup with the lowest estimate for adverse indicators. The variable favourable_indicator identifies whether the indicator is favourable (1) or adverse (0). See the glossary for the definition of favourable and adverse indicators. If the indicator is favourable (favourable_indicator=1) and PAF has a negative value, PAF is equal to zero. If the indicator is adverse (favourable_indicator=0) and PAF has a positive value, PAF is equal to zero. See the glossary for the definition of favourable and adverse indicators. The variable indicator_scale identifies the scale of the indicator. See the glossary for the definition of indicator scale.

Sheet glossary (hidden)
B3: Glossary
B7: Absolute inequality | C7: Magnitude of difference in health between subgroups. Absolute measures of inequality, such as difference, retain the same unit of measure as the health indicator.
B9: Date | C9: Date, such as a year (e.g., 2024) or a month/year combination (e.g., Jan-2024).
B11: Dimension of inequality | C11: A demographic, socioeconomic or geographic characteristic (e.g., economic status, education, ethnicity, place of residence, subnational region).
B13: Disaggregated data | C13: Health indicator data that are broken down by subgroups of a population, which are defined according to dimensions of inequality such as demographic, socioeconomic or geographic characteristics (e.g., age, sex, economic status, place of residence, subnational region).
B15: Estimate | C15: The indicator estimate for the subgroup. If this variable is missing for one subgroup (or more), complex summary measures cannot be calculated. Simple measures may be calculated depending on which estimates are missing. Proportions/percentages must be already multiplied by 100 (not left as decimals).
B17: Favourable indicator | C17: This dummy variable (favourable_indicator) indicates the indicator type. It must be 1 for favourable indicators and 0 for non-favourable (adverse) indicators. Favourable indicators measure desirable health events that are promoted through public health action. They include health intervention indicators, such as antenatal care coverage, and desirable health outcome indicators, such as life expectancy. For these indicators, the ultimate goal is to achieve a maximum level, either in health intervention coverage or health outcome (e.g. complete coverage of antenatal care or the highest possible life expectancy). Adverse indicators measure undesirable health events that are to be reduced or eliminated through public health action. They include undesirable health outcome indicators, such as stunting prevalence in children aged less than five years or under-five mortality rate. Here, the ultimate goal is to achieve a minimum level (e.g. theoretically 0 deaths per 1000 live births).
B19: Indicator | C19: A health indicator name (e.g., "Births attended by skilled health personnel").
B21: Indicator scale | C21: This variable (indicator_scale) indicates the scale of the indicator, such as "100" for indicators reported as percentages or "1000" for indicators reported as rates per 1000 population.
B23: Ordered dimension | C23: This dummy variable (ordered_dimension) indicates the dimension type. It must be 0 for dimensions with two subgroups (binary dimensions). For dimensions with more than two subgroups, it must be 1 for ordered dimensions and 0 for non-ordered dimensions. Ordered dimensions have ordered subgroups that have an inherent positioning and can be ranked. For example, education has an inherent ordering in the sense that those with less education unequivocally have less of something compared to those with more education. Non-ordered dimensions have non-ordered subgroups that are not based on criteria that can be logically ranked. Subnational regions are an example of non-ordered groupings. Binary dimensions compare the situation in two population subgroups (e.g. males and females).
B25: Population | C25: The number of people within each subgroup (or the weighted population in the case of estimates calculated from survey data). For example, if the indicator in question is under-five mortality rate disaggregated by wealth quintiles, then the population for the poorest quintile is the number of children aged under five years belonging to the poorest subgroup. If the population value is missing for one subgroup (or more), complex summary measures cannot be calculated.
B27: Reference subgroup | C27: This variable (reference_subgroup) indicates the reference subgroup for non-ordered dimensions and binary dimensions . For ordered dimensions (i.e. if ordered_dimension=1), this variable must be 0. For non-ordered dimensions and binary dimensions (i.e. if ordered_dimension=0), you have the option to choose a reference subgroup. A reference subgroup can be chosen by assigning the value 1 to that subgroup and 0 to all other subgroups. For example, for subnational regions (with more than two subgroups), the capital city can be chosen as the reference subgroup. For place of residence (urban vs. rural), urban can be chosen as the reference subgroup.
B29: Relative inequality | C29: Proportional difference in health between subgroups. Relative measures of inequality, such as ratio, are unitless.
B31: Setting | C31: Setting name (e.g., a country like "Indonesia" or a province like "Bali").
B33: Subgroup | C33: A subgroup of the population within a given dimension of inequality. For example, within a "subnational region" dimension, each subgroup is a different subnational region.
B35: Subgroup order | C35: This variable (subgroup_order) indicates the order of subgroups for ordered dimensions. For ordered dimensions (i.e. if ordered_dimension=1), this variable must be an increasing sequence of integers starting with the value 1 for the most-disadvantaged subgroup. It must be sorted in order of smallest to largest integer. For example, for eduction with three subgroups, the most-disadvantaged subgroup "No education" will be assigned the value 1, "Primary school" will be assigned the value 2 and the most-advantaged subgroup "Secondary school +" will be assigned the value 3. For non-ordered dimensions and binary dimensions (i.e. if ordered_dimension=0), this variable must be 0.
B37: Standard error | C37: The standard error of the subgroup indicator estimate. If this variable is missing for one subgroup (or more), 95% confidence intervals for some (or all) summary measures cannot be calculated.
B39: Summary measure of health inequality | C39: Summarises the amount of health inequality across population subgroups in a single number - which facilitates the comparison of inequalities over time and across different settings and indicators. Simple measures (difference and ratio) compare the situation in two population subgroups. They can be calculated for all dimensions of inequality (with two subgroups or more). Complex measures are calculated for inequality dimensions with more than two population subgroups and consider the situation in all subgroups. They can only be calculated for dimensions with more than two subgroups.
B41: 95% confidence interval | C41: Expresses the precision of an estimate and the level of uncertainty associated with it. It is a range of values (upper and lower) that you can be 95% certain contains the true estimate. It is calculated by taking the estimate plus or minus 1.96 multiplied by the standard error of the estimate.

Sheet DATA INPUT (hidden)
A1: Data input | W1: Stop calculation if there are errors in the data | X1: =SUM($W:$W) -> 0
A4: setting | B4: date | C4: Indicator name | D4: Dimension name | E4: Population subgroups | F4: Subgroup estimate | G4: Standard error of subgroup estimate | H4: Number of people in the subgroup | I4: If indicator is favourable (1) or adverse (0) | J4: The scale of the indicator | K4: If dimension is ordered (1) or non-ordered (0) | L4: Order of subgroups | M4: [Optional] Reference subgroup indicated with 1 | O4: DATA CHECKS (Error messages will appear below if there are issues with the definition of any variables) | Q4: Group | R4: Subgroup order check | S4: Favourable indicator check | T4: Indicator scale check | U4: Ordered dimension check | V4: Reference subgroup check | W4: Checks flag (stops calculations)
A6: setting | B6: date | C6: indicator | D6: dimension | E6: subgroup | F6: estimate | G6: standard_error | H6: population | I6: favourable_indicator | J6: indicator_scale | K6: ordered_dimension | L6: subgroup_order | M6: reference_subgroup | O6: checks | Q6: 0 | R6: subgroup_order_ch | S6: favourable_indicator_ch | T6: indicator_scale_ch | U6: ordered_dimension_ch | V6: reference_subgroup_ch | W6: checks
A7: Indonesia | B7: 2017 | C7: Births attended by skilled health personnel (%) | D7: Economic status | E7: Quintile 1 (poorest) | F7: 75.6053 | G7: 1.599613 | H7: 2072.436 | I7: 1 | J7: 100 | K7: 1 | L7: 1 | M7: 0 | O7: =IF(AND($K7=1,$R7<>1),"Error: if ordered_dimension=1, subgroup_order should be an increasing sequence of integers starting with 1", IF($S7<>$I7,"Error: favourable_indicator must be consistently 1 or 0 for each indicator", IF($T7<>$J7,"Error: indicator_scale must be consistent for each indicator", IF($U7<>$K7,"Error: ordered_dimension must be consistent for each dimension", IF(AND($K7=0,$L7<>0),"Error: subgroup_order should be 0 if ordered_dimension=0", IF(AND($K7=1,$M7<>0),"Error: reference_subgroup should be 0 if ordered_dimension=1", IF(AND($V7<>"",$V7>1),"Error: Only one reference subgroup should be indicated in reference_subgroup",""))))))) ->  | Q7: =IF(A7="","",IF(_xlfn.CONCAT(A7&B7&C7&D7)=_xlfn.CONCAT(A6&B6&C6&D6),Q6,Q6+1)) -> 1 | R7: =IF(A7="",0,IF(K7=0,0,IF(Q7=Q6,L7-L6,L7))) -> 1 | S7: =IF(A7="","",AVERAGEIFS($I:$I,$Q:$Q,$Q7)) -> 1 | T7: =IF(A7="","",AVERAGEIFS($J:$J,Q:Q,$Q7)) -> 100 | U7: =IF(A7="","",AVERAGEIFS($K:$K,$Q:$Q,$Q7)) -> 1 | V7: =IF(A7="","",SUMIFS($M:$M,$Q:$Q,$Q7)) -> 0 | W7: =IF(O$7="",0,1) -> 0
A8: Indonesia | B8: 2017 | C8: Births attended by skilled health personnel (%) | D8: Economic status | E8: Quintile 2 | F8: 91.01997 | G8: 1.13515 | H8: 2112.204 | I8: 1 | J8: 100 | K8: 1 | L8: 2 | M8: 0 | O8: =IF(AND($K8=1,$R8<>1),"Error: subgroup_order should be an increasing sequence of integers starting with 1", IF($S8<>$I8,"Error: favourable_indicator must be consistently 1 or 0 for each indicator", IF($T8<>$J8,"Error: indicator_scale must be consistent for each indicator", IF($U8<>$K8,"Error: ordered_dimension must be consistent for each dimension", IF(AND($K8=0,$L8<>0),"Error: subgroup_order should be 0 if ordered_dimension=0", IF(AND($K8=1,$M8<>0),"Error: reference_subgroup should be 0 if ordered_dimension=1", IF(AND($V8<>"",$V8>1),"Error: Only one reference subgroup should be indicated in reference_subgroup",""))))))) ->  | Q8: 1 | R8: 1 | S8: 1 | T8: =IF(A8="","",AVERAGEIFS($J:$J,Q:Q,$Q8)) -> 100 | U8: 1 | V8: 0 | W8: =IF('DATA INPUT'!$O8="",0,1) -> 0
A9: Indonesia | B9: 2017 | C9: Births attended by skilled health personnel (%) | D9: Economic status | E9: Quintile 3 | F9: 96.03959 | G9: 0.6461946 | H9: 1983.059 | I9: 1 | J9: 100 | K9: 1 | L9: 3 | M9: 0 | Q9: 1 | R9: 1 | S9: 1 | T9: 100 | U9: 1 | V9: 0 | W9: =IF('DATA INPUT'!$O9="",0,1) -> 0
A10: Indonesia | B10: 2017 | C10: Births attended by skilled health personnel (%) | D10: Economic status | E10: Quintile 4 | F10: 97.04223 | G10: 0.5676206 | H10: 2052.124 | I10: 1 | J10: 100 | K10: 1 | L10: 4 | M10: 0 | Q10: 1 | R10: 1 | S10: 1 | T10: 100 | U10: 1 | V10: 0 | W10: =IF('DATA INPUT'!$O10="",0,1) -> 0
A11: Indonesia | B11: 2017 | C11: Births attended by skilled health personnel (%) | D11: Economic status | E11: Quintile 5 (richest) | F11: 99.22405 | G11: 0.2237683 | H11: 1884.51 | I11: 1 | J11: 100 | K11: 1 | L11: 5 | M11: 0 | Q11: 1 | R11: 1 | S11: 1 | T11: 100 | U11: 1 | V11: 0 | W11: =IF('DATA INPUT'!$O11="",0,1) -> 0
A12: Nigeria | B12: 2016 | C12: Under-five mortality rate (deaths per 1000 live births) | D12: Economic status | E12: Quintile 1 (poorest) | F12: 158.7063 | G12: 3.850564 | H12: 13605.51 | I12: 0 | J12: 1000 | K12: 1 | L12: 1 | M12: 0 | Q12: 2 | R12: 1 | S12: 0 | T12: 1000 | U12: 1 | V12: 0 | W12: =IF('DATA INPUT'!$O12="",0,1) -> 0
A13: Nigeria | B13: 2016 | C13: Under-five mortality rate (deaths per 1000 live births) | D13: Economic status | E13: Quintile 2 | F13: 155.8283 | G13: 3.460102 | H13: 12916.37 | I13: 0 | J13: 1000 | K13: 1 | L13: 2 | M13: 0 | Q13: 2 | R13: 1 | S13: 0 | T13: 1000 | U13: 1 | V13: 0 | W13: =IF('DATA INPUT'!$O13="",0,1) -> 0
A14: Nigeria | B14: 2016 | C14: Under-five mortality rate (deaths per 1000 live births) | D14: Economic status | E14: Quintile 3 | F14: 118.9011 | G14: 3.895427 | H14: 11299.55 | I14: 0 | J14: 1000 | K14: 1 | L14: 3 | M14: 0 | Q14: 2 | R14: 1 | S14: 0 | T14: 1000 | U14: 1 | V14: 0 | W14: =IF('DATA INPUT'!$O14="",0,1) -> 0
A15: Nigeria | B15: 2016 | C15: Under-five mortality rate (deaths per 1000 live births) | D15: Economic status | E15: Quintile 4 | F15: 79.13001 | G15: 3.454686 | H15: 10444.34 | I15: 0 | J15: 1000 | K15: 1 | L15: 4 | M15: 0 | Q15: 2 | R15: 1 | S15: 0 | T15: 1000 | U15: 1 | V15: 0 | W15: =IF('DATA INPUT'!$O15="",0,1) -> 0
A16: Nigeria | B16: 2016 | C16: Under-five mortality rate (deaths per 1000 live births) | D16: Economic status | E16: Quintile 5 (richest) | F16: 59.20269 | G16: 3.561114 | H16: 9535.696 | I16: 0 | J16: 1000 | K16: 1 | L16: 5 | M16: 0 | Q16: 2 | R16: 1 | S16: 0 | T16: 1000 | U16: 1 | V16: 0 | W16: =IF('DATA INPUT'!$O16="",0,1) -> 0
A17: Indonesia | B17: 2017 | C17: Births attended by skilled health personnel (%) | D17: Subnational region | E17: aceh | F17: 95.11784 | G17: 1.538443 | H17: 230.2051 | I17: 1 | J17: 100 | K17: 0 | L17: 0 | M17: 0 | Q17: 3 | R17: 0 | S17: 1 | T17: 100 | U17: 0 | V17: 0 | W17: =IF('DATA INPUT'!$O17="",0,1) -> 0
A18: Indonesia | B18: 2017 | C18: Births attended by skilled health personnel (%) | D18: Subnational region | E18: bali | F18: 100 | G18: 0 | H18: 149.4627 | I18: 1 | J18: 100 | K18: 0 | L18: 0 | M18: 0 | Q18: 3 | R18: 0 | S18: 1 | T18: 100 | U18: 0 | V18: 0 | W18: =IF('DATA INPUT'!$O18="",0,1) -> 0
A19: Indonesia | B19: 2017 | C19: Births attended by skilled health personnel (%) | D19: Subnational region | E19: bangka balitung | F19: 97.41001 | G19: 1.267644 | H19: 55.66533 | I19: 1 | J19: 100 | K19: 0 | L19: 0 | M19: 0 | Q19: 3 | R19: 0 | S19: 1 | T19: 100 | U19: 0 | V19: 0 | W19: =IF('DATA INPUT'!$O19="",0,1) -> 0
A20: Indonesia | B20: 2017 | C20: Births attended by skilled health personnel (%) | D20: Subnational region | E20: banten | F20: 80.35694 | G20: 3.544053 | H20: 451.2655 | I20: 1 | J20: 100 | K20: 0 | L20: 0 | M20: 0 | Q20: 3 | R20: 0 | S20: 1 | T20: 100 | U20: 0 | V20: 0 | W20: =IF('DATA INPUT'!$O20="",0,1) -> 0
A21: Indonesia | B21: 2017 | C21: Births attended by skilled health personnel (%) | D21: Subnational region | E21: bengkulu | F21: 94.25756 | G21: 2.774006 | H21: 70.1754 | I21: 1 | J21: 100 | K21: 0 | L21: 0 | M21: 0 | Q21: 3 | R21: 0 | S21: 1 | T21: 100 | U21: 0 | V21: 0 | W21: =IF('DATA INPUT'!$O21="",0,1) -> 0
A22: Indonesia | B22: 2017 | C22: Births attended by skilled health personnel (%) | D22: Subnational region | E22: central java | F22: 98.56168 | G22: 0.6476116 | H22: 1221.944 | I22: 1 | J22: 100 | K22: 0 | L22: 0 | M22: 0 | Q22: 3 | R22: 0 | S22: 1 | T22: 100 | U22: 0 | V22: 0 | W22: =IF('DATA INPUT'!$O22="",0,1) -> 0
A23: Indonesia | B23: 2017 | C23: Births attended by skilled health personnel (%) | D23: Subnational region | E23: central kalimantan | F23: 88.9473 | G23: 3.945546 | H23: 91.88274 | I23: 1 | J23: 100 | K23: 0 | L23: 0 | M23: 0 | Q23: 3 | R23: 0 | S23: 1 | T23: 100 | U23: 0 | V23: 0 | W23: =IF('DATA INPUT'!$O23="",0,1) -> 0
A24: Indonesia | B24: 2017 | C24: Births attended by skilled health personnel (%) | D24: Subnational region | E24: central sulawesi | F24: 86.67196 | G24: 2.574613 | H24: 124.611 | I24: 1 | J24: 100 | K24: 0 | L24: 0 | M24: 0 | Q24: 3 | R24: 0 | S24: 1 | T24: 100 | U24: 0 | V24: 0 | W24: =IF('DATA INPUT'!$O24="",0,1) -> 0
A25: Indonesia | B25: 2017 | C25: Births attended by skilled health personnel (%) | D25: Subnational region | E25: east java | F25: 97.09818 | G25: 1.044936 | H25: 1257.449 | I25: 1 | J25: 100 | K25: 0 | L25: 0 | M25: 0 | Q25: 3 | R25: 0 | S25: 1 | T25: 100 | U25: 0 | V25: 0 | W25: =IF('DATA INPUT'!$O25="",0,1) -> 0
A26: Indonesia | B26: 2017 | C26: Births attended by skilled health personnel (%) | D26: Subnational region | E26: east kalimantan | F26: 96.59196 | G26: 1.203287 | H26: 138.3835 | I26: 1 | J26: 100 | K26: 0 | L26: 0 | M26: 0 | Q26: 3 | R26: 0 | S26: 1 | T26: 100 | U26: 0 | V26: 0 | W26: =IF('DATA INPUT'!$O26="",0,1) -> 0
A27: Indonesia | B27: 2017 | C27: Births attended by skilled health personnel (%) | D27: Subnational region | E27: east nusa tenggara | F27: 75.43341 | G27: 3.232306 | H27: 252.1261 | I27: 1 | J27: 100 | K27: 0 | L27: 0 | M27: 0 | Q27: 3 | R27: 0 | S27: 1 | T27: 100 | U27: 0 | V27: 0 | W27: =IF('DATA INPUT'!$O27="",0,1) -> 0
A28: Indonesia | B28: 2017 | C28: Births attended by skilled health personnel (%) | D28: Subnational region | E28: gorontalo | F28: 92.83402 | G28: 2.466728 | H28: 47.24884 | I28: 1 | J28: 100 | K28: 0 | L28: 0 | M28: 0 | Q28: 3 | R28: 0 | S28: 1 | T28: 100 | U28: 0 | V28: 0 | W28: =IF('DATA INPUT'!$O28="",0,1) -> 0
A29: Indonesia | B29: 2017 | C29: Births attended by skilled health personnel (%) | D29: Subnational region | E29: jakarta | F29: 98.55796 | G29: 0.7173032 | H29: 364.8457 | I29: 1 | J29: 100 | K29: 0 | L29: 0 | M29: 0 | Q29: 3 | R29: 0 | S29: 1 | T29: 100 | U29: 0 | V29: 0 | W29: =IF('DATA INPUT'!$O29="",0,1) -> 0
A30: Indonesia | B30: 2017 | C30: Births attended by skilled health personnel (%) | D30: Subnational region | E30: jambi | F30: 87.83975 | G30: 4.131183 | H30: 136.1691 | I30: 1 | J30: 100 | K30: 0 | L30: 0 | M30: 0 | Q30: 3 | R30: 0 | S30: 1 | T30: 100 | U30: 0 | V30: 0 | W30: =IF('DATA INPUT'!$O30="",0,1) -> 0
A31: Indonesia | B31: 2017 | C31: Births attended by skilled health personnel (%) | D31: Subnational region | E31: lampung | F31: 91.87503 | G31: 2.703011 | H31: 304.1648 | I31: 1 | J31: 100 | K31: 0 | L31: 0 | M31: 0 | Q31: 3 | R31: 0 | S31: 1 | T31: 100 | U31: 0 | V31: 0 | W31: =IF('DATA INPUT'!$O31="",0,1) -> 0
A32: Indonesia | B32: 2017 | C32: Births attended by skilled health personnel (%) | D32: Subnational region | E32: maluku | F32: 74.12338 | G32: 3.63614 | H32: 85.01051 | I32: 1 | J32: 100 | K32: 0 | L32: 0 | M32: 0 | Q32: 3 | R32: 0 | S32: 1 | T32: 100 | U32: 0 | V32: 0 | W32: =IF('DATA INPUT'!$O32="",0,1) -> 0
A33: Indonesia | B33: 2017 | C33: Births attended by skilled health personnel (%) | D33: Subnational region | E33: north kalimantan | F33: 90.53304 | G33: 2.527877 | H33: 26.3322 | I33: 1 | J33: 100 | K33: 0 | L33: 0 | M33: 0 | Q33: 3 | R33: 0 | S33: 1 | T33: 100 | U33: 0 | V33: 0 | W33: =IF('DATA INPUT'!$O33="",0,1) -> 0
A34: Indonesia | B34: 2017 | C34: Births attended by skilled health personnel (%) | D34: Subnational region | E34: north maluku | F34: 73.3754 | G34: 3.90833 | H34: 51.94059 | I34: 1 | J34: 100 | K34: 0 | L34: 0 | M34: 0 | Q34: 3 | R34: 0 | S34: 1 | T34: 100 | U34: 0 | V34: 0 | W34: =IF('DATA INPUT'!$O34="",0,1) -> 0
A35: Indonesia | B35: 2017 | C35: Births attended by skilled health personnel (%) | D35: Subnational region | E35: north sulawesi | F35: 96.02899 | G35: 2.40484 | H35: 74.51883 | I35: 1 | J35: 100 | K35: 0 | L35: 0 | M35: 0 | Q35: 3 | R35: 0 | S35: 1 | T35: 100 | U35: 0 | V35: 0 | W35: =IF('DATA INPUT'!$O35="",0,1) -> 0
A36: Indonesia | B36: 2017 | C36: Births attended by skilled health personnel (%) | D36: Subnational region | E36: north sumatera | F36: 89.99208 | G36: 2.900336 | H36: 617.0923 | I36: 1 | J36: 100 | K36: 0 | L36: 0 | M36: 0 | Q36: 3 | R36: 0 | S36: 1 | T36: 100 | U36: 0 | V36: 0 | W36: =IF('DATA INPUT'!$O36="",0,1) -> 0
A37: Indonesia | B37: 2017 | C37: Births attended by skilled health personnel (%) | D37: Subnational region | E37: papua | F37: 64.19527 | G37: 7.05186 | H37: 180.491 | I37: 1 | J37: 100 | K37: 0 | L37: 0 | M37: 0 | Q37: 3 | R37: 0 | S37: 1 | T37: 100 | U37: 0 | V37: 0 | W37: =IF('DATA INPUT'!$O37="",0,1) -> 0
A38: Indonesia | B38: 2017 | C38: Births attended by skilled health personnel (%) | D38: Subnational region | E38: riau | F38: 85.95709 | G38: 7.200681 | H38: 308.423 | I38: 1 | J38: 100 | K38: 0 | L38: 0 | M38: 0 | Q38: 3 | R38: 0 | S38: 1 | T38: 100 | U38: 0 | V38: 0 | W38: =IF('DATA INPUT'!$O38="",0,1) -> 0
A39: Indonesia | B39: 2017 | C39: Births attended by skilled health personnel (%) | D39: Subnational region | E39: riau islands | F39: 99.40075 | G39: 0.4476624 | H39: 77.26701 | I39: 1 | J39: 100 | K39: 0 | L39: 0 | M39: 0 | Q39: =IF(A39="","",IF(_xlfn.CONCAT(A39&B39&C39&D39)=_xlfn.CONCAT(A38&B38&C38&D38),Q38,Q38+1)) -> 3 | R39: =IF(A39="",0,IF(K39=0,0,IF(Q39=Q38,L39-L38,L39))) -> 0 | S39: =IF(A39="","",AVERAGEIFS($I:$I,$Q:$Q,$Q39)) -> 1 | T39: =IF(A39="","",AVERAGEIFS($J:$J,Q:Q,$Q39)) -> 100 | U39: =IF(A39="","",AVERAGEIFS($K:$K,$Q:$Q,$Q39)) -> 0 | V39: =IF(A39="","",SUMIFS($M:$M,$Q:$Q,$Q39)) -> 0 | W39: =IF('DATA INPUT'!$O39="",0,1) -> 0
A40: Indonesia | B40: 2017 | C40: Births attended by skilled health personnel (%) | D40: Subnational region | E40: south kalimantan | F40: 92.61676 | G40: 2.931488 | H40: 164.3986 | I40: 1 | J40: 100 | K40: 0 | L40: 0 | M40: 0 | O40: =IF(AND($K40=1,$R40<>1),"Error: subgroup_order should be an increasing sequence of integers starting with 1", IF($S40<>$I40,"Error: favourable_indicator must be consistently 1 or 0 for each indicator", IF($T40<>$J40,"Error: indicator_scale must be consistent for each indicator", IF($U40<>$K40,"Error: ordered_dimension must be consistent for each dimension", IF(AND($K40=0,$L40<>0),"Error: subgroup_order should be 0 if ordered_dimension=0", IF(AND($K40=1,$M40<>0),"Error: reference_subgroup should be 0 if ordered_dimension=1", IF(AND($V40<>"",$V40>1),"Error: Only one reference subgroup should be indicated in reference_subgroup",""))))))) ->  | Q40: 3 | R40: 0 | S40: 1 | T40: 100 | U40: 0 | V40: 0 | W40: =IF('DATA INPUT'!$O40="",0,1) -> 0
A41: Indonesia | B41: 2017 | C41: Births attended by skilled health personnel (%) | D41: Subnational region | E41: south sulawesi | F41: 90.40358 | G41: 2.525667 | H41: 309.4937 | I41: 1 | J41: 100 | K41: 0 | L41: 0 | M41: 0 | Q41: 3 | R41: 0 | S41: 1 | T41: 100 | U41: 0 | V41: 0 | W41: =IF('DATA INPUT'!$O41="",0,1) -> 0
A42: Indonesia | B42: 2017 | C42: Births attended by skilled health personnel (%) | D42: Subnational region | E42: south sumatera | F42: 96.44518 | G42: 1.444546 | H42: 355.3561 | I42: 1 | J42: 100 | K42: 0 | L42: 0 | M42: 0 | Q42: 3 | R42: 0 | S42: 1 | T42: 100 | U42: 0 | V42: 0 | W42: =IF('DATA INPUT'!$O42="",0,1) -> 0
A43: Indonesia | B43: 2017 | C43: Births attended by skilled health personnel (%) | D43: Subnational region | E43: southeast sulawesi | F43: 84.66086 | G43: 2.770752 | H43: 119.8061 | I43: 1 | J43: 100 | K43: 0 | L43: 0 | M43: 0 | Q43: 3 | R43: 0 | S43: 1 | T43: 100 | U43: 0 | V43: 0 | W43: =IF('DATA INPUT'!$O43="",0,1) -> 0
A44: Indonesia | B44: 2017 | C44: Births attended by skilled health personnel (%) | D44: Subnational region | E44: west java | F44: 89.83888 | G44: 1.860774 | H44: 1979.521 | I44: 1 | J44: 100 | K44: 0 | L44: 0 | M44: 0 | Q44: 3 | R44: 0 | S44: 1 | T44: 100 | U44: 0 | V44: 0 | W44: =IF('DATA INPUT'!$O44="",0,1) -> 0
A45: Indonesia | B45: 2017 | C45: Births attended by skilled health personnel (%) | D45: Subnational region | E45: west kalimantan | F45: 88.60473 | G45: 3.492804 | H45: 211.8463 | I45: 1 | J45: 100 | K45: 0 | L45: 0 | M45: 0 | Q45: 3 | R45: 0 | S45: 1 | T45: 100 | U45: 0 | V45: 0 | W45: =IF('DATA INPUT'!$O45="",0,1) -> 0
A46: Indonesia | B46: 2017 | C46: Births attended by skilled health personnel (%) | D46: Subnational region | E46: west nusa tenggara | F46: 94.78091 | G46: 1.620666 | H46: 223.6183 | I46: 1 | J46: 100 | K46: 0 | L46: 0 | M46: 0 | Q46: 3 | R46: 0 | S46: 1 | T46: 100 | U46: 0 | V46: 0 | W46: =IF('DATA INPUT'!$O46="",0,1) -> 0
A47: Indonesia | B47: 2017 | C47: Births attended by skilled health personnel (%) | D47: Subnational region | E47: west papua | F47: 74.04845 | G47: 7.195155 | H47: 39.13828 | I47: 1 | J47: 100 | K47: 0 | L47: 0 | M47: 0 | Q47: 3 | R47: 0 | S47: 1 | T47: 100 | U47: 0 | V47: 0 | W47: =IF('DATA INPUT'!$O47="",0,1) -> 0
A48: Indonesia | B48: 2017 | C48: Births attended by skilled health personnel (%) | D48: Subnational region | E48: west sulawesi | F48: 87.00427 | G48: 2.658916 | H48: 55.92433 | I48: 1 | J48: 100 | K48: 0 | L48: 0 | M48: 0 | Q48: 3 | R48: 0 | S48: 1 | T48: 100 | U48: 0 | V48: 0 | W48: =IF('DATA INPUT'!$O48="",0,1) -> 0
A49: Indonesia | B49: 2017 | C49: Births attended by skilled health personnel (%) | D49: Subnational region | E49: west sumatera | F49: 97.62753 | G49: 1.01874 | H49: 195.2602 | I49: 1 | J49: 100 | K49: 0 | L49: 0 | M49: 0 | Q49: 3 | R49: 0 | S49: 1 | T49: 100 | U49: 0 | V49: 0 | W49: =IF('DATA INPUT'!$O49="",0,1) -> 0
A50: Indonesia | B50: 2017 | C50: Births attended by skilled health personnel (%) | D50: Subnational region | E50: yogyakarta | F50: 97.71152 | G50: 1.648799 | H50: 133.2951 | I50: 1 | J50: 100 | K50: 0 | L50: 0 | M50: 0 | Q50: 3 | R50: 0 | S50: 1 | T50: 100 | U50: 0 | V50: 0 | W50: =IF('DATA INPUT'!$O50="",0,1) -> 0
A51: Nigeria | B51: 2016 | C51: Under-five mortality rate (deaths per 1000 live births) | D51: Subnational region | E51: abia | F51: 85.90097 | G51: 14.15216 | H51: 435.9738 | I51: 0 | J51: 1000 | K51: 0 | L51: 0 | M51: 0 | Q51: 4 | R51: 0 | S51: 0 | T51: 1000 | U51: 0 | V51: 0 | W51: =IF('DATA INPUT'!$O51="",0,1) -> 0
A52: Nigeria | B52: 2016 | C52: Under-five mortality rate (deaths per 1000 live births) | D52: Subnational region | E52: adamawa | F52: 84.39623 | G52: 13.97073 | H52: 1336.361 | I52: 0 | J52: 1000 | K52: 0 | L52: 0 | M52: 0 | Q52: 4 | R52: 0 | S52: 0 | T52: 1000 | U52: 0 | V52: 0 | W52: =IF('DATA INPUT'!$O52="",0,1) -> 0
A53: Nigeria | B53: 2016 | C53: Under-five mortality rate (deaths per 1000 live births) | D53: Subnational region | E53: akwa ibom | F53: 84.57895 | G53: 11.86997 | H53: 1014.754 | I53: 0 | J53: 1000 | K53: 0 | L53: 0 | M53: 0 | Q53: 4 | R53: 0 | S53: 0 | T53: 1000 | U53: 0 | V53: 0 | W53: =IF('DATA INPUT'!$O53="",0,1) -> 0
A54: Nigeria | B54: 2016 | C54: Under-five mortality rate (deaths per 1000 live births) | D54: Subnational region | E54: anambra | F54: 57.32676 | G54: 8.66459 | H54: 714.4657 | I54: 0 | J54: 1000 | K54: 0 | L54: 0 | M54: 0 | Q54: 4 | R54: 0 | S54: 0 | T54: 1000 | U54: 0 | V54: 0 | W54: =IF('DATA INPUT'!$O54="",0,1) -> 0
A55: Nigeria | B55: 2016 | C55: Under-five mortality rate (deaths per 1000 live births) | D55: Subnational region | E55: bauchi | F55: 163.3682 | G55: 16.35357 | H55: 3213.321 | I55: 0 | J55: 1000 | K55: 0 | L55: 0 | M55: 0 | Q55: 4 | R55: 0 | S55: 0 | T55: 1000 | U55: 0 | V55: 0 | W55: =IF('DATA INPUT'!$O55="",0,1) -> 0
A56: Nigeria | B56: 2016 | C56: Under-five mortality rate (deaths per 1000 live births) | D56: Subnational region | E56: bayelsa | F56: 103.802 | G56: 11.03587 | H56: 388.745 | I56: 0 | J56: 1000 | K56: 0 | L56: 0 | M56: 0 | Q56: 4 | R56: 0 | S56: 0 | T56: 1000 | U56: 0 | V56: 0 | W56: =IF('DATA INPUT'!$O56="",0,1) -> 0
A57: Nigeria | B57: 2016 | C57: Under-five mortality rate (deaths per 1000 live births) | D57: Subnational region | E57: benue | F57: 73.45868 | G57: 9.840083 | H57: 1384.253 | I57: 0 | J57: 1000 | K57: 0 | L57: 0 | M57: 0 | Q57: 4 | R57: 0 | S57: 0 | T57: 1000 | U57: 0 | V57: 0 | W57: =IF('DATA INPUT'!$O57="",0,1) -> 0
A58: Nigeria | B58: 2016 | C58: Under-five mortality rate (deaths per 1000 live births) | D58: Subnational region | E58: borno | F58: 87.32733 | G58: 17.10854 | H58: 3784.982 | I58: 0 | J58: 1000 | K58: 0 | L58: 0 | M58: 0 | Q58: 4 | R58: 0 | S58: 0 | T58: 1000 | U58: 0 | V58: 0 | W58: =IF('DATA INPUT'!$O58="",0,1) -> 0
A59: Nigeria | B59: 2016 | C59: Under-five mortality rate (deaths per 1000 live births) | D59: Subnational region | E59: cross river | F59: 57.92174 | G59: 8.552278 | H59: 841.4942 | I59: 0 | J59: 1000 | K59: 0 | L59: 0 | M59: 0 | Q59: 4 | R59: 0 | S59: 0 | T59: 1000 | U59: 0 | V59: 0 | W59: =IF('DATA INPUT'!$O59="",0,1) -> 0
A60: Nigeria | B60: 2016 | C60: Under-five mortality rate (deaths per 1000 live births) | D60: Subnational region | E60: delta | F60: 62.55427 | G60: 11.7302 | H60: 784.5449 | I60: 0 | J60: 1000 | K60: 0 | L60: 0 | M60: 0 | Q60: 4 | R60: 0 | S60: 0 | T60: 1000 | U60: 0 | V60: 0 | W60: =IF('DATA INPUT'!$O60="",0,1) -> 0
A61: Nigeria | B61: 2016 | C61: Under-five mortality rate (deaths per 1000 live births) | D61: Subnational region | E61: ebonyi | F61: 47.19856 | G61: 9.23308 | H61: 510.6213 | I61: 0 | J61: 1000 | K61: 0 | L61: 0 | M61: 0 | Q61: 4 | R61: 0 | S61: 0 | T61: 1000 | U61: 0 | V61: 0 | W61: =IF('DATA INPUT'!$O61="",0,1) -> 0
A62: Nigeria | B62: 2016 | C62: Under-five mortality rate (deaths per 1000 live births) | D62: Subnational region | E62: edo | F62: 15.65566 | G62: 5.316164 | H62: 542.7257 | I62: 0 | J62: 1000 | K62: 0 | L62: 0 | M62: 0 | Q62: 4 | R62: 0 | S62: 0 | T62: 1000 | U62: 0 | V62: 0 | W62: =IF('DATA INPUT'!$O62="",0,1) -> 0
A63: Nigeria | B63: 2016 | C63: Under-five mortality rate (deaths per 1000 live births) | D63: Subnational region | E63: ekiti | F63: 75.67951 | G63: 11.81428 | H63: 261.4302 | I63: 0 | J63: 1000 | K63: 0 | L63: 0 | M63: 0 | Q63: 4 | R63: 0 | S63: 0 | T63: 1000 | U63: 0 | V63: 0 | W63: =IF('DATA INPUT'!$O63="",0,1) -> 0
A64: Nigeria | B64: 2016 | C64: Under-five mortality rate (deaths per 1000 live births) | D64: Subnational region | E64: enugu | F64: 50.19795 | G64: 11.47732 | H64: 502.0474 | I64: 0 | J64: 1000 | K64: 0 | L64: 0 | M64: 0 | Q64: 4 | R64: 0 | S64: 0 | T64: 1000 | U64: 0 | V64: 0 | W64: =IF('DATA INPUT'!$O64="",0,1) -> 0
A65: Nigeria | B65: 2016 | C65: Under-five mortality rate (deaths per 1000 live births) | D65: Subnational region | E65: fct abuja | F65: 65.02511 | G65: 7.418346 | H65: 416.9158 | I65: 0 | J65: 1000 | K65: 0 | L65: 0 | M65: 0 | Q65: 4 | R65: 0 | S65: 0 | T65: 1000 | U65: 0 | V65: 0 | W65: =IF('DATA INPUT'!$O65="",0,1) -> 0
A66: Nigeria | B66: 2016 | C66: Under-five mortality rate (deaths per 1000 live births) | D66: Subnational region | E66: gombe | F66: 145.2219 | G66: 11.16416 | H66: 1131.929 | I66: 0 | J66: 1000 | K66: 0 | L66: 0 | M66: 0 | Q66: 4 | R66: 0 | S66: 0 | T66: 1000 | U66: 0 | V66: 0 | W66: =IF('DATA INPUT'!$O66="",0,1) -> 0
A67: Nigeria | B67: 2016 | C67: Under-five mortality rate (deaths per 1000 live births) | D67: Subnational region | E67: imo | F67: 93.60838 | G67: 11.51572 | H67: 792.3545 | I67: 0 | J67: 1000 | K67: 0 | L67: 0 | M67: 0 | Q67: 4 | R67: 0 | S67: 0 | T67: 1000 | U67: 0 | V67: 0 | W67: =IF('DATA INPUT'!$O67="",0,1) -> 0
A68: Nigeria | B68: 2016 | C68: Under-five mortality rate (deaths per 1000 live births) | D68: Subnational region | E68: jigawa | F68: 186.2071 | G68: 21.18148 | H68: 3026.947 | I68: 0 | J68: 1000 | K68: 0 | L68: 0 | M68: 0 | Q68: 4 | R68: 0 | S68: 0 | T68: 1000 | U68: 0 | V68: 0 | W68: =IF('DATA INPUT'!$O68="",0,1) -> 0
A69: Nigeria | B69: 2016 | C69: Under-five mortality rate (deaths per 1000 live births) | D69: Subnational region | E69: kaduna | F69: 80.17874 | G69: 7.226072 | H69: 3321.79 | I69: 0 | J69: 1000 | K69: 0 | L69: 0 | M69: 0 | Q69: 4 | R69: 0 | S69: 0 | T69: 1000 | U69: 0 | V69: 0 | W69: =IF('DATA INPUT'!$O69="",0,1) -> 0
A70: Nigeria | B70: 2016 | C70: Under-five mortality rate (deaths per 1000 live births) | D70: Subnational region | E70: kano | F70: 199.317 | G70: 10.19473 | H70: 5090.098 | I70: 0 | J70: 1000 | K70: 0 | L70: 0 | M70: 0 | Q70: 4 | R70: 0 | S70: 0 | T70: 1000 | U70: 0 | V70: 0 | W70: =IF('DATA INPUT'!$O70="",0,1) -> 0
A71: Nigeria | B71: 2016 | C71: Under-five mortality rate (deaths per 1000 live births) | D71: Subnational region | E71: katsina | F71: 136.6852 | G71: 11.64331 | H71: 4162.455 | I71: 0 | J71: 1000 | K71: 0 | L71: 0 | M71: 0 | Q71: =IF(A71="","",IF(_xlfn.CONCAT(A71&B71&C71&D71)=_xlfn.CONCAT(A70&B70&C70&D70),Q70,Q70+1)) -> 4 | R71: =IF(A71="",0,IF(K71=0,0,IF(Q71=Q70,L71-L70,L71))) -> 0 | S71: =IF(A71="","",AVERAGEIFS($I:$I,$Q:$Q,$Q71)) -> 0 | T71: =IF(A71="","",AVERAGEIFS($J:$J,Q:Q,$Q71)) -> 1000 | U71: =IF(A71="","",AVERAGEIFS($K:$K,$Q:$Q,$Q71)) -> 0 | V71: =IF(A71="","",SUMIFS($M:$M,$Q:$Q,$Q71)) -> 0 | W71: =IF('DATA INPUT'!$O71="",0,1) -> 0
A72: Nigeria | B72: 2016 | C72: Under-five mortality rate (deaths per 1000 live births) | D72: Subnational region | E72: kebbi | F72: 156.8139 | G72: 10.18733 | H72: 1998.465 | I72: 0 | J72: 1000 | K72: 0 | L72: 0 | M72: 0 | O72: =IF(AND($K72=1,$R72<>1),"Error: subgroup_order should be an increasing sequence of integers starting with 1", IF($S72<>$I72,"Error: favourable_indicator must be consistently 1 or 0 for each indicator", IF($T72<>$J72,"Error: indicator_scale must be consistent for each indicator", IF($U72<>$K72,"Error: ordered_dimension must be consistent for each dimension", IF(AND($K72=0,$L72<>0),"Error: subgroup_order should be 0 if ordered_dimension=0", IF(AND($K72=1,$M72<>0),"Error: reference_subgroup should be 0 if ordered_dimension=1", IF(AND($V72<>"",$V72>1),"Error: Only one reference subgroup should be indicated in reference_subgroup",""))))))) ->  | Q72: 4 | R72: 0 | S72: 0 | T72: 1000 | U72: 0 | V72: 0 | W72: =IF('DATA INPUT'!$O72="",0,1) -> 0
A73: Nigeria | B73: 2016 | C73: Under-five mortality rate (deaths per 1000 live births) | D73: Subnational region | E73: kogi | F73: 92.5891 | G73: 11.1416 | H73: 736.9755 | I73: 0 | J73: 1000 | K73: 0 | L73: 0 | M73: 0 | Q73: 4 | R73: 0 | S73: 0 | T73: 1000 | U73: 0 | V73: 0 | W73: =IF('DATA INPUT'!$O73="",0,1) -> 0
A74: Nigeria | B74: 2016 | C74: Under-five mortality rate (deaths per 1000 live births) | D74: Subnational region | E74: kwara | F74: 32.66961 | G74: 6.948256 | H74: 690.3894 | I74: 0 | J74: 1000 | K74: 0 | L74: 0 | M74: 0 | Q74: 4 | R74: 0 | S74: 0 | T74: 1000 | U74: 0 | V74: 0 | W74: =IF('DATA INPUT'!$O74="",0,1) -> 0
A75: Nigeria | B75: 2016 | C75: Under-five mortality rate (deaths per 1000 live births) | D75: Subnational region | E75: lagos | F75: 64.75636 | G75: 6.67728 | H75: 1965.212 | I75: 0 | J75: 1000 | K75: 0 | L75: 0 | M75: 0 | Q75: 4 | R75: 0 | S75: 0 | T75: 1000 | U75: 0 | V75: 0 | W75: =IF('DATA INPUT'!$O75="",0,1) -> 0
A76: Nigeria | B76: 2016 | C76: Under-five mortality rate (deaths per 1000 live births) | D76: Subnational region | E76: nasarawa | F76: 118.7104 | G76: 11.77995 | H76: 1250.944 | I76: 0 | J76: 1000 | K76: 0 | L76: 0 | M76: 0 | Q76: 4 | R76: 0 | S76: 0 | T76: 1000 | U76: 0 | V76: 0 | W76: =IF('DATA INPUT'!$O76="",0,1) -> 0
A77: Nigeria | B77: 2016 | C77: Under-five mortality rate (deaths per 1000 live births) | D77: Subnational region | E77: niger | F77: 129.1654 | G77: 15.28113 | H77: 2876.456 | I77: 0 | J77: 1000 | K77: 0 | L77: 0 | M77: 0 | Q77: 4 | R77: 0 | S77: 0 | T77: 1000 | U77: 0 | V77: 0 | W77: =IF('DATA INPUT'!$O77="",0,1) -> 0
A78: Nigeria | B78: 2016 | C78: Under-five mortality rate (deaths per 1000 live births) | D78: Subnational region | E78: ogun | F78: 81.86589 | G78: 11.03909 | H78: 626.846 | I78: 0 | J78: 1000 | K78: 0 | L78: 0 | M78: 0 | Q78: 4 | R78: 0 | S78: 0 | T78: 1000 | U78: 0 | V78: 0 | W78: =IF('DATA INPUT'!$O78="",0,1) -> 0
A79: Nigeria | B79: 2016 | C79: Under-five mortality rate (deaths per 1000 live births) | D79: Subnational region | E79: ondo | F79: 67.51575 | G79: 10.27819 | H79: 794.8913 | I79: 0 | J79: 1000 | K79: 0 | L79: 0 | M79: 0 | Q79: 4 | R79: 0 | S79: 0 | T79: 1000 | U79: 0 | V79: 0 | W79: =IF('DATA INPUT'!$O79="",0,1) -> 0
A80: Nigeria | B80: 2016 | C80: Under-five mortality rate (deaths per 1000 live births) | D80: Subnational region | E80: osun | F80: 84.72423 | G80: 13.01261 | H80: 751.2827 | I80: 0 | J80: 1000 | K80: 0 | L80: 0 | M80: 0 | Q80: 4 | R80: 0 | S80: 0 | T80: 1000 | U80: 0 | V80: 0 | W80: =IF('DATA INPUT'!$O80="",0,1) -> 0
A81: Nigeria | B81: 2016 | C81: Under-five mortality rate (deaths per 1000 live births) | D81: Subnational region | E81: oyo | F81: 82.87761 | G81: 10.92097 | H81: 1545.281 | I81: 0 | J81: 1000 | K81: 0 | L81: 0 | M81: 0 | Q81: 4 | R81: 0 | S81: 0 | T81: 1000 | U81: 0 | V81: 0 | W81: =IF('DATA INPUT'!$O81="",0,1) -> 0
A82: Nigeria | B82: 2016 | C82: Under-five mortality rate (deaths per 1000 live births) | D82: Subnational region | E82: plateau | F82: 92.91818 | G82: 11.88912 | H82: 2048.537 | I82: 0 | J82: 1000 | K82: 0 | L82: 0 | M82: 0 | Q82: 4 | R82: 0 | S82: 0 | T82: 1000 | U82: 0 | V82: 0 | W82: =IF('DATA INPUT'!$O82="",0,1) -> 0
A83: Nigeria | B83: 2016 | C83: Under-five mortality rate (deaths per 1000 live births) | D83: Subnational region | E83: rivers | F83: 69.56827 | G83: 11.84946 | H83: 809.6287 | I83: 0 | J83: 1000 | K83: 0 | L83: 0 | M83: 0 | Q83: 4 | R83: 0 | S83: 0 | T83: 1000 | U83: 0 | V83: 0 | W83: =IF('DATA INPUT'!$O83="",0,1) -> 0
A84: Nigeria | B84: 2016 | C84: Under-five mortality rate (deaths per 1000 live births) | D84: Subnational region | E84: sokoto | F84: 134.9461 | G84: 13.03654 | H84: 1869.053 | I84: 0 | J84: 1000 | K84: 0 | L84: 0 | M84: 0 | Q84: 4 | R84: 0 | S84: 0 | T84: 1000 | U84: 0 | V84: 0 | W84: =IF('DATA INPUT'!$O84="",0,1) -> 0
A85: Nigeria | B85: 2016 | C85: Under-five mortality rate (deaths per 1000 live births) | D85: Subnational region | E85: taraba | F85: 96.97644 | G85: 21.27281 | H85: 897.2167 | I85: 0 | J85: 1000 | K85: 0 | L85: 0 | M85: 0 | Q85: 4 | R85: 0 | S85: 0 | T85: 1000 | U85: 0 | V85: 0 | W85: =IF('DATA INPUT'!$O85="",0,1) -> 0
A86: Nigeria | B86: 2016 | C86: Under-five mortality rate (deaths per 1000 live births) | D86: Subnational region | E86: yobe | F86: 96.07623 | G86: 9.707726 | H86: 2218.224 | I86: 0 | J86: 1000 | K86: 0 | L86: 0 | M86: 0 | Q86: 4 | R86: 0 | S86: 0 | T86: 1000 | U86: 0 | V86: 0 | W86: =IF('DATA INPUT'!$O86="",0,1) -> 0
A87: Nigeria | B87: 2016 | C87: Under-five mortality rate (deaths per 1000 live births) | D87: Subnational region | E87: zamfara | F87: 210.1853 | G87: 9.867976 | H87: 3063.861 | I87: 0 | J87: 1000 | K87: 0 | L87: 0 | M87: 0 | Q87: 4 | R87: 0 | S87: 0 | T87: 1000 | U87: 0 | V87: 0 | W87: =IF('DATA INPUT'!$O87="",0,1) -> 0
A88: Indonesia | B88: 2017 | C88: Births attended by skilled health personnel (%) | D88: Place of residence | E88: Rural | F88: 87.28363 | G88: 1.022589 | H88: 5217.552 | I88: 1 | J88: 100 | K88: 0 | L88: 0 | M88: 0 | Q88: 5 | R88: 0 | S88: 1 | T88: 100 | U88: 0 | V88: 1 | W88: =IF('DATA INPUT'!$O88="",0,1) -> 0
A89: Indonesia | B89: 2017 | C89: Births attended by skilled health personnel (%) | D89: Place of residence | E89: Urban | F89: 96.20169 | G89: 0.4552671 | H89: 4886.781 | I89: 1 | J89: 100 | K89: 0 | L89: 0 | M89: 1 | Q89: 5 | R89: 0 | S89: 1 | T89: 100 | U89: 0 | V89: 1 | W89: =IF('DATA INPUT'!$O89="",0,1) -> 0
A90: Nigeria | B90: 2016 | C90: Under-five mortality rate (deaths per 1000 live births) | D90: Place of residence | E90: Rural | F90: 136.7671 | G90: 1.880302 | H90: 40791.75 | I90: 0 | J90: 1000 | K90: 0 | L90: 0 | M90: 0 | Q90: 6 | R90: 0 | S90: 0 | T90: 1000 | U90: 0 | V90: 1 | W90: =IF('DATA INPUT'!$O90="",0,1) -> 0
A91: Nigeria | B91: 2016 | C91: Under-five mortality rate (deaths per 1000 live births) | D91: Place of residence | E91: Urban | F91: 79.30093 | G91: 2.833545 | H91: 17009.72 | I91: 0 | J91: 1000 | K91: 0 | L91: 0 | M91: 1 | Q91: 6 | R91: 0 | S91: 0 | T91: 1000 | U91: 0 | V91: 1 | W91: =IF('DATA INPUT'!$O91="",0,1) -> 0
R92: 0 | W92: =IF('DATA INPUT'!$O92="",0,1) -> 0
R93: 0 | W93: =IF('DATA INPUT'!$O93="",0,1) -> 0
R94: 0 | W94: =IF('DATA INPUT'!$O94="",0,1) -> 0
R95: 0 | W95: =IF('DATA INPUT'!$O95="",0,1) -> 0
R96: 0 | W96: =IF('DATA INPUT'!$O96="",0,1) -> 0
R97: 0 | W97: =IF('DATA INPUT'!$O97="",0,1) -> 0
R98: 0 | W98: =IF('DATA INPUT'!$O98="",0,1) -> 0
R99: 0 | W99: =IF('DATA INPUT'!$O99="",0,1) -> 0
R100: 0 | W100: =IF('DATA INPUT'!$O100="",0,1) -> 0
R101: 0 | W101: =IF('DATA INPUT'!$O101="",0,1) -> 0
R102: 0 | W102: =IF('DATA INPUT'!$O102="",0,1) -> 0
Q103: =IF(A103="","",IF(_xlfn.CONCAT(A103&B103&C103&D103)=_xlfn.CONCAT(A102&B102&C102&D102),Q102,Q102+1)) ->  | R103: =IF(A103="",0,IF(K103=0,0,IF(Q103=Q102,L103-L102,L103))) -> 0 | S103: =IF(A103="","",AVERAGEIFS($I:$I,$Q:$Q,$Q103)) ->  | T103: =IF(A103="","",AVERAGEIFS($J:$J,Q:Q,$Q103)) ->  | U103: =IF(A103="","",AVERAGEIFS($K:$K,$Q:$Q,$Q103)) ->  | V103: =IF(A103="","",SUMIFS($M:$M,$Q:$Q,$Q103)) ->  | W103: =IF('DATA INPUT'!$O103="",0,1) -> 0
O104: =IF(AND($K104=1,$R104<>1),"Error: subgroup_order should be an increasing sequence of integers starting with 1", IF($S104<>$I104,"Error: favourable_indicator must be consistently 1 or 0 for each indicator", IF($T104<>$J104,"Error: indicator_scale must be consistent for each indicator", IF($U104<>$K104,"Error: ordered_dimension must be consistent for each dimension", IF(AND($K104=0,$L104<>0),"Error: subgroup_order should be 0 if ordered_dimension=0", IF(AND($K104=1,$M104<>0),"Error: reference_subgroup should be 0 if ordered_dimension=1", IF(AND($V104<>"",$V104>1),"Error: Only one reference subgroup should be indicated in reference_subgroup",""))))))) ->  | R104: 0 | W104: =IF('DATA INPUT'!$O104="",0,1) -> 0
R105: 0 | W105: =IF('DATA INPUT'!$O105="",0,1) -> 0
R106: 0 | W106: =IF('DATA INPUT'!$O106="",0,1) -> 0
R107: 0 | W107: =IF('DATA INPUT'!$O107="",0,1) -> 0
R108: 0 | W108: =IF('DATA INPUT'!$O108="",0,1) -> 0
R109: 0 | W109: =IF('DATA INPUT'!$O109="",0,1) -> 0
R110: 0 | W110: =IF('DATA INPUT'!$O110="",0,1) -> 0
R111: 0 | W111: =IF('DATA INPUT'!$O111="",0,1) -> 0
R112: 0 | W112: =IF('DATA INPUT'!$O112="",0,1) -> 0
R113: 0 | W113: =IF('DATA INPUT'!$O113="",0,1) -> 0
R114: 0 | W114: =IF('DATA INPUT'!$O114="",0,1) -> 0
R115: 0 | W115: =IF('DATA INPUT'!$O115="",0,1) -> 0
R116: 0 | W116: =IF('DATA INPUT'!$O116="",0,1) -> 0
R117: 0 | W117: =IF('DATA INPUT'!$O117="",0,1) -> 0
R118: 0 | W118: =IF('DATA INPUT'!$O118="",0,1) -> 0
R119: 0 | W119: =IF('DATA INPUT'!$O119="",0,1) -> 0
R120: 0 | W120: =IF('DATA INPUT'!$O120="",0,1) -> 0
R121: 0 | W121: =IF('DATA INPUT'!$O121="",0,1) -> 0
R122: 0 | W122: =IF('DATA INPUT'!$O122="",0,1) -> 0
R123: 0 | W123: =IF('DATA INPUT'!$O123="",0,1) -> 0
R124: 0 | W124: =IF('DATA INPUT'!$O124="",0,1) -> 0
R125: 0 | W125: =IF('DATA INPUT'!$O125="",0,1) -> 0
R126: 0 | W126: =IF('DATA INPUT'!$O126="",0,1) -> 0
R127: 0 | W127: =IF('DATA INPUT'!$O127="",0,1) -> 0
R128: 0 | W128: =IF('DATA INPUT'!$O128="",0,1) -> 0
R129: 0 | W129: =IF('DATA INPUT'!$O129="",0,1) -> 0
R130: 0 | W130: =IF('DATA INPUT'!$O130="",0,1) -> 0
R131: 0 | W131: =IF('DATA INPUT'!$O131="",0,1) -> 0
R132: 0 | W132: =IF('DATA INPUT'!$O132="",0,1) -> 0
R133: 0 | W133: =IF('DATA INPUT'!$O133="",0,1) -> 0
R134: 0 | W134: =IF('DATA INPUT'!$O134="",0,1) -> 0
Q135: =IF(A135="","",IF(_xlfn.CONCAT(A135&B135&C135&D135)=_xlfn.CONCAT(A134&B134&C134&D134),Q134,Q134+1)) ->  | R135: =IF(A135="",0,IF(K135=0,0,IF(Q135=Q134,L135-L134,L135))) -> 0 | S135: =IF(A135="","",AVERAGEIFS($I:$I,$Q:$Q,$Q135)) ->  | T135: =IF(A135="","",AVERAGEIFS($J:$J,Q:Q,$Q135)) ->  | U135: =IF(A135="","",AVERAGEIFS($K:$K,$Q:$Q,$Q135)) ->  | V135: =IF(A135="","",SUMIFS($M:$M,$Q:$Q,$Q135)) ->  | W135: =IF('DATA INPUT'!$O135="",0,1) -> 0
O136: =IF(AND($K136=1,$R136<>1),"Error: subgroup_order should be an increasing sequence of integers starting with 1", IF($S136<>$I136,"Error: favourable_indicator must be consistently 1 or 0 for each indicator", IF($T136<>$J136,"Error: indicator_scale must be consistent for each indicator", IF($U136<>$K136,"Error: ordered_dimension must be consistent for each dimension", IF(AND($K136=0,$L136<>0),"Error: subgroup_order should be 0 if ordered_dimension=0", IF(AND($K136=1,$M136<>0),"Error: reference_subgroup should be 0 if ordered_dimension=1", IF(AND($V136<>"",$V136>1),"Error: Only one reference subgroup should be indicated in reference_subgroup",""))))))) ->  | R136: 0 | W136: =IF('DATA INPUT'!$O136="",0,1) -> 0
R137: 0 | W137: =IF('DATA INPUT'!$O137="",0,1) -> 0
R138: 0 | W138: =IF('DATA INPUT'!$O138="",0,1) -> 0
R139: 0 | W139: =IF('DATA INPUT'!$O139="",0,1) -> 0
R140: 0 | W140: =IF('DATA INPUT'!$O140="",0,1) -> 0
R141: 0 | W141: =IF('DATA INPUT'!$O141="",0,1) -> 0
R142: 0 | W142: =IF('DATA INPUT'!$O142="",0,1) -> 0
R143: 0 | W143: =IF('DATA INPUT'!$O143="",0,1) -> 0
R144: 0 | W144: =IF('DATA INPUT'!$O144="",0,1) -> 0
R145: 0 | W145: =IF('DATA INPUT'!$O145="",0,1) -> 0
R146: 0 | W146: =IF('DATA INPUT'!$O146="",0,1) -> 0
R147: 0 | W147: =IF('DATA INPUT'!$O147="",0,1) -> 0
R148: 0 | W148: =IF('DATA INPUT'!$O148="",0,1) -> 0
R149: 0 | W149: =IF('DATA INPUT'!$O149="",0,1) -> 0
R150: 0 | W150: =IF('DATA INPUT'!$O150="",0,1) -> 0
R151: 0 | W151: =IF('DATA INPUT'!$O151="",0,1) -> 0
R152: 0 | W152: =IF('DATA INPUT'!$O152="",0,1) -> 0
R153: 0 | W153: =IF('DATA INPUT'!$O153="",0,1) -> 0
R154: 0 | W154: =IF('DATA INPUT'!$O154="",0,1) -> 0
R155: 0 | W155: =IF('DATA INPUT'!$O155="",0,1) -> 0
R156: 0 | W156: =IF('DATA INPUT'!$O156="",0,1) -> 0
R157: 0 | W157: =IF('DATA INPUT'!$O157="",0,1) -> 0
R158: 0 | W158: =IF('DATA INPUT'!$O158="",0,1) -> 0
R159: 0 | W159: =IF('DATA INPUT'!$O159="",0,1) -> 0
R160: 0 | W160: =IF('DATA INPUT'!$O160="",0,1) -> 0
R161: 0 | W161: =IF('DATA INPUT'!$O161="",0,1) -> 0
R162: 0 | W162: =IF('DATA INPUT'!$O162="",0,1) -> 0
R163: 0 | W163: =IF('DATA INPUT'!$O163="",0,1) -> 0
R164: 0 | W164: =IF('DATA INPUT'!$O164="",0,1) -> 0
R165: 0 | W165: =IF('DATA INPUT'!$O165="",0,1) -> 0
R166: 0 | W166: =IF('DATA INPUT'!$O166="",0,1) -> 0
Q167: =IF(A167="","",IF(_xlfn.CONCAT(A167&B167&C167&D167)=_xlfn.CONCAT(A166&B166&C166&D166),Q166,Q166+1)) ->  | R167: =IF(A167="",0,IF(K167=0,0,IF(Q167=Q166,L167-L166,L167))) -> 0 | S167: =IF(A167="","",AVERAGEIFS($I:$I,$Q:$Q,$Q167)) ->  | T167: =IF(A167="","",AVERAGEIFS($J:$J,Q:Q,$Q167)) ->  | U167: =IF(A167="","",AVERAGEIFS($K:$K,$Q:$Q,$Q167)) ->  | V167: =IF(A167="","",SUMIFS($M:$M,$Q:$Q,$Q167)) ->  | W167: =IF('DATA INPUT'!$O167="",0,1) -> 0
O168: =IF(AND($K168=1,$R168<>1),"Error: subgroup_order should be an increasing sequence of integers starting with 1", IF($S168<>$I168,"Error: favourable_indicator must be consistently 1 or 0 for each indicator", IF($T168<>$J168,"Error: indicator_scale must be consistent for each indicator", IF($U168<>$K168,"Error: ordered_dimension must be consistent for each dimension", IF(AND($K168=0,$L168<>0),"Error: subgroup_order should be 0 if ordered_dimension=0", IF(AND($K168=1,$M168<>0),"Error: reference_subgroup should be 0 if ordered_dimension=1", IF(AND($V168<>"",$V168>1),"Error: Only one reference subgroup should be indicated in reference_subgroup",""))))))) ->  | R168: 0 | W168: =IF('DATA INPUT'!$O168="",0,1) -> 0
R169: 0 | W169: =IF('DATA INPUT'!$O169="",0,1) -> 0
R170: 0 | W170: =IF('DATA INPUT'!$O170="",0,1) -> 0
R171: 0 | W171: =IF('DATA INPUT'!$O171="",0,1) -> 0
R172: 0 | W172: =IF('DATA INPUT'!$O172="",0,1) -> 0
R173: 0 | W173: =IF('DATA INPUT'!$O173="",0,1) -> 0
R174: 0 | W174: =IF('DATA INPUT'!$O174="",0,1) -> 0
R175: 0 | W175: =IF('DATA INPUT'!$O175="",0,1) -> 0
R176: 0 | W176: =IF('DATA INPUT'!$O176="",0,1) -> 0
R177: 0 | W177: =IF('DATA INPUT'!$O177="",0,1) -> 0
R178: 0 | W178: =IF('DATA INPUT'!$O178="",0,1) -> 0
R179: 0 | W179: =IF('DATA INPUT'!$O179="",0,1) -> 0
R180: 0 | W180: =IF('DATA INPUT'!$O180="",0,1) -> 0
R181: 0 | W181: =IF('DATA INPUT'!$O181="",0,1) -> 0
R182: 0 | W182: =IF('DATA INPUT'!$O182="",0,1) -> 0
R183: 0 | W183: =IF('DATA INPUT'!$O183="",0,1) -> 0
R184: 0 | W184: =IF('DATA INPUT'!$O184="",0,1) -> 0
R185: 0 | W185: =IF('DATA INPUT'!$O185="",0,1) -> 0
R186: 0 | W186: =IF('DATA INPUT'!$O186="",0,1) -> 0
R187: 0 | W187: =IF('DATA INPUT'!$O187="",0,1) -> 0
R188: 0 | W188: =IF('DATA INPUT'!$O188="",0,1) -> 0
R189: 0 | W189: =IF('DATA INPUT'!$O189="",0,1) -> 0
R190: 0 | W190: =IF('DATA INPUT'!$O190="",0,1) -> 0
R191: 0 | W191: =IF('DATA INPUT'!$O191="",0,1) -> 0
R192: 0 | W192: =IF('DATA INPUT'!$O192="",0,1) -> 0
R193: 0 | W193: =IF('DATA INPUT'!$O193="",0,1) -> 0
R194: 0 | W194: =IF('DATA INPUT'!$O194="",0,1) -> 0
R195: 0 | W195: =IF('DATA INPUT'!$O195="",0,1) -> 0
R196: 0 | W196: =IF('DATA INPUT'!$O196="",0,1) -> 0
R197: 0 | W197: =IF('DATA INPUT'!$O197="",0,1) -> 0
R198: 0 | W198: =IF('DATA INPUT'!$O198="",0,1) -> 0
Q199: =IF(A199="","",IF(_xlfn.CONCAT(A199&B199&C199&D199)=_xlfn.CONCAT(A198&B198&C198&D198),Q198,Q198+1)) ->  | R199: =IF(A199="",0,IF(K199=0,0,IF(Q199=Q198,L199-L198,L199))) -> 0 | S199: =IF(A199="","",AVERAGEIFS($I:$I,$Q:$Q,$Q199)) ->  | T199: =IF(A199="","",AVERAGEIFS($J:$J,Q:Q,$Q199)) ->  | U199: =IF(A199="","",AVERAGEIFS($K:$K,$Q:$Q,$Q199)) ->  | V199: =IF(A199="","",SUMIFS($M:$M,$Q:$Q,$Q199)) ->  | W199: =IF('DATA INPUT'!$O199="",0,1) -> 0
O200: =IF(AND($K200=1,$R200<>1),"Error: subgroup_order should be an increasing sequence of integers starting with 1", IF($S200<>$I200,"Error: favourable_indicator must be consistently 1 or 0 for each indicator", IF($T200<>$J200,"Error: indicator_scale must be consistent for each indicator", IF($U200<>$K200,"Error: ordered_dimension must be consistent for each dimension", IF(AND($K200=0,$L200<>0),"Error: subgroup_order should be 0 if ordered_dimension=0", IF(AND($K200=1,$M200<>0),"Error: reference_subgroup should be 0 if ordered_dimension=1", IF(AND($V200<>"",$V200>1),"Error: Only one reference subgroup should be indicated in reference_subgroup",""))))))) ->  | R200: 0 | W200: =IF('DATA INPUT'!$O200="",0,1) -> 0
R201: 0 | W201: =IF('DATA INPUT'!$O201="",0,1) -> 0
R202: 0 | W202: =IF('DATA INPUT'!$O202="",0,1) -> 0
R203: 0 | W203: =IF('DATA INPUT'!$O203="",0,1) -> 0
... 3 more rows

Sheet CALCULATIONS (hidden)
A1: Summary measure calculations
A4: setting | B4: date | C4: Indicator name | D4: If indicator is favourable (1) or adverse (0) | E4: The scale of the indicator | F4: Dimension name | G4: If dimension is ordered (1) or non-ordered (0) | H4: Population subgroups | I4: [Optional] Reference subgroup indicated with 1 | J4: Order of subgroups | K4: Subgroup estimate | L4: Standard error of subgroup estimate | M4: Number of people in the subgroup | N4: Concatenated field to identify group | O4: Group | P4: Number of subgroups per group | Q4: Number of subgroups per group with estimates | R4: Number of subgroups per group with estimates and/or population | S4: Estimate and/or population missing | T4: Max subgroup | U4: Min subgroup | V4: Max estimate | W4: Min estimate | X4: User-identified reference estimate | Y4: Other estimate | Z4: Estimate for subgroup 1 | AA4: Estimate for subgroup 2 | AB4: Standard error for subgroup 1 | AC4: Standard error for subgroup 2 | AD4: Difference | AE4: Standard error of difference | AF4: Lower 95% confidence interval | AG4: Upper 95% confidence interval | AH4: Ratio | AI4: Standard error of ratio | AJ4: Lower 95% confidence interval | AK4: Upper 95% confidence interval | AL4: Population share of subgroups | AM4: Weighted mean of subgroup estimates | AN4: Cumulative population share | AO4: Relative rank of each subgroup | AP4: ACI calculation | AQ4: ACI standard error calculation | AR4: RCI standard error calculation | AS4: ACI | AT4: Standard error of ACI | AU4: Lower 95% confidence interval | AV4: Upper 95% confidence interval | AW4: RCI | AX4: Standard error of RCI | AY4: Lower 95% confidence interval | AZ4: Upper 95% confidence interval | BA4: Indicator scaling factor (based on maximum subgroup estimate) | BB4: Subgroup estimate rescaled to a 0-1 scale | BC4: Logit transformation of the subgroup estimate | BD4: Square root of the subgroup population | BE4: Relative rank multiplied by W | BF4: Logit transformed estimate multiplied by W | BG4: Identify first in group | BH4: Predicted log odds at rank 0 using a WLS regression model | BI4: Predicted log odds at rank 1 using a WLS regression model | BJ4: Predicted estimate at rank 0 | BK4: Predicted estimate at rank 1 | BL4: SII | BO4: RII | BR4: Reference group | BS4: Reference group estimate | BT4: Reference group population | BU4: # people in reference group for whom the indicator was achieved | BV4: # people in reference group for whom the indicator was not achieved | BW4: # people not in reference groups for whom the indicator was achieved | BX4: # people not in reference group for whom the indicator was not achieved | BY4: Total number of people | BZ4: Population attributable fraction (PAF) calculation | CA4: Standard error of PAF | CB4: Lower 95% confidence interval of PAF | CC4: Upper 95% confidence interval of PAF | CD4: PAR | CE4: Standard error of PAR | CF4: Lower 95% confidence interval | CG4: Upper 95% confidence interval | CH4: MDMU calculation | CI4: MDMW calculation | CJ4: Unweighted mean difference from mean | CM4: Weighted mean difference from mean | CP4: Unweighted index of disparity | CS4: Weighted index of disparity | CV4: MDBU calculation | CW4: MDBW calculation | CX4: Unweighted mean difference from best-performing subgroup | DA4: Weighted mean difference from best-performing subgroup | DD4: MDRU calculation | DE4: MDRW calculation | DF4: Unweighted mean difference from reference subgroup | DI4: Weighted mean difference from reference subgroup | DL4: BGV calculation | DM4: First part of BGV standard error calculation | DN4: Second part of BGV standard error calculation | DO4: Third part of BGV standard error calculation | DP4: Fourth part of BGV standard error calculation | DQ4: BGV | DR4: Standard error of BGV | DS4: Lower 95% confidence interval | DT4: Upper 95% confidence interval | DU4: BGSD | DX4: COV | EA4: Indicator share in each subgroup | EB4: TI calculation | EC4: First part of TI standard error calculation | ED4: Second part of TI standard error calculation | EE4: MLD calculation | EF4: MLD standard error calculation | EG4: Theil Index | EH4: Standard error of TI | EI4: Lower 95% confidence interval | EJ4: Upper 95% confidence interval | EK4: MLD | EL4: Standard error of MLD | EM4: Lower 95% confidence interval | EN4: Upper 95% confidence interval
K5: y | L5: σ | Y5: ymin if favourable, ymax if adverse | AD5: y1 – y2 | AE5: √(σ12 + σ22) | AF5: d – 1.96*d_se | AG5: d + 1.96*d_se | AH5: y1 / y2 | AI5: √(1/y22)*(σ12 + (y1/y2)2σ22) | AJ5: r – 1.96*r_se | AK5: r + 1.96*r_se | AL5: popj/∑pop | AN5: ∑jpj | AO5: cpj – 0.5pj | AP5: pj(2Xj – 1)yj | AQ5: pj2σj2(2Xj – 1)2 | AR5: pj2σj2[(2Xj – 1) – RCI]2 | AS5: ∑aci_prep | AT5: √∑aci_se_prep | AU5: aci – 1.96*aci_se | AV5: aci + 1.96*aci_se | AW5: 100 * ∑aci_prep / μ | AX5: √∑aci_se_prep / μ2 | AY5: rci – 1.96*rci_se | AZ5: rci + 1.96*rci_se | BB5: y/scale | BC5: ln(y/(1-y)) | BD5: √pop | BE5: X*W | BF5: logitY*W | BJ5: [ev0log/(1+ev0log)]*scale | BK5: [ev1log/(1+ev1log)]*scale | BL5: v1 - v0 | BO5: v1 / v0 | BR5: Most-advantaged; ymax if favourable; ymin if adverse | BU5: yref/sc * ypop | BV5: ypop – c | BW5: μ/sc * ∑pop – c | BX5: ∑pop – a – ypop | BY5: ∑pop | BZ5: (yref – μ)/μ | CA5: √cN[ad(N–c)+bc2] / (a+c)3(c+d)3 | CB5: paf – 1.96*paf_se | CC5: paf + 1.96*paf_se | CD5: yref – μ | CE5: |μ(paf_ul – paf_ll)| / (2*1.96) | CF5: par – 1.96*par_se | CG5: par + 1.96*par_se | CH5: |yj – μ| | CI5: pj|yj – μ| | CJ5: 1/n*∑mdmu_prep | CM5: ∑mdmw_prep | CP5: 100 * (1/n * ∑idisu_prep)/μ | CS5: 100 * ∑idisw_prep/μ | CV5: |yj – yref| | CW5: pj|yj – yref| | CX5: 1/n*∑mdbu_prep | DA5: ∑mdbw_prep | DD5: |yj – yref| | DE5: pj|yj – yref| | DF5: 1/n*∑mdru_prep | DI5: ∑mdrw_prep | DL5: pj(yj – μ)2 | DM5: pj2σj2(yj – μ)2 | DN5: pj2σj2 | DO5: pj4σj4 | DP5: pj2(1 – pj)2σj4 | DQ5: ∑bgv_prep | DR5: √(4∑se2 + 2∑s22 – ∑s4 + ∑se4) | DS5: bgv – 1.96*bgv_se | DT5: bgv + 1.96*bgv_se | DU5: √∑bgv | DX5: 100*(√∑bgv)/μ | EA5: yj/μ | EB5: pj*ij*ln(ij) | EC5: pj*ij*(1 + ln(ij)) | ED5: pj2*σj2*(1 + ln(ij) – ∑te_se_prep1)2 | EE5: pj[-ln(ij)] | EF5: [(pj2σj2)/μ2]*[1 – (1/(ij))]2 | EG5: 1000 * ∑ti_prep | EH5: √∑ti_se_prep2/μ2 | EI5: ti – 1.96*ti_se | EJ5: ti + 1.96*ti_se | EK5: 1000 * ∑mld_prep | EL5: √∑mld_se_prep | EM5: mld – 1.96*mld_se | EN5: mld + 1.96*mld_se
A6: setting | B6: date | C6: indicator | D6: favourable_indicator | E6: indicator_scale | F6: dimension | G6: ordered_dimension | H6: subgroup | I6: reference_subgroup | J6: subgroup_order | K6: estimate | L6: standard_error | M6: population | N6: concat | O6: 0.0 | P6: n | Q6: nest | R6: npop | S6: missing | T6: subgroupmax | U6: subgroupmin | V6: ymax | W6: ymin | X6: yref | Y6: yother | Z6: y1 | AA6: y2 | AB6: σ1 | AC6: σ2 | AD6: d | AE6: d_se | AF6: d_ll | AG6: d_ul | AH6: r | AI6: r_se | AJ6: r_ll | AK6: r_ul | AL6: p | AM6: μ | AN6: cp | AO6: X | AP6: aci_prep | AQ6: aci_se_prep | AR6: rci_se_prep | AS6: aci | AT6: aci_se | AU6: aci_ll | AV6: aci_ul | AW6: rci | AX6: rci_se | AY6: rci_ll | AZ6: rci_ul | BA6: scale | BB6: Y | BC6: logitY | BD6: W | BE6: XW | BF6: YW | BG6: i | BH6: v0log | BI6: v1log | BJ6: v0 | BK6: v1 | BL6: sii | BM6: sii_ll | BN6: sii_ul | BO6: rii | BP6: rii_ll | BQ6: rii_ul | BR6: refgroup | BS6: yref2 | BT6: ypop | BU6: c | BV6: d3 | BW6: a | BX6: b | BY6: N4 | BZ6: paf | CA6: paf_se | CB6: paf_ll | CC6: paf_ul | CD6: par | CE6: par_se | CF6: par_ll | CG6: par_ul | CH6: mdmu_prep | CI6: mdmw_prep | CJ6: mdmu | CK6: mdmu_ll | CL6: mdmu_ul | CM6: mdmw | CN6: mdmw_ll | CO6: mdmw_ul | CP6: idisu | CQ6: idisu_ll | CR6: idisu_ul | CS6: idisw | CT6: idisw_ll | CU6: idisw_ul | CV6: mdbu_prep | CW6: mdbw_prep | CX6: mdbu | CY6: mdbu_ll | CZ6: mdbu_ul | DA6: mdbw | DB6: mdbw_ll | DC6: mdbw_ul | DD6: mdru_prep | DE6: mdrw_prep | DF6: mdru | DG6: mdru_ll | DH6: mdru_ul | DI6: mdrw | DJ6: mdrw_ll | DK6: mdrw_ul | DL6: bgv_prep | DM6: se2 | DN6: s2 | DO6: s4 | DP6: se4 | DQ6: bgv | DR6: bgv_se | DS6: bgv_ll | DT6: bgv_ul | DU6: bgsd | DV6: bgsd_ll | DW6: bgsd_ul | DX6: cov | DY6: cov_ll | DZ6: cov_ul | EA6: i5 | EB6: ti_prep | EC6: ti_se_prep1 | ED6: ti_se_prep2 | EE6: mld_prep | EF6: mld_se_prep | EG6: ti | EH6: ti_se | EI6: ti_ll | EJ6: ti_ul | EK6: mld | EL6: mld_se | EM6: mld_ll | EN6: mld_ul
A7: =IF('DATA INPUT'!A7="","",'DATA INPUT'!A7) -> Indonesia | B7: =IF('DATA INPUT'!B7="","",'DATA INPUT'!B7) -> 2017 | C7: =IF('DATA INPUT'!C7="","",'DATA INPUT'!C7) -> Births attended by skilled health personnel (%) | D7: =IF('DATA INPUT'!I7="","",'DATA INPUT'!I7) -> 1 | E7: =IF('DATA INPUT'!J7="","",'DATA INPUT'!J7) -> 100 | F7: =IF('DATA INPUT'!D7="","",'DATA INPUT'!D7) -> Economic status | G7: =IF('DATA INPUT'!K7="","",'DATA INPUT'!K7) -> 1 | H7: =IF('DATA INPUT'!E7="","",'DATA INPUT'!E7) -> Quintile 1 (poorest) | I7: =IF('DATA INPUT'!M7="","",'DATA INPUT'!M7) -> 0 | J7: =IF('DATA INPUT'!L7="","",'DATA INPUT'!L7) -> 1 | K7: =IF('DATA INPUT'!F7="","",'DATA INPUT'!F7) -> 75.6053 | L7: =IF('DATA INPUT'!G7="","",'DATA INPUT'!G7) -> 1.599613 | M7: =IF('DATA INPUT'!H7="","",'DATA INPUT'!H7) -> 2072.436 | N7: =_xlfn.CONCAT(A7&B7&C7&F7) -> Indonesia2017Births attended by skilled health personnel (%)Economic status | O7: =IF(A7="","",IF(N7=N6,O6,O6+1)) -> 1 | P7: =IF($A7="","",COUNTIFS($N:$N,$N7)) -> 5 | Q7: =IF($A7="","",COUNTIFS($N:$N,$N7)-COUNTIFS($N:$N,$N7,estimate,"")) -> 5 | R7: =IF($A7="","",COUNTIFS($N:$N,$N7)-MAX(COUNTIFS($N:$N,$N7,estimate,""),COUNTIFS($N:$N,$N7,population,""))) -> 5 | S7: =P7-R7 -> 0 | T7: =IF($D7=1,MAX(IF(group=$O7,order)),MIN(IF(group=$O7,order))) -> 5 | U7: =IF($D7=1,MIN(IF(group=$O7,order)),MAX(IF(group=$O7,order))) -> 1 | V7: =_xlfn.MAXIFS(estimate,group,$O7) -> 99.22405 | W7: =_xlfn.MINIFS(estimate,group,$O7) -> 75.6053 | X7: =IF($G7=0,_xlfn.MAXIFS(estimate,group,$O7,reference,1),0) -> 0 | Y7: =IF(AND($G7=0,$D7=1),_xlfn.MINIFS(estimate,group,$O7,reference,0), IF(AND($G7=0,$D7=0),_xlfn.MAXIFS(estimate,group,$O7,reference,0), 0)) -> 0 | Z7: =IF($Q7<2,"",IF($G7=1,INDEX(estimate,MATCH(1,(group=$O7)*(order=$T7),0)), IF(AND($G7=0,$X7<>0,$D7=1),$X7, IF(AND($G7=0,$X7<>0,$D7=0),$Y7, IF(AND($G7=0,$X7=0),$V7,""))))) -> 99.22405 | AA7: =IF($Q7<2,"",IF($G7=1,INDEX(estimate,MATCH(1,(group=$O7)*(order=$U7),0)), IF(AND($G7=0,$X7<>0,$D7=1),$Y7, IF(AND($G7=0,$X7<>0,$D7=0),$X7, IF(AND($G7=0,$X7=0),$W7,""))))) -> 75.6053 | AB7: =IF($Q7<2,"",IF($G7=1,INDEX(se,MATCH(1,(group=$O7)*(order=$T7),0)), IF(AND($G7=0,$X7<>0,$D7=1),INDEX(se,MATCH(1,(group=$O7)*(estimate=$X7),0)), IF(AND($G7=0,$X7<>0,$D7=0),INDEX(se,MATCH(1,(group=$O7)*(estimate=$Y7),0)), IF(AND($G7=0,$X7=0),INDEX(se,MATCH(1,(group=$O7)*(estimate=$V7),0)),""))))) -> 0.2237683 | AC7: =IF($Q7<2,"",IF($G7=1,INDEX(se,MATCH(1,(group=$O7)*(order=$U7),0)), IF(AND($G7=0,$X7<>0,$D7=1),INDEX(se,MATCH(1,(group=$O7)*(estimate=$Y7),0)), IF(AND($G7=0,$X7<>0,$D7=0),INDEX(se,MATCH(1,(group=$O7)*(estimate=$X7),0)), IF(AND($G7=0,$X7=0),INDEX(se,MATCH(1,(group=$O7)*(estimate=$W7),0)),""))))) -> 1.599613 | AD7: =IFERROR(Z7-AA7,"") -> 23.61875 | AE7: =IFERROR(SQRT(AB7^2+AC7^2),"") -> 1.615188534 | AF7: =IFERROR(IF(AE7=0,0,AD7-1.96*AE7),"") -> 20.45298047 | AG7: =IFERROR(IF(AE7=0,0,AD7+1.96*AE7),"") -> 26.78451953 | AH7: =IFERROR(Z7/AA7,"") -> 1.312395427 | AI7: =IFERROR(SQRT(((1/(AA7^2))*((AB7^2)+(AH7^2)*(AC7^2)))),"") -> 0.02792419186 | AJ7: =IFERROR(IF($AI7=0,0,EXP(LN($AH7)-1.96*($AI7/$AH7))),"") -> 1.258789555 | AK7: =IFERROR(IF($AI7=0,0,EXP(LN($AH7)+1.96*($AI7/$AH7))),"") -> 1.368284119 | AL7: =IFERROR($M7/SUMIFS(population,group,$O7),"") -> 0.2051036917 | AM7: =IF($O7<>"",SUMPRODUCT(IF(group=$O7,1,0),AL:AL,estimate)) -> 91.59669096 | AN7: =IFERROR(IF($G7=0,0,IF($J7=1,$AL7,$AL7+$AN6)),"") -> 0.2051036917 | AO7: =IF($G7=1,AN7-0.5*AL7,0) -> 0.1025518458 | AP7: =IF($G7=0,0,$AL7*(2*$AO7-1)*$K7) -> -12.32639834 | AQ7: =IF($G7=0,0,(($AL7^2)*((2*$AO7-1)^2)*($L7^2))) -> 0.06801391348 | AR7: =IF($G7=0,0,(($AL7^2)*($L7^2)*(((2*$AO7-1)-$AW7)^2))) -> 3.244251577 | AS7: =IFERROR(IF($G7=0,"",IF($S7<>0,"",SUMIFS(AP:AP,group,$O7))),"") -> 4.300519272 | AT7: =IFERROR(IF($G7=0,"",IF($S7<>0,"",SQRT(SUMIFS($AQ:$AQ,group,$O7)))),"") -> 0.2823600443 | AU7: =IFERROR(IF($AT7=0,0,$AS7-1.96*$AT7),"") -> 3.747093586 | AV7: =IFERROR(IF($AT7=0,0,$AS7+1.96*$AT7),"") -> 4.853944959 | AW7: =IFERROR($AS7/$AM7*100,"") -> 4.695059644 | AX7: =IFERROR(IF($G7=0,"",SQRT((SUMIFS($AR:$AR,group,$O7))/(AM7^2))),"") -> 0.0251680676 | AY7: =IFERROR(IF($AX7=0,0,$AW7-1.96*$AX7),"") -> 4.645730231 | AZ7: =IFERROR(IF($AX7=0,0,$AW7+1.96*$AX7),"") -> 4.744389056 | BA7: =IF($K7="","",IF($V7<1,1,IF($V7<100,100,IF($V7<1000,1000,IF($V7<10000,10000,IF($V7<100000,100000,1)))))) -> 100 | BB7: =$K7/$BA7 -> 0.756053 | BC7: =LN($BB7/(1-$BB7)) -> 1.131160491 | BD7: =IF($G7=0,0,SQRT($M7)) -> 45.52401564 | BE7: =$AO7*$BD7 -> 4.668571833 | BF7: =IFERROR($BC7*$BD7,"") -> 51.49496788 | BG7: =IF($O7=$O6,0,1) -> 1 | BH7: =IF($G7=0,0, INDEX(LINEST( IF($BG7=1,INDEX(BF:BF,ROW($BD7),0),INDEX(BF:BF,ROW($BD7)-J7+1,0)): IF($BG7=1,INDEX(BF:BF,ROW($BD7)+COUNTIF(group,$O7)-1,0),INDEX(BF:BF,ROW($BD7)-J7+$Q7,0)), IF($BG7=1,INDEX(BD:BE,ROW($BD7),0),INDEX(BD:BE,ROW($BD7)-J7+1,0)): IF($BG7=1,INDEX(BD:BE,ROW($BD7)+COUNTIF(group,$O7)-1,0),INDEX(BD:BE,ROW($BD7)-J7+$Q7,0)), FALSE),2)) -> 0.8204313909 | BI7: =IF($G7=0,0, INDEX(LINEST( IF($BG7=1,INDEX(BF:BF,ROW($BD7),0),INDEX(BF:BF,ROW($BD7)-J7+1,0)): IF($BG7=1,INDEX(BF:BF,ROW($BD7)+COUNTIF(group,$O7)-1,0),INDEX(BF:BF,ROW($BD7)-J7+$Q7,0)), IF($BG7=1,INDEX(BD:BE,ROW($BD7),0),INDEX(BD:BE,ROW($BD7)-J7+1,0)): IF($BG7=1,INDEX(BD:BE,ROW($BD7)+COUNTIF(group,$O7)-1,0),INDEX(BD:BE,ROW($BD7)-J7+$Q7,0)), FALSE),1)+ INDEX(LINEST( IF($BG7=1,INDEX(BF:BF,ROW($BD7),0),INDEX(BF:BF,ROW($BD7)-J7+1,0)): IF($BG7=1,INDEX(BF:BF,ROW($BD7)+COUNTIF(group,$O7)-1,0),INDEX(BF:BF,ROW($BD7)-J7+COUNTIF(group,$O7),0)), IF($BG7=1,INDEX(BD:BE,ROW($BD7),0),INDEX(BD:BE,ROW($BD7)-J7+1,0)): IF($BG7=1,INDEX(BD:BE,ROW($BD7)+COUNTIF(group,$O7)-1,0),INDEX(BD:BE,ROW($BD7)-J7+COUNTIF(group,$O7),0)), FALSE),2)) -> 5.090757783 | BJ7: =IF($G7=0,0,(EXP($BH7)/(1+EXP($BH7)))*$BA7) -> 69.43279047 | BK7: =IF($G7=0,0,(EXP($BI7)/(1+EXP($BI7)))*$BA7) -> 99.3884277 | BL7: =IFERROR(IF($G7=0,"",IF($S7<>0,"",BK7-BJ7)),"") -> 29.95563723 | BO7: =IFERROR(IF($S7<>0,"",$BK7/$BJ7),"") -> 1.431433578 | BR7: =IF($G7=1,IF($J7=_xlfn.MAXIFS(order,group,$O7),1,0), IF(AND($G7=0,$D7=1),IF($K7=_xlfn.MAXIFS(estimate,group,$O7),1,0), IF(AND($G7=0,$D7=0),IF($K7=_xlfn.MINIFS(estimate,group,$O7),1,0)))) -> 0 | BS7: =SUMIFS(estimate,BR:BR,1, group,$O7) -> 99.22405 | BT7: =SUMIFS(population,BR:BR,1, group,$O7) -> 1884.51 | BU7: =($BS7/$E7)*$BT7 -> 1869.887145 | BV7: =$BT7-$BU7 -> 14.62285534 | BW7: =($AM7/$E7)*SUMIFS(population,group,$O7)-$BU7 -> 7385.347527 | BX7: =SUMIFS(population,group,$O7)-$BW7-$BT7 -> 834.4754727 | BY7: =SUM(BU7:BX7) -> 10104.333 | BZ7: =IFERROR(IF($S7<>0,"",IF($R7<=2,"",($BS7-$AM7)/$AM7*100)),"") -> 8.327111991 | CA7: =IFERROR(IF($S7<>0,"",IF($R7<=2,"",SQRT(($BU7*$BY7*($BW7*$BV7*($BY7-$BU7)+$BX7*$BU7^2))/(($BW7+$BU7)^3*($BU7+$BV7)^3)))),"") -> 0.003681919671 | CB7: =IFERROR($BZ7-1.96*$CA7,"") -> 8.319895428 | CC7: =IFERROR($BZ7+1.96*$CA7,"") -> 8.334328554 | CD7: =IF($O7="","",IF($S7<>0,"",IF($R7<=2,"",IF(AND($BS7-$AM7<0,$D7=1),0,IF(AND($BS7-$AM7>0,$D7=0),0,$BS7-$AM7))))) -> 7.627359037 | CE7: =IFERROR(ABS($AM7*($CC7-$CB7))/(2*1.96),"") -> 0.3372516583 | CF7: =IFERROR($CD7-1.96*$CE7,"") -> 6.966345786 | CG7: =IFERROR($CD7+1.96*$CE7,"") -> 8.288372287 | CH7: =IF($G7=1,0,IF($Q7=2,0,ABS($K7-$AM7))) -> 0 | CI7: =$CH7*$AL7 -> 0 | CJ7: =IFERROR(IF($G7=1,"",IF($S7<>0,"",IF($R7<=2,"",SUMIFS(CH:CH,group,$O7)/$Q7))),"") ->  | CM7: =IFERROR(IF($G7=1,"",IF($S7<>0,"",IF($R7<=2,"",SUMIFS(CI:CI,group,$O7)))),"") ->  | CP7: =IFERROR($CJ7/$AM7*100,"") ->  | CS7: =IFERROR($CM7/$AM7*100,"") ->  | CV7: =IF($G7=1,0,IF($Q7=2,0,ABS($K7-$BS7))) -> 0 | CW7: =$CV7*$AL7 -> 0 | CX7: =IFERROR(IF($G7=1,"",IF($Q7<=2,"",IF($P7-$Q7<>0,"",SUMIFS(CV:CV,group,$O7)/$Q7))),"") ->  | DA7: =IFERROR(IF($G7=1,"",IF($R7<=2,"",IF($P7-$Q7<>0,"",IF($P7-$R7<>0,"",SUMIFS(CW:CW,group,$O7))))),"") ->  | DD7: =IF($G7=1,0,IF($Q7=2,0,IF($X7=0,0,ABS($K7-$X7)))) -> 0 | DE7: =$DD7*$AL7 -> 0 | DF7: =IFERROR(IF($G7=1,"",IF($X7=0,"",IF($Q7<=2,"",IF($P7-$Q7<>0,"",SUMIFS(DD:DD,group,$O7)/$Q7)))),"") ->  | DI7: =IFERROR(IF($G7=1,"",IF($X7=0,"",IF($R7<=2,"",IF($P7-$Q7<>0,"",IF($P7-$R7<>0,"",SUMIFS(DE:DE,group,$O7)))))),"") ->  | DL7: =IF($G7=1,0,IF($Q7=2,0,$AL7*(($K7-$AM7)^2))) -> 0 | DM7: =IF($G7=1,0,IF($Q7=2,0,($AL7^2)*($L7^2)*(($K7-$AM7)^2))) -> 0 | DN7: =IF($G7=1,0,IF($Q7=2,0,($AL7^2)*($L7^2))) -> 0 | DO7: =IF($G7=1,0,IF($Q7=2,0,($AL7^4)*($L7^4))) -> 0 | DP7: =IF($G7=1,0,IF($Q7=2,0,($AL7^2)*((1-$AL7)^2)*($L7^4))) -> 0 | DQ7: =IFERROR(IF($G7=1,"",IF($R7<=2,"",IF($P7-$Q7<>0,"",IF($P7-$R7<>0,"",SUMIFS(DL:DL,group,$O7))))),"") ->  | DR7: =IFERROR(IF($G7=1,"",IF($R7<=2,"",IF($P7-$Q7<>0,"",IF($P7-$R7<>0,"",SQRT(4*SUMIFS($DM:$DM,group,$O7)+2*((SUMIFS($DN:$DN,group,$O7)^2)-SUMIFS($DO:$DO,group,$O7)+SUMIFS($DP:$DP,group,$O7))))))),"") ->  | DS7: =IFERROR(IF(DR7=0,0,$DQ7-1.96*$DR7),"") ->  | DT7: =IFERROR(IF(DR7=0,0,$DQ7+1.96*$DR7),"") ->  | DU7: =IFERROR(SQRT(DQ7),"") ->  | DX7: =IFERROR($DU7/$AM7*100,"") ->  | EA7: =IF($G7=1,0,IF($Q7=2,0,$K7/$AM7)) -> 0 | EB7: =IF($G7=1,0,IF($Q7=2,0,$AL7*$EA7*LN($EA7))) -> 0 | EC7: =IF($G7=1,0,IF($Q7=2,0,$AL7*$EA7*(1+LN($EA7)))) -> 0 | ED7: =IF($G7=1,0,IF($Q7=2,0,(($AL7^2)*($L7^2)*((1+LN($EA7)-SUMIFS(EC:EC,group,$O7))^2)))) -> 0 | EE7: =IF($G7=1,0,IF($Q7=2,0,($AL7*-LN($EA7)))) -> 0 | EF7: =IF($G7=1,0,IF($Q7=2,0,((($AL7^2)*($L7^2))/($AM7^2))*((1-(1/$EA7))^2))) -> 0 | EG7: =IFERROR(IF($G7=1,"",IF($R7<=2,"",IF($P7-$R7<>0,"",SUMIFS(EB:EB,group,$O7)*1000))),"") ->  | EH7: =IFERROR(IF($G7=1,"",IF($R7<=2,"",IF($P7-$R7<>0,"",SQRT(SUMIFS(ED:ED,group,$O7)/($AM7^2))))),"") ->  | EI7: =IFERROR($EG7-1.96*$EH7,"") ->  | EJ7: =IFERROR($EG7+1.96*$EH7,"") ->  | EK7: =IFERROR(IF($G7=1,"",IF($R7<=2,"",IF($P7-$R7<>0,"",SUMIFS(EE:EE,group,$O7)*1000))),"") ->  | EL7: =IFERROR(IF($G7=1,"",IF($R7<=2,"",IF($P7-$R7<>0,"",SQRT(SUMIFS(EF:EF,group,$O7))))),"") ->  | EM7: =IFERROR($EK7-1.96*$EL7,"") ->  | EN7: =IFERROR($EK7+1.96*$EL7,"") -> 
A8: =IF('DATA INPUT'!A8="","",'DATA INPUT'!A8) -> Indonesia | B8: =IF('DATA INPUT'!B8="","",'DATA INPUT'!B8) -> 2017 | C8: =IF('DATA INPUT'!C8="","",'DATA INPUT'!C8) -> Births attended by skilled health personnel (%) | D8: =IF('DATA INPUT'!I8="","",'DATA INPUT'!I8) -> 1 | E8: =IF('DATA INPUT'!J8="","",'DATA INPUT'!J8) -> 100 | F8: =IF('DATA INPUT'!D8="","",'DATA INPUT'!D8) -> Economic status | G8: =IF('DATA INPUT'!K8="","",'DATA INPUT'!K8) -> 1 | H8: =IF('DATA INPUT'!E8="","",'DATA INPUT'!E8) -> Quintile 2 | I8: =IF('DATA INPUT'!M8="","",'DATA INPUT'!M8) -> 0 | J8: =IF('DATA INPUT'!L8="","",'DATA INPUT'!L8) -> 2 | K8: =IF('DATA INPUT'!F8="","",'DATA INPUT'!F8) -> 91.01997 | L8: =IF('DATA INPUT'!G8="","",'DATA INPUT'!G8) -> 1.13515 | M8: =IF('DATA INPUT'!H8="","",'DATA INPUT'!H8) -> 2112.204 | N8: Indonesia2017Births attended by skilled health personnel (%)Economic status | O8: 1 | P8: 5 | Q8: =IF($A8="","",COUNTIFS($N:$N,$N8)-COUNTIFS($N:$N,$N8,estimate,"")) -> 5 | R8: 5 | S8: =P8-R8 -> 0 | T8: =IF($D8=1,MAX(IF(group=$O8,order)),MIN(IF(group=$O8,order))) -> 5 | U8: =IF($D8=1,MIN(IF(group=$O8,order)),MAX(IF(group=$O8,order))) -> 1 | V8: =_xlfn.MAXIFS(estimate,group,$O8) -> 99.22405 | W8: =_xlfn.MINIFS(estimate,group,$O8) -> 75.6053 | X8: 0 | Y8: 0 | Z8: =IF($Q8<2,"",IF($G8=1,INDEX(estimate,MATCH(1,(group=$O8)*(order=$T8),0)), IF(AND($G8=0,$X8<>0,$D8=1),$X8, IF(AND($G8=0,$X8<>0,$D8=0),$Y8, IF(AND($G8=0,$X8=0),$V8,""))))) -> 99.22405 | AA8: =IF($Q8<2,"",IF($G8=1,INDEX(estimate,MATCH(1,(group=$O8)*(order=$U8),0)), IF(AND($G8=0,$X8<>0,$D8=1),$Y8, IF(AND($G8=0,$X8<>0,$D8=0),$X8, IF(AND($G8=0,$X8=0),$W8,""))))) -> 75.6053 | AB8: =IF($Q8<2,"",IF($G8=1,INDEX(se,MATCH(1,(group=$O8)*(order=$T8),0)), IF(AND($G8=0,$X8<>0,$D8=1),INDEX(se,MATCH(1,(group=$O8)*(estimate=$X8),0)), IF(AND($G8=0,$X8<>0,$D8=0),INDEX(se,MATCH(1,(group=$O8)*(estimate=$Y8),0)), IF(AND($G8=0,$X8=0),INDEX(se,MATCH(1,(group=$O8)*(estimate=$V8),0)),""))))) -> 0.2237683 | AC8: =IF($Q8<2,"",IF($G8=1,INDEX(se,MATCH(1,(group=$O8)*(order=$U8),0)), IF(AND($G8=0,$X8<>0,$D8=1),INDEX(se,MATCH(1,(group=$O8)*(estimate=$Y8),0)), IF(AND($G8=0,$X8<>0,$D8=0),INDEX(se,MATCH(1,(group=$O8)*(estimate=$X8),0)), IF(AND($G8=0,$X8=0),INDEX(se,MATCH(1,(group=$O8)*(estimate=$W8),0)),""))))) -> 1.599613 | AD8: 23.61875 | AE8: 1.615188534 | AF8: 20.45298047 | AG8: 26.78451953 | AH8: 1.312395427 | AI8: 0.02792419186 | AJ8: 1.258789555 | AK8: 1.368284119 | AL8: 0.2090394289 | AM8: =IF($O8<>"",SUMPRODUCT(IF(group=$O8,1,0),AL:AL,estimate)) -> 91.59669096 | AN8: 0.4141431206 | AO8: 0.3096234061 | AP8: -7.244500494 | AQ8: 0.008163004269 | AR8: 1.450688359 | AS8: 4.300519272 | AT8: 0.2823600443 | AU8: 3.747093586 | AV8: 4.853944959 | AW8: 4.695059644 | AX8: 0.0251680676 | AY8: 4.645730231 | AZ8: 4.744389056 | BA8: 100 | BB8: 0.9101997 | BC8: =LN($BB8/(1-$BB8)) -> 2.31607571 | BD8: =IF($G8=0,0,SQRT($M8)) -> 45.95872061 | BE8: 14.22989562 | BF8: 106.4438765 | BG8: =IF($O8=$O7,0,1) -> 0 | BH8: =IF($G8=0,0, INDEX(LINEST( IF($BG8=1,INDEX(BF:BF,ROW($BD8),0),INDEX(BF:BF,ROW($BD8)-J8+1,0)): IF($BG8=1,INDEX(BF:BF,ROW($BD8)+COUNTIF(group,$O8)-1,0),INDEX(BF:BF,ROW($BD8)-J8+$Q8,0)), IF($BG8=1,INDEX(BD:BE,ROW($BD8),0),INDEX(BD:BE,ROW($BD8)-J8+1,0)): IF($BG8=1,INDEX(BD:BE,ROW($BD8)+COUNTIF(group,$O8)-1,0),INDEX(BD:BE,ROW($BD8)-J8+$Q8,0)), FALSE),2)) -> 0.8204313909 | BI8: =IF($G8=0,0, INDEX(LINEST( IF($BG8=1,INDEX(BF:BF,ROW($BD8),0),INDEX(BF:BF,ROW($BD8)-J8+1,0)): IF($BG8=1,INDEX(BF:BF,ROW($BD8)+COUNTIF(group,$O8)-1,0),INDEX(BF:BF,ROW($BD8)-J8+$Q8,0)), IF($BG8=1,INDEX(BD:BE,ROW($BD8),0),INDEX(BD:BE,ROW($BD8)-J8+1,0)): IF($BG8=1,INDEX(BD:BE,ROW($BD8)+COUNTIF(group,$O8)-1,0),INDEX(BD:BE,ROW($BD8)-J8+$Q8,0)), FALSE),1)+ INDEX(LINEST( IF($BG8=1,INDEX(BF:BF,ROW($BD8),0),INDEX(BF:BF,ROW($BD8)-J8+1,0)): IF($BG8=1,INDEX(BF:BF,ROW($BD8)+COUNTIF(group,$O8)-1,0),INDEX(BF:BF,ROW($BD8)-J8+COUNTIF(group,$O8),0)), IF($BG8=1,INDEX(BD:BE,ROW($BD8),0),INDEX(BD:BE,ROW($BD8)-J8+1,0)): IF($BG8=1,INDEX(BD:BE,ROW($BD8)+COUNTIF(group,$O8)-1,0),INDEX(BD:BE,ROW($BD8)-J8+COUNTIF(group,$O8),0)), FALSE),2)) -> 5.090757783 | BJ8: 69.43279047 | BK8: 99.3884277 | BL8: 29.95563723 | BO8: 1.431433578 | BR8: 0 | BS8: 99.22405 | BT8: 1884.51 | BU8: 1869.887145 | BV8: =$BT8-$BU8 -> 14.62285534 | BW8: 7385.347527 | BX8: 834.4754727 | BY8: =SUM(BU8:BX8) -> 10104.333 | BZ8: 8.327111991 | CA8: 0.003681919671 | CB8: 8.319895428 | CC8: 8.334328554 | CD8: 7.627359037 | CE8: 0.3372516583 | CF8: 6.966345786 | CG8: 8.288372287 | CH8: 0 | CI8: 0 | CV8: 0 | CW8: 0 | DD8: 0 | DE8: 0 | DL8: 0 | DM8: 0 | DN8: 0 | DO8: 0 | DP8: 0 | EA8: 0 | EB8: 0 | EC8: 0 | ED8: 0 | EE8: 0 | EF8: 0
A9: =IF('DATA INPUT'!A9="","",'DATA INPUT'!A9) -> Indonesia | B9: =IF('DATA INPUT'!B9="","",'DATA INPUT'!B9) -> 2017 | C9: =IF('DATA INPUT'!C9="","",'DATA INPUT'!C9) -> Births attended by skilled health personnel (%) | D9: =IF('DATA INPUT'!I9="","",'DATA INPUT'!I9) -> 1 | E9: =IF('DATA INPUT'!J9="","",'DATA INPUT'!J9) -> 100 | F9: =IF('DATA INPUT'!D9="","",'DATA INPUT'!D9) -> Economic status | G9: =IF('DATA INPUT'!K9="","",'DATA INPUT'!K9) -> 1 | H9: =IF('DATA INPUT'!E9="","",'DATA INPUT'!E9) -> Quintile 3 | I9: =IF('DATA INPUT'!M9="","",'DATA INPUT'!M9) -> 0 | J9: =IF('DATA INPUT'!L9="","",'DATA INPUT'!L9) -> 3 | K9: =IF('DATA INPUT'!F9="","",'DATA INPUT'!F9) -> 96.03959 | L9: =IF('DATA INPUT'!G9="","",'DATA INPUT'!G9) -> 0.6461946 | M9: =IF('DATA INPUT'!H9="","",'DATA INPUT'!H9) -> 1983.059 | N9: Indonesia2017Births attended by skilled health personnel (%)Economic status | O9: 1 | P9: 5 | Q9: 5 | R9: 5 | S9: 0 | T9: =IF($D9=1,MAX(IF(group=$O9,order)),MIN(IF(group=$O9,order))) -> 5 | U9: =IF($D9=1,MIN(IF(group=$O9,order)),MAX(IF(group=$O9,order))) -> 1 | V9: =_xlfn.MAXIFS(estimate,group,$O9) -> 99.22405 | W9: =_xlfn.MINIFS(estimate,group,$O9) -> 75.6053 | X9: 0 | Y9: 0 | Z9: =IF($Q9<2,"",IF($G9=1,INDEX(estimate,MATCH(1,(group=$O9)*(order=$T9),0)), IF(AND($G9=0,$X9<>0,$D9=1),$X9, IF(AND($G9=0,$X9<>0,$D9=0),$Y9, IF(AND($G9=0,$X9=0),$V9,""))))) -> 99.22405 | AA9: =IF($Q9<2,"",IF($G9=1,INDEX(estimate,MATCH(1,(group=$O9)*(order=$U9),0)), IF(AND($G9=0,$X9<>0,$D9=1),$Y9, IF(AND($G9=0,$X9<>0,$D9=0),$X9, IF(AND($G9=0,$X9=0),$W9,""))))) -> 75.6053 | AB9: =IF($Q9<2,"",IF($G9=1,INDEX(se,MATCH(1,(group=$O9)*(order=$T9),0)), IF(AND($G9=0,$X9<>0,$D9=1),INDEX(se,MATCH(1,(group=$O9)*(estimate=$X9),0)), IF(AND($G9=0,$X9<>0,$D9=0),INDEX(se,MATCH(1,(group=$O9)*(estimate=$Y9),0)), IF(AND($G9=0,$X9=0),INDEX(se,MATCH(1,(group=$O9)*(estimate=$V9),0)),""))))) -> 0.2237683 | AC9: =IF($Q9<2,"",IF($G9=1,INDEX(se,MATCH(1,(group=$O9)*(order=$U9),0)), IF(AND($G9=0,$X9<>0,$D9=1),INDEX(se,MATCH(1,(group=$O9)*(estimate=$Y9),0)), IF(AND($G9=0,$X9<>0,$D9=0),INDEX(se,MATCH(1,(group=$O9)*(estimate=$X9),0)), IF(AND($G9=0,$X9=0),INDEX(se,MATCH(1,(group=$O9)*(estimate=$W9),0)),""))))) -> 1.599613 | AD9: 23.61875 | AE9: 1.615188534 | AF9: 20.45298047 | AG9: 26.78451953 | AH9: 1.312395427 | AI9: 0.02792419186 | AJ9: 1.258789555 | AK9: 1.368284119 | AL9: 0.1962582785 | AM9: =IF($O9<>"",SUMPRODUCT(IF(group=$O9,1,0),AL:AL,estimate)) -> 91.59669096 | AN9: 0.6104013991 | AO9: 0.5122722598 | AP9: 0.4626289645 | AQ9: 9.689284183e-06 | AR9: 0.35084249 | AS9: 4.300519272 | AT9: 0.2823600443 | AU9: 3.747093586 | AV9: 4.853944959 | AW9: 4.695059644 | AX9: 0.0251680676 | AY9: 4.645730231 | AZ9: 4.744389056 | BA9: 100 | BB9: 0.9603959 | BC9: 3.188412947 | BD9: 44.53155061 | BE9: 22.81227807 | BF9: 141.9849725 | BG9: 0 | BH9: =IF($G9=0,0, INDEX(LINEST( IF($BG9=1,INDEX(BF:BF,ROW($BD9),0),INDEX(BF:BF,ROW($BD9)-J9+1,0)): IF($BG9=1,INDEX(BF:BF,ROW($BD9)+COUNTIF(group,$O9)-1,0),INDEX(BF:BF,ROW($BD9)-J9+$Q9,0)), IF($BG9=1,INDEX(BD:BE,ROW($BD9),0),INDEX(BD:BE,ROW($BD9)-J9+1,0)): IF($BG9=1,INDEX(BD:BE,ROW($BD9)+COUNTIF(group,$O9)-1,0),INDEX(BD:BE,ROW($BD9)-J9+$Q9,0)), FALSE),2)) -> 0.8204313909 | BI9: =IF($G9=0,0, INDEX(LINEST( IF($BG9=1,INDEX(BF:BF,ROW($BD9),0),INDEX(BF:BF,ROW($BD9)-J9+1,0)): IF($BG9=1,INDEX(BF:BF,ROW($BD9)+COUNTIF(group,$O9)-1,0),INDEX(BF:BF,ROW($BD9)-J9+$Q9,0)), IF($BG9=1,INDEX(BD:BE,ROW($BD9),0),INDEX(BD:BE,ROW($BD9)-J9+1,0)): IF($BG9=1,INDEX(BD:BE,ROW($BD9)+COUNTIF(group,$O9)-1,0),INDEX(BD:BE,ROW($BD9)-J9+$Q9,0)), FALSE),1)+ INDEX(LINEST( IF($BG9=1,INDEX(BF:BF,ROW($BD9),0),INDEX(BF:BF,ROW($BD9)-J9+1,0)): IF($BG9=1,INDEX(BF:BF,ROW($BD9)+COUNTIF(group,$O9)-1,0),INDEX(BF:BF,ROW($BD9)-J9+COUNTIF(group,$O9),0)), IF($BG9=1,INDEX(BD:BE,ROW($BD9),0),INDEX(BD:BE,ROW($BD9)-J9+1,0)): IF($BG9=1,INDEX(BD:BE,ROW($BD9)+COUNTIF(group,$O9)-1,0),INDEX(BD:BE,ROW($BD9)-J9+COUNTIF(group,$O9),0)), FALSE),2)) -> 5.090757783 | BJ9: 69.43279047 | BK9: 99.3884277 | BL9: 29.95563723 | BO9: 1.431433578 | BR9: 0 | BS9: 99.22405 | BT9: 1884.51 | BU9: 1869.887145 | BV9: 14.62285534 | BW9: 7385.347527 | BX9: 834.4754727 | BY9: 10104.333 | BZ9: 8.327111991 | CA9: 0.003681919671 | CB9: 8.319895428 | CC9: 8.334328554 | CD9: 7.627359037 | CE9: 0.3372516583 | CF9: 6.966345786 | CG9: 8.288372287 | CH9: 0 | CI9: 0 | CV9: 0 | CW9: 0 | DD9: 0 | DE9: 0 | DL9: 0 | DM9: 0 | DN9: 0 | DO9: 0 | DP9: 0 | EA9: 0 | EB9: 0 | EC9: 0 | ED9: 0 | EE9: 0 | EF9: 0
A10: =IF('DATA INPUT'!A10="","",'DATA INPUT'!A10) -> Indonesia | B10: =IF('DATA INPUT'!B10="","",'DATA INPUT'!B10) -> 2017 | C10: =IF('DATA INPUT'!C10="","",'DATA INPUT'!C10) -> Births attended by skilled health personnel (%) | D10: =IF('DATA INPUT'!I10="","",'DATA INPUT'!I10) -> 1 | E10: =IF('DATA INPUT'!J10="","",'DATA INPUT'!J10) -> 100 | F10: =IF('DATA INPUT'!D10="","",'DATA INPUT'!D10) -> Economic status | G10: =IF('DATA INPUT'!K10="","",'DATA INPUT'!K10) -> 1 | H10: =IF('DATA INPUT'!E10="","",'DATA INPUT'!E10) -> Quintile 4 | I10: =IF('DATA INPUT'!M10="","",'DATA INPUT'!M10) -> 0 | J10: =IF('DATA INPUT'!L10="","",'DATA INPUT'!L10) -> 4 | K10: =IF('DATA INPUT'!F10="","",'DATA INPUT'!F10) -> 97.04223 | L10: =IF('DATA INPUT'!G10="","",'DATA INPUT'!G10) -> 0.5676206 | M10: =IF('DATA INPUT'!H10="","",'DATA INPUT'!H10) -> 2052.124 | N10: Indonesia2017Births attended by skilled health personnel (%)Economic status | O10: 1 | P10: 5 | Q10: 5 | R10: 5 | S10: 0 | T10: =IF($D10=1,MAX(IF(group=$O10,order)),MIN(IF(group=$O10,order))) -> 5 | U10: =IF($D10=1,MIN(IF(group=$O10,order)),MAX(IF(group=$O10,order))) -> 1 | V10: =_xlfn.MAXIFS(estimate,group,$O10) -> 99.22405 | W10: =_xlfn.MINIFS(estimate,group,$O10) -> 75.6053 | X10: 0 | Y10: 0 | Z10: =IF($Q10<2,"",IF($G10=1,INDEX(estimate,MATCH(1,(group=$O10)*(order=$T10),0)), IF(AND($G10=0,$X10<>0,$D10=1),$X10, IF(AND($G10=0,$X10<>0,$D10=0),$Y10, IF(AND($G10=0,$X10=0),$V10,""))))) -> 99.22405 | AA10: =IF($Q10<2,"",IF($G10=1,INDEX(estimate,MATCH(1,(group=$O10)*(order=$U10),0)), IF(AND($G10=0,$X10<>0,$D10=1),$Y10, IF(AND($G10=0,$X10<>0,$D10=0),$X10, IF(AND($G10=0,$X10=0),$W10,""))))) -> 75.6053 | AB10: =IF($Q10<2,"",IF($G10=1,INDEX(se,MATCH(1,(group=$O10)*(order=$T10),0)), IF(AND($G10=0,$X10<>0,$D10=1),INDEX(se,MATCH(1,(group=$O10)*(estimate=$X10),0)), IF(AND($G10=0,$X10<>0,$D10=0),INDEX(se,MATCH(1,(group=$O10)*(estimate=$Y10),0)), IF(AND($G10=0,$X10=0),INDEX(se,MATCH(1,(group=$O10)*(estimate=$V10),0)),""))))) -> 0.2237683 | AC10: =IF($Q10<2,"",IF($G10=1,INDEX(se,MATCH(1,(group=$O10)*(order=$U10),0)), IF(AND($G10=0,$X10<>0,$D10=1),INDEX(se,MATCH(1,(group=$O10)*(estimate=$Y10),0)), IF(AND($G10=0,$X10<>0,$D10=0),INDEX(se,MATCH(1,(group=$O10)*(estimate=$X10),0)), IF(AND($G10=0,$X10=0),INDEX(se,MATCH(1,(group=$O10)*(estimate=$W10),0)),""))))) -> 1.599613 | AD10: 23.61875 | AE10: 1.615188534 | AF10: 20.45298047 | AG10: 26.78451953 | AH10: 1.312395427 | AI10: 0.02792419186 | AJ10: 1.258789555 | AK10: 1.368284119 | AL10: 0.203093465 | AM10: =IF($O10<>"",SUMPRODUCT(IF(group=$O10,1,0),AL:AL,estimate)) -> 91.59669096 | AN10: 0.813494864 | AO10: 0.7119481316 | AP10: 8.354420008 | AQ10: 0.002387961778 | AR10: 0.2424379281 | AS10: 4.300519272 | AT10: 0.2823600443 | AU10: 3.747093586 | AV10: 4.853944959 | AW10: 4.695059644 | AX10: 0.0251680676 | AY10: 4.645730231 | AZ10: 4.744389056 | BA10: 100 | BB10: 0.9704223 | BC10: 3.490710639 | BD10: 45.30037527 | BE10: 32.25151754 | BF10: 158.1305019 | BG10: 0 | BH10: =IF($G10=0,0, INDEX(LINEST( IF($BG10=1,INDEX(BF:BF,ROW($BD10),0),INDEX(BF:BF,ROW($BD10)-J10+1,0)): IF($BG10=1,INDEX(BF:BF,ROW($BD10)+COUNTIF(group,$O10)-1,0),INDEX(BF:BF,ROW($BD10)-J10+$Q10,0)), IF($BG10=1,INDEX(BD:BE,ROW($BD10),0),INDEX(BD:BE,ROW($BD10)-J10+1,0)): IF($BG10=1,INDEX(BD:BE,ROW($BD10)+COUNTIF(group,$O10)-1,0),INDEX(BD:BE,ROW($BD10)-J10+$Q10,0)), FALSE),2)) -> 0.8204313909 | BI10: =IF($G10=0,0, INDEX(LINEST( IF($BG10=1,INDEX(BF:BF,ROW($BD10),0),INDEX(BF:BF,ROW($BD10)-J10+1,0)): IF($BG10=1,INDEX(BF:BF,ROW($BD10)+COUNTIF(group,$O10)-1,0),INDEX(BF:BF,ROW($BD10)-J10+$Q10,0)), IF($BG10=1,INDEX(BD:BE,ROW($BD10),0),INDEX(BD:BE,ROW($BD10)-J10+1,0)): IF($BG10=1,INDEX(BD:BE,ROW($BD10)+COUNTIF(group,$O10)-1,0),INDEX(BD:BE,ROW($BD10)-J10+$Q10,0)), FALSE),1)+ INDEX(LINEST( IF($BG10=1,INDEX(BF:BF,ROW($BD10),0),INDEX(BF:BF,ROW($BD10)-J10+1,0)): IF($BG10=1,INDEX(BF:BF,ROW($BD10)+COUNTIF(group,$O10)-1,0),INDEX(BF:BF,ROW($BD10)-J10+COUNTIF(group,$O10),0)), IF($BG10=1,INDEX(BD:BE,ROW($BD10),0),INDEX(BD:BE,ROW($BD10)-J10+1,0)): IF($BG10=1,INDEX(BD:BE,ROW($BD10)+COUNTIF(group,$O10)-1,0),INDEX(BD:BE,ROW($BD10)-J10+COUNTIF(group,$O10),0)), FALSE),2)) -> 5.090757783 | BJ10: 69.43279047 | BK10: 99.3884277 | BL10: 29.95563723 | BO10: 1.431433578 | BR10: 0 | BS10: 99.22405 | BT10: 1884.51 | BU10: 1869.887145 | BV10: 14.62285534 | BW10: 7385.347527 | BX10: 834.4754727 | BY10: 10104.333 | BZ10: 8.327111991 | CA10: 0.003681919671 | CB10: 8.319895428 | CC10: 8.334328554 | CD10: 7.627359037 | CE10: 0.3372516583 | CF10: 6.966345786 | CG10: 8.288372287 | CH10: 0 | CI10: 0 | CV10: 0 | CW10: 0 | DD10: 0 | DE10: 0 | DL10: 0 | DM10: 0 | DN10: 0 | DO10: 0 | DP10: 0 | EA10: 0 | EB10: 0 | EC10: 0 | ED10: 0 | EE10: 0 | EF10: 0
A11: =IF('DATA INPUT'!A11="","",'DATA INPUT'!A11) -> Indonesia | B11: =IF('DATA INPUT'!B11="","",'DATA INPUT'!B11) -> 2017 | C11: =IF('DATA INPUT'!C11="","",'DATA INPUT'!C11) -> Births attended by skilled health personnel (%) | D11: =IF('DATA INPUT'!I11="","",'DATA INPUT'!I11) -> 1 | E11: =IF('DATA INPUT'!J11="","",'DATA INPUT'!J11) -> 100 | F11: =IF('DATA INPUT'!D11="","",'DATA INPUT'!D11) -> Economic status | G11: =IF('DATA INPUT'!K11="","",'DATA INPUT'!K11) -> 1 | H11: =IF('DATA INPUT'!E11="","",'DATA INPUT'!E11) -> Quintile 5 (richest) | I11: =IF('DATA INPUT'!M11="","",'DATA INPUT'!M11) -> 0 | J11: =IF('DATA INPUT'!L11="","",'DATA INPUT'!L11) -> 5 | K11: =IF('DATA INPUT'!F11="","",'DATA INPUT'!F11) -> 99.22405 | L11: =IF('DATA INPUT'!G11="","",'DATA INPUT'!G11) -> 0.2237683 | M11: =IF('DATA INPUT'!H11="","",'DATA INPUT'!H11) -> 1884.51 | N11: Indonesia2017Births attended by skilled health personnel (%)Economic status | O11: 1 | P11: 5 | Q11: 5 | R11: 5 | S11: 0 | T11: =IF($D11=1,MAX(IF(group=$O11,order)),MIN(IF(group=$O11,order))) -> 5 | U11: =IF($D11=1,MIN(IF(group=$O11,order)),MAX(IF(group=$O11,order))) -> 1 | V11: =_xlfn.MAXIFS(estimate,group,$O11) -> 99.22405 | W11: =_xlfn.MINIFS(estimate,group,$O11) -> 75.6053 | X11: 0 | Y11: 0 | Z11: =IF($Q11<2,"",IF($G11=1,INDEX(estimate,MATCH(1,(group=$O11)*(order=$T11),0)), IF(AND($G11=0,$X11<>0,$D11=1),$X11, IF(AND($G11=0,$X11<>0,$D11=0),$Y11, IF(AND($G11=0,$X11=0),$V11,""))))) -> 99.22405 | AA11: =IF($Q11<2,"",IF($G11=1,INDEX(estimate,MATCH(1,(group=$O11)*(order=$U11),0)), IF(AND($G11=0,$X11<>0,$D11=1),$Y11, IF(AND($G11=0,$X11<>0,$D11=0),$X11, IF(AND($G11=0,$X11=0),$W11,""))))) -> 75.6053 | AB11: =IF($Q11<2,"",IF($G11=1,INDEX(se,MATCH(1,(group=$O11)*(order=$T11),0)), IF(AND($G11=0,$X11<>0,$D11=1),INDEX(se,MATCH(1,(group=$O11)*(estimate=$X11),0)), IF(AND($G11=0,$X11<>0,$D11=0),INDEX(se,MATCH(1,(group=$O11)*(estimate=$Y11),0)), IF(AND($G11=0,$X11=0),INDEX(se,MATCH(1,(group=$O11)*(estimate=$V11),0)),""))))) -> 0.2237683 | AC11: =IF($Q11<2,"",IF($G11=1,INDEX(se,MATCH(1,(group=$O11)*(order=$U11),0)), IF(AND($G11=0,$X11<>0,$D11=1),INDEX(se,MATCH(1,(group=$O11)*(estimate=$Y11),0)), IF(AND($G11=0,$X11<>0,$D11=0),INDEX(se,MATCH(1,(group=$O11)*(estimate=$X11),0)), IF(AND($G11=0,$X11=0),INDEX(se,MATCH(1,(group=$O11)*(estimate=$W11),0)),""))))) -> 1.599613 | AD11: 23.61875 | AE11: 1.615188534 | AF11: 20.45298047 | AG11: 26.78451953 | AH11: 1.312395427 | AI11: 0.02792419186 | AJ11: 1.258789555 | AK11: 1.368284119 | AL11: 0.186505136 | AM11: =IF($O11<>"",SUMPRODUCT(IF(group=$O11,1,0),AL:AL,estimate)) -> 91.59669096 | AN11: 1 | AO11: 0.906747432 | AP11: 15.05436914 | AQ11: 0.001152625829 | AR11: 0.02624172583 | AS11: 4.300519272 | AT11: 0.2823600443 | AU11: 3.747093586 | AV11: 4.853944959 | AW11: 4.695059644 | AX11: 0.0251680676 | AY11: 4.645730231 | AZ11: 4.744389056 | BA11: 100 | BB11: 0.9922405 | BC11: 4.851047618 | BD11: 43.41094332 | BE11: 39.36276138 | BF11: 210.5885532 | BG11: 0 | BH11: =IF($G11=0,0, INDEX(LINEST( IF($BG11=1,INDEX(BF:BF,ROW($BD11),0),INDEX(BF:BF,ROW($BD11)-J11+1,0)): IF($BG11=1,INDEX(BF:BF,ROW($BD11)+COUNTIF(group,$O11)-1,0),INDEX(BF:BF,ROW($BD11)-J11+$Q11,0)), IF($BG11=1,INDEX(BD:BE,ROW($BD11),0),INDEX(BD:BE,ROW($BD11)-J11+1,0)): IF($BG11=1,INDEX(BD:BE,ROW($BD11)+COUNTIF(group,$O11)-1,0),INDEX(BD:BE,ROW($BD11)-J11+$Q11,0)), FALSE),2)) -> 0.8204313909 | BI11: =IF($G11=0,0, INDEX(LINEST( IF($BG11=1,INDEX(BF:BF,ROW($BD11),0),INDEX(BF:BF,ROW($BD11)-J11+1,0)): IF($BG11=1,INDEX(BF:BF,ROW($BD11)+COUNTIF(group,$O11)-1,0),INDEX(BF:BF,ROW($BD11)-J11+$Q11,0)), IF($BG11=1,INDEX(BD:BE,ROW($BD11),0),INDEX(BD:BE,ROW($BD11)-J11+1,0)): IF($BG11=1,INDEX(BD:BE,ROW($BD11)+COUNTIF(group,$O11)-1,0),INDEX(BD:BE,ROW($BD11)-J11+$Q11,0)), FALSE),1)+ INDEX(LINEST( IF($BG11=1,INDEX(BF:BF,ROW($BD11),0),INDEX(BF:BF,ROW($BD11)-J11+1,0)): IF($BG11=1,INDEX(BF:BF,ROW($BD11)+COUNTIF(group,$O11)-1,0),INDEX(BF:BF,ROW($BD11)-J11+COUNTIF(group,$O11),0)), IF($BG11=1,INDEX(BD:BE,ROW($BD11),0),INDEX(BD:BE,ROW($BD11)-J11+1,0)): IF($BG11=1,INDEX(BD:BE,ROW($BD11)+COUNTIF(group,$O11)-1,0),INDEX(BD:BE,ROW($BD11)-J11+COUNTIF(group,$O11),0)), FALSE),2)) -> 5.090757783 | BJ11: 69.43279047 | BK11: 99.3884277 | BL11: 29.95563723 | BO11: 1.431433578 | BR11: 1 | BS11: 99.22405 | BT11: 1884.51 | BU11: 1869.887145 | BV11: 14.62285534 | BW11: 7385.347527 | BX11: 834.4754727 | BY11: 10104.333 | BZ11: 8.327111991 | CA11: 0.003681919671 | CB11: 8.319895428 | CC11: 8.334328554 | CD11: 7.627359037 | CE11: 0.3372516583 | CF11: 6.966345786 | CG11: 8.288372287 | CH11: 0 | CI11: 0 | CV11: 0 | CW11: 0 | DD11: 0 | DE11: 0 | DL11: 0 | DM11: 0 | DN11: 0 | DO11: 0 | DP11: 0 | EA11: 0 | EB11: 0 | EC11: 0 | ED11: 0 | EE11: 0 | EF11: 0
A12: =IF('DATA INPUT'!A12="","",'DATA INPUT'!A12) -> Nigeria | B12: =IF('DATA INPUT'!B12="","",'DATA INPUT'!B12) -> 2016 | C12: =IF('DATA INPUT'!C12="","",'DATA INPUT'!C12) -> Under-five mortality rate (deaths per 1000 live births) | D12: =IF('DATA INPUT'!I12="","",'DATA INPUT'!I12) -> 0 | E12: =IF('DATA INPUT'!J12="","",'DATA INPUT'!J12) -> 1000 | F12: =IF('DATA INPUT'!D12="","",'DATA INPUT'!D12) -> Economic status | G12: =IF('DATA INPUT'!K12="","",'DATA INPUT'!K12) -> 1 | H12: =IF('DATA INPUT'!E12="","",'DATA INPUT'!E12) -> Quintile 1 (poorest) | I12: =IF('DATA INPUT'!M12="","",'DATA INPUT'!M12) -> 0 | J12: =IF('DATA INPUT'!L12="","",'DATA INPUT'!L12) -> 1 | K12: =IF('DATA INPUT'!F12="","",'DATA INPUT'!F12) -> 158.7063 | L12: =IF('DATA INPUT'!G12="","",'DATA INPUT'!G12) -> 3.850564 | M12: =IF('DATA INPUT'!H12="","",'DATA INPUT'!H12) -> 13605.51 | N12: Nigeria2016Under-five mortality rate (deaths per 1000 live births)Economic status | O12: 2 | P12: 5 | Q12: 5 | R12: 5 | S12: 0 | T12: =IF($D12=1,MAX(IF(group=$O12,order)),MIN(IF(group=$O12,order))) -> 1 | U12: =IF($D12=1,MIN(IF(group=$O12,order)),MAX(IF(group=$O12,order))) -> 5 | V12: =_xlfn.MAXIFS(estimate,group,$O12) -> 158.7063 | W12: =_xlfn.MINIFS(estimate,group,$O12) -> 59.20269 | X12: 0 | Y12: 0 | Z12: =IF($Q12<2,"",IF($G12=1,INDEX(estimate,MATCH(1,(group=$O12)*(order=$T12),0)), IF(AND($G12=0,$X12<>0,$D12=1),$X12, IF(AND($G12=0,$X12<>0,$D12=0),$Y12, IF(AND($G12=0,$X12=0),$V12,""))))) -> 158.7063 | AA12: =IF($Q12<2,"",IF($G12=1,INDEX(estimate,MATCH(1,(group=$O12)*(order=$U12),0)), IF(AND($G12=0,$X12<>0,$D12=1),$Y12, IF(AND($G12=0,$X12<>0,$D12=0),$X12, IF(AND($G12=0,$X12=0),$W12,""))))) -> 59.20269 | AB12: =IF($Q12<2,"",IF($G12=1,INDEX(se,MATCH(1,(group=$O12)*(order=$T12),0)), IF(AND($G12=0,$X12<>0,$D12=1),INDEX(se,MATCH(1,(group=$O12)*(estimate=$X12),0)), IF(AND($G12=0,$X12<>0,$D12=0),INDEX(se,MATCH(1,(group=$O12)*(estimate=$Y12),0)), IF(AND($G12=0,$X12=0),INDEX(se,MATCH(1,(group=$O12)*(estimate=$V12),0)),""))))) -> 3.850564 | AC12: =IF($Q12<2,"",IF($G12=1,INDEX(se,MATCH(1,(group=$O12)*(order=$U12),0)), IF(AND($G12=0,$X12<>0,$D12=1),INDEX(se,MATCH(1,(group=$O12)*(estimate=$Y12),0)), IF(AND($G12=0,$X12<>0,$D12=0),INDEX(se,MATCH(1,(group=$O12)*(estimate=$X12),0)), IF(AND($G12=0,$X12=0),INDEX(se,MATCH(1,(group=$O12)*(estimate=$W12),0)),""))))) -> 3.561114 | AD12: 99.50361 | AE12: 5.244842804 | AF12: 89.2237181 | AG12: 109.7835019 | AH12: 2.680727852 | AI12: 0.1738720902 | AJ12: 2.360710621 | AK12: 3.044126523 | AL12: 0.2353834763 | AM12: =IF($O12<>"",SUMPRODUCT(IF(group=$O12,1,0),AL:AL,estimate)) -> 119.4873611 | AN12: 0.2353834763 | AO12: 0.1176917381 | AP12: -28.5636576 | AQ12: 0.4802728046 | AR12: 242.1399224 | AS12: -21.42783263 | AT12: 0.9367873574 | AU12: -23.26393585 | AV12: -19.59172941 | AW12: -17.9331374 | AX12: 0.2469353051 | AY12: -18.41713059 | AZ12: -17.4491442 | BA12: 1000 | BB12: 0.1587063 | BC12: -1.667885502 | BD12: 116.6426594 | BE12: 13.72787733 | BF12: -194.5466006 | BG12: 1 | BH12: =IF($G12=0,0, INDEX(LINEST( IF($BG12=1,INDEX(BF:BF,ROW($BD12),0),INDEX(BF:BF,ROW($BD12)-J12+1,0)): IF($BG12=1,INDEX(BF:BF,ROW($BD12)+COUNTIF(group,$O12)-1,0),INDEX(BF:BF,ROW($BD12)-J12+$Q12,0)), IF($BG12=1,INDEX(BD:BE,ROW($BD12),0),INDEX(BD:BE,ROW($BD12)-J12+1,0)): IF($BG12=1,INDEX(BD:BE,ROW($BD12)+COUNTIF(group,$O12)-1,0),INDEX(BD:BE,ROW($BD12)-J12+$Q12,0)), FALSE),2)) -> -1.351472296 | BI12: =IF($G12=0,0, INDEX(LINEST( IF($BG12=1,INDEX(BF:BF,ROW($BD12),0),INDEX(BF:BF,ROW($BD12)-J12+1,0)): IF($BG12=1,INDEX(BF:BF,ROW($BD12)+COUNTIF(group,$O12)-1,0),INDEX(BF:BF,ROW($BD12)-J12+$Q12,0)), IF($BG12=1,INDEX(BD:BE,ROW($BD12),0),INDEX(BD:BE,ROW($BD12)-J12+1,0)): IF($BG12=1,INDEX(BD:BE,ROW($BD12)+COUNTIF(group,$O12)-1,0),INDEX(BD:BE,ROW($BD12)-J12+$Q12,0)), FALSE),1)+ INDEX(LINEST( IF($BG12=1,INDEX(BF:BF,ROW($BD12),0),INDEX(BF:BF,ROW($BD12)-J12+1,0)): IF($BG12=1,INDEX(BF:BF,ROW($BD12)+COUNTIF(group,$O12)-1,0),INDEX(BF:BF,ROW($BD12)-J12+COUNTIF(group,$O12),0)), IF($BG12=1,INDEX(BD:BE,ROW($BD12),0),INDEX(BD:BE,ROW($BD12)-J12+1,0)): IF($BG12=1,INDEX(BD:BE,ROW($BD12)+COUNTIF(group,$O12)-1,0),INDEX(BD:BE,ROW($BD12)-J12+COUNTIF(group,$O12),0)), FALSE),2)) -> -2.771391853 | BJ12: 205.6297737 | BK12: 58.88982707 | BL12: -146.7399467 | BO12: 0.2863876471 | BR12: 0 | BS12: 59.20269 | BT12: 9535.696 | BU12: 564.5388542 | BV12: 8971.157146 | BW12: 6342.005784 | BX12: 41923.76422 | BY12: 57801.466 | BZ12: -50.45275963 | CA12: 0.0193268618 | CB12: -50.49064028 | CC12: -50.41487898 | CD12: -60.28467107 | CE12: 2.309315714 | CF12: -64.81092987 | CG12: -55.75841227 | CH12: 0 | CI12: 0 | CV12: 0 | CW12: 0 | DD12: 0 | DE12: 0 | DL12: 0 | DM12: 0 | DN12: 0 | DO12: 0 | DP12: 0 | EA12: 0 | EB12: 0 | EC12: 0 | ED12: 0 | EE12: 0 | EF12: 0
A13: =IF('DATA INPUT'!A13="","",'DATA INPUT'!A13) -> Nigeria | B13: =IF('DATA INPUT'!B13="","",'DATA INPUT'!B13) -> 2016 | C13: =IF('DATA INPUT'!C13="","",'DATA INPUT'!C13) -> Under-five mortality rate (deaths per 1000 live births) | D13: =IF('DATA INPUT'!I13="","",'DATA INPUT'!I13) -> 0 | E13: =IF('DATA INPUT'!J13="","",'DATA INPUT'!J13) -> 1000 | F13: =IF('DATA INPUT'!D13="","",'DATA INPUT'!D13) -> Economic status | G13: =IF('DATA INPUT'!K13="","",'DATA INPUT'!K13) -> 1 | H13: =IF('DATA INPUT'!E13="","",'DATA INPUT'!E13) -> Quintile 2 | I13: =IF('DATA INPUT'!M13="","",'DATA INPUT'!M13) -> 0 | J13: =IF('DATA INPUT'!L13="","",'DATA INPUT'!L13) -> 2 | K13: =IF('DATA INPUT'!F13="","",'DATA INPUT'!F13) -> 155.8283 | L13: =IF('DATA INPUT'!G13="","",'DATA INPUT'!G13) -> 3.460102 | M13: =IF('DATA INPUT'!H13="","",'DATA INPUT'!H13) -> 12916.37 | N13: Nigeria2016Under-five mortality rate (deaths per 1000 live births)Economic status | O13: 2 | P13: 5 | Q13: 5 | R13: 5 | S13: 0 | T13: =IF($D13=1,MAX(IF(group=$O13,order)),MIN(IF(group=$O13,order))) -> 1 | U13: =IF($D13=1,MIN(IF(group=$O13,order)),MAX(IF(group=$O13,order))) -> 5 | V13: =_xlfn.MAXIFS(estimate,group,$O13) -> 158.7063 | W13: =_xlfn.MINIFS(estimate,group,$O13) -> 59.20269 | X13: 0 | Y13: 0 | Z13: =IF($Q13<2,"",IF($G13=1,INDEX(estimate,MATCH(1,(group=$O13)*(order=$T13),0)), IF(AND($G13=0,$X13<>0,$D13=1),$X13, IF(AND($G13=0,$X13<>0,$D13=0),$Y13, IF(AND($G13=0,$X13=0),$V13,""))))) -> 158.7063 | AA13: =IF($Q13<2,"",IF($G13=1,INDEX(estimate,MATCH(1,(group=$O13)*(order=$U13),0)), IF(AND($G13=0,$X13<>0,$D13=1),$Y13, IF(AND($G13=0,$X13<>0,$D13=0),$X13, IF(AND($G13=0,$X13=0),$W13,""))))) -> 59.20269 | AB13: =IF($Q13<2,"",IF($G13=1,INDEX(se,MATCH(1,(group=$O13)*(order=$T13),0)), IF(AND($G13=0,$X13<>0,$D13=1),INDEX(se,MATCH(1,(group=$O13)*(estimate=$X13),0)), IF(AND($G13=0,$X13<>0,$D13=0),INDEX(se,MATCH(1,(group=$O13)*(estimate=$Y13),0)), IF(AND($G13=0,$X13=0),INDEX(se,MATCH(1,(group=$O13)*(estimate=$V13),0)),""))))) -> 3.850564 | AC13: =IF($Q13<2,"",IF($G13=1,INDEX(se,MATCH(1,(group=$O13)*(order=$U13),0)), IF(AND($G13=0,$X13<>0,$D13=1),INDEX(se,MATCH(1,(group=$O13)*(estimate=$Y13),0)), IF(AND($G13=0,$X13<>0,$D13=0),INDEX(se,MATCH(1,(group=$O13)*(estimate=$X13),0)), IF(AND($G13=0,$X13=0),INDEX(se,MATCH(1,(group=$O13)*(estimate=$W13),0)),""))))) -> 3.561114 | AD13: 99.50361 | AE13: 5.244842804 | AF13: 89.2237181 | AG13: 109.7835019 | AH13: 2.680727852 | AI13: 0.1738720902 | AJ13: 2.360710621 | AK13: 3.044126523 | AL13: 0.2234609413 | AM13: =IF($O13<>"",SUMPRODUCT(IF(group=$O13,1,0),AL:AL,estimate)) -> 119.4873611 | AN13: 0.4588444175 | AO13: 0.3471139469 | AP13: -10.6474552 | AQ13: 0.0558954916 | AR13: 185.7615643 | AS13: -21.42783263 | AT13: 0.9367873574 | AU13: -23.26393585 | AV13: -19.59172941 | AW13: -17.9331374 | AX13: 0.2469353051 | AY13: -18.41713059 | AZ13: -17.4491442 | BA13: 1000 | BB13: 0.1558283 | BC13: -1.68960115 | BD13: 113.650209 | BE13: 39.4495726 | BF13: -192.0235238 | BG13: 0 | BH13: =IF($G13=0,0, INDEX(LINEST( IF($BG13=1,INDEX(BF:BF,ROW($BD13),0),INDEX(BF:BF,ROW($BD13)-J13+1,0)): IF($BG13=1,INDEX(BF:BF,ROW($BD13)+COUNTIF(group,$O13)-1,0),INDEX(BF:BF,ROW($BD13)-J13+$Q13,0)), IF($BG13=1,INDEX(BD:BE,ROW($BD13),0),INDEX(BD:BE,ROW($BD13)-J13+1,0)): IF($BG13=1,INDEX(BD:BE,ROW($BD13)+COUNTIF(group,$O13)-1,0),INDEX(BD:BE,ROW($BD13)-J13+$Q13,0)), FALSE),2)) -> -1.351472296 | BI13: =IF($G13=0,0, INDEX(LINEST( IF($BG13=1,INDEX(BF:BF,ROW($BD13),0),INDEX(BF:BF,ROW($BD13)-J13+1,0)): IF($BG13=1,INDEX(BF:BF,ROW($BD13)+COUNTIF(group,$O13)-1,0),INDEX(BF:BF,ROW($BD13)-J13+$Q13,0)), IF($BG13=1,INDEX(BD:BE,ROW($BD13),0),INDEX(BD:BE,ROW($BD13)-J13+1,0)): IF($BG13=1,INDEX(BD:BE,ROW($BD13)+COUNTIF(group,$O13)-1,0),INDEX(BD:BE,ROW($BD13)-J13+$Q13,0)), FALSE),1)+ INDEX(LINEST( IF($BG13=1,INDEX(BF:BF,ROW($BD13),0),INDEX(BF:BF,ROW($BD13)-J13+1,0)): IF($BG13=1,INDEX(BF:BF,ROW($BD13)+COUNTIF(group,$O13)-1,0),INDEX(BF:BF,ROW($BD13)-J13+COUNTIF(group,$O13),0)), IF($BG13=1,INDEX(BD:BE,ROW($BD13),0),INDEX(BD:BE,ROW($BD13)-J13+1,0)): IF($BG13=1,INDEX(BD:BE,ROW($BD13)+COUNTIF(group,$O13)-1,0),INDEX(BD:BE,ROW($BD13)-J13+COUNTIF(group,$O13),0)), FALSE),2)) -> -2.771391853 | BJ13: 205.6297737 | BK13: 58.88982707 | BL13: -146.7399467 | BO13: 0.2863876471 | BR13: 0 | BS13: 59.20269 | BT13: 9535.696 | BU13: 564.5388542 | BV13: 8971.157146 | BW13: 6342.005784 | BX13: 41923.76422 | BY13: 57801.466 | BZ13: -50.45275963 | CA13: 0.0193268618 | CB13: -50.49064028 | CC13: -50.41487898 | CD13: -60.28467107 | CE13: 2.309315714 | CF13: -64.81092987 | CG13: -55.75841227 | CH13: 0 | CI13: 0 | CV13: 0 | CW13: 0 | DD13: 0 | DE13: 0 | DL13: 0 | DM13: 0 | DN13: 0 | DO13: 0 | DP13: 0 | EA13: 0 | EB13: 0 | EC13: 0 | ED13: 0 | EE13: 0 | EF13: 0
A14: =IF('DATA INPUT'!A14="","",'DATA INPUT'!A14) -> Nigeria | B14: =IF('DATA INPUT'!B14="","",'DATA INPUT'!B14) -> 2016 | C14: =IF('DATA INPUT'!C14="","",'DATA INPUT'!C14) -> Under-five mortality rate (deaths per 1000 live births) | D14: =IF('DATA INPUT'!I14="","",'DATA INPUT'!I14) -> 0 | E14: =IF('DATA INPUT'!J14="","",'DATA INPUT'!J14) -> 1000 | F14: =IF('DATA INPUT'!D14="","",'DATA INPUT'!D14) -> Economic status | G14: =IF('DATA INPUT'!K14="","",'DATA INPUT'!K14) -> 1 | H14: =IF('DATA INPUT'!E14="","",'DATA INPUT'!E14) -> Quintile 3 | I14: =IF('DATA INPUT'!M14="","",'DATA INPUT'!M14) -> 0 | J14: =IF('DATA INPUT'!L14="","",'DATA INPUT'!L14) -> 3 | K14: =IF('DATA INPUT'!F14="","",'DATA INPUT'!F14) -> 118.9011 | L14: =IF('DATA INPUT'!G14="","",'DATA INPUT'!G14) -> 3.895427 | M14: =IF('DATA INPUT'!H14="","",'DATA INPUT'!H14) -> 11299.55 | N14: Nigeria2016Under-five mortality rate (deaths per 1000 live births)Economic status | O14: 2 | P14: 5 | Q14: 5 | R14: 5 | S14: 0 | T14: =IF($D14=1,MAX(IF(group=$O14,order)),MIN(IF(group=$O14,order))) -> 1 | U14: =IF($D14=1,MIN(IF(group=$O14,order)),MAX(IF(group=$O14,order))) -> 5 | V14: =_xlfn.MAXIFS(estimate,group,$O14) -> 158.7063 | W14: =_xlfn.MINIFS(estimate,group,$O14) -> 59.20269 | X14: 0 | Y14: 0 | Z14: =IF($Q14<2,"",IF($G14=1,INDEX(estimate,MATCH(1,(group=$O14)*(order=$T14),0)), IF(AND($G14=0,$X14<>0,$D14=1),$X14, IF(AND($G14=0,$X14<>0,$D14=0),$Y14, IF(AND($G14=0,$X14=0),$V14,""))))) -> 158.7063 | AA14: =IF($Q14<2,"",IF($G14=1,INDEX(estimate,MATCH(1,(group=$O14)*(order=$U14),0)), IF(AND($G14=0,$X14<>0,$D14=1),$Y14, IF(AND($G14=0,$X14<>0,$D14=0),$X14, IF(AND($G14=0,$X14=0),$W14,""))))) -> 59.20269 | AB14: =IF($Q14<2,"",IF($G14=1,INDEX(se,MATCH(1,(group=$O14)*(order=$T14),0)), IF(AND($G14=0,$X14<>0,$D14=1),INDEX(se,MATCH(1,(group=$O14)*(estimate=$X14),0)), IF(AND($G14=0,$X14<>0,$D14=0),INDEX(se,MATCH(1,(group=$O14)*(estimate=$Y14),0)), IF(AND($G14=0,$X14=0),INDEX(se,MATCH(1,(group=$O14)*(estimate=$V14),0)),""))))) -> 3.850564 | AC14: =IF($Q14<2,"",IF($G14=1,INDEX(se,MATCH(1,(group=$O14)*(order=$U14),0)), IF(AND($G14=0,$X14<>0,$D14=1),INDEX(se,MATCH(1,(group=$O14)*(estimate=$Y14),0)), IF(AND($G14=0,$X14<>0,$D14=0),INDEX(se,MATCH(1,(group=$O14)*(estimate=$X14),0)), IF(AND($G14=0,$X14=0),INDEX(se,MATCH(1,(group=$O14)*(estimate=$W14),0)),""))))) -> 3.561114 | AD14: 99.50361 | AE14: 5.244842804 | AF14: 89.2237181 | AG14: 109.7835019 | AH14: 2.680727852 | AI14: 0.1738720902 | AJ14: 2.360710621 | AK14: 3.044126523 | AL14: 0.1954889864 | AM14: =IF($O14<>"",SUMPRODUCT(IF(group=$O14,1,0),AL:AL,estimate)) -> 119.4873611 | AN14: 0.6543334039 | AO14: 0.5565889107 | AP14: 2.63068893 | AQ14: 0.007428093984 | AR14: 188.8564439 | AS14: -21.42783263 | AT14: 0.9367873574 | AU14: -23.26393585 | AV14: -19.59172941 | AW14: -17.9331374 | AX14: 0.2469353051 | AY14: -18.41713059 | AZ14: -17.4491442 | BA14: 1000 | BB14: 0.1189011 | BC14: -2.002877823 | BD14: 106.2993415 | BE14: 59.16503469 | BF14: -212.9045937 | BG14: 0 | BH14: =IF($G14=0,0, INDEX(LINEST( IF($BG14=1,INDEX(BF:BF,ROW($BD14),0),INDEX(BF:BF,ROW($BD14)-J14+1,0)): IF($BG14=1,INDEX(BF:BF,ROW($BD14)+COUNTIF(group,$O14)-1,0),INDEX(BF:BF,ROW($BD14)-J14+$Q14,0)), IF($BG14=1,INDEX(BD:BE,ROW($BD14),0),INDEX(BD:BE,ROW($BD14)-J14+1,0)): IF($BG14=1,INDEX(BD:BE,ROW($BD14)+COUNTIF(group,$O14)-1,0),INDEX(BD:BE,ROW($BD14)-J14+$Q14,0)), FALSE),2)) -> -1.351472296 | BI14: =IF($G14=0,0, INDEX(LINEST( IF($BG14=1,INDEX(BF:BF,ROW($BD14),0),INDEX(BF:BF,ROW($BD14)-J14+1,0)): IF($BG14=1,INDEX(BF:BF,ROW($BD14)+COUNTIF(group,$O14)-1,0),INDEX(BF:BF,ROW($BD14)-J14+$Q14,0)), IF($BG14=1,INDEX(BD:BE,ROW($BD14),0),INDEX(BD:BE,ROW($BD14)-J14+1,0)): IF($BG14=1,INDEX(BD:BE,ROW($BD14)+COUNTIF(group,$O14)-1,0),INDEX(BD:BE,ROW($BD14)-J14+$Q14,0)), FALSE),1)+ INDEX(LINEST( IF($BG14=1,INDEX(BF:BF,ROW($BD14),0),INDEX(BF:BF,ROW($BD14)-J14+1,0)): IF($BG14=1,INDEX(BF:BF,ROW($BD14)+COUNTIF(group,$O14)-1,0),INDEX(BF:BF,ROW($BD14)-J14+COUNTIF(group,$O14),0)), IF($BG14=1,INDEX(BD:BE,ROW($BD14),0),INDEX(BD:BE,ROW($BD14)-J14+1,0)): IF($BG14=1,INDEX(BD:BE,ROW($BD14)+COUNTIF(group,$O14)-1,0),INDEX(BD:BE,ROW($BD14)-J14+COUNTIF(group,$O14),0)), FALSE),2)) -> -2.771391853 | BJ14: 205.6297737 | BK14: 58.88982707 | BL14: -146.7399467 | BO14: 0.2863876471 | BR14: 0 | BS14: 59.20269 | BT14: 9535.696 | BU14: 564.5388542 | BV14: 8971.157146 | BW14: 6342.005784 | BX14: 41923.76422 | BY14: 57801.466 | BZ14: -50.45275963 | CA14: 0.0193268618 | CB14: -50.49064028 | CC14: -50.41487898 | CD14: -60.28467107 | CE14: 2.309315714 | CF14: -64.81092987 | CG14: -55.75841227 | CH14: 0 | CI14: 0 | CV14: 0 | CW14: 0 | DD14: 0 | DE14: 0 | DL14: 0 | DM14: 0 | DN14: 0 | DO14: 0 | DP14: 0 | EA14: 0 | EB14: 0 | EC14: 0 | ED14: 0 | EE14: 0 | EF14: 0
A15: =IF('DATA INPUT'!A15="","",'DATA INPUT'!A15) -> Nigeria | B15: =IF('DATA INPUT'!B15="","",'DATA INPUT'!B15) -> 2016 | C15: =IF('DATA INPUT'!C15="","",'DATA INPUT'!C15) -> Under-five mortality rate (deaths per 1000 live births) | D15: =IF('DATA INPUT'!I15="","",'DATA INPUT'!I15) -> 0 | E15: =IF('DATA INPUT'!J15="","",'DATA INPUT'!J15) -> 1000 | F15: =IF('DATA INPUT'!D15="","",'DATA INPUT'!D15) -> Economic status | G15: =IF('DATA INPUT'!K15="","",'DATA INPUT'!K15) -> 1 | H15: =IF('DATA INPUT'!E15="","",'DATA INPUT'!E15) -> Quintile 4 | I15: =IF('DATA INPUT'!M15="","",'DATA INPUT'!M15) -> 0 | J15: =IF('DATA INPUT'!L15="","",'DATA INPUT'!L15) -> 4 | K15: =IF('DATA INPUT'!F15="","",'DATA INPUT'!F15) -> 79.13001 | L15: =IF('DATA INPUT'!G15="","",'DATA INPUT'!G15) -> 3.454686 | M15: =IF('DATA INPUT'!H15="","",'DATA INPUT'!H15) -> 10444.34 | N15: Nigeria2016Under-five mortality rate (deaths per 1000 live births)Economic status | O15: 2 | P15: 5 | Q15: 5 | R15: 5 | S15: 0 | T15: =IF($D15=1,MAX(IF(group=$O15,order)),MIN(IF(group=$O15,order))) -> 1 | U15: =IF($D15=1,MIN(IF(group=$O15,order)),MAX(IF(group=$O15,order))) -> 5 | V15: =_xlfn.MAXIFS(estimate,group,$O15) -> 158.7063 | W15: =_xlfn.MINIFS(estimate,group,$O15) -> 59.20269 | X15: 0 | Y15: 0 | Z15: =IF($Q15<2,"",IF($G15=1,INDEX(estimate,MATCH(1,(group=$O15)*(order=$T15),0)), IF(AND($G15=0,$X15<>0,$D15=1),$X15, IF(AND($G15=0,$X15<>0,$D15=0),$Y15, IF(AND($G15=0,$X15=0),$V15,""))))) -> 158.7063 | AA15: =IF($Q15<2,"",IF($G15=1,INDEX(estimate,MATCH(1,(group=$O15)*(order=$U15),0)), IF(AND($G15=0,$X15<>0,$D15=1),$Y15, IF(AND($G15=0,$X15<>0,$D15=0),$X15, IF(AND($G15=0,$X15=0),$W15,""))))) -> 59.20269 | AB15: =IF($Q15<2,"",IF($G15=1,INDEX(se,MATCH(1,(group=$O15)*(order=$T15),0)), IF(AND($G15=0,$X15<>0,$D15=1),INDEX(se,MATCH(1,(group=$O15)*(estimate=$X15),0)), IF(AND($G15=0,$X15<>0,$D15=0),INDEX(se,MATCH(1,(group=$O15)*(estimate=$Y15),0)), IF(AND($G15=0,$X15=0),INDEX(se,MATCH(1,(group=$O15)*(estimate=$V15),0)),""))))) -> 3.850564 | AC15: =IF($Q15<2,"",IF($G15=1,INDEX(se,MATCH(1,(group=$O15)*(order=$U15),0)), IF(AND($G15=0,$X15<>0,$D15=1),INDEX(se,MATCH(1,(group=$O15)*(estimate=$Y15),0)), IF(AND($G15=0,$X15<>0,$D15=0),INDEX(se,MATCH(1,(group=$O15)*(estimate=$X15),0)), IF(AND($G15=0,$X15=0),INDEX(se,MATCH(1,(group=$O15)*(estimate=$W15),0)),""))))) -> 3.561114 | AD15: 99.50361 | AE15: 5.244842804 | AF15: 89.2237181 | AG15: 109.7835019 | AH15: 2.680727852 | AI15: 0.1738720902 | AJ15: 2.360710621 | AK15: 3.044126523 | AL15: 0.1806933409 | AM15: =IF($O15<>"",SUMPRODUCT(IF(group=$O15,1,0),AL:AL,estimate)) -> 119.4873611 | AN15: 0.8350267448 | AO15: 0.7446800744 | AP15: 6.997001514 | AQ15: 0.0933165458 | AR15: 132.2508495 | AS15: -21.42783263 | AT15: 0.9367873574 | AU15: -23.26393585 | AV15: -19.59172941 | AW15: -17.9331374 | AX15: 0.2469353051 | AY15: -18.41713059 | AZ15: -17.4491442 | BA15: 1000 | BB15: 0.07913001 | BC15: -2.454226669 | BD15: 102.1975538 | BE15: 76.10448196 | BF15: -250.815962 | BG15: 0 | BH15: =IF($G15=0,0, INDEX(LINEST( IF($BG15=1,INDEX(BF:BF,ROW($BD15),0),INDEX(BF:BF,ROW($BD15)-J15+1,0)): IF($BG15=1,INDEX(BF:BF,ROW($BD15)+COUNTIF(group,$O15)-1,0),INDEX(BF:BF,ROW($BD15)-J15+$Q15,0)), IF($BG15=1,INDEX(BD:BE,ROW($BD15),0),INDEX(BD:BE,ROW($BD15)-J15+1,0)): IF($BG15=1,INDEX(BD:BE,ROW($BD15)+COUNTIF(group,$O15)-1,0),INDEX(BD:BE,ROW($BD15)-J15+$Q15,0)), FALSE),2)) -> -1.351472296 | BI15: =IF($G15=0,0, INDEX(LINEST( IF($BG15=1,INDEX(BF:BF,ROW($BD15),0),INDEX(BF:BF,ROW($BD15)-J15+1,0)): IF($BG15=1,INDEX(BF:BF,ROW($BD15)+COUNTIF(group,$O15)-1,0),INDEX(BF:BF,ROW($BD15)-J15+$Q15,0)), IF($BG15=1,INDEX(BD:BE,ROW($BD15),0),INDEX(BD:BE,ROW($BD15)-J15+1,0)): IF($BG15=1,INDEX(BD:BE,ROW($BD15)+COUNTIF(group,$O15)-1,0),INDEX(BD:BE,ROW($BD15)-J15+$Q15,0)), FALSE),1)+ INDEX(LINEST( IF($BG15=1,INDEX(BF:BF,ROW($BD15),0),INDEX(BF:BF,ROW($BD15)-J15+1,0)): IF($BG15=1,INDEX(BF:BF,ROW($BD15)+COUNTIF(group,$O15)-1,0),INDEX(BF:BF,ROW($BD15)-J15+COUNTIF(group,$O15),0)), IF($BG15=1,INDEX(BD:BE,ROW($BD15),0),INDEX(BD:BE,ROW($BD15)-J15+1,0)): IF($BG15=1,INDEX(BD:BE,ROW($BD15)+COUNTIF(group,$O15)-1,0),INDEX(BD:BE,ROW($BD15)-J15+COUNTIF(group,$O15),0)), FALSE),2)) -> -2.771391853 | BJ15: 205.6297737 | BK15: 58.88982707 | BL15: -146.7399467 | BO15: 0.2863876471 | BR15: 0 | BS15: 59.20269 | BT15: 9535.696 | BU15: 564.5388542 | BV15: 8971.157146 | BW15: 6342.005784 | BX15: 41923.76422 | BY15: 57801.466 | BZ15: -50.45275963 | CA15: 0.0193268618 | CB15: -50.49064028 | CC15: -50.41487898 | CD15: -60.28467107 | CE15: 2.309315714 | CF15: -64.81092987 | CG15: -55.75841227 | CH15: 0 | CI15: 0 | CV15: 0 | CW15: 0 | DD15: 0 | DE15: 0 | DL15: 0 | DM15: 0 | DN15: 0 | DO15: 0 | DP15: 0 | EA15: 0 | EB15: 0 | EC15: 0 | ED15: 0 | EE15: 0 | EF15: 0
A16: =IF('DATA INPUT'!A16="","",'DATA INPUT'!A16) -> Nigeria | B16: =IF('DATA INPUT'!B16="","",'DATA INPUT'!B16) -> 2016 | C16: =IF('DATA INPUT'!C16="","",'DATA INPUT'!C16) -> Under-five mortality rate (deaths per 1000 live births) | D16: =IF('DATA INPUT'!I16="","",'DATA INPUT'!I16) -> 0 | E16: =IF('DATA INPUT'!J16="","",'DATA INPUT'!J16) -> 1000 | F16: =IF('DATA INPUT'!D16="","",'DATA INPUT'!D16) -> Economic status | G16: =IF('DATA INPUT'!K16="","",'DATA INPUT'!K16) -> 1 | H16: =IF('DATA INPUT'!E16="","",'DATA INPUT'!E16) -> Quintile 5 (richest) | I16: =IF('DATA INPUT'!M16="","",'DATA INPUT'!M16) -> 0 | J16: =IF('DATA INPUT'!L16="","",'DATA INPUT'!L16) -> 5 | K16: =IF('DATA INPUT'!F16="","",'DATA INPUT'!F16) -> 59.20269 | L16: =IF('DATA INPUT'!G16="","",'DATA INPUT'!G16) -> 3.561114 | M16: =IF('DATA INPUT'!H16="","",'DATA INPUT'!H16) -> 9535.696 | N16: Nigeria2016Under-five mortality rate (deaths per 1000 live births)Economic status | O16: 2 | P16: 5 | Q16: 5 | R16: 5 | S16: 0 | T16: =IF($D16=1,MAX(IF(group=$O16,order)),MIN(IF(group=$O16,order))) -> 1 | U16: =IF($D16=1,MIN(IF(group=$O16,order)),MAX(IF(group=$O16,order))) -> 5 | V16: =_xlfn.MAXIFS(estimate,group,$O16) -> 158.7063 | W16: =_xlfn.MINIFS(estimate,group,$O16) -> 59.20269 | X16: 0 | Y16: 0 | Z16: =IF($Q16<2,"",IF($G16=1,INDEX(estimate,MATCH(1,(group=$O16)*(order=$T16),0)), IF(AND($G16=0,$X16<>0,$D16=1),$X16, IF(AND($G16=0,$X16<>0,$D16=0),$Y16, IF(AND($G16=0,$X16=0),$V16,""))))) -> 158.7063 | AA16: =IF($Q16<2,"",IF($G16=1,INDEX(estimate,MATCH(1,(group=$O16)*(order=$U16),0)), IF(AND($G16=0,$X16<>0,$D16=1),$Y16, IF(AND($G16=0,$X16<>0,$D16=0),$X16, IF(AND($G16=0,$X16=0),$W16,""))))) -> 59.20269 | AB16: =IF($Q16<2,"",IF($G16=1,INDEX(se,MATCH(1,(group=$O16)*(order=$T16),0)), IF(AND($G16=0,$X16<>0,$D16=1),INDEX(se,MATCH(1,(group=$O16)*(estimate=$X16),0)), IF(AND($G16=0,$X16<>0,$D16=0),INDEX(se,MATCH(1,(group=$O16)*(estimate=$Y16),0)), IF(AND($G16=0,$X16=0),INDEX(se,MATCH(1,(group=$O16)*(estimate=$V16),0)),""))))) -> 3.850564 | AC16: =IF($Q16<2,"",IF($G16=1,INDEX(se,MATCH(1,(group=$O16)*(order=$U16),0)), IF(AND($G16=0,$X16<>0,$D16=1),INDEX(se,MATCH(1,(group=$O16)*(estimate=$Y16),0)), IF(AND($G16=0,$X16<>0,$D16=0),INDEX(se,MATCH(1,(group=$O16)*(estimate=$X16),0)), IF(AND($G16=0,$X16=0),INDEX(se,MATCH(1,(group=$O16)*(estimate=$W16),0)),""))))) -> 3.561114 | AD16: 99.50361 | AE16: 5.244842804 | AF16: 89.2237181 | AG16: 109.7835019 | AH16: 2.680727852 | AI16: 0.1738720902 | AJ16: 2.360710621 | AK16: 3.044126523 | AL16: 0.1649732552 | AM16: =IF($O16<>"",SUMPRODUCT(IF(group=$O16,1,0),AL:AL,estimate)) -> 119.4873611 | AN16: 1 | AO16: 0.9175133724 | AP16: 8.155589718 | AQ16: 0.2406576171 | AR16: 121.5744818 | AS16: -21.42783263 | AT16: 0.9367873574 | AU16: -23.26393585 | AV16: -19.59172941 | AW16: -17.9331374 | AX16: 0.2469353051 | AY16: -18.41713059 | AZ16: -17.4491442 | BA16: 1000 | BB16: 0.05920269 | BC16: -2.765760738 | BD16: 97.65088837 | BE16: 89.59599591 | BF16: -270.0789931 | BG16: 0 | BH16: =IF($G16=0,0, INDEX(LINEST( IF($BG16=1,INDEX(BF:BF,ROW($BD16),0),INDEX(BF:BF,ROW($BD16)-J16+1,0)): IF($BG16=1,INDEX(BF:BF,ROW($BD16)+COUNTIF(group,$O16)-1,0),INDEX(BF:BF,ROW($BD16)-J16+$Q16,0)), IF($BG16=1,INDEX(BD:BE,ROW($BD16),0),INDEX(BD:BE,ROW($BD16)-J16+1,0)): IF($BG16=1,INDEX(BD:BE,ROW($BD16)+COUNTIF(group,$O16)-1,0),INDEX(BD:BE,ROW($BD16)-J16+$Q16,0)), FALSE),2)) -> -1.351472296 | BI16: =IF($G16=0,0, INDEX(LINEST( IF($BG16=1,INDEX(BF:BF,ROW($BD16),0),INDEX(BF:BF,ROW($BD16)-J16+1,0)): IF($BG16=1,INDEX(BF:BF,ROW($BD16)+COUNTIF(group,$O16)-1,0),INDEX(BF:BF,ROW($BD16)-J16+$Q16,0)), IF($BG16=1,INDEX(BD:BE,ROW($BD16),0),INDEX(BD:BE,ROW($BD16)-J16+1,0)): IF($BG16=1,INDEX(BD:BE,ROW($BD16)+COUNTIF(group,$O16)-1,0),INDEX(BD:BE,ROW($BD16)-J16+$Q16,0)), FALSE),1)+ INDEX(LINEST( IF($BG16=1,INDEX(BF:BF,ROW($BD16),0),INDEX(BF:BF,ROW($BD16)-J16+1,0)): IF($BG16=1,INDEX(BF:BF,ROW($BD16)+COUNTIF(group,$O16)-1,0),INDEX(BF:BF,ROW($BD16)-J16+COUNTIF(group,$O16),0)), IF($BG16=1,INDEX(BD:BE,ROW($BD16),0),INDEX(BD:BE,ROW($BD16)-J16+1,0)): IF($BG16=1,INDEX(BD:BE,ROW($BD16)+COUNTIF(group,$O16)-1,0),INDEX(BD:BE,ROW($BD16)-J16+COUNTIF(group,$O16),0)), FALSE),2)) -> -2.771391853 | BJ16: 205.6297737 | BK16: 58.88982707 | BL16: -146.7399467 | BO16: 0.2863876471 | BR16: 1 | BS16: 59.20269 | BT16: 9535.696 | BU16: 564.5388542 | BV16: 8971.157146 | BW16: 6342.005784 | BX16: 41923.76422 | BY16: 57801.466 | BZ16: -50.45275963 | CA16: 0.0193268618 | CB16: -50.49064028 | CC16: -50.41487898 | CD16: -60.28467107 | CE16: 2.309315714 | CF16: -64.81092987 | CG16: -55.75841227 | CH16: 0 | CI16: 0 | CV16: 0 | CW16: 0 | DD16: 0 | DE16: 0 | DL16: 0 | DM16: 0 | DN16: 0 | DO16: 0 | DP16: 0 | EA16: 0 | EB16: 0 | EC16: 0 | ED16: 0 | EE16: 0 | EF16: 0
A17: =IF('DATA INPUT'!A17="","",'DATA INPUT'!A17) -> Indonesia | B17: =IF('DATA INPUT'!B17="","",'DATA INPUT'!B17) -> 2017 | C17: =IF('DATA INPUT'!C17="","",'DATA INPUT'!C17) -> Births attended by skilled health personnel (%) | D17: =IF('DATA INPUT'!I17="","",'DATA INPUT'!I17) -> 1 | E17: =IF('DATA INPUT'!J17="","",'DATA INPUT'!J17) -> 100 | F17: =IF('DATA INPUT'!D17="","",'DATA INPUT'!D17) -> Subnational region | G17: =IF('DATA INPUT'!K17="","",'DATA INPUT'!K17) -> 0 | H17: =IF('DATA INPUT'!E17="","",'DATA INPUT'!E17) -> aceh | I17: =IF('DATA INPUT'!M17="","",'DATA INPUT'!M17) -> 0 | J17: =IF('DATA INPUT'!L17="","",'DATA INPUT'!L17) -> 0 | K17: =IF('DATA INPUT'!F17="","",'DATA INPUT'!F17) -> 95.11784 | L17: =IF('DATA INPUT'!G17="","",'DATA INPUT'!G17) -> 1.538443 | M17: =IF('DATA INPUT'!H17="","",'DATA INPUT'!H17) -> 230.2051 | N17: Indonesia2017Births attended by skilled health personnel (%)Subnational region | O17: 3 | P17: 34 | Q17: 34 | R17: 34 | S17: 0 | T17: =IF($D17=1,MAX(IF(group=$O17,order)),MIN(IF(group=$O17,order))) -> 0 | U17: =IF($D17=1,MIN(IF(group=$O17,order)),MAX(IF(group=$O17,order))) -> 0 | V17: =_xlfn.MAXIFS(estimate,group,$O17) -> 100 | W17: =_xlfn.MINIFS(estimate,group,$O17) -> 64.19527 | X17: 0 | Y17: 64.19527 | Z17: =IF($Q17<2,"",IF($G17=1,INDEX(estimate,MATCH(1,(group=$O17)*(order=$T17),0)), IF(AND($G17=0,$X17<>0,$D17=1),$X17, IF(AND($G17=0,$X17<>0,$D17=0),$Y17, IF(AND($G17=0,$X17=0),$V17,""))))) -> 100 | AA17: =IF($Q17<2,"",IF($G17=1,INDEX(estimate,MATCH(1,(group=$O17)*(order=$U17),0)), IF(AND($G17=0,$X17<>0,$D17=1),$Y17, IF(AND($G17=0,$X17<>0,$D17=0),$X17, IF(AND($G17=0,$X17=0),$W17,""))))) -> 64.19527 | AB17: =IF($Q17<2,"",IF($G17=1,INDEX(se,MATCH(1,(group=$O17)*(order=$T17),0)), IF(AND($G17=0,$X17<>0,$D17=1),INDEX(se,MATCH(1,(group=$O17)*(estimate=$X17),0)), IF(AND($G17=0,$X17<>0,$D17=0),INDEX(se,MATCH(1,(group=$O17)*(estimate=$Y17),0)), IF(AND($G17=0,$X17=0),INDEX(se,MATCH(1,(group=$O17)*(estimate=$V17),0)),""))))) -> 0 | AC17: =IF($Q17<2,"",IF($G17=1,INDEX(se,MATCH(1,(group=$O17)*(order=$U17),0)), IF(AND($G17=0,$X17<>0,$D17=1),INDEX(se,MATCH(1,(group=$O17)*(estimate=$Y17),0)), IF(AND($G17=0,$X17<>0,$D17=0),INDEX(se,MATCH(1,(group=$O17)*(estimate=$X17),0)), IF(AND($G17=0,$X17=0),INDEX(se,MATCH(1,(group=$O17)*(estimate=$W17),0)),""))))) -> 7.05186 | AD17: 35.80473 | AE17: 7.05186 | AF17: 21.9830844 | AG17: 49.6263756 | AH17: 1.557747167 | AI17: 0.1711187591 | AJ17: 1.25600288 | AK17: 1.93198302 | AL17: 0.02278281178 | AM17: =IF($O17<>"",SUMPRODUCT(IF(group=$O17,1,0),AL:AL,estimate)) -> 91.59668534 | AN17: 0 | AO17: 0 | AP17: 0 | AQ17: 0 | AR17: 0 | BA17: 1000 | BB17: 0.09511784 | BC17: -2.252688181 | BD17: 0 | BE17: 0 | BF17: 0 | BG17: 1 | BH17: =IF($G17=0,0, INDEX(LINEST( IF($BG17=1,INDEX(BF:BF,ROW($BD17),0),INDEX(BF:BF,ROW($BD17)-J17+1,0)): IF($BG17=1,INDEX(BF:BF,ROW($BD17)+COUNTIF(group,$O17)-1,0),INDEX(BF:BF,ROW($BD17)-J17+$Q17,0)), IF($BG17=1,INDEX(BD:BE,ROW($BD17),0),INDEX(BD:BE,ROW($BD17)-J17+1,0)): IF($BG17=1,INDEX(BD:BE,ROW($BD17)+COUNTIF(group,$O17)-1,0),INDEX(BD:BE,ROW($BD17)-J17+$Q17,0)), FALSE),2)) -> 0 | BI17: =IF($G17=0,0, INDEX(LINEST( IF($BG17=1,INDEX(BF:BF,ROW($BD17),0),INDEX(BF:BF,ROW($BD17)-J17+1,0)): IF($BG17=1,INDEX(BF:BF,ROW($BD17)+COUNTIF(group,$O17)-1,0),INDEX(BF:BF,ROW($BD17)-J17+$Q17,0)), IF($BG17=1,INDEX(BD:BE,ROW($BD17),0),INDEX(BD:BE,ROW($BD17)-J17+1,0)): IF($BG17=1,INDEX(BD:BE,ROW($BD17)+COUNTIF(group,$O17)-1,0),INDEX(BD:BE,ROW($BD17)-J17+$Q17,0)), FALSE),1)+ INDEX(LINEST( IF($BG17=1,INDEX(BF:BF,ROW($BD17),0),INDEX(BF:BF,ROW($BD17)-J17+1,0)): IF($BG17=1,INDEX(BF:BF,ROW($BD17)+COUNTIF(group,$O17)-1,0),INDEX(BF:BF,ROW($BD17)-J17+COUNTIF(group,$O17),0)), IF($BG17=1,INDEX(BD:BE,ROW($BD17),0),INDEX(BD:BE,ROW($BD17)-J17+1,0)): IF($BG17=1,INDEX(BD:BE,ROW($BD17)+COUNTIF(group,$O17)-1,0),INDEX(BD:BE,ROW($BD17)-J17+COUNTIF(group,$O17),0)), FALSE),2)) -> 0 | BJ17: 0 | BK17: 0 | BR17: 0 | BS17: 100 | BT17: 149.4627 | BU17: 149.4627 | BV17: 0 | BW17: 9105.770726 | BX17: 849.0988339 | BY17: 10104.33226 | BZ17: 9.17425628 | CA17: 0.003289666458 | CB17: 9.167808534 | CC17: 9.180704027 | CD17: 8.403314658 | CE17: 0.3013225434 | CF17: 7.812722473 | CG17: 8.993906843 | CH17: 3.521154658 | CI17: 0.0802218038 | CJ17: 6.615573235 | CM17: 5.326111683 | CP17: 7.222502878 | CS17: 5.814742818 | CV17: 4.88216 | CW17: 0.1112293323 | CX17: 10.32640382 | DA17: 8.403314658 | DD17: 0 | DE17: 0 | DL17: 0.2824733781 | DM17: 0.01523167505 | DN17: 0.001228506517 | DO17: 1.509228261e-06 | DP17: 0.002776658561 | DQ17: 50.42023119 | DR17: 9.560196696 | DS17: 31.68224566 | DT17: 69.15821671 | DU17: 7.10072047 | DX17: 7.752158763 | EA17: 1.038441944 | EB17: 0.0008924379455 | EC17: 0.0245510653 | ED17: 1.468814048e-06 | EE17: -0.000859400904 | EF17: 2.006615632e-10 | EG17: 3.143872651 | EH17: 0.0006239330328 | EI17: 3.142649742 | EJ17: 3.14509556 | EK17: 3.307900901 | EL17: 0.000707336858 | EM17: 3.30651452 | EN17: 3.309287281
A18: =IF('DATA INPUT'!A18="","",'DATA INPUT'!A18) -> Indonesia | B18: =IF('DATA INPUT'!B18="","",'DATA INPUT'!B18) -> 2017 | C18: =IF('DATA INPUT'!C18="","",'DATA INPUT'!C18) -> Births attended by skilled health personnel (%) | D18: =IF('DATA INPUT'!I18="","",'DATA INPUT'!I18) -> 1 | E18: =IF('DATA INPUT'!J18="","",'DATA INPUT'!J18) -> 100 | F18: =IF('DATA INPUT'!D18="","",'DATA INPUT'!D18) -> Subnational region | G18: =IF('DATA INPUT'!K18="","",'DATA INPUT'!K18) -> 0 | H18: =IF('DATA INPUT'!E18="","",'DATA INPUT'!E18) -> bali | I18: =IF('DATA INPUT'!M18="","",'DATA INPUT'!M18) -> 0 | J18: =IF('DATA INPUT'!L18="","",'DATA INPUT'!L18) -> 0 | K18: =IF('DATA INPUT'!F18="","",'DATA INPUT'!F18) -> 100 | L18: =IF('DATA INPUT'!G18="","",'DATA INPUT'!G18) -> 0 | M18: =IF('DATA INPUT'!H18="","",'DATA INPUT'!H18) -> 149.4627 | N18: Indonesia2017Births attended by skilled health personnel (%)Subnational region | O18: 3 | P18: 34 | Q18: 34 | R18: 34 | S18: 0 | T18: =IF($D18=1,MAX(IF(group=$O18,order)),MIN(IF(group=$O18,order))) -> 0 | U18: =IF($D18=1,MIN(IF(group=$O18,order)),MAX(IF(group=$O18,order))) -> 0 | V18: =_xlfn.MAXIFS(estimate,group,$O18) -> 100 | W18: =_xlfn.MINIFS(estimate,group,$O18) -> 64.19527 | X18: 0 | Y18: 64.19527 | Z18: =IF($Q18<2,"",IF($G18=1,INDEX(estimate,MATCH(1,(group=$O18)*(order=$T18),0)), IF(AND($G18=0,$X18<>0,$D18=1),$X18, IF(AND($G18=0,$X18<>0,$D18=0),$Y18, IF(AND($G18=0,$X18=0),$V18,""))))) -> 100 | AA18: =IF($Q18<2,"",IF($G18=1,INDEX(estimate,MATCH(1,(group=$O18)*(order=$U18),0)), IF(AND($G18=0,$X18<>0,$D18=1),$Y18, IF(AND($G18=0,$X18<>0,$D18=0),$X18, IF(AND($G18=0,$X18=0),$W18,""))))) -> 64.19527 | AB18: =IF($Q18<2,"",IF($G18=1,INDEX(se,MATCH(1,(group=$O18)*(order=$T18),0)), IF(AND($G18=0,$X18<>0,$D18=1),INDEX(se,MATCH(1,(group=$O18)*(estimate=$X18),0)), IF(AND($G18=0,$X18<>0,$D18=0),INDEX(se,MATCH(1,(group=$O18)*(estimate=$Y18),0)), IF(AND($G18=0,$X18=0),INDEX(se,MATCH(1,(group=$O18)*(estimate=$V18),0)),""))))) -> 0 | AC18: =IF($Q18<2,"",IF($G18=1,INDEX(se,MATCH(1,(group=$O18)*(order=$U18),0)), IF(AND($G18=0,$X18<>0,$D18=1),INDEX(se,MATCH(1,(group=$O18)*(estimate=$Y18),0)), IF(AND($G18=0,$X18<>0,$D18=0),INDEX(se,MATCH(1,(group=$O18)*(estimate=$X18),0)), IF(AND($G18=0,$X18=0),INDEX(se,MATCH(1,(group=$O18)*(estimate=$W18),0)),""))))) -> 7.05186 | AD18: 35.80473 | AE18: 7.05186 | AF18: 21.9830844 | AG18: 49.6263756 | AH18: 1.557747167 | AI18: 0.1711187591 | AJ18: 1.25600288 | AK18: 1.93198302 | AL18: 0.01479194232 | AM18: =IF($O18<>"",SUMPRODUCT(IF(group=$O18,1,0),AL:AL,estimate)) -> 91.59668534 | AN18: 0 | AO18: 0 | AP18: 0 | AQ18: 0 | AR18: 0 | BA18: 1000 | BB18: 0.1 | BC18: -2.197224577 | BD18: 0 | BE18: 0 | BF18: 0 | BG18: 0 | BH18: =IF($G18=0,0, INDEX(LINEST( IF($BG18=1,INDEX(BF:BF,ROW($BD18),0),INDEX(BF:BF,ROW($BD18)-J18+1,0)): IF($BG18=1,INDEX(BF:BF,ROW($BD18)+COUNTIF(group,$O18)-1,0),INDEX(BF:BF,ROW($BD18)-J18+$Q18,0)), IF($BG18=1,INDEX(BD:BE,ROW($BD18),0),INDEX(BD:BE,ROW($BD18)-J18+1,0)): IF($BG18=1,INDEX(BD:BE,ROW($BD18)+COUNTIF(group,$O18)-1,0),INDEX(BD:BE,ROW($BD18)-J18+$Q18,0)), FALSE),2)) -> 0 | BI18: =IF($G18=0,0, INDEX(LINEST( IF($BG18=1,INDEX(BF:BF,ROW($BD18),0),INDEX(BF:BF,ROW($BD18)-J18+1,0)): IF($BG18=1,INDEX(BF:BF,ROW($BD18)+COUNTIF(group,$O18)-1,0),INDEX(BF:BF,ROW($BD18)-J18+$Q18,0)), IF($BG18=1,INDEX(BD:BE,ROW($BD18),0),INDEX(BD:BE,ROW($BD18)-J18+1,0)): IF($BG18=1,INDEX(BD:BE,ROW($BD18)+COUNTIF(group,$O18)-1,0),INDEX(BD:BE,ROW($BD18)-J18+$Q18,0)), FALSE),1)+ INDEX(LINEST( IF($BG18=1,INDEX(BF:BF,ROW($BD18),0),INDEX(BF:BF,ROW($BD18)-J18+1,0)): IF($BG18=1,INDEX(BF:BF,ROW($BD18)+COUNTIF(group,$O18)-1,0),INDEX(BF:BF,ROW($BD18)-J18+COUNTIF(group,$O18),0)), IF($BG18=1,INDEX(BD:BE,ROW($BD18),0),INDEX(BD:BE,ROW($BD18)-J18+1,0)): IF($BG18=1,INDEX(BD:BE,ROW($BD18)+COUNTIF(group,$O18)-1,0),INDEX(BD:BE,ROW($BD18)-J18+COUNTIF(group,$O18),0)), FALSE),2)) -> 0 | BJ18: 0 | BK18: 0 | BR18: 1 | BS18: 100 | BT18: 149.4627 | BU18: 149.4627 | BV18: 0 | BW18: 9105.770726 | BX18: 849.0988339 | BY18: 10104.33226 | BZ18: 9.17425628 | CA18: 0.003289666458 | CB18: 9.167808534 | CC18: 9.180704027 | CD18: 8.403314658 | CE18: 0.3013225434 | CF18: 7.812722473 | CG18: 8.993906843 | CH18: 8.403314658 | CI18: 0.1243013457 | CJ18: 6.615573235 | CM18: 5.326111683 | CP18: 7.222502878 | CS18: 5.814742818 | CV18: 0 | CW18: 0 | CX18: 10.32640382 | DA18: 8.403314658 | DD18: 0 | DE18: 0 | DL18: 1.044543321 | DM18: 0 | DN18: 0 | DO18: 0 | DP18: 0 | DQ18: 50.42023119 | DR18: 9.560196696 | DS18: 31.68224566 | DT18: 69.15821671 | DU18: 7.10072047 | DX18: 7.752158763 | EA18: 1.091742563 | EB18: 0.001417479496 | EC18: 0.01756647252 | ED18: 0 | EE18: -0.001298364234 | EF18: 0 | EG18: 3.143872651 | EH18: 0.0006239330328 | EI18: 3.142649742 | EJ18: 3.14509556 | EK18: 3.307900901 | EL18: 0.000707336858 | EM18: 3.30651452 | EN18: 3.309287281
A19: =IF('DATA INPUT'!A19="","",'DATA INPUT'!A19) -> Indonesia | B19: =IF('DATA INPUT'!B19="","",'DATA INPUT'!B19) -> 2017 | C19: =IF('DATA INPUT'!C19="","",'DATA INPUT'!C19) -> Births attended by skilled health personnel (%) | D19: =IF('DATA INPUT'!I19="","",'DATA INPUT'!I19) -> 1 | E19: =IF('DATA INPUT'!J19="","",'DATA INPUT'!J19) -> 100 | F19: =IF('DATA INPUT'!D19="","",'DATA INPUT'!D19) -> Subnational region | G19: =IF('DATA INPUT'!K19="","",'DATA INPUT'!K19) -> 0 | H19: =IF('DATA INPUT'!E19="","",'DATA INPUT'!E19) -> bangka balitung | I19: =IF('DATA INPUT'!M19="","",'DATA INPUT'!M19) -> 0 | J19: =IF('DATA INPUT'!L19="","",'DATA INPUT'!L19) -> 0 | K19: =IF('DATA INPUT'!F19="","",'DATA INPUT'!F19) -> 97.41001 | L19: =IF('DATA INPUT'!G19="","",'DATA INPUT'!G19) -> 1.267644 | M19: =IF('DATA INPUT'!H19="","",'DATA INPUT'!H19) -> 55.66533 | N19: Indonesia2017Births attended by skilled health personnel (%)Subnational region | O19: 3 | P19: 34 | Q19: 34 | R19: 34 | S19: 0 | T19: =IF($D19=1,MAX(IF(group=$O19,order)),MIN(IF(group=$O19,order))) -> 0 | U19: =IF($D19=1,MIN(IF(group=$O19,order)),MAX(IF(group=$O19,order))) -> 0 | V19: =_xlfn.MAXIFS(estimate,group,$O19) -> 100 | W19: =_xlfn.MINIFS(estimate,group,$O19) -> 64.19527 | X19: 0 | Y19: 64.19527 | Z19: =IF($Q19<2,"",IF($G19=1,INDEX(estimate,MATCH(1,(group=$O19)*(order=$T19),0)), IF(AND($G19=0,$X19<>0,$D19=1),$X19, IF(AND($G19=0,$X19<>0,$D19=0),$Y19, IF(AND($G19=0,$X19=0),$V19,""))))) -> 100 | AA19: =IF($Q19<2,"",IF($G19=1,INDEX(estimate,MATCH(1,(group=$O19)*(order=$U19),0)), IF(AND($G19=0,$X19<>0,$D19=1),$Y19, IF(AND($G19=0,$X19<>0,$D19=0),$X19, IF(AND($G19=0,$X19=0),$W19,""))))) -> 64.19527 | AB19: =IF($Q19<2,"",IF($G19=1,INDEX(se,MATCH(1,(group=$O19)*(order=$T19),0)), IF(AND($G19=0,$X19<>0,$D19=1),INDEX(se,MATCH(1,(group=$O19)*(estimate=$X19),0)), IF(AND($G19=0,$X19<>0,$D19=0),INDEX(se,MATCH(1,(group=$O19)*(estimate=$Y19),0)), IF(AND($G19=0,$X19=0),INDEX(se,MATCH(1,(group=$O19)*(estimate=$V19),0)),""))))) -> 0 | AC19: =IF($Q19<2,"",IF($G19=1,INDEX(se,MATCH(1,(group=$O19)*(order=$U19),0)), IF(AND($G19=0,$X19<>0,$D19=1),INDEX(se,MATCH(1,(group=$O19)*(estimate=$Y19),0)), IF(AND($G19=0,$X19<>0,$D19=0),INDEX(se,MATCH(1,(group=$O19)*(estimate=$X19),0)), IF(AND($G19=0,$X19=0),INDEX(se,MATCH(1,(group=$O19)*(estimate=$W19),0)),""))))) -> 7.05186 | AD19: 35.80473 | AE19: 7.05186 | AF19: 21.9830844 | AG19: 49.6263756 | AH19: 1.557747167 | AI19: 0.1711187591 | AJ19: 1.25600288 | AK19: 1.93198302 | AL19: 0.005509055776 | AM19: =IF($O19<>"",SUMPRODUCT(IF(group=$O19,1,0),AL:AL,estimate)) -> 91.59668534 | AN19: 0 | AO19: 0 | AP19: 0 | AQ19: 0 | AR19: 0 | BA19: 1000 | BB19: 0.09741001 | BC19: -2.22633942 | BD19: 0 | BE19: 0 | BF19: 0 | BG19: 0 | BH19: =IF($G19=0,0, INDEX(LINEST( IF($BG19=1,INDEX(BF:BF,ROW($BD19),0),INDEX(BF:BF,ROW($BD19)-J19+1,0)): IF($BG19=1,INDEX(BF:BF,ROW($BD19)+COUNTIF(group,$O19)-1,0),INDEX(BF:BF,ROW($BD19)-J19+$Q19,0)), IF($BG19=1,INDEX(BD:BE,ROW($BD19),0),INDEX(BD:BE,ROW($BD19)-J19+1,0)): IF($BG19=1,INDEX(BD:BE,ROW($BD19)+COUNTIF(group,$O19)-1,0),INDEX(BD:BE,ROW($BD19)-J19+$Q19,0)), FALSE),2)) -> 0 | BI19: =IF($G19=0,0, INDEX(LINEST( IF($BG19=1,INDEX(BF:BF,ROW($BD19),0),INDEX(BF:BF,ROW($BD19)-J19+1,0)): IF($BG19=1,INDEX(BF:BF,ROW($BD19)+COUNTIF(group,$O19)-1,0),INDEX(BF:BF,ROW($BD19)-J19+$Q19,0)), IF($BG19=1,INDEX(BD:BE,ROW($BD19),0),INDEX(BD:BE,ROW($BD19)-J19+1,0)): IF($BG19=1,INDEX(BD:BE,ROW($BD19)+COUNTIF(group,$O19)-1,0),INDEX(BD:BE,ROW($BD19)-J19+$Q19,0)), FALSE),1)+ INDEX(LINEST( IF($BG19=1,INDEX(BF:BF,ROW($BD19),0),INDEX(BF:BF,ROW($BD19)-J19+1,0)): IF($BG19=1,INDEX(BF:BF,ROW($BD19)+COUNTIF(group,$O19)-1,0),INDEX(BF:BF,ROW($BD19)-J19+COUNTIF(group,$O19),0)), IF($BG19=1,INDEX(BD:BE,ROW($BD19),0),INDEX(BD:BE,ROW($BD19)-J19+1,0)): IF($BG19=1,INDEX(BD:BE,ROW($BD19)+COUNTIF(group,$O19)-1,0),INDEX(BD:BE,ROW($BD19)-J19+COUNTIF(group,$O19),0)), FALSE),2)) -> 0 | BJ19: 0 | BK19: 0 | BR19: 0 | BS19: 100 | BT19: 149.4627 | BU19: 149.4627 | BV19: 0 | BW19: 9105.770726 | BX19: 849.0988339 | BY19: 10104.33226 | BZ19: 9.17425628 | CA19: 0.003289666458 | CB19: 9.167808534 | CC19: 9.180704027 | CD19: 8.403314658 | CE19: 0.3013225434 | CF19: 7.812722473 | CG19: 8.993906843 | CH19: 5.813324658 | CI19: 0.03202592978 | CJ19: 6.615573235 | CM19: 5.326111683 | CP19: 7.222502878 | CS19: 5.814742818 | CV19: 2.58999 | CW19: 0.01426839937 | CX19: 10.32640382 | DA19: 8.403314658 | DD19: 0 | DE19: 0 | DL19: 0.1861771273 | DM19: 0.001648155198 | DN19: 4.876957254e-05 | DO19: 2.378471206e-09 | DP19: 7.7507767e-05 | DQ19: 50.42023119 | DR19: 9.560196696 | DS19: 31.68224566 | DT19: 69.15821671 | DU19: 7.10072047 | DX19: 7.752158763 | EA19: 1.06346654 | EB19: 0.0003605084003 | EC19: 0.006219204883 | ED19: 1.662747092e-07 | EE19: -0.0003389936466 | EF19: 2.070291089e-11 | EG19: 3.143872651 | EH19: 0.0006239330328 | EI19: 3.142649742 | EJ19: 3.14509556 | EK19: 3.307900901 | EL19: 0.000707336858 | EM19: 3.30651452 | EN19: 3.309287281
A20: =IF('DATA INPUT'!A20="","",'DATA INPUT'!A20) -> Indonesia | B20: =IF('DATA INPUT'!B20="","",'DATA INPUT'!B20) -> 2017 | C20: =IF('DATA INPUT'!C20="","",'DATA INPUT'!C20) -> Births attended by skilled health personnel (%) | D20: =IF('DATA INPUT'!I20="","",'DATA INPUT'!I20) -> 1 | E20: =IF('DATA INPUT'!J20="","",'DATA INPUT'!J20) -> 100 | F20: =IF('DATA INPUT'!D20="","",'DATA INPUT'!D20) -> Subnational region | G20: =IF('DATA INPUT'!K20="","",'DATA INPUT'!K20) -> 0 | H20: =IF('DATA INPUT'!E20="","",'DATA INPUT'!E20) -> banten | I20: =IF('DATA INPUT'!M20="","",'DATA INPUT'!M20) -> 0 | J20: =IF('DATA INPUT'!L20="","",'DATA INPUT'!L20) -> 0 | K20: =IF('DATA INPUT'!F20="","",'DATA INPUT'!F20) -> 80.35694 | L20: =IF('DATA INPUT'!G20="","",'DATA INPUT'!G20) -> 3.544053 | M20: =IF('DATA INPUT'!H20="","",'DATA INPUT'!H20) -> 451.2655 | N20: Indonesia2017Births attended by skilled health personnel (%)Subnational region | O20: 3 | P20: 34 | Q20: 34 | R20: 34 | S20: 0 | T20: =IF($D20=1,MAX(IF(group=$O20,order)),MIN(IF(group=$O20,order))) -> 0 | U20: =IF($D20=1,MIN(IF(group=$O20,order)),MAX(IF(group=$O20,order))) -> 0 | V20: =_xlfn.MAXIFS(estimate,group,$O20) -> 100 | W20: =_xlfn.MINIFS(estimate,group,$O20) -> 64.19527 | X20: 0 | Y20: 64.19527 | Z20: =IF($Q20<2,"",IF($G20=1,INDEX(estimate,MATCH(1,(group=$O20)*(order=$T20),0)), IF(AND($G20=0,$X20<>0,$D20=1),$X20, IF(AND($G20=0,$X20<>0,$D20=0),$Y20, IF(AND($G20=0,$X20=0),$V20,""))))) -> 100 | AA20: =IF($Q20<2,"",IF($G20=1,INDEX(estimate,MATCH(1,(group=$O20)*(order=$U20),0)), IF(AND($G20=0,$X20<>0,$D20=1),$Y20, IF(AND($G20=0,$X20<>0,$D20=0),$X20, IF(AND($G20=0,$X20=0),$W20,""))))) -> 64.19527 | AB20: =IF($Q20<2,"",IF($G20=1,INDEX(se,MATCH(1,(group=$O20)*(order=$T20),0)), IF(AND($G20=0,$X20<>0,$D20=1),INDEX(se,MATCH(1,(group=$O20)*(estimate=$X20),0)), IF(AND($G20=0,$X20<>0,$D20=0),INDEX(se,MATCH(1,(group=$O20)*(estimate=$Y20),0)), IF(AND($G20=0,$X20=0),INDEX(se,MATCH(1,(group=$O20)*(estimate=$V20),0)),""))))) -> 0 | AC20: =IF($Q20<2,"",IF($G20=1,INDEX(se,MATCH(1,(group=$O20)*(order=$U20),0)), IF(AND($G20=0,$X20<>0,$D20=1),INDEX(se,MATCH(1,(group=$O20)*(estimate=$Y20),0)), IF(AND($G20=0,$X20<>0,$D20=0),INDEX(se,MATCH(1,(group=$O20)*(estimate=$X20),0)), IF(AND($G20=0,$X20=0),INDEX(se,MATCH(1,(group=$O20)*(estimate=$W20),0)),""))))) -> 7.05186 | AD20: 35.80473 | AE20: 7.05186 | AF20: 21.9830844 | AG20: 49.6263756 | AH20: 1.557747167 | AI20: 0.1711187591 | AJ20: 1.25600288 | AK20: 1.93198302 | AL20: 0.04466059591 | AM20: =IF($O20<>"",SUMPRODUCT(IF(group=$O20,1,0),AL:AL,estimate)) -> 91.59668534 | AN20: 0 | AO20: 0 | AP20: 0 | AQ20: 0 | AR20: 0 | BA20: 1000 | BB20: 0.08035694 | BC20: -2.437507156 | BD20: 0 | BE20: 0 | BF20: 0 | BG20: 0 | BH20: =IF($G20=0,0, INDEX(LINEST( IF($BG20=1,INDEX(BF:BF,ROW($BD20),0),INDEX(BF:BF,ROW($BD20)-J20+1,0)): IF($BG20=1,INDEX(BF:BF,ROW($BD20)+COUNTIF(group,$O20)-1,0),INDEX(BF:BF,ROW($BD20)-J20+$Q20,0)), IF($BG20=1,INDEX(BD:BE,ROW($BD20),0),INDEX(BD:BE,ROW($BD20)-J20+1,0)): IF($BG20=1,INDEX(BD:BE,ROW($BD20)+COUNTIF(group,$O20)-1,0),INDEX(BD:BE,ROW($BD20)-J20+$Q20,0)), FALSE),2)) -> 0 | BI20: =IF($G20=0,0, INDEX(LINEST( IF($BG20=1,INDEX(BF:BF,ROW($BD20),0),INDEX(BF:BF,ROW($BD20)-J20+1,0)): IF($BG20=1,INDEX(BF:BF,ROW($BD20)+COUNTIF(group,$O20)-1,0),INDEX(BF:BF,ROW($BD20)-J20+$Q20,0)), IF($BG20=1,INDEX(BD:BE,ROW($BD20),0),INDEX(BD:BE,ROW($BD20)-J20+1,0)): IF($BG20=1,INDEX(BD:BE,ROW($BD20)+COUNTIF(group,$O20)-1,0),INDEX(BD:BE,ROW($BD20)-J20+$Q20,0)), FALSE),1)+ INDEX(LINEST( IF($BG20=1,INDEX(BF:BF,ROW($BD20),0),INDEX(BF:BF,ROW($BD20)-J20+1,0)): IF($BG20=1,INDEX(BF:BF,ROW($BD20)+COUNTIF(group,$O20)-1,0),INDEX(BF:BF,ROW($BD20)-J20+COUNTIF(group,$O20),0)), IF($BG20=1,INDEX(BD:BE,ROW($BD20),0),INDEX(BD:BE,ROW($BD20)-J20+1,0)): IF($BG20=1,INDEX(BD:BE,ROW($BD20)+COUNTIF(group,$O20)-1,0),INDEX(BD:BE,ROW($BD20)-J20+COUNTIF(group,$O20),0)), FALSE),2)) -> 0 | BJ20: 0 | BK20: 0 | BR20: 0 | BS20: 100 | BT20: 149.4627 | BU20: 149.4627 | BV20: 0 | BW20: 9105.770726 | BX20: 849.0988339 | BY20: 10104.33226 | BZ20: 9.17425628 | CA20: 0.003289666458 | CB20: 9.167808534 | CC20: 9.180704027 | CD20: 8.403314658 | CE20: 0.3013225434 | CF20: 7.812722473 | CG20: 8.993906843 | CH20: 11.23974534 | CI20: 0.5019737249 | CJ20: 6.615573235 | CM20: 5.326111683 | CP20: 7.222502878 | CS20: 5.814742818 | CV20: 19.64306 | CW20: 0.8772707651 | CX20: 10.32640382 | DA20: 8.403314658 | DD20: 0 | DE20: 0 | DL20: 5.642056836 | DM20: 3.164917446 | DN20: 0.02505240611 | DO20: 0.0006276230518 | DP20: 0.2871873071 | DQ20: 50.42023119 | DR20: 9.560196696 | DS20: 31.68224566 | DT20: 69.15821671 | DU20: 7.10072047 | DX20: 7.752158763 | EA20: 0.8772909161 | EB20: -0.005129357208 | EC20: 0.03405097789 | ED20: 0.0004502472745 | EE20: 0.005846814453 | EF20: 5.841926514e-08 | EG20: 3.143872651 | EH20: 0.0006239330328 | EI20: 3.142649742 | EJ20: 3.14509556 | EK20: 3.307900901 | EL20: 0.000707336858 | EM20: 3.30651452 | EN20: 3.309287281
A21: =IF('DATA INPUT'!A21="","",'DATA INPUT'!A21) -> Indonesia | B21: =IF('DATA INPUT'!B21="","",'DATA INPUT'!B21) -> 2017 | C21: =IF('DATA INPUT'!C21="","",'DATA INPUT'!C21) -> Births attended by skilled health personnel (%) | D21: =IF('DATA INPUT'!I21="","",'DATA INPUT'!I21) -> 1 | E21: =IF('DATA INPUT'!J21="","",'DATA INPUT'!J21) -> 100 | F21: =IF('DATA INPUT'!D21="","",'DATA INPUT'!D21) -> Subnational region | G21: =IF('DATA INPUT'!K21="","",'DATA INPUT'!K21) -> 0 | H21: =IF('DATA INPUT'!E21="","",'DATA INPUT'!E21) -> bengkulu | I21: =IF('DATA INPUT'!M21="","",'DATA INPUT'!M21) -> 0 | J21: =IF('DATA INPUT'!L21="","",'DATA INPUT'!L21) -> 0 | K21: =IF('DATA INPUT'!F21="","",'DATA INPUT'!F21) -> 94.25756 | L21: =IF('DATA INPUT'!G21="","",'DATA INPUT'!G21) -> 2.774006 | M21: =IF('DATA INPUT'!H21="","",'DATA INPUT'!H21) -> 70.1754 | N21: Indonesia2017Births attended by skilled health personnel (%)Subnational region | O21: 3 | P21: 34 | Q21: 34 | R21: 34 | S21: 0 | T21: =IF($D21=1,MAX(IF(group=$O21,order)),MIN(IF(group=$O21,order))) -> 0 | U21: =IF($D21=1,MIN(IF(group=$O21,order)),MAX(IF(group=$O21,order))) -> 0 | V21: =_xlfn.MAXIFS(estimate,group,$O21) -> 100 | W21: =_xlfn.MINIFS(estimate,group,$O21) -> 64.19527 | X21: 0 | Y21: 64.19527 | Z21: =IF($Q21<2,"",IF($G21=1,INDEX(estimate,MATCH(1,(group=$O21)*(order=$T21),0)), IF(AND($G21=0,$X21<>0,$D21=1),$X21, IF(AND($G21=0,$X21<>0,$D21=0),$Y21, IF(AND($G21=0,$X21=0),$V21,""))))) -> 100 | AA21: =IF($Q21<2,"",IF($G21=1,INDEX(estimate,MATCH(1,(group=$O21)*(order=$U21),0)), IF(AND($G21=0,$X21<>0,$D21=1),$Y21, IF(AND($G21=0,$X21<>0,$D21=0),$X21, IF(AND($G21=0,$X21=0),$W21,""))))) -> 64.19527 | AB21: =IF($Q21<2,"",IF($G21=1,INDEX(se,MATCH(1,(group=$O21)*(order=$T21),0)), IF(AND($G21=0,$X21<>0,$D21=1),INDEX(se,MATCH(1,(group=$O21)*(estimate=$X21),0)), IF(AND($G21=0,$X21<>0,$D21=0),INDEX(se,MATCH(1,(group=$O21)*(estimate=$Y21),0)), IF(AND($G21=0,$X21=0),INDEX(se,MATCH(1,(group=$O21)*(estimate=$V21),0)),""))))) -> 0 | AC21: =IF($Q21<2,"",IF($G21=1,INDEX(se,MATCH(1,(group=$O21)*(order=$U21),0)), IF(AND($G21=0,$X21<>0,$D21=1),INDEX(se,MATCH(1,(group=$O21)*(estimate=$Y21),0)), IF(AND($G21=0,$X21<>0,$D21=0),INDEX(se,MATCH(1,(group=$O21)*(estimate=$X21),0)), IF(AND($G21=0,$X21=0),INDEX(se,MATCH(1,(group=$O21)*(estimate=$W21),0)),""))))) -> 7.05186 | AD21: 35.80473 | AE21: 7.05186 | AF21: 21.9830844 | AG21: 49.6263756 | AH21: 1.557747167 | AI21: 0.1711187591 | AJ21: 1.25600288 | AK21: 1.93198302 | AL21: 0.006945080407 | AM21: =IF($O21<>"",SUMPRODUCT(IF(group=$O21,1,0),AL:AL,estimate)) -> 91.59668534 | AN21: 0 | AO21: 0 | AP21: 0 | AQ21: 0 | AR21: 0 | BA21: 1000 | BB21: 0.09425756 | BC21: -2.262723948 | BD21: 0 | BE21: 0 | BF21: 0 | BG21: 0 | BH21: =IF($G21=0,0, INDEX(LINEST( IF($BG21=1,INDEX(BF:BF,ROW($BD21),0),INDEX(BF:BF,ROW($BD21)-J21+1,0)): IF($BG21=1,INDEX(BF:BF,ROW($BD21)+COUNTIF(group,$O21)-1,0),INDEX(BF:BF,ROW($BD21)-J21+$Q21,0)), IF($BG21=1,INDEX(BD:BE,ROW($BD21),0),INDEX(BD:BE,ROW($BD21)-J21+1,0)): IF($BG21=1,INDEX(BD:BE,ROW($BD21)+COUNTIF(group,$O21)-1,0),INDEX(BD:BE,ROW($BD21)-J21+$Q21,0)), FALSE),2)) -> 0 | BI21: =IF($G21=0,0, INDEX(LINEST( IF($BG21=1,INDEX(BF:BF,ROW($BD21),0),INDEX(BF:BF,ROW($BD21)-J21+1,0)): IF($BG21=1,INDEX(BF:BF,ROW($BD21)+COUNTIF(group,$O21)-1,0),INDEX(BF:BF,ROW($BD21)-J21+$Q21,0)), IF($BG21=1,INDEX(BD:BE,ROW($BD21),0),INDEX(BD:BE,ROW($BD21)-J21+1,0)): IF($BG21=1,INDEX(BD:BE,ROW($BD21)+COUNTIF(group,$O21)-1,0),INDEX(BD:BE,ROW($BD21)-J21+$Q21,0)), FALSE),1)+ INDEX(LINEST( IF($BG21=1,INDEX(BF:BF,ROW($BD21),0),INDEX(BF:BF,ROW($BD21)-J21+1,0)): IF($BG21=1,INDEX(BF:BF,ROW($BD21)+COUNTIF(group,$O21)-1,0),INDEX(BF:BF,ROW($BD21)-J21+COUNTIF(group,$O21),0)), IF($BG21=1,INDEX(BD:BE,ROW($BD21),0),INDEX(BD:BE,ROW($BD21)-J21+1,0)): IF($BG21=1,INDEX(BD:BE,ROW($BD21)+COUNTIF(group,$O21)-1,0),INDEX(BD:BE,ROW($BD21)-J21+COUNTIF(group,$O21),0)), FALSE),2)) -> 0 | BJ21: 0 | BK21: 0 | BR21: 0 | BS21: 100 | BT21: 149.4627 | BU21: 149.4627 | BV21: 0 | BW21: 9105.770726 | BX21: 849.0988339 | BY21: 10104.33226 | BZ21: 9.17425628 | CA21: 0.003289666458 | CB21: 9.167808534 | CC21: 9.180704027 | CD21: 8.403314658 | CE21: 0.3013225434 | CF21: 7.812722473 | CG21: 8.993906843 | CH21: 2.660874658 | CI21: 0.01847998845 | CJ21: 6.615573235 | CM21: 5.326111683 | CP21: 7.222502878 | CS21: 5.814742818 | CV21: 5.74244 | CW21: 0.03988170753 | CX21: 10.32640382 | DA21: 8.403314658 | DD21: 0 | DE21: 0 | DL21: 0.04917293294 | DM21: 0.002627956566 | DN21: 0.000371166993 | DO21: 1.377649367e-07 | DP21: 0.002816635671 | DQ21: 50.42023119 | DR21: 9.560196696 | DS21: 31.68224566 | DT21: 69.15821671 | DU21: 7.10072047 | DX21: 7.752158763 | EA21: 1.029049901 | EB21: 0.0002046563935 | EC21: 0.0073514907 | ED21: 2.412013981e-07 | EE21: -0.0001988789788 | EF21: 3.52554515e-11 | EG21: 3.143872651 | EH21: 0.0006239330328 | EI21: 3.142649742 | EJ21: 3.14509556 | EK21: 3.307900901 | EL21: 0.000707336858 | EM21: 3.30651452 | EN21: 3.309287281
A22: =IF('DATA INPUT'!A22="","",'DATA INPUT'!A22) -> Indonesia | B22: =IF('DATA INPUT'!B22="","",'DATA INPUT'!B22) -> 2017 | C22: =IF('DATA INPUT'!C22="","",'DATA INPUT'!C22) -> Births attended by skilled health personnel (%) | D22: =IF('DATA INPUT'!I22="","",'DATA INPUT'!I22) -> 1 | E22: =IF('DATA INPUT'!J22="","",'DATA INPUT'!J22) -> 100 | F22: =IF('DATA INPUT'!D22="","",'DATA INPUT'!D22) -> Subnational region | G22: =IF('DATA INPUT'!K22="","",'DATA INPUT'!K22) -> 0 | H22: =IF('DATA INPUT'!E22="","",'DATA INPUT'!E22) -> central java | I22: =IF('DATA INPUT'!M22="","",'DATA INPUT'!M22) -> 0 | J22: =IF('DATA INPUT'!L22="","",'DATA INPUT'!L22) -> 0 | K22: =IF('DATA INPUT'!F22="","",'DATA INPUT'!F22) -> 98.56168 | L22: =IF('DATA INPUT'!G22="","",'DATA INPUT'!G22) -> 0.6476116 | M22: =IF('DATA INPUT'!H22="","",'DATA INPUT'!H22) -> 1221.944 | N22: Indonesia2017Births attended by skilled health personnel (%)Subnational region | O22: 3 | P22: 34 | Q22: 34 | R22: 34 | S22: 0 | T22: =IF($D22=1,MAX(IF(group=$O22,order)),MIN(IF(group=$O22,order))) -> 0 | U22: =IF($D22=1,MIN(IF(group=$O22,order)),MAX(IF(group=$O22,order))) -> 0 | V22: =_xlfn.MAXIFS(estimate,group,$O22) -> 100 | W22: =_xlfn.MINIFS(estimate,group,$O22) -> 64.19527 | X22: 0 | Y22: 64.19527 | Z22: =IF($Q22<2,"",IF($G22=1,INDEX(estimate,MATCH(1,(group=$O22)*(order=$T22),0)), IF(AND($G22=0,$X22<>0,$D22=1),$X22, IF(AND($G22=0,$X22<>0,$D22=0),$Y22, IF(AND($G22=0,$X22=0),$V22,""))))) -> 100 | AA22: =IF($Q22<2,"",IF($G22=1,INDEX(estimate,MATCH(1,(group=$O22)*(order=$U22),0)), IF(AND($G22=0,$X22<>0,$D22=1),$Y22, IF(AND($G22=0,$X22<>0,$D22=0),$X22, IF(AND($G22=0,$X22=0),$W22,""))))) -> 64.19527 | AB22: =IF($Q22<2,"",IF($G22=1,INDEX(se,MATCH(1,(group=$O22)*(order=$T22),0)), IF(AND($G22=0,$X22<>0,$D22=1),INDEX(se,MATCH(1,(group=$O22)*(estimate=$X22),0)), IF(AND($G22=0,$X22<>0,$D22=0),INDEX(se,MATCH(1,(group=$O22)*(estimate=$Y22),0)), IF(AND($G22=0,$X22=0),INDEX(se,MATCH(1,(group=$O22)*(estimate=$V22),0)),""))))) -> 0 | AC22: =IF($Q22<2,"",IF($G22=1,INDEX(se,MATCH(1,(group=$O22)*(order=$U22),0)), IF(AND($G22=0,$X22<>0,$D22=1),INDEX(se,MATCH(1,(group=$O22)*(estimate=$Y22),0)), IF(AND($G22=0,$X22<>0,$D22=0),INDEX(se,MATCH(1,(group=$O22)*(estimate=$X22),0)), IF(AND($G22=0,$X22=0),INDEX(se,MATCH(1,(group=$O22)*(estimate=$W22),0)),""))))) -> 7.05186 | AD22: 35.80473 | AE22: 7.05186 | AF22: 21.9830844 | AG22: 49.6263756 | AH22: 1.557747167 | AI22: 0.1711187591 | AJ22: 1.25600288 | AK22: 1.93198302 | AL22: 0.120932682 | AM22: =IF($O22<>"",SUMPRODUCT(IF(group=$O22,1,0),AL:AL,estimate)) -> 91.59668534 | AN22: 0 | AO22: 0 | AP22: 0 | AQ22: 0 | AR22: 0 | BA22: 1000 | BB22: 0.09856168 | BC22: -2.213309076 | BD22: 0 | BE22: 0 | BF22: 0 | BG22: 0 | BH22: =IF($G22=0,0, INDEX(LINEST( IF($BG22=1,INDEX(BF:BF,ROW($BD22),0),INDEX(BF:BF,ROW($BD22)-J22+1,0)): IF($BG22=1,INDEX(BF:BF,ROW($BD22)+COUNTIF(group,$O22)-1,0),INDEX(BF:BF,ROW($BD22)-J22+$Q22,0)), IF($BG22=1,INDEX(BD:BE,ROW($BD22),0),INDEX(BD:BE,ROW($BD22)-J22+1,0)): IF($BG22=1,INDEX(BD:BE,ROW($BD22)+COUNTIF(group,$O22)-1,0),INDEX(BD:BE,ROW($BD22)-J22+$Q22,0)), FALSE),2)) -> 0 | BI22: =IF($G22=0,0, INDEX(LINEST( IF($BG22=1,INDEX(BF:BF,ROW($BD22),0),INDEX(BF:BF,ROW($BD22)-J22+1,0)): IF($BG22=1,INDEX(BF:BF,ROW($BD22)+COUNTIF(group,$O22)-1,0),INDEX(BF:BF,ROW($BD22)-J22+$Q22,0)), IF($BG22=1,INDEX(BD:BE,ROW($BD22),0),INDEX(BD:BE,ROW($BD22)-J22+1,0)): IF($BG22=1,INDEX(BD:BE,ROW($BD22)+COUNTIF(group,$O22)-1,0),INDEX(BD:BE,ROW($BD22)-J22+$Q22,0)), FALSE),1)+ INDEX(LINEST( IF($BG22=1,INDEX(BF:BF,ROW($BD22),0),INDEX(BF:BF,ROW($BD22)-J22+1,0)): IF($BG22=1,INDEX(BF:BF,ROW($BD22)+COUNTIF(group,$O22)-1,0),INDEX(BF:BF,ROW($BD22)-J22+COUNTIF(group,$O22),0)), IF($BG22=1,INDEX(BD:BE,ROW($BD22),0),INDEX(BD:BE,ROW($BD22)-J22+1,0)): IF($BG22=1,INDEX(BD:BE,ROW($BD22)+COUNTIF(group,$O22)-1,0),INDEX(BD:BE,ROW($BD22)-J22+COUNTIF(group,$O22),0)), FALSE),2)) -> 0 | BJ22: 0 | BK22: 0 | BR22: 0 | BS22: 100 | BT22: 149.4627 | BU22: 149.4627 | BV22: 0 | BW22: 9105.770726 | BX22: 849.0988339 | BY22: 10104.33226 | BZ22: 9.17425628 | CA22: 0.003289666458 | CB22: 9.167808534 | CC22: 9.180704027 | CD22: 8.403314658 | CE22: 0.3013225434 | CF22: 7.812722473 | CG22: 8.993906843 | CH22: 6.964994658 | CI22: 0.8422954841 | CJ22: 6.615573235 | CM22: 5.326111683 | CP22: 7.222502878 | CS22: 5.814742818 | CV22: 1.43832 | CW22: 0.1739398952 | CX22: 10.32640382 | DA22: 8.403314658 | DD22: 0 | DE22: 0 | DL22: 5.866583547 | DM22: 0.2975487862 | DN22: 0.006133616346 | DO22: 3.762124948e-05 | DP22: 0.001987879771 | DQ22: 50.42023119 | DR22: 9.560196696 | DS22: 31.68224566 | DT22: 69.15821671 | DU22: 7.10072047 | DX22: 7.752158763 | EA22: 1.076039811 | EB22: 0.009536778504 | EC22: 0.1396651588 | ED22: 3.017814616e-05 | EE22: -0.00886284913 | EF22: 3.650753179e-09 | EG22: 3.143872651 | EH22: 0.0006239330328 | EI22: 3.142649742 | EJ22: 3.14509556 | EK22: 3.307900901 | EL22: 0.000707336858 | EM22: 3.30651452 | EN22: 3.309287281
A23: =IF('DATA INPUT'!A23="","",'DATA INPUT'!A23) -> Indonesia | B23: =IF('DATA INPUT'!B23="","",'DATA INPUT'!B23) -> 2017 | C23: =IF('DATA INPUT'!C23="","",'DATA INPUT'!C23) -> Births attended by skilled health personnel (%) | D23: =IF('DATA INPUT'!I23="","",'DATA INPUT'!I23) -> 1 | E23: =IF('DATA INPUT'!J23="","",'DATA INPUT'!J23) -> 100 | F23: =IF('DATA INPUT'!D23="","",'DATA INPUT'!D23) -> Subnational region | G23: =IF('DATA INPUT'!K23="","",'DATA INPUT'!K23) -> 0 | H23: =IF('DATA INPUT'!E23="","",'DATA INPUT'!E23) -> central kalimantan | I23: =IF('DATA INPUT'!M23="","",'DATA INPUT'!M23) -> 0 | J23: =IF('DATA INPUT'!L23="","",'DATA INPUT'!L23) -> 0 | K23: =IF('DATA INPUT'!F23="","",'DATA INPUT'!F23) -> 88.9473 | L23: =IF('DATA INPUT'!G23="","",'DATA INPUT'!G23) -> 3.945546 | M23: =IF('DATA INPUT'!H23="","",'DATA INPUT'!H23) -> 91.88274 | N23: Indonesia2017Births attended by skilled health personnel (%)Subnational region | O23: 3 | P23: 34 | Q23: 34 | R23: 34 | S23: 0 | T23: =IF($D23=1,MAX(IF(group=$O23,order)),MIN(IF(group=$O23,order))) -> 0 | U23: =IF($D23=1,MIN(IF(group=$O23,order)),MAX(IF(group=$O23,order))) -> 0 | V23: =_xlfn.MAXIFS(estimate,group,$O23) -> 100 | W23: =_xlfn.MINIFS(estimate,group,$O23) -> 64.19527 | X23: 0 | Y23: 64.19527 | Z23: =IF($Q23<2,"",IF($G23=1,INDEX(estimate,MATCH(1,(group=$O23)*(order=$T23),0)), IF(AND($G23=0,$X23<>0,$D23=1),$X23, IF(AND($G23=0,$X23<>0,$D23=0),$Y23, IF(AND($G23=0,$X23=0),$V23,""))))) -> 100 | AA23: =IF($Q23<2,"",IF($G23=1,INDEX(estimate,MATCH(1,(group=$O23)*(order=$U23),0)), IF(AND($G23=0,$X23<>0,$D23=1),$Y23, IF(AND($G23=0,$X23<>0,$D23=0),$X23, IF(AND($G23=0,$X23=0),$W23,""))))) -> 64.19527 | AB23: =IF($Q23<2,"",IF($G23=1,INDEX(se,MATCH(1,(group=$O23)*(order=$T23),0)), IF(AND($G23=0,$X23<>0,$D23=1),INDEX(se,MATCH(1,(group=$O23)*(estimate=$X23),0)), IF(AND($G23=0,$X23<>0,$D23=0),INDEX(se,MATCH(1,(group=$O23)*(estimate=$Y23),0)), IF(AND($G23=0,$X23=0),INDEX(se,MATCH(1,(group=$O23)*(estimate=$V23),0)),""))))) -> 0 | AC23: =IF($Q23<2,"",IF($G23=1,INDEX(se,MATCH(1,(group=$O23)*(order=$U23),0)), IF(AND($G23=0,$X23<>0,$D23=1),INDEX(se,MATCH(1,(group=$O23)*(estimate=$Y23),0)), IF(AND($G23=0,$X23<>0,$D23=0),INDEX(se,MATCH(1,(group=$O23)*(estimate=$X23),0)), IF(AND($G23=0,$X23=0),INDEX(se,MATCH(1,(group=$O23)*(estimate=$W23),0)),""))))) -> 7.05186 | AD23: 35.80473 | AE23: 7.05186 | AF23: 21.9830844 | AG23: 49.6263756 | AH23: 1.557747167 | AI23: 0.1711187591 | AJ23: 1.25600288 | AK23: 1.93198302 | AL23: 0.009093400498 | AM23: =IF($O23<>"",SUMPRODUCT(IF(group=$O23,1,0),AL:AL,estimate)) -> 91.59668534 | AN23: 0 | AO23: 0 | AP23: 0 | AQ23: 0 | AR23: 0 | BA23: 1000 | BB23: 0.0889473 | BC23: -2.326556685 | BD23: 0 | BE23: 0 | BF23: 0 | BG23: 0 | BH23: =IF($G23=0,0, INDEX(LINEST( IF($BG23=1,INDEX(BF:BF,ROW($BD23),0),INDEX(BF:BF,ROW($BD23)-J23+1,0)): IF($BG23=1,INDEX(BF:BF,ROW($BD23)+COUNTIF(group,$O23)-1,0),INDEX(BF:BF,ROW($BD23)-J23+$Q23,0)), IF($BG23=1,INDEX(BD:BE,ROW($BD23),0),INDEX(BD:BE,ROW($BD23)-J23+1,0)): IF($BG23=1,INDEX(BD:BE,ROW($BD23)+COUNTIF(group,$O23)-1,0),INDEX(BD:BE,ROW($BD23)-J23+$Q23,0)), FALSE),2)) -> 0 | BI23: =IF($G23=0,0, INDEX(LINEST( IF($BG23=1,INDEX(BF:BF,ROW($BD23),0),INDEX(BF:BF,ROW($BD23)-J23+1,0)): IF($BG23=1,INDEX(BF:BF,ROW($BD23)+COUNTIF(group,$O23)-1,0),INDEX(BF:BF,ROW($BD23)-J23+$Q23,0)), IF($BG23=1,INDEX(BD:BE,ROW($BD23),0),INDEX(BD:BE,ROW($BD23)-J23+1,0)): IF($BG23=1,INDEX(BD:BE,ROW($BD23)+COUNTIF(group,$O23)-1,0),INDEX(BD:BE,ROW($BD23)-J23+$Q23,0)), FALSE),1)+ INDEX(LINEST( IF($BG23=1,INDEX(BF:BF,ROW($BD23),0),INDEX(BF:BF,ROW($BD23)-J23+1,0)): IF($BG23=1,INDEX(BF:BF,ROW($BD23)+COUNTIF(group,$O23)-1,0),INDEX(BF:BF,ROW($BD23)-J23+COUNTIF(group,$O23),0)), IF($BG23=1,INDEX(BD:BE,ROW($BD23),0),INDEX(BD:BE,ROW($BD23)-J23+1,0)): IF($BG23=1,INDEX(BD:BE,ROW($BD23)+COUNTIF(group,$O23)-1,0),INDEX(BD:BE,ROW($BD23)-J23+COUNTIF(group,$O23),0)), FALSE),2)) -> 0 | BJ23: 0 | BK23: 0 | BR23: 0 | BS23: 100 | BT23: 149.4627 | BU23: 149.4627 | BV23: 0 | BW23: 9105.770726 | BX23: 849.0988339 | BY23: 10104.33226 | BZ23: 9.17425628 | CA23: 0.003289666458 | CB23: 9.167808534 | CC23: 9.180704027 | CD23: 8.403314658 | CE23: 0.3013225434 | CF23: 7.812722473 | CG23: 8.993906843 | CH23: 2.649385342 | CI23: 0.02409192199 | CJ23: 6.615573235 | CM23: 5.326111683 | CP23: 7.222502878 | CS23: 5.814742818 | CV23: 11.0527 | CW23: 0.1005066277 | CX23: 10.32640382 | DA23: 8.403314658 | DD23: 0 | DE23: 0 | DL23: 0.06382878499 | DM23: 0.009035602536 | DN23: 0.001287261736 | DO23: 1.657042778e-06 | DP23: 0.01967643993 | DQ23: 50.42023119 | DR23: 9.560196696 | DS23: 31.68224566 | DT23: 69.15821671 | DU23: 7.10072047 | DX23: 7.752158763 | EA23: 0.9710755326 | EB23: -0.0002591806694 | EC23: 0.008571198062 | ED23: 1.359243343e-06 | EE23: 0.0002669006279 | EF23: 1.361231729e-10 | EG23: 3.143872651 | EH23: 0.0006239330328 | EI23: 3.142649742 | EJ23: 3.14509556 | EK23: 3.307900901 | EL23: 0.000707336858 | EM23: 3.30651452 | EN23: 3.309287281
A24: =IF('DATA INPUT'!A24="","",'DATA INPUT'!A24) -> Indonesia | B24: =IF('DATA INPUT'!B24="","",'DATA INPUT'!B24) -> 2017 | C24: =IF('DATA INPUT'!C24="","",'DATA INPUT'!C24) -> Births attended by skilled health personnel (%) | D24: =IF('DATA INPUT'!I24="","",'DATA INPUT'!I24) -> 1 | E24: =IF('DATA INPUT'!J24="","",'DATA INPUT'!J24) -> 100 | F24: =IF('DATA INPUT'!D24="","",'DATA INPUT'!D24) -> Subnational region | G24: =IF('DATA INPUT'!K24="","",'DATA INPUT'!K24) -> 0 | H24: =IF('DATA INPUT'!E24="","",'DATA INPUT'!E24) -> central sulawesi | I24: =IF('DATA INPUT'!M24="","",'DATA INPUT'!M24) -> 0 | J24: =IF('DATA INPUT'!L24="","",'DATA INPUT'!L24) -> 0 | K24: =IF('DATA INPUT'!F24="","",'DATA INPUT'!F24) -> 86.67196 | L24: =IF('DATA INPUT'!G24="","",'DATA INPUT'!G24) -> 2.574613 | M24: =IF('DATA INPUT'!H24="","",'DATA INPUT'!H24) -> 124.611 | N24: Indonesia2017Births attended by skilled health personnel (%)Subnational region | O24: 3 | P24: 34 | Q24: 34 | R24: 34 | S24: 0 | T24: =IF($D24=1,MAX(IF(group=$O24,order)),MIN(IF(group=$O24,order))) -> 0 | U24: =IF($D24=1,MIN(IF(group=$O24,order)),MAX(IF(group=$O24,order))) -> 0 | V24: =_xlfn.MAXIFS(estimate,group,$O24) -> 100 | W24: =_xlfn.MINIFS(estimate,group,$O24) -> 64.19527 | X24: 0 | Y24: 64.19527 | Z24: =IF($Q24<2,"",IF($G24=1,INDEX(estimate,MATCH(1,(group=$O24)*(order=$T24),0)), IF(AND($G24=0,$X24<>0,$D24=1),$X24, IF(AND($G24=0,$X24<>0,$D24=0),$Y24, IF(AND($G24=0,$X24=0),$V24,""))))) -> 100 | AA24: =IF($Q24<2,"",IF($G24=1,INDEX(estimate,MATCH(1,(group=$O24)*(order=$U24),0)), IF(AND($G24=0,$X24<>0,$D24=1),$Y24, IF(AND($G24=0,$X24<>0,$D24=0),$X24, IF(AND($G24=0,$X24=0),$W24,""))))) -> 64.19527 | AB24: =IF($Q24<2,"",IF($G24=1,INDEX(se,MATCH(1,(group=$O24)*(order=$T24),0)), IF(AND($G24=0,$X24<>0,$D24=1),INDEX(se,MATCH(1,(group=$O24)*(estimate=$X24),0)), IF(AND($G24=0,$X24<>0,$D24=0),INDEX(se,MATCH(1,(group=$O24)*(estimate=$Y24),0)), IF(AND($G24=0,$X24=0),INDEX(se,MATCH(1,(group=$O24)*(estimate=$V24),0)),""))))) -> 0 | AC24: =IF($Q24<2,"",IF($G24=1,INDEX(se,MATCH(1,(group=$O24)*(order=$U24),0)), IF(AND($G24=0,$X24<>0,$D24=1),INDEX(se,MATCH(1,(group=$O24)*(estimate=$Y24),0)), IF(AND($G24=0,$X24<>0,$D24=0),INDEX(se,MATCH(1,(group=$O24)*(estimate=$X24),0)), IF(AND($G24=0,$X24=0),INDEX(se,MATCH(1,(group=$O24)*(estimate=$W24),0)),""))))) -> 7.05186 | AD24: 35.80473 | AE24: 7.05186 | AF24: 21.9830844 | AG24: 49.6263756 | AH24: 1.557747167 | AI24: 0.1711187591 | AJ24: 1.25600288 | AK24: 1.93198302 | AL24: 0.01233243294 | AM24: =IF($O24<>"",SUMPRODUCT(IF(group=$O24,1,0),AL:AL,estimate)) -> 91.59668534 | AN24: 0 | AO24: 0 | AP24: 0 | AQ24: 0 | AR24: 0 | BA24: 1000 | BB24: 0.08667196 | BC24: -2.354964698 | BD24: 0 | BE24: 0 | BF24: 0 | BG24: 0 | BH24: =IF($G24=0,0, INDEX(LINEST( IF($BG24=1,INDEX(BF:BF,ROW($BD24),0),INDEX(BF:BF,ROW($BD24)-J24+1,0)): IF($BG24=1,INDEX(BF:BF,ROW($BD24)+COUNTIF(group,$O24)-1,0),INDEX(BF:BF,ROW($BD24)-J24+$Q24,0)), IF($BG24=1,INDEX(BD:BE,ROW($BD24),0),INDEX(BD:BE,ROW($BD24)-J24+1,0)): IF($BG24=1,INDEX(BD:BE,ROW($BD24)+COUNTIF(group,$O24)-1,0),INDEX(BD:BE,ROW($BD24)-J24+$Q24,0)), FALSE),2)) -> 0 | BI24: =IF($G24=0,0, INDEX(LINEST( IF($BG24=1,INDEX(BF:BF,ROW($BD24),0),INDEX(BF:BF,ROW($BD24)-J24+1,0)): IF($BG24=1,INDEX(BF:BF,ROW($BD24)+COUNTIF(group,$O24)-1,0),INDEX(BF:BF,ROW($BD24)-J24+$Q24,0)), IF($BG24=1,INDEX(BD:BE,ROW($BD24),0),INDEX(BD:BE,ROW($BD24)-J24+1,0)): IF($BG24=1,INDEX(BD:BE,ROW($BD24)+COUNTIF(group,$O24)-1,0),INDEX(BD:BE,ROW($BD24)-J24+$Q24,0)), FALSE),1)+ INDEX(LINEST( IF($BG24=1,INDEX(BF:BF,ROW($BD24),0),INDEX(BF:BF,ROW($BD24)-J24+1,0)): IF($BG24=1,INDEX(BF:BF,ROW($BD24)+COUNTIF(group,$O24)-1,0),INDEX(BF:BF,ROW($BD24)-J24+COUNTIF(group,$O24),0)), IF($BG24=1,INDEX(BD:BE,ROW($BD24),0),INDEX(BD:BE,ROW($BD24)-J24+1,0)): IF($BG24=1,INDEX(BD:BE,ROW($BD24)+COUNTIF(group,$O24)-1,0),INDEX(BD:BE,ROW($BD24)-J24+COUNTIF(group,$O24),0)), FALSE),2)) -> 0 | BJ24: 0 | BK24: 0 | BR24: 0 | BS24: 100 | BT24: 149.4627 | BU24: 149.4627 | BV24: 0 | BW24: 9105.770726 | BX24: 849.0988339 | BY24: 10104.33226 | BZ24: 9.17425628 | CA24: 0.003289666458 | CB24: 9.167808534 | CC24: 9.180704027 | CD24: 8.403314658 | CE24: 0.3013225434 | CF24: 7.812722473 | CG24: 8.993906843 | CH24: 4.924725342 | CI24: 0.06073384503 | CJ24: 6.615573235 | CM24: 5.326111683 | CP24: 7.222502878 | CS24: 5.814742818 | CV24: 13.32804 | CW24: 0.1643671595 | CX24: 10.32640382 | DA24: 8.403314658 | DD24: 0 | DE24: 0 | DL24: 0.2990975058 | DM24: 0.02445037191 | DN24: 0.001008141379 | DO24: 1.016349041e-06 | DP24: 0.006518789266 | DQ24: 50.42023119 | DR24: 9.560196696 | DS24: 31.68224566 | DT24: 69.15821671 | DU24: 7.10072047 | DX24: 7.752158763 | EA24: 0.9462346773 | EB24: -0.000644904167 | EC24: 0.01102447154 | ED24: 3.439332335e-06 | EE24: 0.0006815478047 | EF24: 3.87943713e-10 | EG24: 3.143872651 | EH24: 0.0006239330328 | EI24: 3.142649742 | EJ24: 3.14509556 | EK24: 3.307900901 | EL24: 0.000707336858 | EM24: 3.30651452 | EN24: 3.309287281
A25: =IF('DATA INPUT'!A25="","",'DATA INPUT'!A25) -> Indonesia | B25: =IF('DATA INPUT'!B25="","",'DATA INPUT'!B25) -> 2017 | C25: =IF('DATA INPUT'!C25="","",'DATA INPUT'!C25) -> Births attended by skilled health personnel (%) | D25: =IF('DATA INPUT'!I25="","",'DATA INPUT'!I25) -> 1 | E25: =IF('DATA INPUT'!J25="","",'DATA INPUT'!J25) -> 100 | F25: =IF('DATA INPUT'!D25="","",'DATA INPUT'!D25) -> Subnational region | G25: =IF('DATA INPUT'!K25="","",'DATA INPUT'!K25) -> 0 | H25: =IF('DATA INPUT'!E25="","",'DATA INPUT'!E25) -> east java | I25: =IF('DATA INPUT'!M25="","",'DATA INPUT'!M25) -> 0 | J25: =IF('DATA INPUT'!L25="","",'DATA INPUT'!L25) -> 0 | K25: =IF('DATA INPUT'!F25="","",'DATA INPUT'!F25) -> 97.09818 | L25: =IF('DATA INPUT'!G25="","",'DATA INPUT'!G25) -> 1.044936 | M25: =IF('DATA INPUT'!H25="","",'DATA INPUT'!H25) -> 1257.449 | N25: Indonesia2017Births attended by skilled health personnel (%)Subnational region | O25: 3 | P25: 34 | Q25: 34 | R25: 34 | S25: 0 | T25: =IF($D25=1,MAX(IF(group=$O25,order)),MIN(IF(group=$O25,order))) -> 0 | U25: =IF($D25=1,MIN(IF(group=$O25,order)),MAX(IF(group=$O25,order))) -> 0 | V25: =_xlfn.MAXIFS(estimate,group,$O25) -> 100 | W25: =_xlfn.MINIFS(estimate,group,$O25) -> 64.19527 | X25: 0 | Y25: 64.19527 | Z25: =IF($Q25<2,"",IF($G25=1,INDEX(estimate,MATCH(1,(group=$O25)*(order=$T25),0)), IF(AND($G25=0,$X25<>0,$D25=1),$X25, IF(AND($G25=0,$X25<>0,$D25=0),$Y25, IF(AND($G25=0,$X25=0),$V25,""))))) -> 100 | AA25: =IF($Q25<2,"",IF($G25=1,INDEX(estimate,MATCH(1,(group=$O25)*(order=$U25),0)), IF(AND($G25=0,$X25<>0,$D25=1),$Y25, IF(AND($G25=0,$X25<>0,$D25=0),$X25, IF(AND($G25=0,$X25=0),$W25,""))))) -> 64.19527 | AB25: =IF($Q25<2,"",IF($G25=1,INDEX(se,MATCH(1,(group=$O25)*(order=$T25),0)), IF(AND($G25=0,$X25<>0,$D25=1),INDEX(se,MATCH(1,(group=$O25)*(estimate=$X25),0)), IF(AND($G25=0,$X25<>0,$D25=0),INDEX(se,MATCH(1,(group=$O25)*(estimate=$Y25),0)), IF(AND($G25=0,$X25=0),INDEX(se,MATCH(1,(group=$O25)*(estimate=$V25),0)),""))))) -> 0 | AC25: =IF($Q25<2,"",IF($G25=1,INDEX(se,MATCH(1,(group=$O25)*(order=$U25),0)), IF(AND($G25=0,$X25<>0,$D25=1),INDEX(se,MATCH(1,(group=$O25)*(estimate=$Y25),0)), IF(AND($G25=0,$X25<>0,$D25=0),INDEX(se,MATCH(1,(group=$O25)*(estimate=$X25),0)), IF(AND($G25=0,$X25=0),INDEX(se,MATCH(1,(group=$O25)*(estimate=$W25),0)),""))))) -> 7.05186 | AD25: 35.80473 | AE25: 7.05186 | AF25: 21.9830844 | AG25: 49.6263756 | AH25: 1.557747167 | AI25: 0.1711187591 | AJ25: 1.25600288 | AK25: 1.93198302 | AL25: 0.1244465213 | AM25: =IF($O25<>"",SUMPRODUCT(IF(group=$O25,1,0),AL:AL,estimate)) -> 91.59668534 | AN25: 0 | AO25: 0 | AP25: 0 | AQ25: 0 | AR25: 0 | BA25: 1000 | BB25: 0.09709818 | BC25: -2.229891189 | BD25: 0 | BE25: 0 | BF25: 0 | BG25: 0 | BH25: =IF($G25=0,0, INDEX(LINEST( IF($BG25=1,INDEX(BF:BF,ROW($BD25),0),INDEX(BF:BF,ROW($BD25)-J25+1,0)): IF($BG25=1,INDEX(BF:BF,ROW($BD25)+COUNTIF(group,$O25)-1,0),INDEX(BF:BF,ROW($BD25)-J25+$Q25,0)), IF($BG25=1,INDEX(BD:BE,ROW($BD25),0),INDEX(BD:BE,ROW($BD25)-J25+1,0)): IF($BG25=1,INDEX(BD:BE,ROW($BD25)+COUNTIF(group,$O25)-1,0),INDEX(BD:BE,ROW($BD25)-J25+$Q25,0)), FALSE),2)) -> 0 | BI25: =IF($G25=0,0, INDEX(LINEST( IF($BG25=1,INDEX(BF:BF,ROW($BD25),0),INDEX(BF:BF,ROW($BD25)-J25+1,0)): IF($BG25=1,INDEX(BF:BF,ROW($BD25)+COUNTIF(group,$O25)-1,0),INDEX(BF:BF,ROW($BD25)-J25+$Q25,0)), IF($BG25=1,INDEX(BD:BE,ROW($BD25),0),INDEX(BD:BE,ROW($BD25)-J25+1,0)): IF($BG25=1,INDEX(BD:BE,ROW($BD25)+COUNTIF(group,$O25)-1,0),INDEX(BD:BE,ROW($BD25)-J25+$Q25,0)), FALSE),1)+ INDEX(LINEST( IF($BG25=1,INDEX(BF:BF,ROW($BD25),0),INDEX(BF:BF,ROW($BD25)-J25+1,0)): IF($BG25=1,INDEX(BF:BF,ROW($BD25)+COUNTIF(group,$O25)-1,0),INDEX(BF:BF,ROW($BD25)-J25+COUNTIF(group,$O25),0)), IF($BG25=1,INDEX(BD:BE,ROW($BD25),0),INDEX(BD:BE,ROW($BD25)-J25+1,0)): IF($BG25=1,INDEX(BD:BE,ROW($BD25)+COUNTIF(group,$O25)-1,0),INDEX(BD:BE,ROW($BD25)-J25+COUNTIF(group,$O25),0)), FALSE),2)) -> 0 | BJ25: 0 | BK25: 0 | BR25: 0 | BS25: 100 | BT25: 149.4627 | BU25: 149.4627 | BV25: 0 | BW25: 9105.770726 | BX25: 849.0988339 | BY25: 10104.33226 | BZ25: 9.17425628 | CA25: 0.003289666458 | CB25: 9.167808534 | CC25: 9.180704027 | CD25: 8.403314658 | CE25: 0.3013225434 | CF25: 7.812722473 | CG25: 8.993906843 | CH25: 5.501494658 | CI25: 0.6846418722 | CJ25: 6.615573235 | CM25: 5.326111683 | CP25: 7.222502878 | CS25: 5.814742818 | CV25: 2.90182 | CW25: 0.3611214045 | CX25: 10.32640382 | DA25: 8.403314658 | DD25: 0 | DE25: 0 | DL25: 3.766553602 | DM25: 0.5118070889 | DN25: 0.01691005055 | DO25: 0.0002859498095 | DP25: 0.0141543407 | DQ25: 50.42023119 | DR25: 9.560196696 | DS25: 31.68224566 | DT25: 69.15821671 | DU25: 7.10072047 | DX25: 7.752158763 | EA25: 1.060062159 | EB25: 0.007694631097 | EC25: 0.1396156791 | ED25: 5.14951266e-05 | EE25: -0.00725866029 | EF25: 6.470302747e-09 | EG25: 3.143872651 | EH25: 0.0006239330328 | EI25: 3.142649742 | EJ25: 3.14509556 | EK25: 3.307900901 | EL25: 0.000707336858 | EM25: 3.30651452 | EN25: 3.309287281
A26: =IF('DATA INPUT'!A26="","",'DATA INPUT'!A26) -> Indonesia | B26: =IF('DATA INPUT'!B26="","",'DATA INPUT'!B26) -> 2017 | C26: =IF('DATA INPUT'!C26="","",'DATA INPUT'!C26) -> Births attended by skilled health personnel (%) | D26: =IF('DATA INPUT'!I26="","",'DATA INPUT'!I26) -> 1 | E26: =IF('DATA INPUT'!J26="","",'DATA INPUT'!J26) -> 100 | F26: =IF('DATA INPUT'!D26="","",'DATA INPUT'!D26) -> Subnational region | G26: =IF('DATA INPUT'!K26="","",'DATA INPUT'!K26) -> 0 | H26: =IF('DATA INPUT'!E26="","",'DATA INPUT'!E26) -> east kalimantan | I26: =IF('DATA INPUT'!M26="","",'DATA INPUT'!M26) -> 0 | J26: =IF('DATA INPUT'!L26="","",'DATA INPUT'!L26) -> 0 | K26: =IF('DATA INPUT'!F26="","",'DATA INPUT'!F26) -> 96.59196 | L26: =IF('DATA INPUT'!G26="","",'DATA INPUT'!G26) -> 1.203287 | M26: =IF('DATA INPUT'!H26="","",'DATA INPUT'!H26) -> 138.3835 | N26: Indonesia2017Births attended by skilled health personnel (%)Subnational region | O26: 3 | P26: 34 | Q26: 34 | R26: 34 | S26: 0 | T26: =IF($D26=1,MAX(IF(group=$O26,order)),MIN(IF(group=$O26,order))) -> 0 | U26: =IF($D26=1,MIN(IF(group=$O26,order)),MAX(IF(group=$O26,order))) -> 0 | V26: =_xlfn.MAXIFS(estimate,group,$O26) -> 100 | W26: =_xlfn.MINIFS(estimate,group,$O26) -> 64.19527 | X26: 0 | Y26: 64.19527 | Z26: =IF($Q26<2,"",IF($G26=1,INDEX(estimate,MATCH(1,(group=$O26)*(order=$T26),0)), IF(AND($G26=0,$X26<>0,$D26=1),$X26, IF(AND($G26=0,$X26<>0,$D26=0),$Y26, IF(AND($G26=0,$X26=0),$V26,""))))) -> 100 | AA26: =IF($Q26<2,"",IF($G26=1,INDEX(estimate,MATCH(1,(group=$O26)*(order=$U26),0)), IF(AND($G26=0,$X26<>0,$D26=1),$Y26, IF(AND($G26=0,$X26<>0,$D26=0),$X26, IF(AND($G26=0,$X26=0),$W26,""))))) -> 64.19527 | AB26: =IF($Q26<2,"",IF($G26=1,INDEX(se,MATCH(1,(group=$O26)*(order=$T26),0)), IF(AND($G26=0,$X26<>0,$D26=1),INDEX(se,MATCH(1,(group=$O26)*(estimate=$X26),0)), IF(AND($G26=0,$X26<>0,$D26=0),INDEX(se,MATCH(1,(group=$O26)*(estimate=$Y26),0)), IF(AND($G26=0,$X26=0),INDEX(se,MATCH(1,(group=$O26)*(estimate=$V26),0)),""))))) -> 0 | AC26: =IF($Q26<2,"",IF($G26=1,INDEX(se,MATCH(1,(group=$O26)*(order=$U26),0)), IF(AND($G26=0,$X26<>0,$D26=1),INDEX(se,MATCH(1,(group=$O26)*(estimate=$Y26),0)), IF(AND($G26=0,$X26<>0,$D26=0),INDEX(se,MATCH(1,(group=$O26)*(estimate=$X26),0)), IF(AND($G26=0,$X26=0),INDEX(se,MATCH(1,(group=$O26)*(estimate=$W26),0)),""))))) -> 7.05186 | AD26: 35.80473 | AE26: 7.05186 | AF26: 21.9830844 | AG26: 49.6263756 | AH26: 1.557747167 | AI26: 0.1711187591 | AJ26: 1.25600288 | AK26: 1.93198302 | AL26: 0.01369546215 | AM26: =IF($O26<>"",SUMPRODUCT(IF(group=$O26,1,0),AL:AL,estimate)) -> 91.59668534 | AN26: 0 | AO26: 0 | AP26: 0 | AQ26: 0 | AR26: 0 | BA26: 1000 | BB26: 0.09659196 | BC26: -2.235678815 | BD26: 0 | BE26: 0 | BF26: 0 | BG26: 0 | BH26: =IF($G26=0,0, INDEX(LINEST( IF($BG26=1,INDEX(BF:BF,ROW($BD26),0),INDEX(BF:BF,ROW($BD26)-J26+1,0)): IF($BG26=1,INDEX(BF:BF,ROW($BD26)+COUNTIF(group,$O26)-1,0),INDEX(BF:BF,ROW($BD26)-J26+$Q26,0)), IF($BG26=1,INDEX(BD:BE,ROW($BD26),0),INDEX(BD:BE,ROW($BD26)-J26+1,0)): IF($BG26=1,INDEX(BD:BE,ROW($BD26)+COUNTIF(group,$O26)-1,0),INDEX(BD:BE,ROW($BD26)-J26+$Q26,0)), FALSE),2)) -> 0 | BI26: =IF($G26=0,0, INDEX(LINEST( IF($BG26=1,INDEX(BF:BF,ROW($BD26),0),INDEX(BF:BF,ROW($BD26)-J26+1,0)): IF($BG26=1,INDEX(BF:BF,ROW($BD26)+COUNTIF(group,$O26)-1,0),INDEX(BF:BF,ROW($BD26)-J26+$Q26,0)), IF($BG26=1,INDEX(BD:BE,ROW($BD26),0),INDEX(BD:BE,ROW($BD26)-J26+1,0)): IF($BG26=1,INDEX(BD:BE,ROW($BD26)+COUNTIF(group,$O26)-1,0),INDEX(BD:BE,ROW($BD26)-J26+$Q26,0)), FALSE),1)+ INDEX(LINEST( IF($BG26=1,INDEX(BF:BF,ROW($BD26),0),INDEX(BF:BF,ROW($BD26)-J26+1,0)): IF($BG26=1,INDEX(BF:BF,ROW($BD26)+COUNTIF(group,$O26)-1,0),INDEX(BF:BF,ROW($BD26)-J26+COUNTIF(group,$O26),0)), IF($BG26=1,INDEX(BD:BE,ROW($BD26),0),INDEX(BD:BE,ROW($BD26)-J26+1,0)): IF($BG26=1,INDEX(BD:BE,ROW($BD26)+COUNTIF(group,$O26)-1,0),INDEX(BD:BE,ROW($BD26)-J26+COUNTIF(group,$O26),0)), FALSE),2)) -> 0 | BJ26: 0 | BK26: 0 | BR26: 0 | BS26: 100 | BT26: 149.4627 | BU26: 149.4627 | BV26: 0 | BW26: 9105.770726 | BX26: 849.0988339 | BY26: 10104.33226 | BZ26: 9.17425628 | CA26: 0.003289666458 | CB26: 9.167808534 | CC26: 9.180704027 | CD26: 8.403314658 | CE26: 0.3013225434 | CF26: 7.812722473 | CG26: 8.993906843 | CH26: 4.995274658 | CI26: 0.06841259499 | CJ26: 6.615573235 | CM26: 5.326111683 | CP26: 7.222502878 | CS26: 5.814742818 | CV26: 3.40804 | CW26: 0.04667468282 | CX26: 10.32640382 | DA26: 8.403314658 | DD26: 0 | DE26: 0 | DL26: 0.341739702 | DM26: 0.006776580127 | DN26: 0.0002715762789 | DO26: 7.375367524e-08 | DP26: 0.000382518413 | DQ26: 50.42023119 | DR26: 9.560196696 | DS26: 31.68224566 | DT26: 69.15821671 | DU26: 7.10072047 | DX26: 7.752158763 | EA26: 1.05453554 | EB26: 0.0007668949792 | EC26: 0.01520924655 | ED26: 6.777612241e-07 | EE26: -0.0007272348351 | EF26: 8.657033631e-11 | EG26: 3.143872651 | EH26: 0.0006239330328 | EI26: 3.142649742 | EJ26: 3.14509556 | EK26: 3.307900901 | EL26: 0.000707336858 | EM26: 3.30651452 | EN26: 3.309287281
A27: =IF('DATA INPUT'!A27="","",'DATA INPUT'!A27) -> Indonesia | B27: =IF('DATA INPUT'!B27="","",'DATA INPUT'!B27) -> 2017 | C27: =IF('DATA INPUT'!C27="","",'DATA INPUT'!C27) -> Births attended by skilled health personnel (%) | D27: =IF('DATA INPUT'!I27="","",'DATA INPUT'!I27) -> 1 | E27: =IF('DATA INPUT'!J27="","",'DATA INPUT'!J27) -> 100 | F27: =IF('DATA INPUT'!D27="","",'DATA INPUT'!D27) -> Subnational region | G27: =IF('DATA INPUT'!K27="","",'DATA INPUT'!K27) -> 0 | H27: =IF('DATA INPUT'!E27="","",'DATA INPUT'!E27) -> east nusa tenggara | I27: =IF('DATA INPUT'!M27="","",'DATA INPUT'!M27) -> 0 | J27: =IF('DATA INPUT'!L27="","",'DATA INPUT'!L27) -> 0 | K27: =IF('DATA INPUT'!F27="","",'DATA INPUT'!F27) -> 75.43341 | L27: =IF('DATA INPUT'!G27="","",'DATA INPUT'!G27) -> 3.232306 | M27: =IF('DATA INPUT'!H27="","",'DATA INPUT'!H27) -> 252.1261 | N27: Indonesia2017Births attended by skilled health personnel (%)Subnational region | O27: 3 | P27: 34 | Q27: 34 | R27: 34 | S27: 0 | T27: =IF($D27=1,MAX(IF(group=$O27,order)),MIN(IF(group=$O27,order))) -> 0 | U27: =IF($D27=1,MIN(IF(group=$O27,order)),MAX(IF(group=$O27,order))) -> 0 | V27: =_xlfn.MAXIFS(estimate,group,$O27) -> 100 | W27: =_xlfn.MINIFS(estimate,group,$O27) -> 64.19527 | X27: 0 | Y27: 64.19527 | Z27: =IF($Q27<2,"",IF($G27=1,INDEX(estimate,MATCH(1,(group=$O27)*(order=$T27),0)), IF(AND($G27=0,$X27<>0,$D27=1),$X27, IF(AND($G27=0,$X27<>0,$D27=0),$Y27, IF(AND($G27=0,$X27=0),$V27,""))))) -> 100 | AA27: =IF($Q27<2,"",IF($G27=1,INDEX(estimate,MATCH(1,(group=$O27)*(order=$U27),0)), IF(AND($G27=0,$X27<>0,$D27=1),$Y27, IF(AND($G27=0,$X27<>0,$D27=0),$X27, IF(AND($G27=0,$X27=0),$W27,""))))) -> 64.19527 | AB27: =IF($Q27<2,"",IF($G27=1,INDEX(se,MATCH(1,(group=$O27)*(order=$T27),0)), IF(AND($G27=0,$X27<>0,$D27=1),INDEX(se,MATCH(1,(group=$O27)*(estimate=$X27),0)), IF(AND($G27=0,$X27<>0,$D27=0),INDEX(se,MATCH(1,(group=$O27)*(estimate=$Y27),0)), IF(AND($G27=0,$X27=0),INDEX(se,MATCH(1,(group=$O27)*(estimate=$V27),0)),""))))) -> 0 | AC27: =IF($Q27<2,"",IF($G27=1,INDEX(se,MATCH(1,(group=$O27)*(order=$U27),0)), IF(AND($G27=0,$X27<>0,$D27=1),INDEX(se,MATCH(1,(group=$O27)*(estimate=$Y27),0)), IF(AND($G27=0,$X27<>0,$D27=0),INDEX(se,MATCH(1,(group=$O27)*(estimate=$X27),0)), IF(AND($G27=0,$X27=0),INDEX(se,MATCH(1,(group=$O27)*(estimate=$W27),0)),""))))) -> 7.05186 | AD27: 35.80473 | AE27: 7.05186 | AF27: 21.9830844 | AG27: 49.6263756 | AH27: 1.557747167 | AI27: 0.1711187591 | AJ27: 1.25600288 | AK27: 1.93198302 | AL27: 0.02495227725 | AM27: =IF($O27<>"",SUMPRODUCT(IF(group=$O27,1,0),AL:AL,estimate)) -> 91.59668534 | AN27: 0 | AO27: 0 | AP27: 0 | AQ27: 0 | AR27: 0 | BA27: 1000 | BB27: 0.07543341 | BC27: -2.506074796 | BD27: 0 | BE27: 0 | BF27: 0 | BG27: 0 | BH27: =IF($G27=0,0, INDEX(LINEST( IF($BG27=1,INDEX(BF:BF,ROW($BD27),0),INDEX(BF:BF,ROW($BD27)-J27+1,0)): IF($BG27=1,INDEX(BF:BF,ROW($BD27)+COUNTIF(group,$O27)-1,0),INDEX(BF:BF,ROW($BD27)-J27+$Q27,0)), IF($BG27=1,INDEX(BD:BE,ROW($BD27),0),INDEX(BD:BE,ROW($BD27)-J27+1,0)): IF($BG27=1,INDEX(BD:BE,ROW($BD27)+COUNTIF(group,$O27)-1,0),INDEX(BD:BE,ROW($BD27)-J27+$Q27,0)), FALSE),2)) -> 0 | BI27: =IF($G27=0,0, INDEX(LINEST( IF($BG27=1,INDEX(BF:BF,ROW($BD27),0),INDEX(BF:BF,ROW($BD27)-J27+1,0)): IF($BG27=1,INDEX(BF:BF,ROW($BD27)+COUNTIF(group,$O27)-1,0),INDEX(BF:BF,ROW($BD27)-J27+$Q27,0)), IF($BG27=1,INDEX(BD:BE,ROW($BD27),0),INDEX(BD:BE,ROW($BD27)-J27+1,0)): IF($BG27=1,INDEX(BD:BE,ROW($BD27)+COUNTIF(group,$O27)-1,0),INDEX(BD:BE,ROW($BD27)-J27+$Q27,0)), FALSE),1)+ INDEX(LINEST( IF($BG27=1,INDEX(BF:BF,ROW($BD27),0),INDEX(BF:BF,ROW($BD27)-J27+1,0)): IF($BG27=1,INDEX(BF:BF,ROW($BD27)+COUNTIF(group,$O27)-1,0),INDEX(BF:BF,ROW($BD27)-J27+COUNTIF(group,$O27),0)), IF($BG27=1,INDEX(BD:BE,ROW($BD27),0),INDEX(BD:BE,ROW($BD27)-J27+1,0)): IF($BG27=1,INDEX(BD:BE,ROW($BD27)+COUNTIF(group,$O27)-1,0),INDEX(BD:BE,ROW($BD27)-J27+COUNTIF(group,$O27),0)), FALSE),2)) -> 0 | BJ27: 0 | BK27: 0 | BR27: 0 | BS27: 100 | BT27: 149.4627 | BU27: 149.4627 | BV27: 0 | BW27: 9105.770726 | BX27: 849.0988339 | BY27: 10104.33226 | BZ27: 9.17425628 | CA27: 0.003289666458 | CB27: 9.167808534 | CC27: 9.180704027 | CD27: 8.403314658 | CE27: 0.3013225434 | CF27: 7.812722473 | CG27: 8.993906843 | CH27: 16.16327534 | CI27: 0.4033105276 | CJ27: 6.615573235 | CM27: 5.326111683 | CP27: 7.222502878 | CS27: 5.814742818 | CV27: 24.56659 | CW27: 0.6129923648 | CX27: 10.32640382 | DA27: 8.403314658 | DD27: 0 | DE27: 0 | DL27: 6.518819107 | DM27: 1.699433026 | DN27: 0.006504970202 | DO27: 4.231463733e-05 | DP27: 0.0646133105 | DQ27: 50.42023119 | DR27: 9.560196696 | DS27: 31.68224566 | DT27: 69.15821671 | DU27: 7.10072047 | DX27: 7.752158763 | EA27: 0.8235386435 | EB27: -0.003989513536 | EC27: 0.01655965103 | ED27: 0.0002531917981 | EE27: 0.004844354989 | EF27: 3.559729985e-08 | EG27: 3.143872651 | EH27: 0.0006239330328 | EI27: 3.142649742 | EJ27: 3.14509556 | EK27: 3.307900901 | EL27: 0.000707336858 | EM27: 3.30651452 | EN27: 3.309287281
A28: =IF('DATA INPUT'!A28="","",'DATA INPUT'!A28) -> Indonesia | B28: =IF('DATA INPUT'!B28="","",'DATA INPUT'!B28) -> 2017 | C28: =IF('DATA INPUT'!C28="","",'DATA INPUT'!C28) -> Births attended by skilled health personnel (%) | D28: =IF('DATA INPUT'!I28="","",'DATA INPUT'!I28) -> 1 | E28: =IF('DATA INPUT'!J28="","",'DATA INPUT'!J28) -> 100 | F28: =IF('DATA INPUT'!D28="","",'DATA INPUT'!D28) -> Subnational region | G28: =IF('DATA INPUT'!K28="","",'DATA INPUT'!K28) -> 0 | H28: =IF('DATA INPUT'!E28="","",'DATA INPUT'!E28) -> gorontalo | I28: =IF('DATA INPUT'!M28="","",'DATA INPUT'!M28) -> 0 | J28: =IF('DATA INPUT'!L28="","",'DATA INPUT'!L28) -> 0 | K28: =IF('DATA INPUT'!F28="","",'DATA INPUT'!F28) -> 92.83402 | L28: =IF('DATA INPUT'!G28="","",'DATA INPUT'!G28) -> 2.466728 | M28: =IF('DATA INPUT'!H28="","",'DATA INPUT'!H28) -> 47.24884 | N28: Indonesia2017Births attended by skilled health personnel (%)Subnational region | O28: 3 | P28: 34 | Q28: 34 | R28: 34 | S28: 0 | T28: =IF($D28=1,MAX(IF(group=$O28,order)),MIN(IF(group=$O28,order))) -> 0 | U28: =IF($D28=1,MIN(IF(group=$O28,order)),MAX(IF(group=$O28,order))) -> 0 | V28: =_xlfn.MAXIFS(estimate,group,$O28) -> 100 | W28: =_xlfn.MINIFS(estimate,group,$O28) -> 64.19527 | X28: 0 | Y28: 64.19527 | Z28: =IF($Q28<2,"",IF($G28=1,INDEX(estimate,MATCH(1,(group=$O28)*(order=$T28),0)), IF(AND($G28=0,$X28<>0,$D28=1),$X28, IF(AND($G28=0,$X28<>0,$D28=0),$Y28, IF(AND($G28=0,$X28=0),$V28,""))))) -> 100 | AA28: =IF($Q28<2,"",IF($G28=1,INDEX(estimate,MATCH(1,(group=$O28)*(order=$U28),0)), IF(AND($G28=0,$X28<>0,$D28=1),$Y28, IF(AND($G28=0,$X28<>0,$D28=0),$X28, IF(AND($G28=0,$X28=0),$W28,""))))) -> 64.19527 | AB28: =IF($Q28<2,"",IF($G28=1,INDEX(se,MATCH(1,(group=$O28)*(order=$T28),0)), IF(AND($G28=0,$X28<>0,$D28=1),INDEX(se,MATCH(1,(group=$O28)*(estimate=$X28),0)), IF(AND($G28=0,$X28<>0,$D28=0),INDEX(se,MATCH(1,(group=$O28)*(estimate=$Y28),0)), IF(AND($G28=0,$X28=0),INDEX(se,MATCH(1,(group=$O28)*(estimate=$V28),0)),""))))) -> 0 | AC28: =IF($Q28<2,"",IF($G28=1,INDEX(se,MATCH(1,(group=$O28)*(order=$U28),0)), IF(AND($G28=0,$X28<>0,$D28=1),INDEX(se,MATCH(1,(group=$O28)*(estimate=$Y28),0)), IF(AND($G28=0,$X28<>0,$D28=0),INDEX(se,MATCH(1,(group=$O28)*(estimate=$X28),0)), IF(AND($G28=0,$X28=0),INDEX(se,MATCH(1,(group=$O28)*(estimate=$W28),0)),""))))) -> 7.05186 | AD28: 35.80473 | AE28: 7.05186 | AF28: 21.9830844 | AG28: 49.6263756 | AH28: 1.557747167 | AI28: 0.1711187591 | AJ28: 1.25600288 | AK28: 1.93198302 | AL28: 0.004676097221 | AM28: =IF($O28<>"",SUMPRODUCT(IF(group=$O28,1,0),AL:AL,estimate)) -> 91.59668534 | AN28: 0 | AO28: 0 | AP28: 0 | AQ28: 0 | AR28: 0 | BA28: 1000 | BB28: 0.09283402 | BC28: -2.279512265 | BD28: 0 | BE28: 0 | BF28: 0 | BG28: 0 | BH28: =IF($G28=0,0, INDEX(LINEST( IF($BG28=1,INDEX(BF:BF,ROW($BD28),0),INDEX(BF:BF,ROW($BD28)-J28+1,0)): IF($BG28=1,INDEX(BF:BF,ROW($BD28)+COUNTIF(group,$O28)-1,0),INDEX(BF:BF,ROW($BD28)-J28+$Q28,0)), IF($BG28=1,INDEX(BD:BE,ROW($BD28),0),INDEX(BD:BE,ROW($BD28)-J28+1,0)): IF($BG28=1,INDEX(BD:BE,ROW($BD28)+COUNTIF(group,$O28)-1,0),INDEX(BD:BE,ROW($BD28)-J28+$Q28,0)), FALSE),2)) -> 0 | BI28: =IF($G28=0,0, INDEX(LINEST( IF($BG28=1,INDEX(BF:BF,ROW($BD28),0),INDEX(BF:BF,ROW($BD28)-J28+1,0)): IF($BG28=1,INDEX(BF:BF,ROW($BD28)+COUNTIF(group,$O28)-1,0),INDEX(BF:BF,ROW($BD28)-J28+$Q28,0)), IF($BG28=1,INDEX(BD:BE,ROW($BD28),0),INDEX(BD:BE,ROW($BD28)-J28+1,0)): IF($BG28=1,INDEX(BD:BE,ROW($BD28)+COUNTIF(group,$O28)-1,0),INDEX(BD:BE,ROW($BD28)-J28+$Q28,0)), FALSE),1)+ INDEX(LINEST( IF($BG28=1,INDEX(BF:BF,ROW($BD28),0),INDEX(BF:BF,ROW($BD28)-J28+1,0)): IF($BG28=1,INDEX(BF:BF,ROW($BD28)+COUNTIF(group,$O28)-1,0),INDEX(BF:BF,ROW($BD28)-J28+COUNTIF(group,$O28),0)), IF($BG28=1,INDEX(BD:BE,ROW($BD28),0),INDEX(BD:BE,ROW($BD28)-J28+1,0)): IF($BG28=1,INDEX(BD:BE,ROW($BD28)+COUNTIF(group,$O28)-1,0),INDEX(BD:BE,ROW($BD28)-J28+COUNTIF(group,$O28),0)), FALSE),2)) -> 0 | BJ28: 0 | BK28: 0 | BR28: 0 | BS28: 100 | BT28: 149.4627 | BU28: 149.4627 | BV28: 0 | BW28: 9105.770726 | BX28: 849.0988339 | BY28: 10104.33226 | BZ28: 9.17425628 | CA28: 0.003289666458 | CB28: 9.167808534 | CC28: 9.180704027 | CD28: 8.403314658 | CE28: 0.3013225434 | CF28: 7.812722473 | CG28: 8.993906843 | CH28: 1.237334658 | CI28: 0.005785897154 | CJ28: 6.615573235 | CM28: 5.326111683 | CP28: 7.222502878 | CS28: 5.814742818 | CV28: 7.16598 | CW28: 0.03350881916 | CX28: 10.32640382 | DA28: 8.403314658 | DD28: 0 | DE28: 0 | DL28: 0.007159091075 | DM28: 0.0002036966781 | DN28: 0.0001330483801 | DO28: 1.770187144e-08 | DP28: 0.0008020122206 | DQ28: 50.42023119 | DR28: 9.560196696 | DS28: 31.68224566 | DT28: 69.15821671 | DU28: 7.10072047 | DX28: 7.752158763 | EA28: 1.013508509 | EB28: 6.359184031e-05 | EC28: 0.004802856163 | ED28: 1.404450594e-08 | EE28: -6.274425892e-05 | EF28: 2.817150938e-12 | EG28: 3.143872651 | EH28: 0.0006239330328 | EI28: 3.142649742 | EJ28: 3.14509556 | EK28: 3.307900901 | EL28: 0.000707336858 | EM28: 3.30651452 | EN28: 3.309287281
A29: =IF('DATA INPUT'!A29="","",'DATA INPUT'!A29) -> Indonesia | B29: =IF('DATA INPUT'!B29="","",'DATA INPUT'!B29) -> 2017 | C29: =IF('DATA INPUT'!C29="","",'DATA INPUT'!C29) -> Births attended by skilled health personnel (%) | D29: =IF('DATA INPUT'!I29="","",'DATA INPUT'!I29) -> 1 | E29: =IF('DATA INPUT'!J29="","",'DATA INPUT'!J29) -> 100 | F29: =IF('DATA INPUT'!D29="","",'DATA INPUT'!D29) -> Subnational region | G29: =IF('DATA INPUT'!K29="","",'DATA INPUT'!K29) -> 0 | H29: =IF('DATA INPUT'!E29="","",'DATA INPUT'!E29) -> jakarta | I29: =IF('DATA INPUT'!M29="","",'DATA INPUT'!M29) -> 0 | J29: =IF('DATA INPUT'!L29="","",'DATA INPUT'!L29) -> 0 | K29: =IF('DATA INPUT'!F29="","",'DATA INPUT'!F29) -> 98.55796 | L29: =IF('DATA INPUT'!G29="","",'DATA INPUT'!G29) -> 0.7173032 | M29: =IF('DATA INPUT'!H29="","",'DATA INPUT'!H29) -> 364.8457 | N29: Indonesia2017Births attended by skilled health personnel (%)Subnational region | O29: 3 | P29: 34 | Q29: 34 | R29: 34 | S29: 0 | T29: =IF($D29=1,MAX(IF(group=$O29,order)),MIN(IF(group=$O29,order))) -> 0 | U29: =IF($D29=1,MIN(IF(group=$O29,order)),MAX(IF(group=$O29,order))) -> 0 | V29: =_xlfn.MAXIFS(estimate,group,$O29) -> 100 | W29: =_xlfn.MINIFS(estimate,group,$O29) -> 64.19527 | X29: 0 | Y29: 64.19527 | Z29: =IF($Q29<2,"",IF($G29=1,INDEX(estimate,MATCH(1,(group=$O29)*(order=$T29),0)), IF(AND($G29=0,$X29<>0,$D29=1),$X29, IF(AND($G29=0,$X29<>0,$D29=0),$Y29, IF(AND($G29=0,$X29=0),$V29,""))))) -> 100 | AA29: =IF($Q29<2,"",IF($G29=1,INDEX(estimate,MATCH(1,(group=$O29)*(order=$U29),0)), IF(AND($G29=0,$X29<>0,$D29=1),$Y29, IF(AND($G29=0,$X29<>0,$D29=0),$X29, IF(AND($G29=0,$X29=0),$W29,""))))) -> 64.19527 | AB29: =IF($Q29<2,"",IF($G29=1,INDEX(se,MATCH(1,(group=$O29)*(order=$T29),0)), IF(AND($G29=0,$X29<>0,$D29=1),INDEX(se,MATCH(1,(group=$O29)*(estimate=$X29),0)), IF(AND($G29=0,$X29<>0,$D29=0),INDEX(se,MATCH(1,(group=$O29)*(estimate=$Y29),0)), IF(AND($G29=0,$X29=0),INDEX(se,MATCH(1,(group=$O29)*(estimate=$V29),0)),""))))) -> 0 | AC29: =IF($Q29<2,"",IF($G29=1,INDEX(se,MATCH(1,(group=$O29)*(order=$U29),0)), IF(AND($G29=0,$X29<>0,$D29=1),INDEX(se,MATCH(1,(group=$O29)*(estimate=$Y29),0)), IF(AND($G29=0,$X29<>0,$D29=0),INDEX(se,MATCH(1,(group=$O29)*(estimate=$X29),0)), IF(AND($G29=0,$X29=0),INDEX(se,MATCH(1,(group=$O29)*(estimate=$W29),0)),""))))) -> 7.05186 | AD29: 35.80473 | AE29: 7.05186 | AF29: 21.9830844 | AG29: 49.6263756 | AH29: 1.557747167 | AI29: 0.1711187591 | AJ29: 1.25600288 | AK29: 1.93198302 | AL29: 0.03610784865 | AM29: =IF($O29<>"",SUMPRODUCT(IF(group=$O29,1,0),AL:AL,estimate)) -> 91.59668534 | AN29: 0 | AO29: 0 | AP29: 0 | AQ29: 0 | AR29: 0 | BA29: 1000 | BB29: 0.09855796 | BC29: -2.213350946 | BD29: 0 | BE29: 0 | BF29: 0 | BG29: 0 | BH29: =IF($G29=0,0, INDEX(LINEST( IF($BG29=1,INDEX(BF:BF,ROW($BD29),0),INDEX(BF:BF,ROW($BD29)-J29+1,0)): IF($BG29=1,INDEX(BF:BF,ROW($BD29)+COUNTIF(group,$O29)-1,0),INDEX(BF:BF,ROW($BD29)-J29+$Q29,0)), IF($BG29=1,INDEX(BD:BE,ROW($BD29),0),INDEX(BD:BE,ROW($BD29)-J29+1,0)): IF($BG29=1,INDEX(BD:BE,ROW($BD29)+COUNTIF(group,$O29)-1,0),INDEX(BD:BE,ROW($BD29)-J29+$Q29,0)), FALSE),2)) -> 0 | BI29: =IF($G29=0,0, INDEX(LINEST( IF($BG29=1,INDEX(BF:BF,ROW($BD29),0),INDEX(BF:BF,ROW($BD29)-J29+1,0)): IF($BG29=1,INDEX(BF:BF,ROW($BD29)+COUNTIF(group,$O29)-1,0),INDEX(BF:BF,ROW($BD29)-J29+$Q29,0)), IF($BG29=1,INDEX(BD:BE,ROW($BD29),0),INDEX(BD:BE,ROW($BD29)-J29+1,0)): IF($BG29=1,INDEX(BD:BE,ROW($BD29)+COUNTIF(group,$O29)-1,0),INDEX(BD:BE,ROW($BD29)-J29+$Q29,0)), FALSE),1)+ INDEX(LINEST( IF($BG29=1,INDEX(BF:BF,ROW($BD29),0),INDEX(BF:BF,ROW($BD29)-J29+1,0)): IF($BG29=1,INDEX(BF:BF,ROW($BD29)+COUNTIF(group,$O29)-1,0),INDEX(BF:BF,ROW($BD29)-J29+COUNTIF(group,$O29),0)), IF($BG29=1,INDEX(BD:BE,ROW($BD29),0),INDEX(BD:BE,ROW($BD29)-J29+1,0)): IF($BG29=1,INDEX(BD:BE,ROW($BD29)+COUNTIF(group,$O29)-1,0),INDEX(BD:BE,ROW($BD29)-J29+COUNTIF(group,$O29),0)), FALSE),2)) -> 0 | BJ29: 0 | BK29: 0 | BR29: 0 | BS29: 100 | BT29: 149.4627 | BU29: 149.4627 | BV29: 0 | BW29: 9105.770726 | BX29: 849.0988339 | BY29: 10104.33226 | BZ29: 9.17425628 | CA29: 0.003289666458 | CB29: 9.167808534 | CC29: 9.180704027 | CD29: 8.403314658 | CE29: 0.3013225434 | CF29: 7.812722473 | CG29: 8.993906843 | CH29: 6.961274658 | CI29: 0.2513566518 | CJ29: 6.615573235 | CM29: 5.326111683 | CP29: 7.222502878 | CS29: 5.814742818 | CV29: 1.44204 | CW29: 0.05206896207 | CX29: 10.32640382 | DA29: 8.403314658 | DD29: 0 | DE29: 0 | DL29: 1.74976269 | DM29: 0.0325077044 | DN29: 0.000670824265 | DO29: 4.500051945e-07 | DP29: 0.0003206794928 | DQ29: 50.42023119 | DR29: 9.560196696 | DS29: 31.68224566 | DT29: 69.15821671 | DU29: 7.10072047 | DX29: 7.752158763 | EA29: 1.075999198 | EB29: 0.002845899181 | EC29: 0.04169791539 | ED29: 3.296986801e-06 | EE29: -0.002644889685 | EF29: 3.988810228e-10 | EG29: 3.143872651 | EH29: 0.0006239330328 | EI29: 3.142649742 | EJ29: 3.14509556 | EK29: 3.307900901 | EL29: 0.000707336858 | EM29: 3.30651452 | EN29: 3.309287281
A30: =IF('DATA INPUT'!A30="","",'DATA INPUT'!A30) -> Indonesia | B30: =IF('DATA INPUT'!B30="","",'DATA INPUT'!B30) -> 2017 | C30: =IF('DATA INPUT'!C30="","",'DATA INPUT'!C30) -> Births attended by skilled health personnel (%) | D30: =IF('DATA INPUT'!I30="","",'DATA INPUT'!I30) -> 1 | E30: =IF('DATA INPUT'!J30="","",'DATA INPUT'!J30) -> 100 | F30: =IF('DATA INPUT'!D30="","",'DATA INPUT'!D30) -> Subnational region | G30: =IF('DATA INPUT'!K30="","",'DATA INPUT'!K30) -> 0 | H30: =IF('DATA INPUT'!E30="","",'DATA INPUT'!E30) -> jambi | I30: =IF('DATA INPUT'!M30="","",'DATA INPUT'!M30) -> 0 | J30: =IF('DATA INPUT'!L30="","",'DATA INPUT'!L30) -> 0 | K30: =IF('DATA INPUT'!F30="","",'DATA INPUT'!F30) -> 87.83975 | L30: =IF('DATA INPUT'!G30="","",'DATA INPUT'!G30) -> 4.131183 | M30: =IF('DATA INPUT'!H30="","",'DATA INPUT'!H30) -> 136.1691 | N30: Indonesia2017Births attended by skilled health personnel (%)Subnational region | O30: 3 | P30: 34 | Q30: 34 | R30: 34 | S30: 0 | T30: =IF($D30=1,MAX(IF(group=$O30,order)),MIN(IF(group=$O30,order))) -> 0 | U30: =IF($D30=1,MIN(IF(group=$O30,order)),MAX(IF(group=$O30,order))) -> 0 | V30: =_xlfn.MAXIFS(estimate,group,$O30) -> 100 | W30: =_xlfn.MINIFS(estimate,group,$O30) -> 64.19527 | X30: 0 | Y30: 64.19527 | Z30: =IF($Q30<2,"",IF($G30=1,INDEX(estimate,MATCH(1,(group=$O30)*(order=$T30),0)), IF(AND($G30=0,$X30<>0,$D30=1),$X30, IF(AND($G30=0,$X30<>0,$D30=0),$Y30, IF(AND($G30=0,$X30=0),$V30,""))))) -> 100 | AA30: =IF($Q30<2,"",IF($G30=1,INDEX(estimate,MATCH(1,(group=$O30)*(order=$U30),0)), IF(AND($G30=0,$X30<>0,$D30=1),$Y30, IF(AND($G30=0,$X30<>0,$D30=0),$X30, IF(AND($G30=0,$X30=0),$W30,""))))) -> 64.19527 | AB30: =IF($Q30<2,"",IF($G30=1,INDEX(se,MATCH(1,(group=$O30)*(order=$T30),0)), IF(AND($G30=0,$X30<>0,$D30=1),INDEX(se,MATCH(1,(group=$O30)*(estimate=$X30),0)), IF(AND($G30=0,$X30<>0,$D30=0),INDEX(se,MATCH(1,(group=$O30)*(estimate=$Y30),0)), IF(AND($G30=0,$X30=0),INDEX(se,MATCH(1,(group=$O30)*(estimate=$V30),0)),""))))) -> 0 | AC30: =IF($Q30<2,"",IF($G30=1,INDEX(se,MATCH(1,(group=$O30)*(order=$U30),0)), IF(AND($G30=0,$X30<>0,$D30=1),INDEX(se,MATCH(1,(group=$O30)*(estimate=$Y30),0)), IF(AND($G30=0,$X30<>0,$D30=0),INDEX(se,MATCH(1,(group=$O30)*(estimate=$X30),0)), IF(AND($G30=0,$X30=0),INDEX(se,MATCH(1,(group=$O30)*(estimate=$W30),0)),""))))) -> 7.05186 | AD30: 35.80473 | AE30: 7.05186 | AF30: 21.9830844 | AG30: 49.6263756 | AH30: 1.557747167 | AI30: 0.1711187591 | AJ30: 1.25600288 | AK30: 1.93198302 | AL30: 0.01347630863 | AM30: =IF($O30<>"",SUMPRODUCT(IF(group=$O30,1,0),AL:AL,estimate)) -> 91.59668534 | AN30: 0 | AO30: 0 | AP30: 0 | AQ30: 0 | AR30: 0 | BA30: 1000 | BB30: 0.08783975 | BC30: -2.340301556 | BD30: 0 | BE30: 0 | BF30: 0 | BG30: 0 | BH30: =IF($G30=0,0, INDEX(LINEST( IF($BG30=1,INDEX(BF:BF,ROW($BD30),0),INDEX(BF:BF,ROW($BD30)-J30+1,0)): IF($BG30=1,INDEX(BF:BF,ROW($BD30)+COUNTIF(group,$O30)-1,0),INDEX(BF:BF,ROW($BD30)-J30+$Q30,0)), IF($BG30=1,INDEX(BD:BE,ROW($BD30),0),INDEX(BD:BE,ROW($BD30)-J30+1,0)): IF($BG30=1,INDEX(BD:BE,ROW($BD30)+COUNTIF(group,$O30)-1,0),INDEX(BD:BE,ROW($BD30)-J30+$Q30,0)), FALSE),2)) -> 0 | BI30: =IF($G30=0,0, INDEX(LINEST( IF($BG30=1,INDEX(BF:BF,ROW($BD30),0),INDEX(BF:BF,ROW($BD30)-J30+1,0)): IF($BG30=1,INDEX(BF:BF,ROW($BD30)+COUNTIF(group,$O30)-1,0),INDEX(BF:BF,ROW($BD30)-J30+$Q30,0)), IF($BG30=1,INDEX(BD:BE,ROW($BD30),0),INDEX(BD:BE,ROW($BD30)-J30+1,0)): IF($BG30=1,INDEX(BD:BE,ROW($BD30)+COUNTIF(group,$O30)-1,0),INDEX(BD:BE,ROW($BD30)-J30+$Q30,0)), FALSE),1)+ INDEX(LINEST( IF($BG30=1,INDEX(BF:BF,ROW($BD30),0),INDEX(BF:BF,ROW($BD30)-J30+1,0)): IF($BG30=1,INDEX(BF:BF,ROW($BD30)+COUNTIF(group,$O30)-1,0),INDEX(BF:BF,ROW($BD30)-J30+COUNTIF(group,$O30),0)), IF($BG30=1,INDEX(BD:BE,ROW($BD30),0),INDEX(BD:BE,ROW($BD30)-J30+1,0)): IF($BG30=1,INDEX(BD:BE,ROW($BD30)+COUNTIF(group,$O30)-1,0),INDEX(BD:BE,ROW($BD30)-J30+COUNTIF(group,$O30),0)), FALSE),2)) -> 0 | BJ30: 0 | BK30: 0 | BR30: 0 | BS30: 100 | BT30: 149.4627 | BU30: 149.4627 | BV30: 0 | BW30: 9105.770726 | BX30: 849.0988339 | BY30: 10104.33226 | BZ30: 9.17425628 | CA30: 0.003289666458 | CB30: 9.167808534 | CC30: 9.180704027 | CD30: 8.403314658 | CE30: 0.3013225434 | CF30: 7.812722473 | CG30: 8.993906843 | CH30: 3.756935342 | CI30: 0.05062962016 | CJ30: 6.615573235 | CM30: 5.326111683 | CP30: 7.222502878 | CS30: 5.814742818 | CV30: 12.16025 | CW30: 0.163875282 | CX30: 10.32640382 | DA30: 8.403314658 | DD30: 0 | DE30: 0 | DL30: 0.1902122094 | DM30: 0.04374800019 | DN30: 0.003099493741 | DO30: 9.606861449e-06 | DP30: 0.05148191215 | DQ30: 50.42023119 | DR30: 9.560196696 | DS30: 31.68224566 | DT30: 69.15821671 | DU30: 7.10072047 | DX30: 7.752158763 | EA30: 0.9589839378 | EB30: -0.0005412511578 | EC30: 0.01238231236 | ED30: 6.283401998e-06 | EE30: 0.00056440065 | EF30: 6.757973856e-10 | EG30: 3.143872651 | EH30: 0.0006239330328 | EI30: 3.142649742 | EJ30: 3.14509556 | EK30: 3.307900901 | EL30: 0.000707336858 | EM30: 3.30651452 | EN30: 3.309287281
A31: =IF('DATA INPUT'!A31="","",'DATA INPUT'!A31) -> Indonesia | B31: =IF('DATA INPUT'!B31="","",'DATA INPUT'!B31) -> 2017 | C31: =IF('DATA INPUT'!C31="","",'DATA INPUT'!C31) -> Births attended by skilled health personnel (%) | D31: =IF('DATA INPUT'!I31="","",'DATA INPUT'!I31) -> 1 | E31: =IF('DATA INPUT'!J31="","",'DATA INPUT'!J31) -> 100 | F31: =IF('DATA INPUT'!D31="","",'DATA INPUT'!D31) -> Subnational region | G31: =IF('DATA INPUT'!K31="","",'DATA INPUT'!K31) -> 0 | H31: =IF('DATA INPUT'!E31="","",'DATA INPUT'!E31) -> lampung | I31: =IF('DATA INPUT'!M31="","",'DATA INPUT'!M31) -> 0 | J31: =IF('DATA INPUT'!L31="","",'DATA INPUT'!L31) -> 0 | K31: =IF('DATA INPUT'!F31="","",'DATA INPUT'!F31) -> 91.87503 | L31: =IF('DATA INPUT'!G31="","",'DATA INPUT'!G31) -> 2.703011 | M31: =IF('DATA INPUT'!H31="","",'DATA INPUT'!H31) -> 304.1648 | N31: Indonesia2017Births attended by skilled health personnel (%)Subnational region | O31: 3 | P31: 34 | Q31: 34 | R31: 34 | S31: 0 | T31: =IF($D31=1,MAX(IF(group=$O31,order)),MIN(IF(group=$O31,order))) -> 0 | U31: =IF($D31=1,MIN(IF(group=$O31,order)),MAX(IF(group=$O31,order))) -> 0 | V31: =_xlfn.MAXIFS(estimate,group,$O31) -> 100 | W31: =_xlfn.MINIFS(estimate,group,$O31) -> 64.19527 | X31: 0 | Y31: 64.19527 | Z31: =IF($Q31<2,"",IF($G31=1,INDEX(estimate,MATCH(1,(group=$O31)*(order=$T31),0)), IF(AND($G31=0,$X31<>0,$D31=1),$X31, IF(AND($G31=0,$X31<>0,$D31=0),$Y31, IF(AND($G31=0,$X31=0),$V31,""))))) -> 100 | AA31: =IF($Q31<2,"",IF($G31=1,INDEX(estimate,MATCH(1,(group=$O31)*(order=$U31),0)), IF(AND($G31=0,$X31<>0,$D31=1),$Y31, IF(AND($G31=0,$X31<>0,$D31=0),$X31, IF(AND($G31=0,$X31=0),$W31,""))))) -> 64.19527 | AB31: =IF($Q31<2,"",IF($G31=1,INDEX(se,MATCH(1,(group=$O31)*(order=$T31),0)), IF(AND($G31=0,$X31<>0,$D31=1),INDEX(se,MATCH(1,(group=$O31)*(estimate=$X31),0)), IF(AND($G31=0,$X31<>0,$D31=0),INDEX(se,MATCH(1,(group=$O31)*(estimate=$Y31),0)), IF(AND($G31=0,$X31=0),INDEX(se,MATCH(1,(group=$O31)*(estimate=$V31),0)),""))))) -> 0 | AC31: =IF($Q31<2,"",IF($G31=1,INDEX(se,MATCH(1,(group=$O31)*(order=$U31),0)), IF(AND($G31=0,$X31<>0,$D31=1),INDEX(se,MATCH(1,(group=$O31)*(estimate=$Y31),0)), IF(AND($G31=0,$X31<>0,$D31=0),INDEX(se,MATCH(1,(group=$O31)*(estimate=$X31),0)), IF(AND($G31=0,$X31=0),INDEX(se,MATCH(1,(group=$O31)*(estimate=$W31),0)),""))))) -> 7.05186 | AD31: 35.80473 | AE31: 7.05186 | AF31: 21.9830844 | AG31: 49.6263756 | AH31: 1.557747167 | AI31: 0.1711187591 | AJ31: 1.25600288 | AK31: 1.93198302 | AL31: 0.0301024147 | AM31: =IF($O31<>"",SUMPRODUCT(IF(group=$O31,1,0),AL:AL,estimate)) -> 91.59668534 | AN31: 0 | AO31: 0 | AP31: 0 | AQ31: 0 | AR31: 0 | BA31: 1000 | BB31: 0.09187503 | BC31: -2.290952717 | BD31: 0 | BE31: 0 | BF31: 0 | BG31: 0 | BH31: =IF($G31=0,0, INDEX(LINEST( IF($BG31=1,INDEX(BF:BF,ROW($BD31),0),INDEX(BF:BF,ROW($BD31)-J31+1,0)): IF($BG31=1,INDEX(BF:BF,ROW($BD31)+COUNTIF(group,$O31)-1,0),INDEX(BF:BF,ROW($BD31)-J31+$Q31,0)), IF($BG31=1,INDEX(BD:BE,ROW($BD31),0),INDEX(BD:BE,ROW($BD31)-J31+1,0)): IF($BG31=1,INDEX(BD:BE,ROW($BD31)+COUNTIF(group,$O31)-1,0),INDEX(BD:BE,ROW($BD31)-J31+$Q31,0)), FALSE),2)) -> 0 | BI31: =IF($G31=0,0, INDEX(LINEST( IF($BG31=1,INDEX(BF:BF,ROW($BD31),0),INDEX(BF:BF,ROW($BD31)-J31+1,0)): IF($BG31=1,INDEX(BF:BF,ROW($BD31)+COUNTIF(group,$O31)-1,0),INDEX(BF:BF,ROW($BD31)-J31+$Q31,0)), IF($BG31=1,INDEX(BD:BE,ROW($BD31),0),INDEX(BD:BE,ROW($BD31)-J31+1,0)): IF($BG31=1,INDEX(BD:BE,ROW($BD31)+COUNTIF(group,$O31)-1,0),INDEX(BD:BE,ROW($BD31)-J31+$Q31,0)), FALSE),1)+ INDEX(LINEST( IF($BG31=1,INDEX(BF:BF,ROW($BD31),0),INDEX(BF:BF,ROW($BD31)-J31+1,0)): IF($BG31=1,INDEX(BF:BF,ROW($BD31)+COUNTIF(group,$O31)-1,0),INDEX(BF:BF,ROW($BD31)-J31+COUNTIF(group,$O31),0)), IF($BG31=1,INDEX(BD:BE,ROW($BD31),0),INDEX(BD:BE,ROW($BD31)-J31+1,0)): IF($BG31=1,INDEX(BD:BE,ROW($BD31)+COUNTIF(group,$O31)-1,0),INDEX(BD:BE,ROW($BD31)-J31+COUNTIF(group,$O31),0)), FALSE),2)) -> 0 | BJ31: 0 | BK31: 0 | BR31: 0 | BS31: 100 | BT31: 149.4627 | BU31: 149.4627 | BV31: 0 | BW31: 9105.770726 | BX31: 849.0988339 | BY31: 10104.33226 | BZ31: 9.17425628 | CA31: 0.003289666458 | CB31: 9.167808534 | CC31: 9.180704027 | CD31: 8.403314658 | CE31: 0.3013225434 | CF31: 7.812722473 | CG31: 8.993906843 | CH31: 0.2783446577 | CI31: 0.008378846317 | CJ31: 6.615573235 | CM31: 5.326111683 | CP31: 7.222502878 | CS31: 5.814742818 | CV31: 8.12497 | CW31: 0.2445812164 | CX31: 10.32640382 | DA31: 8.403314658 | DD31: 0 | DE31: 0 | DL31: 0.00233220711 | DM31: 0.0005129370569 | DN31: 0.006620614413 | DO31: 4.38325352e-05 | DP31: 0.04550359166 | DQ31: 50.42023119 | DR31: 9.560196696 | DS31: 31.68224566 | DT31: 69.15821671 | DU31: 7.10072047 | DX31: 7.752158763 | EA31: 1.003038807 | EB31: 9.161427903e-05 | EC31: 0.03028550441 | ED31: 7.963442668e-11 | EE31: -9.133672435e-05 | EF31: 7.242851351e-12 | EG31: 3.143872651 | EH31: 0.0006239330328 | EI31: 3.142649742 | EJ31: 3.14509556 | EK31: 3.307900901 | EL31: 0.000707336858 | EM31: 3.30651452 | EN31: 3.309287281
A32: =IF('DATA INPUT'!A32="","",'DATA INPUT'!A32) -> Indonesia | B32: =IF('DATA INPUT'!B32="","",'DATA INPUT'!B32) -> 2017 | C32: =IF('DATA INPUT'!C32="","",'DATA INPUT'!C32) -> Births attended by skilled health personnel (%) | D32: =IF('DATA INPUT'!I32="","",'DATA INPUT'!I32) -> 1 | E32: =IF('DATA INPUT'!J32="","",'DATA INPUT'!J32) -> 100 | F32: =IF('DATA INPUT'!D32="","",'DATA INPUT'!D32) -> Subnational region | G32: =IF('DATA INPUT'!K32="","",'DATA INPUT'!K32) -> 0 | H32: =IF('DATA INPUT'!E32="","",'DATA INPUT'!E32) -> maluku | I32: =IF('DATA INPUT'!M32="","",'DATA INPUT'!M32) -> 0 | J32: =IF('DATA INPUT'!L32="","",'DATA INPUT'!L32) -> 0 | K32: =IF('DATA INPUT'!F32="","",'DATA INPUT'!F32) -> 74.12338 | L32: =IF('DATA INPUT'!G32="","",'DATA INPUT'!G32) -> 3.63614 | M32: =IF('DATA INPUT'!H32="","",'DATA INPUT'!H32) -> 85.01051 | N32: Indonesia2017Births attended by skilled health personnel (%)Subnational region | O32: 3 | P32: 34 | Q32: 34 | R32: 34 | S32: 0 | T32: =IF($D32=1,MAX(IF(group=$O32,order)),MIN(IF(group=$O32,order))) -> 0 | U32: =IF($D32=1,MIN(IF(group=$O32,order)),MAX(IF(group=$O32,order))) -> 0 | V32: =_xlfn.MAXIFS(estimate,group,$O32) -> 100 | W32: =_xlfn.MINIFS(estimate,group,$O32) -> 64.19527 | X32: 0 | Y32: 64.19527 | Z32: =IF($Q32<2,"",IF($G32=1,INDEX(estimate,MATCH(1,(group=$O32)*(order=$T32),0)), IF(AND($G32=0,$X32<>0,$D32=1),$X32, IF(AND($G32=0,$X32<>0,$D32=0),$Y32, IF(AND($G32=0,$X32=0),$V32,""))))) -> 100 | AA32: =IF($Q32<2,"",IF($G32=1,INDEX(estimate,MATCH(1,(group=$O32)*(order=$U32),0)), IF(AND($G32=0,$X32<>0,$D32=1),$Y32, IF(AND($G32=0,$X32<>0,$D32=0),$X32, IF(AND($G32=0,$X32=0),$W32,""))))) -> 64.19527 | AB32: =IF($Q32<2,"",IF($G32=1,INDEX(se,MATCH(1,(group=$O32)*(order=$T32),0)), IF(AND($G32=0,$X32<>0,$D32=1),INDEX(se,MATCH(1,(group=$O32)*(estimate=$X32),0)), IF(AND($G32=0,$X32<>0,$D32=0),INDEX(se,MATCH(1,(group=$O32)*(estimate=$Y32),0)), IF(AND($G32=0,$X32=0),INDEX(se,MATCH(1,(group=$O32)*(estimate=$V32),0)),""))))) -> 0 | AC32: =IF($Q32<2,"",IF($G32=1,INDEX(se,MATCH(1,(group=$O32)*(order=$U32),0)), IF(AND($G32=0,$X32<>0,$D32=1),INDEX(se,MATCH(1,(group=$O32)*(estimate=$Y32),0)), IF(AND($G32=0,$X32<>0,$D32=0),INDEX(se,MATCH(1,(group=$O32)*(estimate=$X32),0)), IF(AND($G32=0,$X32=0),INDEX(se,MATCH(1,(group=$O32)*(estimate=$W32),0)),""))))) -> 7.05186 | AD32: 35.80473 | AE32: 7.05186 | AF32: 21.9830844 | AG32: 49.6263756 | AH32: 1.557747167 | AI32: 0.1711187591 | AJ32: 1.25600288 | AK32: 1.93198302 | AL32: 0.008413273417 | AM32: =IF($O32<>"",SUMPRODUCT(IF(group=$O32,1,0),AL:AL,estimate)) -> 91.59668534 | AN32: 0 | AO32: 0 | AP32: 0 | AQ32: 0 | AR32: 0 | BA32: 1000 | BB32: 0.07412338 | BC32: -2.525009984 | BD32: 0 | BE32: 0 | BF32: 0 | BG32: 0 | BH32: =IF($G32=0,0, INDEX(LINEST( IF($BG32=1,INDEX(BF:BF,ROW($BD32),0),INDEX(BF:BF,ROW($BD32)-J32+1,0)): IF($BG32=1,INDEX(BF:BF,ROW($BD32)+COUNTIF(group,$O32)-1,0),INDEX(BF:BF,ROW($BD32)-J32+$Q32,0)), IF($BG32=1,INDEX(BD:BE,ROW($BD32),0),INDEX(BD:BE,ROW($BD32)-J32+1,0)): IF($BG32=1,INDEX(BD:BE,ROW($BD32)+COUNTIF(group,$O32)-1,0),INDEX(BD:BE,ROW($BD32)-J32+$Q32,0)), FALSE),2)) -> 0 | BI32: =IF($G32=0,0, INDEX(LINEST( IF($BG32=1,INDEX(BF:BF,ROW($BD32),0),INDEX(BF:BF,ROW($BD32)-J32+1,0)): IF($BG32=1,INDEX(BF:BF,ROW($BD32)+COUNTIF(group,$O32)-1,0),INDEX(BF:BF,ROW($BD32)-J32+$Q32,0)), IF($BG32=1,INDEX(BD:BE,ROW($BD32),0),INDEX(BD:BE,ROW($BD32)-J32+1,0)): IF($BG32=1,INDEX(BD:BE,ROW($BD32)+COUNTIF(group,$O32)-1,0),INDEX(BD:BE,ROW($BD32)-J32+$Q32,0)), FALSE),1)+ INDEX(LINEST( IF($BG32=1,INDEX(BF:BF,ROW($BD32),0),INDEX(BF:BF,ROW($BD32)-J32+1,0)): IF($BG32=1,INDEX(BF:BF,ROW($BD32)+COUNTIF(group,$O32)-1,0),INDEX(BF:BF,ROW($BD32)-J32+COUNTIF(group,$O32),0)), IF($BG32=1,INDEX(BD:BE,ROW($BD32),0),INDEX(BD:BE,ROW($BD32)-J32+1,0)): IF($BG32=1,INDEX(BD:BE,ROW($BD32)+COUNTIF(group,$O32)-1,0),INDEX(BD:BE,ROW($BD32)-J32+COUNTIF(group,$O32),0)), FALSE),2)) -> 0 | BJ32: 0 | BK32: 0 | BR32: 0 | BS32: 100 | BT32: 149.4627 | BU32: 149.4627 | BV32: 0 | BW32: 9105.770726 | BX32: 849.0988339 | BY32: 10104.33226 | BZ32: 9.17425628 | CA32: 0.003289666458 | CB32: 9.167808534 | CC32: 9.180704027 | CD32: 8.403314658 | CE32: 0.3013225434 | CF32: 7.812722473 | CG32: 8.993906843 | CH32: 17.47330534 | CI32: 0.1470076953 | CJ32: 6.615573235 | CM32: 5.326111683 | CP32: 7.222502878 | CS32: 5.814742818 | CV32: 25.87662 | CW32: 0.2177070792 | CX32: 10.32640382 | DA32: 8.403314658 | DD32: 0 | DE32: 0 | DL32: 2.568710348 | DM32: 0.2857336117 | DN32: 0.0009358606747 | DO32: 8.758352025e-07 | DP32: 0.01216616775 | DQ32: 50.42023119 | DR32: 9.560196696 | DS32: 31.68224566 | DT32: 69.15821671 | DU32: 7.10072047 | DX32: 7.752158763 | EA32: 0.8092364884 | EB32: -0.001441078466 | EC32: 0.00536724937 | ED32: 4.318291158e-05 | EE32: 0.0017807878 | EF32: 6.198568222e-09 | EG32: 3.143872651 | EH32: 0.0006239330328 | EI32: 3.142649742 | EJ32: 3.14509556 | EK32: 3.307900901 | EL32: 0.000707336858 | EM32: 3.30651452 | EN32: 3.309287281
A33: =IF('DATA INPUT'!A33="","",'DATA INPUT'!A33) -> Indonesia | B33: =IF('DATA INPUT'!B33="","",'DATA INPUT'!B33) -> 2017 | C33: =IF('DATA INPUT'!C33="","",'DATA INPUT'!C33) -> Births attended by skilled health personnel (%) | D33: =IF('DATA INPUT'!I33="","",'DATA INPUT'!I33) -> 1 | E33: =IF('DATA INPUT'!J33="","",'DATA INPUT'!J33) -> 100 | F33: =IF('DATA INPUT'!D33="","",'DATA INPUT'!D33) -> Subnational region | G33: =IF('DATA INPUT'!K33="","",'DATA INPUT'!K33) -> 0 | H33: =IF('DATA INPUT'!E33="","",'DATA INPUT'!E33) -> north kalimantan | I33: =IF('DATA INPUT'!M33="","",'DATA INPUT'!M33) -> 0 | J33: =IF('DATA INPUT'!L33="","",'DATA INPUT'!L33) -> 0 | K33: =IF('DATA INPUT'!F33="","",'DATA INPUT'!F33) -> 90.53304 | L33: =IF('DATA INPUT'!G33="","",'DATA INPUT'!G33) -> 2.527877 | M33: =IF('DATA INPUT'!H33="","",'DATA INPUT'!H33) -> 26.3322 | N33: Indonesia2017Births attended by skilled health personnel (%)Subnational region | O33: 3 | P33: 34 | Q33: 34 | R33: 34 | S33: 0 | T33: =IF($D33=1,MAX(IF(group=$O33,order)),MIN(IF(group=$O33,order))) -> 0 | U33: =IF($D33=1,MIN(IF(group=$O33,order)),MAX(IF(group=$O33,order))) -> 0 | V33: =_xlfn.MAXIFS(estimate,group,$O33) -> 100 | W33: =_xlfn.MINIFS(estimate,group,$O33) -> 64.19527 | X33: 0 | Y33: 64.19527 | Z33: =IF($Q33<2,"",IF($G33=1,INDEX(estimate,MATCH(1,(group=$O33)*(order=$T33),0)), IF(AND($G33=0,$X33<>0,$D33=1),$X33, IF(AND($G33=0,$X33<>0,$D33=0),$Y33, IF(AND($G33=0,$X33=0),$V33,""))))) -> 100 | AA33: =IF($Q33<2,"",IF($G33=1,INDEX(estimate,MATCH(1,(group=$O33)*(order=$U33),0)), IF(AND($G33=0,$X33<>0,$D33=1),$Y33, IF(AND($G33=0,$X33<>0,$D33=0),$X33, IF(AND($G33=0,$X33=0),$W33,""))))) -> 64.19527 | AB33: =IF($Q33<2,"",IF($G33=1,INDEX(se,MATCH(1,(group=$O33)*(order=$T33),0)), IF(AND($G33=0,$X33<>0,$D33=1),INDEX(se,MATCH(1,(group=$O33)*(estimate=$X33),0)), IF(AND($G33=0,$X33<>0,$D33=0),INDEX(se,MATCH(1,(group=$O33)*(estimate=$Y33),0)), IF(AND($G33=0,$X33=0),INDEX(se,MATCH(1,(group=$O33)*(estimate=$V33),0)),""))))) -> 0 | AC33: =IF($Q33<2,"",IF($G33=1,INDEX(se,MATCH(1,(group=$O33)*(order=$U33),0)), IF(AND($G33=0,$X33<>0,$D33=1),INDEX(se,MATCH(1,(group=$O33)*(estimate=$Y33),0)), IF(AND($G33=0,$X33<>0,$D33=0),INDEX(se,MATCH(1,(group=$O33)*(estimate=$X33),0)), IF(AND($G33=0,$X33=0),INDEX(se,MATCH(1,(group=$O33)*(estimate=$W33),0)),""))))) -> 7.05186 | AD33: 35.80473 | AE33: 7.05186 | AF33: 21.9830844 | AG33: 49.6263756 | AH33: 1.557747167 | AI33: 0.1711187591 | AJ33: 1.25600288 | AK33: 1.93198302 | AL33: 0.002606030693 | AM33: =IF($O33<>"",SUMPRODUCT(IF(group=$O33,1,0),AL:AL,estimate)) -> 91.59668534 | AN33: 0 | AO33: 0 | AP33: 0 | AQ33: 0 | AR33: 0 | BA33: 1000 | BB33: 0.09053304 | BC33: -2.307143803 | BD33: 0 | BE33: 0 | BF33: 0 | BG33: 0 | BH33: =IF($G33=0,0, INDEX(LINEST( IF($BG33=1,INDEX(BF:BF,ROW($BD33),0),INDEX(BF:BF,ROW($BD33)-J33+1,0)): IF($BG33=1,INDEX(BF:BF,ROW($BD33)+COUNTIF(group,$O33)-1,0),INDEX(BF:BF,ROW($BD33)-J33+$Q33,0)), IF($BG33=1,INDEX(BD:BE,ROW($BD33),0),INDEX(BD:BE,ROW($BD33)-J33+1,0)): IF($BG33=1,INDEX(BD:BE,ROW($BD33)+COUNTIF(group,$O33)-1,0),INDEX(BD:BE,ROW($BD33)-J33+$Q33,0)), FALSE),2)) -> 0 | BI33: =IF($G33=0,0, INDEX(LINEST( IF($BG33=1,INDEX(BF:BF,ROW($BD33),0),INDEX(BF:BF,ROW($BD33)-J33+1,0)): IF($BG33=1,INDEX(BF:BF,ROW($BD33)+COUNTIF(group,$O33)-1,0),INDEX(BF:BF,ROW($BD33)-J33+$Q33,0)), IF($BG33=1,INDEX(BD:BE,ROW($BD33),0),INDEX(BD:BE,ROW($BD33)-J33+1,0)): IF($BG33=1,INDEX(BD:BE,ROW($BD33)+COUNTIF(group,$O33)-1,0),INDEX(BD:BE,ROW($BD33)-J33+$Q33,0)), FALSE),1)+ INDEX(LINEST( IF($BG33=1,INDEX(BF:BF,ROW($BD33),0),INDEX(BF:BF,ROW($BD33)-J33+1,0)): IF($BG33=1,INDEX(BF:BF,ROW($BD33)+COUNTIF(group,$O33)-1,0),INDEX(BF:BF,ROW($BD33)-J33+COUNTIF(group,$O33),0)), IF($BG33=1,INDEX(BD:BE,ROW($BD33),0),INDEX(BD:BE,ROW($BD33)-J33+1,0)): IF($BG33=1,INDEX(BD:BE,ROW($BD33)+COUNTIF(group,$O33)-1,0),INDEX(BD:BE,ROW($BD33)-J33+COUNTIF(group,$O33),0)), FALSE),2)) -> 0 | BJ33: 0 | BK33: 0 | BR33: 0 | BS33: 100 | BT33: 149.4627 | BU33: 149.4627 | BV33: 0 | BW33: 9105.770726 | BX33: 849.0988339 | BY33: 10104.33226 | BZ33: 9.17425628 | CA33: 0.003289666458 | CB33: 9.167808534 | CC33: 9.180704027 | CD33: 8.403314658 | CE33: 0.3013225434 | CF33: 7.812722473 | CG33: 8.993906843 | CH33: 1.063645342 | CI33: 0.002771892408 | CJ33: 6.615573235 | CM33: 5.326111683 | CP33: 7.222502878 | CS33: 5.814742818 | CV33: 9.46696 | CW33: 0.02467118833 | CX33: 10.32640382 | DA33: 8.403314658 | DD33: 0 | DE33: 0 | DL33: 0.002948310449 | DM33: 4.909809196e-05 | DN33: 4.339812133e-05 | DO33: 1.883396935e-09 | DP33: 0.0002758775005 | DQ33: 50.42023119 | DR33: 9.560196696 | DS33: 31.68224566 | DT33: 69.15821671 | DU33: 7.10072047 | DX33: 7.752158763 | EA33: 0.9883877311 | EB33: -3.00855403e-05 | EC33: 0.002545683223 | ED33: 9.536895969e-09 | EE33: 3.043900623e-05 | EF33: 7.139879655e-13 | EG33: 3.143872651 | EH33: 0.0006239330328 | EI33: 3.142649742 | EJ33: 3.14509556 | EK33: 3.307900901 | EL33: 0.000707336858 | EM33: 3.30651452 | EN33: 3.309287281
A34: =IF('DATA INPUT'!A34="","",'DATA INPUT'!A34) -> Indonesia | B34: =IF('DATA INPUT'!B34="","",'DATA INPUT'!B34) -> 2017 | C34: =IF('DATA INPUT'!C34="","",'DATA INPUT'!C34) -> Births attended by skilled health personnel (%) | D34: =IF('DATA INPUT'!I34="","",'DATA INPUT'!I34) -> 1 | E34: =IF('DATA INPUT'!J34="","",'DATA INPUT'!J34) -> 100 | F34: =IF('DATA INPUT'!D34="","",'DATA INPUT'!D34) -> Subnational region | G34: =IF('DATA INPUT'!K34="","",'DATA INPUT'!K34) -> 0 | H34: =IF('DATA INPUT'!E34="","",'DATA INPUT'!E34) -> north maluku | I34: =IF('DATA INPUT'!M34="","",'DATA INPUT'!M34) -> 0 | J34: =IF('DATA INPUT'!L34="","",'DATA INPUT'!L34) -> 0 | K34: =IF('DATA INPUT'!F34="","",'DATA INPUT'!F34) -> 73.3754 | L34: =IF('DATA INPUT'!G34="","",'DATA INPUT'!G34) -> 3.90833 | M34: =IF('DATA INPUT'!H34="","",'DATA INPUT'!H34) -> 51.94059 | N34: Indonesia2017Births attended by skilled health personnel (%)Subnational region | O34: 3 | P34: 34 | Q34: 34 | R34: 34 | S34: 0 | T34: =IF($D34=1,MAX(IF(group=$O34,order)),MIN(IF(group=$O34,order))) -> 0 | U34: =IF($D34=1,MIN(IF(group=$O34,order)),MAX(IF(group=$O34,order))) -> 0 | V34: =_xlfn.MAXIFS(estimate,group,$O34) -> 100 | W34: =_xlfn.MINIFS(estimate,group,$O34) -> 64.19527 | X34: 0 | Y34: 64.19527 | Z34: =IF($Q34<2,"",IF($G34=1,INDEX(estimate,MATCH(1,(group=$O34)*(order=$T34),0)), IF(AND($G34=0,$X34<>0,$D34=1),$X34, IF(AND($G34=0,$X34<>0,$D34=0),$Y34, IF(AND($G34=0,$X34=0),$V34,""))))) -> 100 | AA34: =IF($Q34<2,"",IF($G34=1,INDEX(estimate,MATCH(1,(group=$O34)*(order=$U34),0)), IF(AND($G34=0,$X34<>0,$D34=1),$Y34, IF(AND($G34=0,$X34<>0,$D34=0),$X34, IF(AND($G34=0,$X34=0),$W34,""))))) -> 64.19527 | AB34: =IF($Q34<2,"",IF($G34=1,INDEX(se,MATCH(1,(group=$O34)*(order=$T34),0)), IF(AND($G34=0,$X34<>0,$D34=1),INDEX(se,MATCH(1,(group=$O34)*(estimate=$X34),0)), IF(AND($G34=0,$X34<>0,$D34=0),INDEX(se,MATCH(1,(group=$O34)*(estimate=$Y34),0)), IF(AND($G34=0,$X34=0),INDEX(se,MATCH(1,(group=$O34)*(estimate=$V34),0)),""))))) -> 0 | AC34: =IF($Q34<2,"",IF($G34=1,INDEX(se,MATCH(1,(group=$O34)*(order=$U34),0)), IF(AND($G34=0,$X34<>0,$D34=1),INDEX(se,MATCH(1,(group=$O34)*(estimate=$Y34),0)), IF(AND($G34=0,$X34<>0,$D34=0),INDEX(se,MATCH(1,(group=$O34)*(estimate=$X34),0)), IF(AND($G34=0,$X34=0),INDEX(se,MATCH(1,(group=$O34)*(estimate=$W34),0)),""))))) -> 7.05186 | AD34: 35.80473 | AE34: 7.05186 | AF34: 21.9830844 | AG34: 49.6263756 | AH34: 1.557747167 | AI34: 0.1711187591 | AJ34: 1.25600288 | AK34: 1.93198302 | AL34: 0.005140427755 | AM34: =IF($O34<>"",SUMPRODUCT(IF(group=$O34,1,0),AL:AL,estimate)) -> 91.59668534 | AN34: 0 | AO34: 0 | AP34: 0 | AQ34: 0 | AR34: 0 | BA34: 1000 | BB34: 0.0733754 | BC34: -2.535959792 | BD34: 0 | BE34: 0 | BF34: 0 | BG34: 0 | BH34: =IF($G34=0,0, INDEX(LINEST( IF($BG34=1,INDEX(BF:BF,ROW($BD34),0),INDEX(BF:BF,ROW($BD34)-J34+1,0)): IF($BG34=1,INDEX(BF:BF,ROW($BD34)+COUNTIF(group,$O34)-1,0),INDEX(BF:BF,ROW($BD34)-J34+$Q34,0)), IF($BG34=1,INDEX(BD:BE,ROW($BD34),0),INDEX(BD:BE,ROW($BD34)-J34+1,0)): IF($BG34=1,INDEX(BD:BE,ROW($BD34)+COUNTIF(group,$O34)-1,0),INDEX(BD:BE,ROW($BD34)-J34+$Q34,0)), FALSE),2)) -> 0 | BI34: =IF($G34=0,0, INDEX(LINEST( IF($BG34=1,INDEX(BF:BF,ROW($BD34),0),INDEX(BF:BF,ROW($BD34)-J34+1,0)): IF($BG34=1,INDEX(BF:BF,ROW($BD34)+COUNTIF(group,$O34)-1,0),INDEX(BF:BF,ROW($BD34)-J34+$Q34,0)), IF($BG34=1,INDEX(BD:BE,ROW($BD34),0),INDEX(BD:BE,ROW($BD34)-J34+1,0)): IF($BG34=1,INDEX(BD:BE,ROW($BD34)+COUNTIF(group,$O34)-1,0),INDEX(BD:BE,ROW($BD34)-J34+$Q34,0)), FALSE),1)+ INDEX(LINEST( IF($BG34=1,INDEX(BF:BF,ROW($BD34),0),INDEX(BF:BF,ROW($BD34)-J34+1,0)): IF($BG34=1,INDEX(BF:BF,ROW($BD34)+COUNTIF(group,$O34)-1,0),INDEX(BF:BF,ROW($BD34)-J34+COUNTIF(group,$O34),0)), IF($BG34=1,INDEX(BD:BE,ROW($BD34),0),INDEX(BD:BE,ROW($BD34)-J34+1,0)): IF($BG34=1,INDEX(BD:BE,ROW($BD34)+COUNTIF(group,$O34)-1,0),INDEX(BD:BE,ROW($BD34)-J34+COUNTIF(group,$O34),0)), FALSE),2)) -> 0 | BJ34: 0 | BK34: 0 | BR34: 0 | BS34: 100 | BT34: 149.4627 | BU34: 149.4627 | BV34: 0 | BW34: 9105.770726 | BX34: 849.0988339 | BY34: 10104.33226 | BZ34: 9.17425628 | CA34: 0.003289666458 | CB34: 9.167808534 | CC34: 9.180704027 | CD34: 8.403314658 | CE34: 0.3013225434 | CF34: 7.812722473 | CG34: 8.993906843 | CH34: 18.22128534 | CI34: 0.09366520091 | CJ34: 6.615573235 | CM34: 5.326111683 | CP34: 7.222502878 | CS34: 5.814742818 | CV34: 26.6246 | CW34: 0.1368618328 | CX34: 10.32640382 | DA34: 8.403314658 | DD34: 0 | DE34: 0 | DL34: 1.706700353 | DM34: 0.1340105503 | DN34: 0.0004036277085 | DO34: 1.62915327e-07 | DP34: 0.006102207772 | DQ34: 50.42023119 | DR34: 9.560196696 | DS34: 31.68224566 | DT34: 69.15821671 | DU34: 7.10072047 | DX34: 7.752158763 | EA34: 0.8010704724 | EB34: -0.0009133641666 | EC34: 0.003204480724 | ED34: 2.042461351e-05 | EE34: 0.001140179545 | EF34: 2.966733333e-09 | EG34: 3.143872651 | EH34: 0.0006239330328 | EI34: 3.142649742 | EJ34: 3.14509556 | EK34: 3.307900901 | EL34: 0.000707336858 | EM34: 3.30651452 | EN34: 3.309287281
A35: =IF('DATA INPUT'!A35="","",'DATA INPUT'!A35) -> Indonesia | B35: =IF('DATA INPUT'!B35="","",'DATA INPUT'!B35) -> 2017 | C35: =IF('DATA INPUT'!C35="","",'DATA INPUT'!C35) -> Births attended by skilled health personnel (%) | D35: =IF('DATA INPUT'!I35="","",'DATA INPUT'!I35) -> 1 | E35: =IF('DATA INPUT'!J35="","",'DATA INPUT'!J35) -> 100 | F35: =IF('DATA INPUT'!D35="","",'DATA INPUT'!D35) -> Subnational region | G35: =IF('DATA INPUT'!K35="","",'DATA INPUT'!K35) -> 0 | H35: =IF('DATA INPUT'!E35="","",'DATA INPUT'!E35) -> north sulawesi | I35: =IF('DATA INPUT'!M35="","",'DATA INPUT'!M35) -> 0 | J35: =IF('DATA INPUT'!L35="","",'DATA INPUT'!L35) -> 0 | K35: =IF('DATA INPUT'!F35="","",'DATA INPUT'!F35) -> 96.02899 | L35: =IF('DATA INPUT'!G35="","",'DATA INPUT'!G35) -> 2.40484 | M35: =IF('DATA INPUT'!H35="","",'DATA INPUT'!H35) -> 74.51883 | N35: Indonesia2017Births attended by skilled health personnel (%)Subnational region | O35: 3 | P35: 34 | Q35: 34 | R35: 34 | S35: 0 | T35: =IF($D35=1,MAX(IF(group=$O35,order)),MIN(IF(group=$O35,order))) -> 0 | U35: =IF($D35=1,MIN(IF(group=$O35,order)),MAX(IF(group=$O35,order))) -> 0 | V35: =_xlfn.MAXIFS(estimate,group,$O35) -> 100 | W35: =_xlfn.MINIFS(estimate,group,$O35) -> 64.19527 | X35: 0 | Y35: 64.19527 | Z35: =IF($Q35<2,"",IF($G35=1,INDEX(estimate,MATCH(1,(group=$O35)*(order=$T35),0)), IF(AND($G35=0,$X35<>0,$D35=1),$X35, IF(AND($G35=0,$X35<>0,$D35=0),$Y35, IF(AND($G35=0,$X35=0),$V35,""))))) -> 100 | AA35: =IF($Q35<2,"",IF($G35=1,INDEX(estimate,MATCH(1,(group=$O35)*(order=$U35),0)), IF(AND($G35=0,$X35<>0,$D35=1),$Y35, IF(AND($G35=0,$X35<>0,$D35=0),$X35, IF(AND($G35=0,$X35=0),$W35,""))))) -> 64.19527 | AB35: =IF($Q35<2,"",IF($G35=1,INDEX(se,MATCH(1,(group=$O35)*(order=$T35),0)), IF(AND($G35=0,$X35<>0,$D35=1),INDEX(se,MATCH(1,(group=$O35)*(estimate=$X35),0)), IF(AND($G35=0,$X35<>0,$D35=0),INDEX(se,MATCH(1,(group=$O35)*(estimate=$Y35),0)), IF(AND($G35=0,$X35=0),INDEX(se,MATCH(1,(group=$O35)*(estimate=$V35),0)),""))))) -> 0 | AC35: =IF($Q35<2,"",IF($G35=1,INDEX(se,MATCH(1,(group=$O35)*(order=$U35),0)), IF(AND($G35=0,$X35<>0,$D35=1),INDEX(se,MATCH(1,(group=$O35)*(estimate=$Y35),0)), IF(AND($G35=0,$X35<>0,$D35=0),INDEX(se,MATCH(1,(group=$O35)*(estimate=$X35),0)), IF(AND($G35=0,$X35=0),INDEX(se,MATCH(1,(group=$O35)*(estimate=$W35),0)),""))))) -> 7.05186 | AD35: 35.80473 | AE35: 7.05186 | AF35: 21.9830844 | AG35: 49.6263756 | AH35: 1.557747167 | AI35: 0.1711187591 | AJ35: 1.25600288 | AK35: 1.93198302 | AL35: 0.007374938599 | AM35: =IF($O35<>"",SUMPRODUCT(IF(group=$O35,1,0),AL:AL,estimate)) -> 91.59668534 | AN35: 0 | AO35: 0 | AP35: 0 | AQ35: 0 | AR35: 0 | BA35: 1000 | BB35: 0.09602899 | BC35: -2.242147166 | BD35: 0 | BE35: 0 | BF35: 0 | BG35: 0 | BH35: =IF($G35=0,0, INDEX(LINEST( IF($BG35=1,INDEX(BF:BF,ROW($BD35),0),INDEX(BF:BF,ROW($BD35)-J35+1,0)): IF($BG35=1,INDEX(BF:BF,ROW($BD35)+COUNTIF(group,$O35)-1,0),INDEX(BF:BF,ROW($BD35)-J35+$Q35,0)), IF($BG35=1,INDEX(BD:BE,ROW($BD35),0),INDEX(BD:BE,ROW($BD35)-J35+1,0)): IF($BG35=1,INDEX(BD:BE,ROW($BD35)+COUNTIF(group,$O35)-1,0),INDEX(BD:BE,ROW($BD35)-J35+$Q35,0)), FALSE),2)) -> 0 | BI35: =IF($G35=0,0, INDEX(LINEST( IF($BG35=1,INDEX(BF:BF,ROW($BD35),0),INDEX(BF:BF,ROW($BD35)-J35+1,0)): IF($BG35=1,INDEX(BF:BF,ROW($BD35)+COUNTIF(group,$O35)-1,0),INDEX(BF:BF,ROW($BD35)-J35+$Q35,0)), IF($BG35=1,INDEX(BD:BE,ROW($BD35),0),INDEX(BD:BE,ROW($BD35)-J35+1,0)): IF($BG35=1,INDEX(BD:BE,ROW($BD35)+COUNTIF(group,$O35)-1,0),INDEX(BD:BE,ROW($BD35)-J35+$Q35,0)), FALSE),1)+ INDEX(LINEST( IF($BG35=1,INDEX(BF:BF,ROW($BD35),0),INDEX(BF:BF,ROW($BD35)-J35+1,0)): IF($BG35=1,INDEX(BF:BF,ROW($BD35)+COUNTIF(group,$O35)-1,0),INDEX(BF:BF,ROW($BD35)-J35+COUNTIF(group,$O35),0)), IF($BG35=1,INDEX(BD:BE,ROW($BD35),0),INDEX(BD:BE,ROW($BD35)-J35+1,0)): IF($BG35=1,INDEX(BD:BE,ROW($BD35)+COUNTIF(group,$O35)-1,0),INDEX(BD:BE,ROW($BD35)-J35+COUNTIF(group,$O35),0)), FALSE),2)) -> 0 | BJ35: 0 | BK35: 0 | BR35: 0 | BS35: 100 | BT35: 149.4627 | BU35: 149.4627 | BV35: 0 | BW35: 9105.770726 | BX35: 849.0988339 | BY35: 10104.33226 | BZ35: 9.17425628 | CA35: 0.003289666458 | CB35: 9.167808534 | CC35: 9.180704027 | CD35: 8.403314658 | CE35: 0.3013225434 | CF35: 7.812722473 | CG35: 8.993906843 | CH35: 4.432304658 | CI35: 0.0326879747 | CJ35: 6.615573235 | CM35: 5.326111683 | CP35: 7.222502878 | CS35: 5.814742818 | CV35: 3.97101 | CW35: 0.02928595493 | CX35: 10.32640382 | DA35: 8.403314658 | DD35: 0 | DE35: 0 | DL35: 0.1448830625 | DM35: 0.006179429763 | DN35: 0.0003145496395 | DO35: 9.894147568e-08 | DP35: 0.00179238804 | DQ35: 50.42023119 | DR35: 9.560196696 | DS35: 31.68224566 | DT35: 69.15821671 | DU35: 7.10072047 | DX35: 7.752158763 | EA35: 1.048389356 | EB35: 0.0003653668571 | EC35: 0.008097173989 | ED35: 6.120491491e-07 | EE35: -0.0003485030203 | EF35: 7.987008787e-11 | EG35: 3.143872651 | EH35: 0.0006239330328 | EI35: 3.142649742 | EJ35: 3.14509556 | EK35: 3.307900901 | EL35: 0.000707336858 | EM35: 3.30651452 | EN35: 3.309287281
A36: =IF('DATA INPUT'!A36="","",'DATA INPUT'!A36) -> Indonesia | B36: =IF('DATA INPUT'!B36="","",'DATA INPUT'!B36) -> 2017 | C36: =IF('DATA INPUT'!C36="","",'DATA INPUT'!C36) -> Births attended by skilled health personnel (%) | D36: =IF('DATA INPUT'!I36="","",'DATA INPUT'!I36) -> 1 | E36: =IF('DATA INPUT'!J36="","",'DATA INPUT'!J36) -> 100 | F36: =IF('DATA INPUT'!D36="","",'DATA INPUT'!D36) -> Subnational region | G36: =IF('DATA INPUT'!K36="","",'DATA INPUT'!K36) -> 0 | H36: =IF('DATA INPUT'!E36="","",'DATA INPUT'!E36) -> north sumatera | I36: =IF('DATA INPUT'!M36="","",'DATA INPUT'!M36) -> 0 | J36: =IF('DATA INPUT'!L36="","",'DATA INPUT'!L36) -> 0 | K36: =IF('DATA INPUT'!F36="","",'DATA INPUT'!F36) -> 89.99208 | L36: =IF('DATA INPUT'!G36="","",'DATA INPUT'!G36) -> 2.900336 | M36: =IF('DATA INPUT'!H36="","",'DATA INPUT'!H36) -> 617.0923 | N36: Indonesia2017Births attended by skilled health personnel (%)Subnational region | O36: 3 | P36: 34 | Q36: 34 | R36: 34 | S36: 0 | T36: =IF($D36=1,MAX(IF(group=$O36,order)),MIN(IF(group=$O36,order))) -> 0 | U36: =IF($D36=1,MIN(IF(group=$O36,order)),MAX(IF(group=$O36,order))) -> 0 | V36: =_xlfn.MAXIFS(estimate,group,$O36) -> 100 | W36: =_xlfn.MINIFS(estimate,group,$O36) -> 64.19527 | X36: =IF($G36=0,_xlfn.MAXIFS(estimate,group,$O36,reference,1),0) -> 0 | Y36: 64.19527 | Z36: =IF($Q36<2,"",IF($G36=1,INDEX(estimate,MATCH(1,(group=$O36)*(order=$T36),0)), IF(AND($G36=0,$X36<>0,$D36=1),$X36, IF(AND($G36=0,$X36<>0,$D36=0),$Y36, IF(AND($G36=0,$X36=0),$V36,""))))) -> 100 | AA36: =IF($Q36<2,"",IF($G36=1,INDEX(estimate,MATCH(1,(group=$O36)*(order=$U36),0)), IF(AND($G36=0,$X36<>0,$D36=1),$Y36, IF(AND($G36=0,$X36<>0,$D36=0),$X36, IF(AND($G36=0,$X36=0),$W36,""))))) -> 64.19527 | AB36: =IF($Q36<2,"",IF($G36=1,INDEX(se,MATCH(1,(group=$O36)*(order=$T36),0)), IF(AND($G36=0,$X36<>0,$D36=1),INDEX(se,MATCH(1,(group=$O36)*(estimate=$X36),0)), IF(AND($G36=0,$X36<>0,$D36=0),INDEX(se,MATCH(1,(group=$O36)*(estimate=$Y36),0)), IF(AND($G36=0,$X36=0),INDEX(se,MATCH(1,(group=$O36)*(estimate=$V36),0)),""))))) -> 0 | AC36: =IF($Q36<2,"",IF($G36=1,INDEX(se,MATCH(1,(group=$O36)*(order=$U36),0)), IF(AND($G36=0,$X36<>0,$D36=1),INDEX(se,MATCH(1,(group=$O36)*(estimate=$Y36),0)), IF(AND($G36=0,$X36<>0,$D36=0),INDEX(se,MATCH(1,(group=$O36)*(estimate=$X36),0)), IF(AND($G36=0,$X36=0),INDEX(se,MATCH(1,(group=$O36)*(estimate=$W36),0)),""))))) -> 7.05186 | AD36: =IFERROR(Z36-AA36,"") -> 35.80473 | AE36: 7.05186 | AF36: 21.9830844 | AG36: 49.6263756 | AH36: 1.557747167 | AI36: 0.1711187591 | AJ36: 1.25600288 | AK36: 1.93198302 | AL36: 0.06107205148 | AM36: =IF($O36<>"",SUMPRODUCT(IF(group=$O36,1,0),AL:AL,estimate)) -> 91.59668534 | AN36: 0 | AO36: 0 | AP36: 0 | AQ36: 0 | AR36: 0 | BA36: 1000 | BB36: 0.08999208 | BC36: -2.313731636 | BD36: 0 | BE36: 0 | BF36: 0 | BG36: 0 | BH36: =IF($G36=0,0, INDEX(LINEST( IF($BG36=1,INDEX(BF:BF,ROW($BD36),0),INDEX(BF:BF,ROW($BD36)-J36+1,0)): IF($BG36=1,INDEX(BF:BF,ROW($BD36)+COUNTIF(group,$O36)-1,0),INDEX(BF:BF,ROW($BD36)-J36+$Q36,0)), IF($BG36=1,INDEX(BD:BE,ROW($BD36),0),INDEX(BD:BE,ROW($BD36)-J36+1,0)): IF($BG36=1,INDEX(BD:BE,ROW($BD36)+COUNTIF(group,$O36)-1,0),INDEX(BD:BE,ROW($BD36)-J36+$Q36,0)), FALSE),2)) -> 0 | BI36: =IF($G36=0,0, INDEX(LINEST( IF($BG36=1,INDEX(BF:BF,ROW($BD36),0),INDEX(BF:BF,ROW($BD36)-J36+1,0)): IF($BG36=1,INDEX(BF:BF,ROW($BD36)+COUNTIF(group,$O36)-1,0),INDEX(BF:BF,ROW($BD36)-J36+$Q36,0)), IF($BG36=1,INDEX(BD:BE,ROW($BD36),0),INDEX(BD:BE,ROW($BD36)-J36+1,0)): IF($BG36=1,INDEX(BD:BE,ROW($BD36)+COUNTIF(group,$O36)-1,0),INDEX(BD:BE,ROW($BD36)-J36+$Q36,0)), FALSE),1)+ INDEX(LINEST( IF($BG36=1,INDEX(BF:BF,ROW($BD36),0),INDEX(BF:BF,ROW($BD36)-J36+1,0)): IF($BG36=1,INDEX(BF:BF,ROW($BD36)+COUNTIF(group,$O36)-1,0),INDEX(BF:BF,ROW($BD36)-J36+COUNTIF(group,$O36),0)), IF($BG36=1,INDEX(BD:BE,ROW($BD36),0),INDEX(BD:BE,ROW($BD36)-J36+1,0)): IF($BG36=1,INDEX(BD:BE,ROW($BD36)+COUNTIF(group,$O36)-1,0),INDEX(BD:BE,ROW($BD36)-J36+COUNTIF(group,$O36),0)), FALSE),2)) -> 0 | BJ36: 0 | BK36: 0 | BR36: 0 | BS36: 100 | BT36: 149.4627 | BU36: 149.4627 | BV36: 0 | BW36: 9105.770726 | BX36: 849.0988339 | BY36: 10104.33226 | BZ36: 9.17425628 | CA36: 0.003289666458 | CB36: 9.167808534 | CC36: 9.180704027 | CD36: 8.403314658 | CE36: 0.3013225434 | CF36: 7.812722473 | CG36: 8.993906843 | CH36: 1.604605342 | CI36: 0.09799654008 | CJ36: 6.615573235 | CM36: 5.326111683 | CP36: 7.222502878 | CS36: 5.814742818 | CV36: 10.00792 | CW36: 0.6112042055 | CX36: 10.32640382 | DA36: 8.403314658 | DD36: 0 | DE36: 0 | DL36: 0.1572457717 | DM36: 0.08078265294 | DN36: 0.03137484897 | DO36: 0.0009843811479 | DP36: 0.2326712932 | DQ36: 50.42023119 | DR36: 9.560196696 | DS36: 31.68224566 | DT36: 69.15821671 | DU36: 7.10072047 | DX36: 7.752158763 | EA36: 0.9824818405 | EB36: -0.001060443656 | EC36: 0.05894173789 | ED36: 1.359659214e-05 | EE36: 0.001079351915 | EF36: 1.188912836e-09 | EG36: 3.143872651 | EH36: 0.0006239330328 | EI36: 3.142649742 | EJ36: 3.14509556 | EK36: 3.307900901 | EL36: 0.000707336858 | EM36: 3.30651452 | EN36: 3.309287281
A37: =IF('DATA INPUT'!A37="","",'DATA INPUT'!A37) -> Indonesia | B37: =IF('DATA INPUT'!B37="","",'DATA INPUT'!B37) -> 2017 | C37: =IF('DATA INPUT'!C37="","",'DATA INPUT'!C37) -> Births attended by skilled health personnel (%) | D37: =IF('DATA INPUT'!I37="","",'DATA INPUT'!I37) -> 1 | E37: =IF('DATA INPUT'!J37="","",'DATA INPUT'!J37) -> 100 | F37: =IF('DATA INPUT'!D37="","",'DATA INPUT'!D37) -> Subnational region | G37: =IF('DATA INPUT'!K37="","",'DATA INPUT'!K37) -> 0 | H37: =IF('DATA INPUT'!E37="","",'DATA INPUT'!E37) -> papua | I37: =IF('DATA INPUT'!M37="","",'DATA INPUT'!M37) -> 0 | J37: =IF('DATA INPUT'!L37="","",'DATA INPUT'!L37) -> 0 | K37: =IF('DATA INPUT'!F37="","",'DATA INPUT'!F37) -> 64.19527 | L37: =IF('DATA INPUT'!G37="","",'DATA INPUT'!G37) -> 7.05186 | M37: =IF('DATA INPUT'!H37="","",'DATA INPUT'!H37) -> 180.491 | N37: Indonesia2017Births attended by skilled health personnel (%)Subnational region | O37: 3 | P37: 34 | Q37: 34 | R37: 34 | S37: 0 | T37: =IF($D37=1,MAX(IF(group=$O37,order)),MIN(IF(group=$O37,order))) -> 0 | U37: =IF($D37=1,MIN(IF(group=$O37,order)),MAX(IF(group=$O37,order))) -> 0 | V37: =_xlfn.MAXIFS(estimate,group,$O37) -> 100 | W37: =_xlfn.MINIFS(estimate,group,$O37) -> 64.19527 | X37: 0 | Y37: 64.19527 | Z37: =IF($Q37<2,"",IF($G37=1,INDEX(estimate,MATCH(1,(group=$O37)*(order=$T37),0)), IF(AND($G37=0,$X37<>0,$D37=1),$X37, IF(AND($G37=0,$X37<>0,$D37=0),$Y37, IF(AND($G37=0,$X37=0),$V37,""))))) -> 100 | AA37: =IF($Q37<2,"",IF($G37=1,INDEX(estimate,MATCH(1,(group=$O37)*(order=$U37),0)), IF(AND($G37=0,$X37<>0,$D37=1),$Y37, IF(AND($G37=0,$X37<>0,$D37=0),$X37, IF(AND($G37=0,$X37=0),$W37,""))))) -> 64.19527 | AB37: =IF($Q37<2,"",IF($G37=1,INDEX(se,MATCH(1,(group=$O37)*(order=$T37),0)), IF(AND($G37=0,$X37<>0,$D37=1),INDEX(se,MATCH(1,(group=$O37)*(estimate=$X37),0)), IF(AND($G37=0,$X37<>0,$D37=0),INDEX(se,MATCH(1,(group=$O37)*(estimate=$Y37),0)), IF(AND($G37=0,$X37=0),INDEX(se,MATCH(1,(group=$O37)*(estimate=$V37),0)),""))))) -> 0 | AC37: =IF($Q37<2,"",IF($G37=1,INDEX(se,MATCH(1,(group=$O37)*(order=$U37),0)), IF(AND($G37=0,$X37<>0,$D37=1),INDEX(se,MATCH(1,(group=$O37)*(estimate=$Y37),0)), IF(AND($G37=0,$X37<>0,$D37=0),INDEX(se,MATCH(1,(group=$O37)*(estimate=$X37),0)), IF(AND($G37=0,$X37=0),INDEX(se,MATCH(1,(group=$O37)*(estimate=$W37),0)),""))))) -> 7.05186 | AD37: 35.80473 | AE37: 7.05186 | AF37: 21.9830844 | AG37: 49.6263756 | AH37: 1.557747167 | AI37: 0.1711187591 | AJ37: 1.25600288 | AK37: 1.93198302 | AL37: 0.01786273406 | AM37: =IF($O37<>"",SUMPRODUCT(IF(group=$O37,1,0),AL:AL,estimate)) -> 91.59668534 | AN37: 0 | AO37: 0 | AP37: 0 | AQ37: 0 | AR37: 0 | BA37: 1000 | BB37: 0.06419527 | BC37: -2.679477301 | BD37: 0 | BE37: 0 | BF37: 0 | BG37: 0 | BH37: =IF($G37=0,0, INDEX(LINEST( IF($BG37=1,INDEX(BF:BF,ROW($BD37),0),INDEX(BF:BF,ROW($BD37)-J37+1,0)): IF($BG37=1,INDEX(BF:BF,ROW($BD37)+COUNTIF(group,$O37)-1,0),INDEX(BF:BF,ROW($BD37)-J37+$Q37,0)), IF($BG37=1,INDEX(BD:BE,ROW($BD37),0),INDEX(BD:BE,ROW($BD37)-J37+1,0)): IF($BG37=1,INDEX(BD:BE,ROW($BD37)+COUNTIF(group,$O37)-1,0),INDEX(BD:BE,ROW($BD37)-J37+$Q37,0)), FALSE),2)) -> 0 | BI37: =IF($G37=0,0, INDEX(LINEST( IF($BG37=1,INDEX(BF:BF,ROW($BD37),0),INDEX(BF:BF,ROW($BD37)-J37+1,0)): IF($BG37=1,INDEX(BF:BF,ROW($BD37)+COUNTIF(group,$O37)-1,0),INDEX(BF:BF,ROW($BD37)-J37+$Q37,0)), IF($BG37=1,INDEX(BD:BE,ROW($BD37),0),INDEX(BD:BE,ROW($BD37)-J37+1,0)): IF($BG37=1,INDEX(BD:BE,ROW($BD37)+COUNTIF(group,$O37)-1,0),INDEX(BD:BE,ROW($BD37)-J37+$Q37,0)), FALSE),1)+ INDEX(LINEST( IF($BG37=1,INDEX(BF:BF,ROW($BD37),0),INDEX(BF:BF,ROW($BD37)-J37+1,0)): IF($BG37=1,INDEX(BF:BF,ROW($BD37)+COUNTIF(group,$O37)-1,0),INDEX(BF:BF,ROW($BD37)-J37+COUNTIF(group,$O37),0)), IF($BG37=1,INDEX(BD:BE,ROW($BD37),0),INDEX(BD:BE,ROW($BD37)-J37+1,0)): IF($BG37=1,INDEX(BD:BE,ROW($BD37)+COUNTIF(group,$O37)-1,0),INDEX(BD:BE,ROW($BD37)-J37+COUNTIF(group,$O37),0)), FALSE),2)) -> 0 | BJ37: 0 | BK37: 0 | BR37: 0 | BS37: 100 | BT37: 149.4627 | BU37: 149.4627 | BV37: 0 | BW37: 9105.770726 | BX37: 849.0988339 | BY37: 10104.33226 | BZ37: 9.17425628 | CA37: 0.003289666458 | CB37: 9.167808534 | CC37: 9.180704027 | CD37: 8.403314658 | CE37: 0.3013225434 | CF37: 7.812722473 | CG37: 8.993906843 | CH37: 27.40141534 | CI37: 0.4894641951 | CJ37: 6.615573235 | CM37: 5.326111683 | CP37: 7.222502878 | CS37: 5.814742818 | CV37: 35.80473 | CW37: 0.63957037 | CX37: 10.32640382 | DA37: 8.403314658 | DD37: 0 | DE37: 0 | DL37: 13.4120117 | DM37: 11.91377022 | DN37: 0.01586730714 | DO37: 0.0002517714359 | DP37: 0.761123221 | DQ37: 50.42023119 | DR37: 9.560196696 | DS37: 31.68224566 | DT37: 69.15821671 | DU37: 7.10072047 | DX37: 7.752158763 | EA37: 0.7008470859 | EB37: -0.004450089291 | EC37: 0.00806895582 | ED37: 0.002040547123 | EE37: 0.006349586637 | EF37: 3.445749043e-07 | EG37: 3.143872651 | EH37: 0.0006239330328 | EI37: 3.142649742 | EJ37: 3.14509556 | EK37: 3.307900901 | EL37: 0.000707336858 | EM37: 3.30651452 | EN37: 3.309287281
A38: =IF('DATA INPUT'!A38="","",'DATA INPUT'!A38) -> Indonesia | B38: =IF('DATA INPUT'!B38="","",'DATA INPUT'!B38) -> 2017 | C38: =IF('DATA INPUT'!C38="","",'DATA INPUT'!C38) -> Births attended by skilled health personnel (%) | D38: =IF('DATA INPUT'!I38="","",'DATA INPUT'!I38) -> 1 | E38: =IF('DATA INPUT'!J38="","",'DATA INPUT'!J38) -> 100 | F38: =IF('DATA INPUT'!D38="","",'DATA INPUT'!D38) -> Subnational region | G38: =IF('DATA INPUT'!K38="","",'DATA INPUT'!K38) -> 0 | H38: =IF('DATA INPUT'!E38="","",'DATA INPUT'!E38) -> riau | I38: =IF('DATA INPUT'!M38="","",'DATA INPUT'!M38) -> 0 | J38: =IF('DATA INPUT'!L38="","",'DATA INPUT'!L38) -> 0 | K38: =IF('DATA INPUT'!F38="","",'DATA INPUT'!F38) -> 85.95709 | L38: =IF('DATA INPUT'!G38="","",'DATA INPUT'!G38) -> 7.200681 | M38: =IF('DATA INPUT'!H38="","",'DATA INPUT'!H38) -> 308.423 | N38: Indonesia2017Births attended by skilled health personnel (%)Subnational region | O38: 3 | P38: 34 | Q38: 34 | R38: 34 | S38: 0 | T38: =IF($D38=1,MAX(IF(group=$O38,order)),MIN(IF(group=$O38,order))) -> 0 | U38: =IF($D38=1,MIN(IF(group=$O38,order)),MAX(IF(group=$O38,order))) -> 0 | V38: =_xlfn.MAXIFS(estimate,group,$O38) -> 100 | W38: =_xlfn.MINIFS(estimate,group,$O38) -> 64.19527 | X38: 0 | Y38: 64.19527 | Z38: =IF($Q38<2,"",IF($G38=1,INDEX(estimate,MATCH(1,(group=$O38)*(order=$T38),0)), IF(AND($G38=0,$X38<>0,$D38=1),$X38, IF(AND($G38=0,$X38<>0,$D38=0),$Y38, IF(AND($G38=0,$X38=0),$V38,""))))) -> 100 | AA38: =IF($Q38<2,"",IF($G38=1,INDEX(estimate,MATCH(1,(group=$O38)*(order=$U38),0)), IF(AND($G38=0,$X38<>0,$D38=1),$Y38, IF(AND($G38=0,$X38<>0,$D38=0),$X38, IF(AND($G38=0,$X38=0),$W38,""))))) -> 64.19527 | AB38: =IF($Q38<2,"",IF($G38=1,INDEX(se,MATCH(1,(group=$O38)*(order=$T38),0)), IF(AND($G38=0,$X38<>0,$D38=1),INDEX(se,MATCH(1,(group=$O38)*(estimate=$X38),0)), IF(AND($G38=0,$X38<>0,$D38=0),INDEX(se,MATCH(1,(group=$O38)*(estimate=$Y38),0)), IF(AND($G38=0,$X38=0),INDEX(se,MATCH(1,(group=$O38)*(estimate=$V38),0)),""))))) -> 0 | AC38: =IF($Q38<2,"",IF($G38=1,INDEX(se,MATCH(1,(group=$O38)*(order=$U38),0)), IF(AND($G38=0,$X38<>0,$D38=1),INDEX(se,MATCH(1,(group=$O38)*(estimate=$Y38),0)), IF(AND($G38=0,$X38<>0,$D38=0),INDEX(se,MATCH(1,(group=$O38)*(estimate=$X38),0)), IF(AND($G38=0,$X38=0),INDEX(se,MATCH(1,(group=$O38)*(estimate=$W38),0)),""))))) -> 7.05186 | AD38: 35.80473 | AE38: 7.05186 | AF38: 21.9830844 | AG38: 49.6263756 | AH38: 1.557747167 | AI38: 0.1711187591 | AJ38: 1.25600288 | AK38: 1.93198302 | AL38: 0.0305238379 | AM38: =IF($O38<>"",SUMPRODUCT(IF(group=$O38,1,0),AL:AL,estimate)) -> 91.59668534 | AN38: 0 | AO38: 0 | AP38: 0 | AQ38: 0 | AR38: 0 | BA38: 1000 | BB38: 0.08595709 | BC38: -2.3640293 | BD38: 0 | BE38: 0 | BF38: 0 | BG38: 0 | BH38: =IF($G38=0,0, INDEX(LINEST( IF($BG38=1,INDEX(BF:BF,ROW($BD38),0),INDEX(BF:BF,ROW($BD38)-J38+1,0)): IF($BG38=1,INDEX(BF:BF,ROW($BD38)+COUNTIF(group,$O38)-1,0),INDEX(BF:BF,ROW($BD38)-J38+$Q38,0)), IF($BG38=1,INDEX(BD:BE,ROW($BD38),0),INDEX(BD:BE,ROW($BD38)-J38+1,0)): IF($BG38=1,INDEX(BD:BE,ROW($BD38)+COUNTIF(group,$O38)-1,0),INDEX(BD:BE,ROW($BD38)-J38+$Q38,0)), FALSE),2)) -> 0 | BI38: =IF($G38=0,0, INDEX(LINEST( IF($BG38=1,INDEX(BF:BF,ROW($BD38),0),INDEX(BF:BF,ROW($BD38)-J38+1,0)): IF($BG38=1,INDEX(BF:BF,ROW($BD38)+COUNTIF(group,$O38)-1,0),INDEX(BF:BF,ROW($BD38)-J38+$Q38,0)), IF($BG38=1,INDEX(BD:BE,ROW($BD38),0),INDEX(BD:BE,ROW($BD38)-J38+1,0)): IF($BG38=1,INDEX(BD:BE,ROW($BD38)+COUNTIF(group,$O38)-1,0),INDEX(BD:BE,ROW($BD38)-J38+$Q38,0)), FALSE),1)+ INDEX(LINEST( IF($BG38=1,INDEX(BF:BF,ROW($BD38),0),INDEX(BF:BF,ROW($BD38)-J38+1,0)): IF($BG38=1,INDEX(BF:BF,ROW($BD38)+COUNTIF(group,$O38)-1,0),INDEX(BF:BF,ROW($BD38)-J38+COUNTIF(group,$O38),0)), IF($BG38=1,INDEX(BD:BE,ROW($BD38),0),INDEX(BD:BE,ROW($BD38)-J38+1,0)): IF($BG38=1,INDEX(BD:BE,ROW($BD38)+COUNTIF(group,$O38)-1,0),INDEX(BD:BE,ROW($BD38)-J38+COUNTIF(group,$O38),0)), FALSE),2)) -> 0 | BJ38: 0 | BK38: 0 | BR38: 0 | BS38: 100 | BT38: 149.4627 | BU38: 149.4627 | BV38: 0 | BW38: 9105.770726 | BX38: 849.0988339 | BY38: 10104.33226 | BZ38: 9.17425628 | CA38: 0.003289666458 | CB38: 9.167808534 | CC38: 9.180704027 | CD38: 8.403314658 | CE38: 0.3013225434 | CF38: 7.812722473 | CG38: 8.993906843 | CH38: 5.639595342 | CI38: 0.1721420941 | CJ38: 6.615573235 | CM38: 5.326111683 | CP38: 7.222502878 | CS38: 5.814742818 | CV38: 14.04291 | CW38: 0.4286435085 | CX38: 10.32640382 | DA38: 8.403314658 | DD38: 0 | DE38: 0 | DL38: 0.9708117518 | DM38: 1.53646017 | DN38: 0.04830870772 | DO38: 0.002333731242 | DP38: 2.354218851 | DQ38: 50.42023119 | DR38: 9.560196696 | DS38: 31.68224566 | DT38: 69.15821671 | DU38: 7.10072047 | DX38: 7.752158763 | EA38: 0.9384301373 | EB38: -0.001820267545 | EC38: 0.02682422185 | ED38: 0.0002148604508 | EE38: 0.001939694254 | EF38: 2.47855398e-08 | EG38: 3.143872651 | EH38: 0.0006239330328 | EI38: 3.142649742 | EJ38: 3.14509556 | EK38: 3.307900901 | EL38: 0.000707336858 | EM38: 3.30651452 | EN38: 3.309287281
A39: =IF('DATA INPUT'!A39="","",'DATA INPUT'!A39) -> Indonesia | B39: =IF('DATA INPUT'!B39="","",'DATA INPUT'!B39) -> 2017 | C39: =IF('DATA INPUT'!C39="","",'DATA INPUT'!C39) -> Births attended by skilled health personnel (%) | D39: =IF('DATA INPUT'!I39="","",'DATA INPUT'!I39) -> 1 | E39: =IF('DATA INPUT'!J39="","",'DATA INPUT'!J39) -> 100 | F39: =IF('DATA INPUT'!D39="","",'DATA INPUT'!D39) -> Subnational region | G39: =IF('DATA INPUT'!K39="","",'DATA INPUT'!K39) -> 0 | H39: =IF('DATA INPUT'!E39="","",'DATA INPUT'!E39) -> riau islands | I39: =IF('DATA INPUT'!M39="","",'DATA INPUT'!M39) -> 0 | J39: =IF('DATA INPUT'!L39="","",'DATA INPUT'!L39) -> 0 | K39: =IF('DATA INPUT'!F39="","",'DATA INPUT'!F39) -> 99.40075 | L39: =IF('DATA INPUT'!G39="","",'DATA INPUT'!G39) -> 0.4476624 | M39: =IF('DATA INPUT'!H39="","",'DATA INPUT'!H39) -> 77.26701 | N39: =_xlfn.CONCAT(A39&B39&C39&F39) -> Indonesia2017Births attended by skilled health personnel (%)Subnational region | O39: =IF(A39="","",IF(N39=N38,O38,O38+1)) -> 3 | P39: =IF($A39="","",COUNTIFS($N:$N,$N39)) -> 34 | Q39: =IF($A39="","",COUNTIFS($N:$N,$N39)-COUNTIFS($N:$N,$N39,estimate,"")) -> 34 | R39: =IF($A39="","",COUNTIFS($N:$N,$N39)-MAX(COUNTIFS($N:$N,$N39,estimate,""),COUNTIFS($N:$N,$N39,population,""))) -> 34 | S39: =P39-R39 -> 0 | T39: =IF($D39=1,MAX(IF(group=$O39,order)),MIN(IF(group=$O39,order))) -> 0 | U39: =IF($D39=1,MIN(IF(group=$O39,order)),MAX(IF(group=$O39,order))) -> 0 | V39: =_xlfn.MAXIFS(estimate,group,$O39) -> 100 | W39: =_xlfn.MINIFS(estimate,group,$O39) -> 64.19527 | X39: =IF($G39=0,_xlfn.MAXIFS(estimate,group,$O39,reference,1),0) -> 0 | Y39: =IF(AND($G39=0,$D39=1),_xlfn.MINIFS(estimate,group,$O39,reference,0), IF(AND($G39=0,$D39=0),_xlfn.MAXIFS(estimate,group,$O39,reference,0), 0)) -> 64.19527 | Z39: =IF($Q39<2,"",IF($G39=1,INDEX(estimate,MATCH(1,(group=$O39)*(order=$T39),0)), IF(AND($G39=0,$X39<>0,$D39=1),$X39, IF(AND($G39=0,$X39<>0,$D39=0),$Y39, IF(AND($G39=0,$X39=0),$V39,""))))) -> 100 | AA39: =IF($Q39<2,"",IF($G39=1,INDEX(estimate,MATCH(1,(group=$O39)*(order=$U39),0)), IF(AND($G39=0,$X39<>0,$D39=1),$Y39, IF(AND($G39=0,$X39<>0,$D39=0),$X39, IF(AND($G39=0,$X39=0),$W39,""))))) -> 64.19527 | AB39: =IF($Q39<2,"",IF($G39=1,INDEX(se,MATCH(1,(group=$O39)*(order=$T39),0)), IF(AND($G39=0,$X39<>0,$D39=1),INDEX(se,MATCH(1,(group=$O39)*(estimate=$X39),0)), IF(AND($G39=0,$X39<>0,$D39=0),INDEX(se,MATCH(1,(group=$O39)*(estimate=$Y39),0)), IF(AND($G39=0,$X39=0),INDEX(se,MATCH(1,(group=$O39)*(estimate=$V39),0)),""))))) -> 0 | AC39: =IF($Q39<2,"",IF($G39=1,INDEX(se,MATCH(1,(group=$O39)*(order=$U39),0)), IF(AND($G39=0,$X39<>0,$D39=1),INDEX(se,MATCH(1,(group=$O39)*(estimate=$Y39),0)), IF(AND($G39=0,$X39<>0,$D39=0),INDEX(se,MATCH(1,(group=$O39)*(estimate=$X39),0)), IF(AND($G39=0,$X39=0),INDEX(se,MATCH(1,(group=$O39)*(estimate=$W39),0)),""))))) -> 7.05186 | AD39: =IFERROR(Z39-AA39,"") -> 35.80473 | AE39: =IFERROR(SQRT(AB39^2+AC39^2),"") -> 7.05186 | AF39: =IFERROR(IF(AE39=0,0,AD39-1.96*AE39),"") -> 21.9830844 | AG39: =IFERROR(IF(AE39=0,0,AD39+1.96*AE39),"") -> 49.6263756 | AH39: =IFERROR(Z39/AA39,"") -> 1.557747167 | AI39: =IFERROR(SQRT(((1/(AA39^2))*((AB39^2)+(AH39^2)*(AC39^2)))),"") -> 0.1711187591 | AJ39: =IFERROR(IF($AI39=0,0,EXP(LN($AH39)-1.96*($AI39/$AH39))),"") -> 1.25600288 | AK39: =IFERROR(IF($AI39=0,0,EXP(LN($AH39)+1.96*($AI39/$AH39))),"") -> 1.93198302 | AL39: =IFERROR($M39/SUMIFS(population,group,$O39),"") -> 0.007646918966 | AM39: =IF($O39<>"",SUMPRODUCT(IF(group=$O39,1,0),AL:AL,estimate)) -> 91.59668534 | AN39: =IFERROR(IF($G39=0,0,IF($J39=1,$AL39,$AL39+$AN38)),"") -> 0 | AO39: =IF($G39=1,AN39-0.5*AL39,0) -> 0 | AP39: =IF($G39=0,0,$AL39*(2*$AO39-1)*$K39) -> 0 | AQ39: =IF($G39=0,0,(($AL39^2)*((2*$AO39-1)^2)*($L39^2))) -> 0 | AR39: =IF($G39=0,0,(($AL39^2)*($L39^2)*(((2*$AO39-1)-$AW39)^2))) -> 0 | AS39: =IFERROR(IF($G39=0,"",IF($S39<>0,"",SUMIFS(AP:AP,group,$O39))),"") ->  | AT39: =IFERROR(IF($G39=0,"",IF($S39<>0,"",SQRT(SUMIFS($AQ:$AQ,group,$O39)))),"") ->  | AU39: =IFERROR(IF($AT39=0,0,$AS39-1.96*$AT39),"") ->  | AV39: =IFERROR(IF($AT39=0,0,$AS39+1.96*$AT39),"") ->  | AW39: =IFERROR($AS39/$AM39*100,"") ->  | AX39: =IFERROR(IF($G39=0,"",SQRT((SUMIFS($AR:$AR,group,$O39))/(AM39^2))),"") ->  | AY39: =IFERROR(IF($AX39=0,0,$AW39-1.96*$AX39),"") ->  | AZ39: =IFERROR(IF($AX39=0,0,$AW39+1.96*$AX39),"") ->  | BA39: 1000 | BB39: 0.09940075 | BC39: -2.203900716 | BD39: =IF($G39=0,0,SQRT($M39)) -> 0 | BE39: =$AO39*$BD39 -> 0 | BF39: 0 | BG39: 0 | BH39: =IF($G39=0,0, INDEX(LINEST( IF($BG39=1,INDEX(BF:BF,ROW($BD39),0),INDEX(BF:BF,ROW($BD39)-J39+1,0)): IF($BG39=1,INDEX(BF:BF,ROW($BD39)+COUNTIF(group,$O39)-1,0),INDEX(BF:BF,ROW($BD39)-J39+$Q39,0)), IF($BG39=1,INDEX(BD:BE,ROW($BD39),0),INDEX(BD:BE,ROW($BD39)-J39+1,0)): IF($BG39=1,INDEX(BD:BE,ROW($BD39)+COUNTIF(group,$O39)-1,0),INDEX(BD:BE,ROW($BD39)-J39+$Q39,0)), FALSE),2)) -> 0 | BI39: =IF($G39=0,0, INDEX(LINEST( IF($BG39=1,INDEX(BF:BF,ROW($BD39),0),INDEX(BF:BF,ROW($BD39)-J39+1,0)): IF($BG39=1,INDEX(BF:BF,ROW($BD39)+COUNTIF(group,$O39)-1,0),INDEX(BF:BF,ROW($BD39)-J39+$Q39,0)), IF($BG39=1,INDEX(BD:BE,ROW($BD39),0),INDEX(BD:BE,ROW($BD39)-J39+1,0)): IF($BG39=1,INDEX(BD:BE,ROW($BD39)+COUNTIF(group,$O39)-1,0),INDEX(BD:BE,ROW($BD39)-J39+$Q39,0)), FALSE),1)+ INDEX(LINEST( IF($BG39=1,INDEX(BF:BF,ROW($BD39),0),INDEX(BF:BF,ROW($BD39)-J39+1,0)): IF($BG39=1,INDEX(BF:BF,ROW($BD39)+COUNTIF(group,$O39)-1,0),INDEX(BF:BF,ROW($BD39)-J39+COUNTIF(group,$O39),0)), IF($BG39=1,INDEX(BD:BE,ROW($BD39),0),INDEX(BD:BE,ROW($BD39)-J39+1,0)): IF($BG39=1,INDEX(BD:BE,ROW($BD39)+COUNTIF(group,$O39)-1,0),INDEX(BD:BE,ROW($BD39)-J39+COUNTIF(group,$O39),0)), FALSE),2)) -> 0 | BJ39: =IF($G39=0,0,(EXP($BH39)/(1+EXP($BH39)))*$BA39) -> 0 | BK39: =IF($G39=0,0,(EXP($BI39)/(1+EXP($BI39)))*$BA39) -> 0 | BL39: =IFERROR(IF($G39=0,"",IF($S39<>0,"",BK39-BJ39)),"") ->  | BO39: =IFERROR(IF($S39<>0,"",$BK39/$BJ39),"") ->  | BR39: =IF($G39=1,IF($J39=_xlfn.MAXIFS(order,group,$O39),1,0), IF(AND($G39=0,$D39=1),IF($K39=_xlfn.MAXIFS(estimate,group,$O39),1,0), IF(AND($G39=0,$D39=0),IF($K39=_xlfn.MINIFS(estimate,group,$O39),1,0)))) -> 0 | BS39: =SUMIFS(estimate,BR:BR,1, group,$O39) -> 100 | BT39: =SUMIFS(population,BR:BR,1, group,$O39) -> 149.4627 | BU39: =($BS39/$E39)*$BT39 -> 149.4627 | BV39: 0 | BW39: =($AM39/$E39)*SUMIFS(population,group,$O39)-$BU39 -> 9105.770726 | BX39: =SUMIFS(population,group,$O39)-$BW39-$BT39 -> 849.0988339 | BY39: 10104.33226 | BZ39: =IFERROR(IF($S39<>0,"",IF($R39<=2,"",($BS39-$AM39)/$AM39*100)),"") -> 9.17425628 | CA39: =IFERROR(IF($S39<>0,"",IF($R39<=2,"",SQRT(($BU39*$BY39*($BW39*$BV39*($BY39-$BU39)+$BX39*$BU39^2))/(($BW39+$BU39)^3*($BU39+$BV39)^3)))),"") -> 0.003289666458 | CB39: =IFERROR($BZ39-1.96*$CA39,"") -> 9.167808534 | CC39: =IFERROR($BZ39+1.96*$CA39,"") -> 9.180704027 | CD39: =IF($O39="","",IF($S39<>0,"",IF($R39<=2,"",IF(AND($BS39-$AM39<0,$D39=1),0,IF(AND($BS39-$AM39>0,$D39=0),0,$BS39-$AM39))))) -> 8.403314658 | CE39: =IFERROR(ABS($AM39*($CC39-$CB39))/(2*1.96),"") -> 0.3013225434 | CF39: =IFERROR($CD39-1.96*$CE39,"") -> 7.812722473 | CG39: =IFERROR($CD39+1.96*$CE39,"") -> 8.993906843 | CH39: =IF($G39=1,0,IF($Q39=2,0,ABS($K39-$AM39))) -> 7.804064658 | CI39: =$CH39*$AL39 -> 0.05967705004 | CJ39: =IFERROR(IF($G39=1,"",IF($S39<>0,"",IF($R39<=2,"",SUMIFS(CH:CH,group,$O39)/$Q39))),"") -> 6.615573235 | CM39: =IFERROR(IF($G39=1,"",IF($S39<>0,"",IF($R39<=2,"",SUMIFS(CI:CI,group,$O39)))),"") -> 5.326111683 | CP39: =IFERROR($CJ39/$AM39*100,"") -> 7.222502878 | CS39: =IFERROR($CM39/$AM39*100,"") -> 5.814742818 | CV39: =IF($G39=1,0,IF($Q39=2,0,ABS($K39-$BS39))) -> 0.59925 | CW39: =$CV39*$AL39 -> 0.004582416191 | CX39: =IFERROR(IF($G39=1,"",IF($Q39<=2,"",IF($P39-$Q39<>0,"",SUMIFS(CV:CV,group,$O39)/$Q39))),"") -> 10.32640382 | DA39: =IFERROR(IF($G39=1,"",IF($R39<=2,"",IF($P39-$Q39<>0,"",IF($P39-$R39<>0,"",SUMIFS(CW:CW,group,$O39))))),"") -> 8.403314658 | DD39: =IF($G39=1,0,IF($Q39=2,0,IF($X39=0,0,ABS($K39-$X39)))) -> 0 | DE39: =$DD39*$AL39 -> 0 | DF39: =IFERROR(IF($G39=1,"",IF($X39=0,"",IF($Q39<=2,"",IF($P39-$Q39<>0,"",SUMIFS(DD:DD,group,$O39)/$Q39)))),"") ->  | DI39: =IFERROR(IF($G39=1,"",IF($X39=0,"",IF($R39<=2,"",IF($P39-$Q39<>0,"",IF($P39-$R39<>0,"",SUMIFS(DE:DE,group,$O39)))))),"") ->  | DL39: =IF($G39=1,0,IF($Q39=2,0,$AL39*(($K39-$AM39)^2))) -> 0.4657235571 | DM39: =IF($G39=1,0,IF($Q39=2,0,($AL39^2)*($L39^2)*(($K39-$AM39)^2))) -> 0.0007137003855 | DN39: =IF($G39=1,0,IF($Q39=2,0,($AL39^2)*($L39^2))) -> 1.171855907e-05 | DO39: =IF($G39=1,0,IF($Q39=2,0,($AL39^4)*($L39^4))) -> 1.373246267e-10 | DP39: =IF($G39=1,0,IF($Q39=2,0,($AL39^2)*((1-$AL39)^2)*($L39^4))) -> 2.312639269e-06 | DQ39: =IFERROR(IF($G39=1,"",IF($R39<=2,"",IF($P39-$Q39<>0,"",IF($P39-$R39<>0,"",SUMIFS(DL:DL,group,$O39))))),"") -> 50.42023119 | DR39: =IFERROR(IF($G39=1,"",IF($R39<=2,"",IF($P39-$Q39<>0,"",IF($P39-$R39<>0,"",SQRT(4*SUMIFS($DM:$DM,group,$O39)+2*((SUMIFS($DN:$DN,group,$O39)^2)-SUMIFS($DO:$DO,group,$O39)+SUMIFS($DP:$DP,group,$O39))))))),"") -> 9.560196696 | DS39: =IFERROR(IF(DR39=0,0,$DQ39-1.96*$DR39),"") -> 31.68224566 | DT39: =IFERROR(IF(DR39=0,0,$DQ39+1.96*$DR39),"") -> 69.15821671 | DU39: =IFERROR(SQRT(DQ39),"") -> 7.10072047 | DX39: =IFERROR($DU39/$AM39*100,"") -> 7.752158763 | EA39: =IF($G39=1,0,IF($Q39=2,0,$K39/$AM39)) -> 1.085200295 | EB39: =IF($G39=1,0,IF($Q39=2,0,$AL39*$EA39*LN($EA39))) -> 0.0006785183078 | EC39: =IF($G39=1,0,IF($Q39=2,0,$AL39*$EA39*(1+LN($EA39)))) -> 0.00897695703 | ED39: =IF($G39=1,0,IF($Q39=2,0,(($AL39^2)*($L39^2)*((1+LN($EA39)-SUMIFS(EC:EC,group,$O39))^2)))) -> 7.243492954e-08 | EE39: =IF($G39=1,0,IF($Q39=2,0,($AL39*-LN($EA39)))) -> -0.0006252470724 | EF39: =IF($G39=1,0,IF($Q39=2,0,((($AL39^2)*($L39^2))/($AM39^2))*((1-(1/$EA39))^2))) -> 8.6094834e-12 | EG39: =IFERROR(IF($G39=1,"",IF($R39<=2,"",IF($P39-$R39<>0,"",SUMIFS(EB:EB,group,$O39)*1000))),"") -> 3.143872651 | EH39: =IFERROR(IF($G39=1,"",IF($R39<=2,"",IF($P39-$R39<>0,"",SQRT(SUMIFS(ED:ED,group,$O39)/($AM39^2))))),"") -> 0.0006239330328 | EI39: =IFERROR($EG39-1.96*$EH39,"") -> 3.142649742 | EJ39: =IFERROR($EG39+1.96*$EH39,"") -> 3.14509556 | EK39: =IFERROR(IF($G39=1,"",IF($R39<=2,"",IF($P39-$R39<>0,"",SUMIFS(EE:EE,group,$O39)*1000))),"") -> 3.307900901 | EL39: =IFERROR(IF($G39=1,"",IF($R39<=2,"",IF($P39-$R39<>0,"",SQRT(SUMIFS(EF:EF,group,$O39))))),"") -> 0.000707336858 | EM39: =IFERROR($EK39-1.96*$EL39,"") -> 3.30651452 | EN39: =IFERROR($EK39+1.96*$EL39,"") -> 3.309287281
A40: =IF('DATA INPUT'!A40="","",'DATA INPUT'!A40) -> Indonesia | B40: =IF('DATA INPUT'!B40="","",'DATA INPUT'!B40) -> 2017 | C40: =IF('DATA INPUT'!C40="","",'DATA INPUT'!C40) -> Births attended by skilled health personnel (%) | D40: =IF('DATA INPUT'!I40="","",'DATA INPUT'!I40) -> 1 | E40: =IF('DATA INPUT'!J40="","",'DATA INPUT'!J40) -> 100 | F40: =IF('DATA INPUT'!D40="","",'DATA INPUT'!D40) -> Subnational region | G40: =IF('DATA INPUT'!K40="","",'DATA INPUT'!K40) -> 0 | H40: =IF('DATA INPUT'!E40="","",'DATA INPUT'!E40) -> south kalimantan | I40: =IF('DATA INPUT'!M40="","",'DATA INPUT'!M40) -> 0 | J40: =IF('DATA INPUT'!L40="","",'DATA INPUT'!L40) -> 0 | K40: =IF('DATA INPUT'!F40="","",'DATA INPUT'!F40) -> 92.61676 | L40: =IF('DATA INPUT'!G40="","",'DATA INPUT'!G40) -> 2.931488 | M40: =IF('DATA INPUT'!H40="","",'DATA INPUT'!H40) -> 164.3986 | N40: Indonesia2017Births attended by skilled health personnel (%)Subnational region | O40: 3 | P40: 34 | Q40: 34 | R40: 34 | S40: 0 | T40: =IF($D40=1,MAX(IF(group=$O40,order)),MIN(IF(group=$O40,order))) -> 0 | U40: =IF($D40=1,MIN(IF(group=$O40,order)),MAX(IF(group=$O40,order))) -> 0 | V40: =_xlfn.MAXIFS(estimate,group,$O40) -> 100 | W40: =_xlfn.MINIFS(estimate,group,$O40) -> 64.19527 | X40: 0 | Y40: 64.19527 | Z40: =IF($Q40<2,"",IF($G40=1,INDEX(estimate,MATCH(1,(group=$O40)*(order=$T40),0)), IF(AND($G40=0,$X40<>0,$D40=1),$X40, IF(AND($G40=0,$X40<>0,$D40=0),$Y40, IF(AND($G40=0,$X40=0),$V40,""))))) -> 100 | AA40: =IF($Q40<2,"",IF($G40=1,INDEX(estimate,MATCH(1,(group=$O40)*(order=$U40),0)), IF(AND($G40=0,$X40<>0,$D40=1),$Y40, IF(AND($G40=0,$X40<>0,$D40=0),$X40, IF(AND($G40=0,$X40=0),$W40,""))))) -> 64.19527 | AB40: =IF($Q40<2,"",IF($G40=1,INDEX(se,MATCH(1,(group=$O40)*(order=$T40),0)), IF(AND($G40=0,$X40<>0,$D40=1),INDEX(se,MATCH(1,(group=$O40)*(estimate=$X40),0)), IF(AND($G40=0,$X40<>0,$D40=0),INDEX(se,MATCH(1,(group=$O40)*(estimate=$Y40),0)), IF(AND($G40=0,$X40=0),INDEX(se,MATCH(1,(group=$O40)*(estimate=$V40),0)),""))))) -> 0 | AC40: =IF($Q40<2,"",IF($G40=1,INDEX(se,MATCH(1,(group=$O40)*(order=$U40),0)), IF(AND($G40=0,$X40<>0,$D40=1),INDEX(se,MATCH(1,(group=$O40)*(estimate=$Y40),0)), IF(AND($G40=0,$X40<>0,$D40=0),INDEX(se,MATCH(1,(group=$O40)*(estimate=$X40),0)), IF(AND($G40=0,$X40=0),INDEX(se,MATCH(1,(group=$O40)*(estimate=$W40),0)),""))))) -> 7.05186 | AD40: 35.80473 | AE40: 7.05186 | AF40: 21.9830844 | AG40: 49.6263756 | AH40: 1.557747167 | AI40: 0.1711187591 | AJ40: 1.25600288 | AK40: 1.93198302 | AL40: 0.01627011026 | AM40: =IF($O40<>"",SUMPRODUCT(IF(group=$O40,1,0),AL:AL,estimate)) -> 91.59668534 | AN40: 0 | AO40: 0 | AP40: 0 | AQ40: 0 | AR40: 0 | BA40: 1000 | BB40: 0.09261676 | BC40: -2.282094778 | BD40: 0 | BE40: 0 | BF40: 0 | BG40: 0 | BH40: =IF($G40=0,0, INDEX(LINEST( IF($BG40=1,INDEX(BF:BF,ROW($BD40),0),INDEX(BF:BF,ROW($BD40)-J40+1,0)): IF($BG40=1,INDEX(BF:BF,ROW($BD40)+COUNTIF(group,$O40)-1,0),INDEX(BF:BF,ROW($BD40)-J40+$Q40,0)), IF($BG40=1,INDEX(BD:BE,ROW($BD40),0),INDEX(BD:BE,ROW($BD40)-J40+1,0)): IF($BG40=1,INDEX(BD:BE,ROW($BD40)+COUNTIF(group,$O40)-1,0),INDEX(BD:BE,ROW($BD40)-J40+$Q40,0)), FALSE),2)) -> 0 | BI40: =IF($G40=0,0, INDEX(LINEST( IF($BG40=1,INDEX(BF:BF,ROW($BD40),0),INDEX(BF:BF,ROW($BD40)-J40+1,0)): IF($BG40=1,INDEX(BF:BF,ROW($BD40)+COUNTIF(group,$O40)-1,0),INDEX(BF:BF,ROW($BD40)-J40+$Q40,0)), IF($BG40=1,INDEX(BD:BE,ROW($BD40),0),INDEX(BD:BE,ROW($BD40)-J40+1,0)): IF($BG40=1,INDEX(BD:BE,ROW($BD40)+COUNTIF(group,$O40)-1,0),INDEX(BD:BE,ROW($BD40)-J40+$Q40,0)), FALSE),1)+ INDEX(LINEST( IF($BG40=1,INDEX(BF:BF,ROW($BD40),0),INDEX(BF:BF,ROW($BD40)-J40+1,0)): IF($BG40=1,INDEX(BF:BF,ROW($BD40)+COUNTIF(group,$O40)-1,0),INDEX(BF:BF,ROW($BD40)-J40+COUNTIF(group,$O40),0)), IF($BG40=1,INDEX(BD:BE,ROW($BD40),0),INDEX(BD:BE,ROW($BD40)-J40+1,0)): IF($BG40=1,INDEX(BD:BE,ROW($BD40)+COUNTIF(group,$O40)-1,0),INDEX(BD:BE,ROW($BD40)-J40+COUNTIF(group,$O40),0)), FALSE),2)) -> 0 | BJ40: 0 | BK40: 0 | BR40: 0 | BS40: 100 | BT40: 149.4627 | BU40: 149.4627 | BV40: 0 | BW40: 9105.770726 | BX40: 849.0988339 | BY40: 10104.33226 | BZ40: 9.17425628 | CA40: 0.003289666458 | CB40: 9.167808534 | CC40: 9.180704027 | CD40: 8.403314658 | CE40: 0.3013225434 | CF40: 7.812722473 | CG40: 8.993906843 | CH40: 1.020074658 | CI40: 0.01659672716 | CJ40: 6.615573235 | CM40: 5.326111683 | CP40: 7.222502878 | CS40: 5.814742818 | CV40: 7.38324 | CW40: 0.1201261289 | CX40: 10.32640382 | DA40: 8.403314658 | DD40: 0 | DE40: 0 | DL40: 0.01692990077 | DM40: 0.002367124772 | DN40: 0.002274873407 | DO40: 5.175049016e-06 | DP40: 0.01891843511 | DQ40: 50.42023119 | DR40: 9.560196696 | DS40: 31.68224566 | DT40: 69.15821671 | DU40: 7.10072047 | DX40: 7.752158763 | EA40: 1.011136589 | EB40: 0.0001821987487 | EC40: 0.01663350255 | ED40: 1.430970903e-07 | EE40: -0.0001801920242 | EF40: 3.289140811e-11 | EG40: 3.143872651 | EH40: 0.0006239330328 | EI40: 3.142649742 | EJ40: 3.14509556 | EK40: 3.307900901 | EL40: 0.000707336858 | EM40: 3.30651452 | EN40: 3.309287281
A41: =IF('DATA INPUT'!A41="","",'DATA INPUT'!A41) -> Indonesia | B41: =IF('DATA INPUT'!B41="","",'DATA INPUT'!B41) -> 2017 | C41: =IF('DATA INPUT'!C41="","",'DATA INPUT'!C41) -> Births attended by skilled health personnel (%) | D41: =IF('DATA INPUT'!I41="","",'DATA INPUT'!I41) -> 1 | E41: =IF('DATA INPUT'!J41="","",'DATA INPUT'!J41) -> 100 | F41: =IF('DATA INPUT'!D41="","",'DATA INPUT'!D41) -> Subnational region | G41: =IF('DATA INPUT'!K41="","",'DATA INPUT'!K41) -> 0 | H41: =IF('DATA INPUT'!E41="","",'DATA INPUT'!E41) -> south sulawesi | I41: =IF('DATA INPUT'!M41="","",'DATA INPUT'!M41) -> 0 | J41: =IF('DATA INPUT'!L41="","",'DATA INPUT'!L41) -> 0 | K41: =IF('DATA INPUT'!F41="","",'DATA INPUT'!F41) -> 90.40358 | L41: =IF('DATA INPUT'!G41="","",'DATA INPUT'!G41) -> 2.525667 | M41: =IF('DATA INPUT'!H41="","",'DATA INPUT'!H41) -> 309.4937 | N41: Indonesia2017Births attended by skilled health personnel (%)Subnational region | O41: 3 | P41: 34 | Q41: 34 | R41: 34 | S41: 0 | T41: =IF($D41=1,MAX(IF(group=$O41,order)),MIN(IF(group=$O41,order))) -> 0 | U41: =IF($D41=1,MIN(IF(group=$O41,order)),MAX(IF(group=$O41,order))) -> 0 | V41: =_xlfn.MAXIFS(estimate,group,$O41) -> 100 | W41: =_xlfn.MINIFS(estimate,group,$O41) -> 64.19527 | X41: 0 | Y41: 64.19527 | Z41: =IF($Q41<2,"",IF($G41=1,INDEX(estimate,MATCH(1,(group=$O41)*(order=$T41),0)), IF(AND($G41=0,$X41<>0,$D41=1),$X41, IF(AND($G41=0,$X41<>0,$D41=0),$Y41, IF(AND($G41=0,$X41=0),$V41,""))))) -> 100 | AA41: =IF($Q41<2,"",IF($G41=1,INDEX(estimate,MATCH(1,(group=$O41)*(order=$U41),0)), IF(AND($G41=0,$X41<>0,$D41=1),$Y41, IF(AND($G41=0,$X41<>0,$D41=0),$X41, IF(AND($G41=0,$X41=0),$W41,""))))) -> 64.19527 | AB41: =IF($Q41<2,"",IF($G41=1,INDEX(se,MATCH(1,(group=$O41)*(order=$T41),0)), IF(AND($G41=0,$X41<>0,$D41=1),INDEX(se,MATCH(1,(group=$O41)*(estimate=$X41),0)), IF(AND($G41=0,$X41<>0,$D41=0),INDEX(se,MATCH(1,(group=$O41)*(estimate=$Y41),0)), IF(AND($G41=0,$X41=0),INDEX(se,MATCH(1,(group=$O41)*(estimate=$V41),0)),""))))) -> 0 | AC41: =IF($Q41<2,"",IF($G41=1,INDEX(se,MATCH(1,(group=$O41)*(order=$U41),0)), IF(AND($G41=0,$X41<>0,$D41=1),INDEX(se,MATCH(1,(group=$O41)*(estimate=$Y41),0)), IF(AND($G41=0,$X41<>0,$D41=0),INDEX(se,MATCH(1,(group=$O41)*(estimate=$X41),0)), IF(AND($G41=0,$X41=0),INDEX(se,MATCH(1,(group=$O41)*(estimate=$W41),0)),""))))) -> 7.05186 | AD41: 35.80473 | AE41: 7.05186 | AF41: 21.9830844 | AG41: 49.6263756 | AH41: 1.557747167 | AI41: 0.1711187591 | AJ41: 1.25600288 | AK41: 1.93198302 | AL41: 0.03062980235 | AM41: =IF($O41<>"",SUMPRODUCT(IF(group=$O41,1,0),AL:AL,estimate)) -> 91.59668534 | AN41: 0 | AO41: 0 | AP41: 0 | AQ41: 0 | AR41: 0 | BA41: 1000 | BB41: 0.09040358 | BC41: -2.308717138 | BD41: 0 | BE41: 0 | BF41: 0 | BG41: 0 | BH41: =IF($G41=0,0, INDEX(LINEST( IF($BG41=1,INDEX(BF:BF,ROW($BD41),0),INDEX(BF:BF,ROW($BD41)-J41+1,0)): IF($BG41=1,INDEX(BF:BF,ROW($BD41)+COUNTIF(group,$O41)-1,0),INDEX(BF:BF,ROW($BD41)-J41+$Q41,0)), IF($BG41=1,INDEX(BD:BE,ROW($BD41),0),INDEX(BD:BE,ROW($BD41)-J41+1,0)): IF($BG41=1,INDEX(BD:BE,ROW($BD41)+COUNTIF(group,$O41)-1,0),INDEX(BD:BE,ROW($BD41)-J41+$Q41,0)), FALSE),2)) -> 0 | BI41: =IF($G41=0,0, INDEX(LINEST( IF($BG41=1,INDEX(BF:BF,ROW($BD41),0),INDEX(BF:BF,ROW($BD41)-J41+1,0)): IF($BG41=1,INDEX(BF:BF,ROW($BD41)+COUNTIF(group,$O41)-1,0),INDEX(BF:BF,ROW($BD41)-J41+$Q41,0)), IF($BG41=1,INDEX(BD:BE,ROW($BD41),0),INDEX(BD:BE,ROW($BD41)-J41+1,0)): IF($BG41=1,INDEX(BD:BE,ROW($BD41)+COUNTIF(group,$O41)-1,0),INDEX(BD:BE,ROW($BD41)-J41+$Q41,0)), FALSE),1)+ INDEX(LINEST( IF($BG41=1,INDEX(BF:BF,ROW($BD41),0),INDEX(BF:BF,ROW($BD41)-J41+1,0)): IF($BG41=1,INDEX(BF:BF,ROW($BD41)+COUNTIF(group,$O41)-1,0),INDEX(BF:BF,ROW($BD41)-J41+COUNTIF(group,$O41),0)), IF($BG41=1,INDEX(BD:BE,ROW($BD41),0),INDEX(BD:BE,ROW($BD41)-J41+1,0)): IF($BG41=1,INDEX(BD:BE,ROW($BD41)+COUNTIF(group,$O41)-1,0),INDEX(BD:BE,ROW($BD41)-J41+COUNTIF(group,$O41),0)), FALSE),2)) -> 0 | BJ41: 0 | BK41: 0 | BR41: 0 | BS41: 100 | BT41: 149.4627 | BU41: 149.4627 | BV41: 0 | BW41: 9105.770726 | BX41: 849.0988339 | BY41: 10104.33226 | BZ41: 9.17425628 | CA41: 0.003289666458 | CB41: 9.167808534 | CC41: 9.180704027 | CD41: 8.403314658 | CE41: 0.3013225434 | CF41: 7.812722473 | CG41: 8.993906843 | CH41: 1.193105342 | CI41: 0.03654458082 | CJ41: 6.615573235 | CM41: 5.326111683 | CP41: 7.222502878 | CS41: 5.814742818 | CV41: 9.59642 | CW41: 0.2939364479 | CX41: 10.32640382 | DA41: 8.403314658 | DD41: 0 | DE41: 0 | DL41: 0.04360153461 | DM41: 0.008519186956 | DN41: 0.005984674967 | DO41: 3.581633446e-05 | DP41: 0.03587336162 | DQ41: 50.42023119 | DR41: 9.560196696 | DS41: 31.68224566 | DT41: 69.15821671 | DU41: 7.10072047 | DX41: 7.752158763 | EA41: 0.9869743612 | EB41: -0.0003963629496 | EC41: 0.02983446666 | ED41: 1.581318223e-06 | EE41: 0.0004015939676 | EF41: 1.242416972e-10 | EG41: 3.143872651 | EH41: 0.0006239330328 | EI41: 3.142649742 | EJ41: 3.14509556 | EK41: 3.307900901 | EL41: 0.000707336858 | EM41: 3.30651452 | EN41: 3.309287281
A42: =IF('DATA INPUT'!A42="","",'DATA INPUT'!A42) -> Indonesia | B42: =IF('DATA INPUT'!B42="","",'DATA INPUT'!B42) -> 2017 | C42: =IF('DATA INPUT'!C42="","",'DATA INPUT'!C42) -> Births attended by skilled health personnel (%) | D42: =IF('DATA INPUT'!I42="","",'DATA INPUT'!I42) -> 1 | E42: =IF('DATA INPUT'!J42="","",'DATA INPUT'!J42) -> 100 | F42: =IF('DATA INPUT'!D42="","",'DATA INPUT'!D42) -> Subnational region | G42: =IF('DATA INPUT'!K42="","",'DATA INPUT'!K42) -> 0 | H42: =IF('DATA INPUT'!E42="","",'DATA INPUT'!E42) -> south sumatera | I42: =IF('DATA INPUT'!M42="","",'DATA INPUT'!M42) -> 0 | J42: =IF('DATA INPUT'!L42="","",'DATA INPUT'!L42) -> 0 | K42: =IF('DATA INPUT'!F42="","",'DATA INPUT'!F42) -> 96.44518 | L42: =IF('DATA INPUT'!G42="","",'DATA INPUT'!G42) -> 1.444546 | M42: =IF('DATA INPUT'!H42="","",'DATA INPUT'!H42) -> 355.3561 | N42: Indonesia2017Births attended by skilled health personnel (%)Subnational region | O42: 3 | P42: 34 | Q42: 34 | R42: 34 | S42: 0 | T42: =IF($D42=1,MAX(IF(group=$O42,order)),MIN(IF(group=$O42,order))) -> 0 | U42: =IF($D42=1,MIN(IF(group=$O42,order)),MAX(IF(group=$O42,order))) -> 0 | V42: =_xlfn.MAXIFS(estimate,group,$O42) -> 100 | W42: =_xlfn.MINIFS(estimate,group,$O42) -> 64.19527 | X42: 0 | Y42: 64.19527 | Z42: =IF($Q42<2,"",IF($G42=1,INDEX(estimate,MATCH(1,(group=$O42)*(order=$T42),0)), IF(AND($G42=0,$X42<>0,$D42=1),$X42, IF(AND($G42=0,$X42<>0,$D42=0),$Y42, IF(AND($G42=0,$X42=0),$V42,""))))) -> 100 | AA42: =IF($Q42<2,"",IF($G42=1,INDEX(estimate,MATCH(1,(group=$O42)*(order=$U42),0)), IF(AND($G42=0,$X42<>0,$D42=1),$Y42, IF(AND($G42=0,$X42<>0,$D42=0),$X42, IF(AND($G42=0,$X42=0),$W42,""))))) -> 64.19527 | AB42: =IF($Q42<2,"",IF($G42=1,INDEX(se,MATCH(1,(group=$O42)*(order=$T42),0)), IF(AND($G42=0,$X42<>0,$D42=1),INDEX(se,MATCH(1,(group=$O42)*(estimate=$X42),0)), IF(AND($G42=0,$X42<>0,$D42=0),INDEX(se,MATCH(1,(group=$O42)*(estimate=$Y42),0)), IF(AND($G42=0,$X42=0),INDEX(se,MATCH(1,(group=$O42)*(estimate=$V42),0)),""))))) -> 0 | AC42: =IF($Q42<2,"",IF($G42=1,INDEX(se,MATCH(1,(group=$O42)*(order=$U42),0)), IF(AND($G42=0,$X42<>0,$D42=1),INDEX(se,MATCH(1,(group=$O42)*(estimate=$Y42),0)), IF(AND($G42=0,$X42<>0,$D42=0),INDEX(se,MATCH(1,(group=$O42)*(estimate=$X42),0)), IF(AND($G42=0,$X42=0),INDEX(se,MATCH(1,(group=$O42)*(estimate=$W42),0)),""))))) -> 7.05186 | AD42: 35.80473 | AE42: 7.05186 | AF42: 21.9830844 | AG42: 49.6263756 | AH42: 1.557747167 | AI42: 0.1711187591 | AJ42: 1.25600288 | AK42: 1.93198302 | AL42: 0.03516868714 | AM42: =IF($O42<>"",SUMPRODUCT(IF(group=$O42,1,0),AL:AL,estimate)) -> 91.59668534 | AN42: 0 | AO42: 0 | AP42: 0 | AQ42: 0 | AR42: 0 | BA42: 1000 | BB42: 0.09644518 | BC42: -2.237362019 | BD42: 0 | BE42: 0 | BF42: 0 | BG42: 0 | BH42: =IF($G42=0,0, INDEX(LINEST( IF($BG42=1,INDEX(BF:BF,ROW($BD42),0),INDEX(BF:BF,ROW($BD42)-J42+1,0)): IF($BG42=1,INDEX(BF:BF,ROW($BD42)+COUNTIF(group,$O42)-1,0),INDEX(BF:BF,ROW($BD42)-J42+$Q42,0)), IF($BG42=1,INDEX(BD:BE,ROW($BD42),0),INDEX(BD:BE,ROW($BD42)-J42+1,0)): IF($BG42=1,INDEX(BD:BE,ROW($BD42)+COUNTIF(group,$O42)-1,0),INDEX(BD:BE,ROW($BD42)-J42+$Q42,0)), FALSE),2)) -> 0 | BI42: =IF($G42=0,0, INDEX(LINEST( IF($BG42=1,INDEX(BF:BF,ROW($BD42),0),INDEX(BF:BF,ROW($BD42)-J42+1,0)): IF($BG42=1,INDEX(BF:BF,ROW($BD42)+COUNTIF(group,$O42)-1,0),INDEX(BF:BF,ROW($BD42)-J42+$Q42,0)), IF($BG42=1,INDEX(BD:BE,ROW($BD42),0),INDEX(BD:BE,ROW($BD42)-J42+1,0)): IF($BG42=1,INDEX(BD:BE,ROW($BD42)+COUNTIF(group,$O42)-1,0),INDEX(BD:BE,ROW($BD42)-J42+$Q42,0)), FALSE),1)+ INDEX(LINEST( IF($BG42=1,INDEX(BF:BF,ROW($BD42),0),INDEX(BF:BF,ROW($BD42)-J42+1,0)): IF($BG42=1,INDEX(BF:BF,ROW($BD42)+COUNTIF(group,$O42)-1,0),INDEX(BF:BF,ROW($BD42)-J42+COUNTIF(group,$O42),0)), IF($BG42=1,INDEX(BD:BE,ROW($BD42),0),INDEX(BD:BE,ROW($BD42)-J42+1,0)): IF($BG42=1,INDEX(BD:BE,ROW($BD42)+COUNTIF(group,$O42)-1,0),INDEX(BD:BE,ROW($BD42)-J42+COUNTIF(group,$O42),0)), FALSE),2)) -> 0 | BJ42: 0 | BK42: 0 | BR42: 0 | BS42: 100 | BT42: 149.4627 | BU42: 149.4627 | BV42: 0 | BW42: 9105.770726 | BX42: 849.0988339 | BY42: 10104.33226 | BZ42: 9.17425628 | CA42: 0.003289666458 | CB42: 9.167808534 | CC42: 9.180704027 | CD42: 8.403314658 | CE42: 0.3013225434 | CF42: 7.812722473 | CG42: 8.993906843 | CH42: 4.848494658 | CI42: 0.1705151917 | CJ42: 6.615573235 | CM42: 5.326111683 | CP42: 7.222502878 | CS42: 5.814742818 | CV42: 3.55482 | CW42: 0.1250183524 | CX42: 10.32640382 | DA42: 8.403314658 | DD42: 0 | DE42: 0 | DL42: 0.8267419961 | DM42: 0.06067208327 | DN42: 0.002580923099 | DO42: 6.661164043e-06 | DP42: 0.005013495114 | DQ42: 50.42023119 | DR42: 9.560196696 | DS42: 31.68224566 | DT42: 69.15821671 | DU42: 7.10072047 | DX42: 7.752158763 | EA42: 1.05293308 | EB42: 0.001910009657 | EC42: 0.03894028372 | ED42: 6.054916199e-06 | EE42: -0.001813989601 | EF42: 7.774426027e-10 | EG42: 3.143872651 | EH42: 0.0006239330328 | EI42: 3.142649742 | EJ42: 3.14509556 | EK42: 3.307900901 | EL42: 0.000707336858 | EM42: 3.30651452 | EN42: 3.309287281
A43: =IF('DATA INPUT'!A43="","",'DATA INPUT'!A43) -> Indonesia | B43: =IF('DATA INPUT'!B43="","",'DATA INPUT'!B43) -> 2017 | C43: =IF('DATA INPUT'!C43="","",'DATA INPUT'!C43) -> Births attended by skilled health personnel (%) | D43: =IF('DATA INPUT'!I43="","",'DATA INPUT'!I43) -> 1 | E43: =IF('DATA INPUT'!J43="","",'DATA INPUT'!J43) -> 100 | F43: =IF('DATA INPUT'!D43="","",'DATA INPUT'!D43) -> Subnational region | G43: =IF('DATA INPUT'!K43="","",'DATA INPUT'!K43) -> 0 | H43: =IF('DATA INPUT'!E43="","",'DATA INPUT'!E43) -> southeast sulawesi | I43: =IF('DATA INPUT'!M43="","",'DATA INPUT'!M43) -> 0 | J43: =IF('DATA INPUT'!L43="","",'DATA INPUT'!L43) -> 0 | K43: =IF('DATA INPUT'!F43="","",'DATA INPUT'!F43) -> 84.66086 | L43: =IF('DATA INPUT'!G43="","",'DATA INPUT'!G43) -> 2.770752 | M43: =IF('DATA INPUT'!H43="","",'DATA INPUT'!H43) -> 119.8061 | N43: Indonesia2017Births attended by skilled health personnel (%)Subnational region | O43: 3 | P43: 34 | Q43: 34 | R43: 34 | S43: 0 | T43: =IF($D43=1,MAX(IF(group=$O43,order)),MIN(IF(group=$O43,order))) -> 0 | U43: =IF($D43=1,MIN(IF(group=$O43,order)),MAX(IF(group=$O43,order))) -> 0 | V43: =_xlfn.MAXIFS(estimate,group,$O43) -> 100 | W43: =_xlfn.MINIFS(estimate,group,$O43) -> 64.19527 | X43: 0 | Y43: 64.19527 | Z43: =IF($Q43<2,"",IF($G43=1,INDEX(estimate,MATCH(1,(group=$O43)*(order=$T43),0)), IF(AND($G43=0,$X43<>0,$D43=1),$X43, IF(AND($G43=0,$X43<>0,$D43=0),$Y43, IF(AND($G43=0,$X43=0),$V43,""))))) -> 100 | AA43: =IF($Q43<2,"",IF($G43=1,INDEX(estimate,MATCH(1,(group=$O43)*(order=$U43),0)), IF(AND($G43=0,$X43<>0,$D43=1),$Y43, IF(AND($G43=0,$X43<>0,$D43=0),$X43, IF(AND($G43=0,$X43=0),$W43,""))))) -> 64.19527 | AB43: =IF($Q43<2,"",IF($G43=1,INDEX(se,MATCH(1,(group=$O43)*(order=$T43),0)), IF(AND($G43=0,$X43<>0,$D43=1),INDEX(se,MATCH(1,(group=$O43)*(estimate=$X43),0)), IF(AND($G43=0,$X43<>0,$D43=0),INDEX(se,MATCH(1,(group=$O43)*(estimate=$Y43),0)), IF(AND($G43=0,$X43=0),INDEX(se,MATCH(1,(group=$O43)*(estimate=$V43),0)),""))))) -> 0 | AC43: =IF($Q43<2,"",IF($G43=1,INDEX(se,MATCH(1,(group=$O43)*(order=$U43),0)), IF(AND($G43=0,$X43<>0,$D43=1),INDEX(se,MATCH(1,(group=$O43)*(estimate=$Y43),0)), IF(AND($G43=0,$X43<>0,$D43=0),INDEX(se,MATCH(1,(group=$O43)*(estimate=$X43),0)), IF(AND($G43=0,$X43=0),INDEX(se,MATCH(1,(group=$O43)*(estimate=$W43),0)),""))))) -> 7.05186 | AD43: 35.80473 | AE43: 7.05186 | AF43: 21.9830844 | AG43: 49.6263756 | AH43: 1.557747167 | AI43: 0.1711187591 | AJ43: 1.25600288 | AK43: 1.93198302 | AL43: 0.01185690424 | AM43: =IF($O43<>"",SUMPRODUCT(IF(group=$O43,1,0),AL:AL,estimate)) -> 91.59668534 | AN43: 0 | AO43: 0 | AP43: 0 | AQ43: 0 | AR43: 0 | BA43: 1000 | BB43: 0.08466086 | BC43: -2.380641248 | BD43: 0 | BE43: 0 | BF43: 0 | BG43: 0 | BH43: =IF($G43=0,0, INDEX(LINEST( IF($BG43=1,INDEX(BF:BF,ROW($BD43),0),INDEX(BF:BF,ROW($BD43)-J43+1,0)): IF($BG43=1,INDEX(BF:BF,ROW($BD43)+COUNTIF(group,$O43)-1,0),INDEX(BF:BF,ROW($BD43)-J43+$Q43,0)), IF($BG43=1,INDEX(BD:BE,ROW($BD43),0),INDEX(BD:BE,ROW($BD43)-J43+1,0)): IF($BG43=1,INDEX(BD:BE,ROW($BD43)+COUNTIF(group,$O43)-1,0),INDEX(BD:BE,ROW($BD43)-J43+$Q43,0)), FALSE),2)) -> 0 | BI43: =IF($G43=0,0, INDEX(LINEST( IF($BG43=1,INDEX(BF:BF,ROW($BD43),0),INDEX(BF:BF,ROW($BD43)-J43+1,0)): IF($BG43=1,INDEX(BF:BF,ROW($BD43)+COUNTIF(group,$O43)-1,0),INDEX(BF:BF,ROW($BD43)-J43+$Q43,0)), IF($BG43=1,INDEX(BD:BE,ROW($BD43),0),INDEX(BD:BE,ROW($BD43)-J43+1,0)): IF($BG43=1,INDEX(BD:BE,ROW($BD43)+COUNTIF(group,$O43)-1,0),INDEX(BD:BE,ROW($BD43)-J43+$Q43,0)), FALSE),1)+ INDEX(LINEST( IF($BG43=1,INDEX(BF:BF,ROW($BD43),0),INDEX(BF:BF,ROW($BD43)-J43+1,0)): IF($BG43=1,INDEX(BF:BF,ROW($BD43)+COUNTIF(group,$O43)-1,0),INDEX(BF:BF,ROW($BD43)-J43+COUNTIF(group,$O43),0)), IF($BG43=1,INDEX(BD:BE,ROW($BD43),0),INDEX(BD:BE,ROW($BD43)-J43+1,0)): IF($BG43=1,INDEX(BD:BE,ROW($BD43)+COUNTIF(group,$O43)-1,0),INDEX(BD:BE,ROW($BD43)-J43+COUNTIF(group,$O43),0)), FALSE),2)) -> 0 | BJ43: 0 | BK43: 0 | BR43: 0 | BS43: 100 | BT43: 149.4627 | BU43: 149.4627 | BV43: 0 | BW43: 9105.770726 | BX43: 849.0988339 | BY43: 10104.33226 | BZ43: 9.17425628 | CA43: 0.003289666458 | CB43: 9.167808534 | CC43: 9.180704027 | CD43: 8.403314658 | CE43: 0.3013225434 | CF43: 7.812722473 | CG43: 8.993906843 | CH43: 6.935825342 | CI43: 0.0822374169 | CJ43: 6.615573235 | CM43: 5.326111683 | CP43: 7.222502878 | CS43: 5.814742818 | CV43: 15.33914 | CW43: 0.1818747141 | CX43: 10.32640382 | DA43: 8.403314658 | DD43: 0 | DE43: 0 | DL43: 0.5703843602 | DM43: 0.05191994597 | DN43: 0.001079289459 | DO43: 1.164865736e-06 | DP43: 0.00809045464 | DQ43: 50.42023119 | DR43: 9.560196696 | DS43: 31.68224566 | DT43: 69.15821671 | DU43: 7.10072047 | DX43: 7.752158763 | EA43: 0.9242786427 | EB43: -0.0008629367605 | EC43: 0.0100961466 | ED43: 7.23690091e-06 | EE43: 0.0009336326955 | EF43: 8.633946723e-10 | EG43: 3.143872651 | EH43: 0.0006239330328 | EI43: 3.142649742 | EJ43: 3.14509556 | EK43: 3.307900901 | EL43: 0.000707336858 | EM43: 3.30651452 | EN43: 3.309287281
